Workbook

Sheet Introduction
C4: Joint Monitoring Programme for Water Supply, Sanitation and Hygiene
C6: Estimates on household water, sanitation and hygiene by wealth quintile and sub-national region in
C7: =+Water!B5 -> Sierra Leone
C9: Updated April 2021
C11: Follow the links below to find the following information:
C13: JMP Estimates
C14: WASH status and trends by wealth quintile (customized quintiles made without water and sanitation assets)
C15: Water
C16: Sanitation
C17: Hygiene
C19: Data inputs
C20: customized wealth quintiles and subnational data:
C21: =IF(INDIRECT(CONCATENATE("Water","!B105"))=0,"",INDIRECT(CONCATENATE("Water","!B105"))) -> MICS00
C22: =IF(INDIRECT(CONCATENATE("Water","!B106"))=0,"",INDIRECT(CONCATENATE("Water","!B106"))) -> MICS06
C23: =IF(INDIRECT(CONCATENATE("Water","!B107"))=0,"",INDIRECT(CONCATENATE("Water","!B107"))) -> DHS08
C24: =IF(INDIRECT(CONCATENATE("Water","!B108"))=0,"",INDIRECT(CONCATENATE("Water","!B108"))) -> MICS10
C25: =IF(INDIRECT(CONCATENATE("Water","!B109"))=0,"",INDIRECT(CONCATENATE("Water","!B109"))) -> DHS13
C26: =IF(INDIRECT(CONCATENATE("Water","!B110"))=0,"",INDIRECT(CONCATENATE("Water","!B110"))) -> MIS16
C27: =IF(INDIRECT(CONCATENATE("Water","!B111"))=0,"",INDIRECT(CONCATENATE("Water","!B111"))) -> MICS17
C28: =IF(INDIRECT(CONCATENATE("Water","!B112"))=0,"",INDIRECT(CONCATENATE("Water","!B112"))) -> DHS19
C29: =IF(INDIRECT(CONCATENATE("Water","!B113"))=0,"",INDIRECT(CONCATENATE("Water","!B113"))) -> 
C30: =IF(INDIRECT(CONCATENATE("Water","!B114"))=0,"",INDIRECT(CONCATENATE("Water","!B114"))) -> 
C31: =IF(INDIRECT(CONCATENATE("Water","!B115"))=0,"",INDIRECT(CONCATENATE("Water","!B115"))) -> 
C32: =IF(INDIRECT(CONCATENATE("Water","!B116"))=0,"",INDIRECT(CONCATENATE("Water","!B116"))) -> 
L55: =+IF(ISNUMBER(M48), "", "Insufficient data to estimate safely managed sanitation services at national level") -> Insufficient data to estimate safely managed sanitation services at national level

Sheet Water
A1: BGD
B4: Summary of trends in use of drinking water by wealth quintile (%)
B5: =IF(ISERROR(INDIRECT(CONCATENATE($B105,"!A2"))),"",INDIRECT(CONCATENATE($B105,"!A2"))) -> Sierra Leone
B7: =B118 -> National use of drinking water sources, 2000–2020 | J7: =B218 -> Urban use of drinking water sources, 2000–2020 | R7: =B318 -> Rural use of drinking water sources, 2000–2020
B31: =IF(ISERROR(INDIRECT(CONCATENATE($B105,"!A2"))),"",INDIRECT(CONCATENATE($B105,"!A2"))) -> Sierra Leone | F31: Poorest | J31: Poor | N31: Middle | R31: Rich | V31: Richest
F32: Basic | G32: Limited | H32: Unimproved | I32: Surface water | J32: Basic | K32: Limited | L32: Unimproved | M32: Surface water | N32: Basic | O32: Limited | P32: Unimproved | Q32: Surface water | R32: Basic | S32: Limited | T32: Unimproved | U32: Surface water | V32: Basic | W32: Limited | X32: Unimproved | Y32: Surface water
B33: NATIONAL | D33: Estimate | E33: =C99 -> 2000 | F33: =E99 -> 25.56762557 | G33: =F99 -> 1.667375719 | H33: 18.811409 | I33: 53.95358971 | J33: =J99 -> 30.41447121 | K33: =K99 -> 2.531704974 | L33: 19.09894118 | M33: 47.95488263 | N33: =O99 -> 36.47647446 | O33: =P99 -> 3.690525083 | P33: 19.28713075 | Q33: 40.54586971 | R33: =T99 -> 48.93024005 | S33: =U99 -> 6.726737701 | T33: 18.82610928 | U33: 25.51691297 | V33: =Y99 -> 67.79505148 | W33: =Z99 -> 12.64033817 | X33: 13.60007328 | Y33: 5.964537068
E34: =C100 -> 2020 | F34: =E100 -> 39.22412241 | G34: 2.55797509 | H34: 25.53882516 | I34: 32.67907734 | J34: =J100 -> 48.32857082 | K34: 4.022877211 | L34: 24.60813715 | M34: 23.04041483 | N34: =O100 -> 58.95790391 | O34: 5.965094664 | P34: 20.30413709 | Q34: 14.77286434 | R34: =T100 -> 74.64724232 | S34: 10.26221042 | T34: 11.07656197 | U34: 4.013985288 | V34: =Y100 -> 82.97834537 | W34: 15.4712523 | X34: 1.550402336 | Y34: 0
B36: URBAN | D36: Estimate | E36: =C199 -> 2000 | F36: =E199 -> 45.09078709 | G36: =F199 -> 5.519531762 | H36: 21.88921907 | I36: 27.50046208 | J36: =J199 -> 62.7623585 | K36: =K199 -> 9.446161533 | L36: 13.46733059 | M36: 14.32414938 | N36: =O199 -> 68.04673912 | O36: =P199 -> 12.55912432 | P36: 14.39984001 | Q36: 4.994296548 | R36: =T199 -> 68.62006211 | S36: =U199 -> 15.15968929 | T36: 11.56659495 | U36: 4.653653653 | V36: =Y199 -> 73.08617764 | W36: =Z199 -> 11.07643558 | X36: 10.96292409 | Y36: 4.874462691
E37: =C200 -> 2020 | F37: =E200 -> 71.69904602 | G37: 8.776630158 | H37: 12.62946887 | I37: 6.894854956 | J37: =J200 -> 75.97391855 | K37: 11.43459112 | L37: 11.38426419 | M37: 1.207226148 | N37: =O200 -> 78.09397908 | O37: 14.41350467 | P37: 6.578698031 | Q37: 0.9138182243 | R37: =T200 -> 79.92938271 | S37: 17.65816832 | T37: 2.412448972 | U37: 0 | V37: =Y200 -> 86.8392447 | W37: 13.1607553 | X37: 0 | Y37: 0
B39: RURAL | D39: Estimate | E39: =C299 -> 2000 | F39: =E299 -> 27.99152715 | G39: =F299 -> 1.892809842 | H39: 20.66784618 | I39: 49.44781683 | J39: =J299 -> 28.72047129 | K39: =K299 -> 2.136877009 | L39: 21.7427697 | M39: 47.399882 | N39: =O299 -> 37.56468083 | O39: =P299 -> 3.19493146 | P39: 20.19688547 | Q39: 39.04350224 | R39: =T299 -> 43.29811751 | S39: =U299 -> 4.431447326 | T39: 19.07149124 | U39: 33.19894392 | V39: =Y299 -> 52.67879643 | W39: =Z299 -> 5.742336833 | X39: 19.04853712 | Y39: 22.53032961
E40: =C300 -> 2020 | F40: =E300 -> 35.24101499 | G40: 2.383026109 | H40: 24.87946822 | I40: 37.49649068 | J40: =J300 -> 42.85900329 | K40: 3.188820192 | L40: 26.80425084 | M40: 27.14792568 | N40: =O300 -> 43.92776561 | O40: 3.736121197 | P40: 25.92786977 | Q40: 26.40824343 | R40: =T300 -> 51.68308148 | S40: 5.289626118 | T40: 21.87455953 | U40: 21.15273288 | V40: =Y300 -> 62.90695909 | W40: 6.857274135 | X40: 16.45196456 | Y40: 13.78380222
A97: NATIONAL | D97: Poorest | I97: Poor | N97: Middle | S97: Rich | X97: Richest
D98: Improved | E98: Basic | F98: Limited | G98: Unimproved | H98: Surface water | I98: Improved | J98: Basic | K98: Limited | L98: Unimproved | M98: Surface water | N98: Improved | O98: Basic | P98: Limited | Q98: Unimproved | R98: Surface water | S98: Improved | T98: Basic | U98: Limited | V98: Unimproved | W98: Surface water | X98: Improved | Y98: Basic | Z98: Limited | AA98: Unimproved | AB98: Surface water
A99: Forecast period: | C99: 2000 | D99: =IF((D101+H101)>100,D101*100/(D101+H101),D101) -> 27.23500129 | E99: =D99*AVERAGEIF(E105:E116,">0")/100 -> 25.56762557 | F99: =D99*(100-AVERAGEIF(E105:E116,">0"))/100 -> 1.667375719 | G99: =100-(E99+F99+H99) -> 18.811409 | H99: =IF((D101+H101)>100,H101*100/(D101+H101),H101) -> 53.95358971 | I99: =IF((I101+M101)>100,I101*100/(I101+M101),I101) -> 32.94617619 | J99: =I99*AVERAGEIF(J105:J116,">0")/100 -> 30.41447121 | K99: =I99*(100-AVERAGEIF(J105:J116,">0"))/100 -> 2.531704974 | L99: =100-(J99+K99+M99) -> 19.09894118 | M99: =IF((I101+M101)>100,M101*100/(I101+M101),M101) -> 47.95488263 | N99: =IF((N101+R101)>100,N101*100/(N101+R101),N101) -> 40.16699954 | O99: =N99*AVERAGEIF(O105:O116,">0")/100 -> 36.47647446 | P99: =N99*(100-AVERAGEIF(O105:O116,">0"))/100 -> 3.690525083 | Q99: =100-(O99+P99+R99) -> 19.28713075 | R99: =IF((N101+R101)>100,R101*100/(N101+R101),R101) -> 40.54586971 | S99: =IF((S101+W101)>100,S101*100/(S101+W101),S101) -> 55.65697775 | T99: =S99*AVERAGEIF(T105:T116,">0")/100 -> 48.93024005 | U99: =S99*(100-AVERAGEIF(T105:T116,">0"))/100 -> 6.726737701 | V99: =100-(T99+U99+W99) -> 18.82610928 | W99: =IF((S101+W101)>100,W101*100/(S101+W101),W101) -> 25.51691297 | X99: =IF((X101+AB101)>100,X101*100/(X101+AB101),X101) -> 80.43538965 | Y99: =X99*AVERAGEIF(Y105:Y116,">0")/100 -> 67.79505148 | Z99: =X99*(100-AVERAGEIF(Y105:Y116,">0"))/100 -> 12.64033817 | AA99: =100-(Y99+Z99+AB99) -> 13.60007328 | AB99: =IF((X101+AB101)>100,AB101*100/(X101+AB101),AB101) -> 5.964537068
C100: 2020 | D100: =IF((D102+H102)>100,D102*100/(D102+H102),D102) -> 41.7820975 | E100: =D100*AVERAGEIF(E105:E116,">0")/100 -> 39.22412241 | F100: =D100*(100-AVERAGEIF(E105:E116,">0"))/100 -> 2.55797509 | G100: =100-(E100+F100+H100) -> 25.53882516 | H100: =IF((D102+H102)>100,H102*100/(D102+H102),H102) -> 32.67907734 | I100: =IF((I102+M102)>100,I102*100/(I102+M102),I102) -> 52.35144803 | J100: =I100*AVERAGEIF(J105:J116,">0")/100 -> 48.32857082 | K100: =I100*(100-AVERAGEIF(J105:J116,">0"))/100 -> 4.022877211 | L100: =100-(J100+K100+M100) -> 24.60813715 | M100: =IF((I102+M102)>100,M102*100/(I102+M102),M102) -> 23.04041483 | N100: =IF((N102+R102)>100,N102*100/(N102+R102),N102) -> 64.92299857 | O100: =N100*AVERAGEIF(O105:O116,">0")/100 -> 58.95790391 | P100: =N100*(100-AVERAGEIF(O105:O116,">0"))/100 -> 5.965094664 | Q100: =100-(O100+P100+R100) -> 20.30413709 | R100: =IF((N102+R102)>100,R102*100/(N102+R102),R102) -> 14.77286434 | S100: =IF((S102+W102)>100,S102*100/(S102+W102),S102) -> 84.90945274 | T100: =S100*AVERAGEIF(T105:T116,">0")/100 -> 74.64724232 | U100: =S100*(100-AVERAGEIF(T105:T116,">0"))/100 -> 10.26221042 | V100: =100-(T100+U100+W100) -> 11.07656197 | W100: =IF((S102+W102)>100,W102*100/(S102+W102),W102) -> 4.013985288 | X100: =IF((X102+AB102)>100,X102*100/(X102+AB102),X102) -> 98.44959766 | Y100: =X100*AVERAGEIF(Y105:Y116,">0")/100 -> 82.97834537 | Z100: =X100*(100-AVERAGEIF(Y105:Y116,">0"))/100 -> 15.4712523 | AA100: =100-(Y100+Z100+AB100) -> 1.550402336 | AB100: =IF((X102+AB102)>100,AB102*100/(X102+AB102),AB102) -> 0
A101: Regression period: | C101: =MinRegYear(C99,C105:C116) -> 2000 | D101: =IF(MAX(C105:C116)-MIN(C105:C116)<5,AVERAGEIF(C105:C116,">0",D105:D116), IF(FORECAST($C101,D$105:D$116,$C$105:$C$116)<0,0, IF(FORECAST($C101,D$105:D$116,$C$105:$C$116)>100,100, FORECAST($C101,D$105:D$116,$C$105:$C$116)))) -> 27.23500129 | H101: =IF(MAX(C105:C116)-MIN(C105:C116)<5,AVERAGEIF(C105:C116,">0",H105:H116), IF(FORECAST($C101,H$105:H$116,$C$105:$C$116)<0,0, IF(FORECAST($C101,H$105:H$116,$C$105:$C$116)>100,100, FORECAST($C101,H$105:H$116,$C$105:$C$116)))) -> 53.95358971 | I101: =IF(MAX(C105:C116)-MIN(C105:C116)<5,AVERAGEIF(C105:C116,">0",I105:I116), IF(FORECAST($C101,I$105:I$116,$C$105:$C$116)<0,0, IF(FORECAST($C101,I$105:I$116,$C$105:$C$116)>100,100, FORECAST($C101,I$105:I$116,$C$105:$C$116)))) -> 32.94617619 | M101: =IF(MAX(C105:C116)-MIN(C105:C116)<5,AVERAGEIF(C105:C116,">0",M105:M116), IF(FORECAST($C101,M$105:M$116,$C$105:$C$116)<0,0, IF(FORECAST($C101,M$105:M$116,$C$105:$C$116)>100,100, FORECAST($C101,M$105:M$116,$C$105:$C$116)))) -> 47.95488263 | N101: =IF(MAX(C105:C116)-MIN(C105:C116)<5,AVERAGEIF(C105:C116,">0",N105:N116), IF(FORECAST($C101,N$105:N$116,$C$105:$C$116)<0,0, IF(FORECAST($C101,N$105:N$116,$C$105:$C$116)>100,100, FORECAST($C101,N$105:N$116,$C$105:$C$116)))) -> 40.16699954 | R101: =IF(MAX(C105:C116)-MIN(C105:C116)<5,AVERAGEIF(C105:C116,">0",R105:R116), IF(FORECAST($C101,R$105:R$116,$C$105:$C$116)<0,0, IF(FORECAST($C101,R$105:R$116,$C$105:$C$116)>100,100, FORECAST($C101,R$105:R$116,$C$105:$C$116)))) -> 40.54586971 | S101: =IF(MAX(C105:C116)-MIN(C105:C116)<5,AVERAGEIF(C105:C116,">0",S105:S116), IF(FORECAST($C101,S$105:S$116,$C$105:$C$116)<0,0, IF(FORECAST($C101,S$105:S$116,$C$105:$C$116)>100,100, FORECAST($C101,S$105:S$116,$C$105:$C$116)))) -> 55.65697775 | W101: =IF(MAX(C105:C116)-MIN(C105:C116)<5,AVERAGEIF(C105:C116,">0",W105:W116), IF(FORECAST($C101,W$105:W$116,$C$105:$C$116)<0,0, IF(FORECAST($C101,W$105:W$116,$C$105:$C$116)>100,100, FORECAST($C101,W$105:W$116,$C$105:$C$116)))) -> 25.51691297 | X101: =IF(MAX(C105:C116)-MIN(C105:C116)<5,AVERAGEIF(C105:C116,">0",X105:X116), IF(FORECAST($C101,X$105:X$116,$C$105:$C$116)<0,0, IF(FORECAST($C101,X$105:X$116,$C$105:$C$116)>100,100, FORECAST($C101,X$105:X$116,$C$105:$C$116)))) -> 80.43538965 | AB101: =IF(MAX(C105:C116)-MIN(C105:C116)<5,AVERAGEIF(C105:C116,">0",AB105:AB116), IF(FORECAST($C101,AB$105:AB$116,$C$105:$C$116)<0,0, IF(FORECAST($C101,AB$105:AB$116,$C$105:$C$116)>100,100, FORECAST($C101,AB$105:AB$116,$C$105:$C$116)))) -> 5.964537068
C102: =MaxRegYear(C100,C105:C116) -> 2020 | D102: =IF(MAX(C105:C116)-MIN(C105:C116)<5,AVERAGEIF(C105:C116,">0",D105:D116), IF(FORECAST($C102,D$105:D$116,$C$105:$C$116)<0,0, IF(FORECAST($C102,D$105:D$116,$C$105:$C$116)>100,100, FORECAST($C102,D$105:D$116,$C$105:$C$116)))) -> 41.7820975 | H102: =IF(MAX(C105:C116)-MIN(C105:C116)<5,AVERAGEIF(C105:C116,">0",H105:H116), IF(FORECAST($C102,H$105:H$116,$C$105:$C$116)<0,0, IF(FORECAST($C102,H$105:H$116,$C$105:$C$116)>100,100, FORECAST($C102,H$105:H$116,$C$105:$C$116)))) -> 32.67907734 | I102: =IF(MAX(C105:C116)-MIN(C105:C116)<5,AVERAGEIF(C105:C116,">0",I105:I116), IF(FORECAST($C102,I$105:I$116,$C$105:$C$116)<0,0, IF(FORECAST($C102,I$105:I$116,$C$105:$C$116)>100,100, FORECAST($C102,I$105:I$116,$C$105:$C$116)))) -> 52.35144803 | M102: =IF(MAX(C105:C116)-MIN(C105:C116)<5,AVERAGEIF(C105:C116,">0",M105:M116), IF(FORECAST($C102,M$105:M$116,$C$105:$C$116)<0,0, IF(FORECAST($C102,M$105:M$116,$C$105:$C$116)>100,100, FORECAST($C102,M$105:M$116,$C$105:$C$116)))) -> 23.04041483 | N102: =IF(MAX(C105:C116)-MIN(C105:C116)<5,AVERAGEIF(C105:C116,">0",N105:N116), IF(FORECAST($C102,N$105:N$116,$C$105:$C$116)<0,0, IF(FORECAST($C102,N$105:N$116,$C$105:$C$116)>100,100, FORECAST($C102,N$105:N$116,$C$105:$C$116)))) -> 64.92299857 | R102: =IF(MAX(C105:C116)-MIN(C105:C116)<5,AVERAGEIF(C105:C116,">0",R105:R116), IF(FORECAST($C102,R$105:R$116,$C$105:$C$116)<0,0, IF(FORECAST($C102,R$105:R$116,$C$105:$C$116)>100,100, FORECAST($C102,R$105:R$116,$C$105:$C$116)))) -> 14.77286434 | S102: =IF(MAX(C105:C116)-MIN(C105:C116)<5,AVERAGEIF(C105:C116,">0",S105:S116), IF(FORECAST($C102,S$105:S$116,$C$105:$C$116)<0,0, IF(FORECAST($C102,S$105:S$116,$C$105:$C$116)>100,100, FORECAST($C102,S$105:S$116,$C$105:$C$116)))) -> 84.90945274 | W102: =IF(MAX(C105:C116)-MIN(C105:C116)<5,AVERAGEIF(C105:C116,">0",W105:W116), IF(FORECAST($C102,W$105:W$116,$C$105:$C$116)<0,0, IF(FORECAST($C102,W$105:W$116,$C$105:$C$116)>100,100, FORECAST($C102,W$105:W$116,$C$105:$C$116)))) -> 4.013985288 | X102: =IF(MAX(C105:C116)-MIN(C105:C116)<5,AVERAGEIF(C105:C116,">0",X105:X116), IF(FORECAST($C102,X$105:X$116,$C$105:$C$116)<0,0, IF(FORECAST($C102,X$105:X$116,$C$105:$C$116)>100,100, FORECAST($C102,X$105:X$116,$C$105:$C$116)))) -> 98.44959766 | AB102: =IF(MAX(C105:C116)-MIN(C105:C116)<5,AVERAGEIF(C105:C116,">0",AB105:AB116), IF(FORECAST($C102,AB$105:AB$116,$C$105:$C$116)<0,0, IF(FORECAST($C102,AB$105:AB$116,$C$105:$C$116)>100,100, FORECAST($C102,AB$105:AB$116,$C$105:$C$116)))) -> 0
B104: Survey | C104: Year | D104: Improved | E104: % Improved < = 30min | H104: Surface water | I104: Improved | J104: % Improved < = 30min | M104: Surface water | N104: Improved | O104: % Improved < = 30min | R104: Surface water | S104: Improved | T104: % Improved < = 30min | W104: Surface water | X104: Improved | Y104: % Improved < = 30min | AB104: Surface water
B105: MICS00 | C105: 2000 | D105: =IF(ISERROR(INDIRECT(CONCATENATE($B105,"!C16"))),"",INDIRECT(CONCATENATE($B105,"!C16"))) -> 36.3972517 | E105: =IF(ISERROR(INDIRECT(CONCATENATE($B105,"!C23"))),"",INDIRECT(CONCATENATE($B105,"!C23"))) -> 90.65917555 | H105: =IF(ISERROR(INDIRECT(CONCATENATE($B105,"!C21"))),"",INDIRECT(CONCATENATE($B105,"!C21"))) -> 43.06913568 | I105: =IF(ISERROR(INDIRECT(CONCATENATE($B105,"!D16"))),"",INDIRECT(CONCATENATE($B105,"!D16"))) -> 41.19052324 | J105: =IF(ISERROR(INDIRECT(CONCATENATE($B105,"!D23"))),"",INDIRECT(CONCATENATE($B105,"!D23"))) -> 85.42704638 | M105: =IF(ISERROR(INDIRECT(CONCATENATE($B105,"!D21"))),"",INDIRECT(CONCATENATE($B105,"!D21"))) -> 38.55566882 | N105: =IF(ISERROR(INDIRECT(CONCATENATE($B105,"!E16"))),"",INDIRECT(CONCATENATE($B105,"!E16"))) -> 52.77466816 | O105: =IF(ISERROR(INDIRECT(CONCATENATE($B105,"!E23"))),"",INDIRECT(CONCATENATE($B105,"!E23"))) -> 82.57704825 | R105: =IF(ISERROR(INDIRECT(CONCATENATE($B105,"!E21"))),"",INDIRECT(CONCATENATE($B105,"!E21"))) -> 29.69680201 | S105: =IF(ISERROR(INDIRECT(CONCATENATE($B105,"!F16"))),"",INDIRECT(CONCATENATE($B105,"!F16"))) -> 64.77087896 | T105: =IF(ISERROR(INDIRECT(CONCATENATE($B105,"!F23"))),"",INDIRECT(CONCATENATE($B105,"!F23"))) -> 80.89696847 | W105: =IF(ISERROR(INDIRECT(CONCATENATE($B105,"!F21"))),"",INDIRECT(CONCATENATE($B105,"!F21"))) -> 16.81702013 | X105: =IF(ISERROR(INDIRECT(CONCATENATE($B105,"!G16"))),"",INDIRECT(CONCATENATE($B105,"!G16"))) -> 77.00958085 | Y105: =IF(ISERROR(INDIRECT(CONCATENATE($B105,"!G23"))),"",INDIRECT(CONCATENATE($B105,"!G23"))) -> 86.78812078 | AB105: =IF(ISERROR(INDIRECT(CONCATENATE($B105,"!G221"))),"",INDIRECT(CONCATENATE($B105,"!G21"))) -> 6.642729616
B106: MICS06 | C106: 2006 | D106: 23.48526755 | E106: 99.10458346 | H106: 59.19324136 | I106: 30.61917051 | J106: 96.03888436 | M106: 52.9485259 | N106: 33.46078595 | O106: 94.29483053 | R106: 48.46481643 | S106: 58.14733574 | T106: 95.42929579 | W106: 26.12706619 | X106: 87.75228873 | Y106: 92.73658094 | AB106: 4.143583886
B107: DHS08 | C107: 2008 | D107: 25.31152831 | E107: 94.9 | H107: 49.46310712 | I107: 33.91945186 | J107: 92.9 | M107: 39.65236826 | N107: 44.79797943 | O107: 91.2 | R107: 30.50713297 | S107: 59.73179529 | T107: 81.1 | W107: 24.43677617 | X107: 90.42846245 | Y107: 74.6 | AB107: 1.844218782
B108: MICS10 | C108: 2010 | D108: 33.24509232 | E108: 95.2 | H108: 53.28888971 | I108: 42.75914357 | J108: 96.3 | M108: 39.98069557 | N108: 51.53037594 | O108: 95.9 | R108: 31.0695164 | S108: 70.11929661 | T108: 94.9 | W108: 14.84932301 | X108: 88.7272552 | Y108: 82.9 | AB108: 3.916449667
B109: DHS13 | C109: 2013 | D109: 38.12857405 | E109: 92.3 | H109: 30.40850764 | I109: 43.28399643 | J109: 92.5 | M109: 28.74165409 | N109: 52.50522816 | O109: 89.7 | R109: 22.73251588 | S109: 70.31841123 | T109: 86.5 | W109: 12.36720232 | X109: 94.87984515 | Y109: 80.3 | AB109: 1.518946164
B110: MIS16 | C110: 2016 | D110: 43.48257413 | E110: 95.13856303 | H110: 34.20370316 | I110: 58.9213903 | J110: 94.93936325 | M110: 23.08335114 | N110: 67.42125536 | O110: 94.24306586 | R110: 14.99807412 | S110: 83.75208444 | T110: 90.30669817 | W110: 6.040284634 | X110: 95.89176463 | Y110: 89.6273336 | AB110: 1.243035628
B111: MICS17 | C111: 2017 | D111: =IF(ISERROR(INDIRECT(CONCATENATE($B111,"!C16"))),"",INDIRECT(CONCATENATE($B111,"!C16"))) -> 42.33830646 | E111: =IF(ISERROR(INDIRECT(CONCATENATE($B111,"!C23"))),"",INDIRECT(CONCATENATE($B111,"!C23"))) -> 90.3583443 | H111: =IF(ISERROR(INDIRECT(CONCATENATE($B111,"!C21"))),"",INDIRECT(CONCATENATE($B111,"!C21"))) -> 29.99211889 | I111: =IF(ISERROR(INDIRECT(CONCATENATE($B111,"!D16"))),"",INDIRECT(CONCATENATE($B111,"!D16"))) -> 52.07759187 | J111: =IF(ISERROR(INDIRECT(CONCATENATE($B111,"!D23"))),"",INDIRECT(CONCATENATE($B111,"!D23"))) -> 91.27469546 | M111: =IF(ISERROR(INDIRECT(CONCATENATE($B111,"!D21"))),"",INDIRECT(CONCATENATE($B111,"!D21"))) -> 22.17292112 | N111: =IF(ISERROR(INDIRECT(CONCATENATE($B111,"!E16"))),"",INDIRECT(CONCATENATE($B111,"!E16"))) -> 66.9452732 | O111: =IF(ISERROR(INDIRECT(CONCATENATE($B111,"!E23"))),"",INDIRECT(CONCATENATE($B111,"!E23"))) -> 89.42617849 | R111: =IF(ISERROR(INDIRECT(CONCATENATE($B111,"!E21"))),"",INDIRECT(CONCATENATE($B111,"!E21"))) -> 13.71800015 | S111: =IF(ISERROR(INDIRECT(CONCATENATE($B111,"!F16"))),"",INDIRECT(CONCATENATE($B111,"!F16"))) -> 83.49443728 | T111: =IF(ISERROR(INDIRECT(CONCATENATE($B111,"!F23"))),"",INDIRECT(CONCATENATE($B111,"!F23"))) -> 87.73543639 | W111: =IF(ISERROR(INDIRECT(CONCATENATE($B111,"!F21"))),"",INDIRECT(CONCATENATE($B111,"!F21"))) -> 3.178432946 | X111: =IF(ISERROR(INDIRECT(CONCATENATE($B111,"!G16"))),"",INDIRECT(CONCATENATE($B111,"!G16"))) -> 93.97526813 | Y111: =IF(ISERROR(INDIRECT(CONCATENATE($B111,"!G23"))),"",INDIRECT(CONCATENATE($B111,"!G23"))) -> 89.2387415 | AB111: =IF(ISERROR(INDIRECT(CONCATENATE($B111,"!G221"))),"",INDIRECT(CONCATENATE($B111,"!G21"))) -> 0.5546616878
B112: DHS19 | C112: 2019 | D112: =IF(ISERROR(INDIRECT(CONCATENATE($B112,"!C16"))),"",INDIRECT(CONCATENATE($B112,"!C16"))) -> 40.22599393 | E112: =IF(ISERROR(INDIRECT(CONCATENATE($B112,"!C23"))),"",INDIRECT(CONCATENATE($B112,"!C23"))) -> 93.36189609 | H112: =IF(ISERROR(INDIRECT(CONCATENATE($B112,"!C21"))),"",INDIRECT(CONCATENATE($B112,"!C21"))) -> 37.33843407 | I112: =IF(ISERROR(INDIRECT(CONCATENATE($B112,"!D16"))),"",INDIRECT(CONCATENATE($B112,"!D16"))) -> 47.15160141 | J112: =IF(ISERROR(INDIRECT(CONCATENATE($B112,"!D23"))),"",INDIRECT(CONCATENATE($B112,"!D23"))) -> 89.14507739 | M112: =IF(ISERROR(INDIRECT(CONCATENATE($B112,"!D21"))),"",INDIRECT(CONCATENATE($B112,"!D21"))) -> 27.63449442 | N112: =IF(ISERROR(INDIRECT(CONCATENATE($B112,"!E16"))),"",INDIRECT(CONCATENATE($B112,"!E16"))) -> 62.06462582 | O112: =IF(ISERROR(INDIRECT(CONCATENATE($B112,"!E23"))),"",INDIRECT(CONCATENATE($B112,"!E23"))) -> 89.15525201 | R112: =IF(ISERROR(INDIRECT(CONCATENATE($B112,"!E21"))),"",INDIRECT(CONCATENATE($B112,"!E21"))) -> 18.49022583 | S112: =IF(ISERROR(INDIRECT(CONCATENATE($B112,"!F16"))),"",INDIRECT(CONCATENATE($B112,"!F16"))) -> 85.09509613 | T112: =IF(ISERROR(INDIRECT(CONCATENATE($B112,"!F23"))),"",INDIRECT(CONCATENATE($B112,"!F23"))) -> 86.44309278 | W112: =IF(ISERROR(INDIRECT(CONCATENATE($B112,"!F21"))),"",INDIRECT(CONCATENATE($B112,"!F21"))) -> 4.631170199 | X112: =IF(ISERROR(INDIRECT(CONCATENATE($B112,"!G16"))),"",INDIRECT(CONCATENATE($B112,"!G16"))) -> 94.98187771 | Y112: =IF(ISERROR(INDIRECT(CONCATENATE($B112,"!G23"))),"",INDIRECT(CONCATENATE($B112,"!G23"))) -> 78.09005184 | AB112: =IF(ISERROR(INDIRECT(CONCATENATE($B112,"!G221"))),"",INDIRECT(CONCATENATE($B112,"!G21"))) -> 0.8529761872
B118: =CONCATENATE("National use of drinking water sources, ",C99,"–",C100) -> National use of drinking water sources, 2000–2020 | S118: Data points used for regression
E153: =IF(ISERROR(INDIRECT(CONCATENATE($B153,"!M18"))),"",INDIRECT(CONCATENATE($B153,"!M18"))) ->  | F153: =IF(ISERROR(INDIRECT(CONCATENATE($B153,"!M19"))),"",INDIRECT(CONCATENATE($B153,"!M19"))) ->  | G153: =IF(ISERROR(INDIRECT(CONCATENATE($B153,"!M20"))),"",INDIRECT(CONCATENATE($B153,"!M20"))) ->  | H153: =IF(ISERROR(INDIRECT(CONCATENATE($B153,"!M21"))),"",INDIRECT(CONCATENATE($B153,"!M21"))) ->  | J153: =IF(ISERROR(INDIRECT(CONCATENATE($B153,"!N18"))),"",INDIRECT(CONCATENATE($B153,"!N18"))) ->  | K153: =IF(ISERROR(INDIRECT(CONCATENATE($B153,"!N19"))),"",INDIRECT(CONCATENATE($B153,"!N19"))) ->  | L153: =IF(ISERROR(INDIRECT(CONCATENATE($B153,"!N20"))),"",INDIRECT(CONCATENATE($B153,"!N20"))) ->  | M153: =IF(ISERROR(INDIRECT(CONCATENATE($B153,"!N21"))),"",INDIRECT(CONCATENATE($B153,"!N21"))) ->  | O153: =IF(ISERROR(INDIRECT(CONCATENATE($B153,"!O18"))),"",INDIRECT(CONCATENATE($B153,"!O18"))) ->  | P153: =IF(ISERROR(INDIRECT(CONCATENATE($B153,"!O19"))),"",INDIRECT(CONCATENATE($B153,"!O19"))) ->  | Q153: =IF(ISERROR(INDIRECT(CONCATENATE($B153,"!O20"))),"",INDIRECT(CONCATENATE($B153,"!O20"))) ->  | R153: =IF(ISERROR(INDIRECT(CONCATENATE($B153,"!O21"))),"",INDIRECT(CONCATENATE($B153,"!O21"))) ->  | T153: =IF(ISERROR(INDIRECT(CONCATENATE($B153,"!P18"))),"",INDIRECT(CONCATENATE($B153,"!P18"))) ->  | U153: =IF(ISERROR(INDIRECT(CONCATENATE($B153,"!P19"))),"",INDIRECT(CONCATENATE($B153,"!P19"))) ->  | V153: =IF(ISERROR(INDIRECT(CONCATENATE($B153,"!P20"))),"",INDIRECT(CONCATENATE($B153,"!P20"))) ->  | W153: =IF(ISERROR(INDIRECT(CONCATENATE($B153,"!P21"))),"",INDIRECT(CONCATENATE($B153,"!P21"))) ->  | Y153: =IF(ISERROR(INDIRECT(CONCATENATE($B153,"!Q18"))),"",INDIRECT(CONCATENATE($B153,"!Q18"))) ->  | Z153: =IF(ISERROR(INDIRECT(CONCATENATE($B153,"!Q19"))),"",INDIRECT(CONCATENATE($B153,"!Q19"))) ->  | AA153: =IF(ISERROR(INDIRECT(CONCATENATE($B153,"!Q20"))),"",INDIRECT(CONCATENATE($B153,"!Q20"))) ->  | AB153: =IF(ISERROR(INDIRECT(CONCATENATE($B153,"!Q21"))),"",INDIRECT(CONCATENATE($B153,"!Q1"))) -> 
A197: URBAN | D197: Poorest | I197: Poor | N197: Middle | S197: Rich | X197: Richest
D198: Improved | E198: Basic | F198: Limited | G198: Unimproved | H198: Surface water | I198: Improved | J198: Basic | K198: Limited | L198: Unimproved | M198: Surface water | N198: Improved | O198: Basic | P198: Limited | Q198: Unimproved | R198: Surface water | S198: Improved | T198: Basic | U198: Limited | V198: Unimproved | W198: Surface water | X198: Improved | Y198: Basic | Z198: Limited | AA198: Unimproved | AB198: Surface water
A199: Forecast period: | C199: 2000 | D199: =IF((D201+H201)>100,D201*100/(D201+H201),D201) -> 50.61031886 | E199: =D199*AVERAGEIF(E205:E216,">0")/100 -> 45.09078709 | F199: =D199*(100-AVERAGEIF(E205:E216,">0"))/100 -> 5.519531762 | G199: =100-(E199+F199+H199) -> 21.88921907 | H199: =IF((D201+H201)>100,H201*100/(D201+H201),H201) -> 27.50046208 | I199: =IF((I201+M201)>100,I201*100/(I201+M201),I201) -> 72.20852003 | J199: =I199*AVERAGEIF(J205:J216,">0")/100 -> 62.7623585 | K199: =I199*(100-AVERAGEIF(J205:J216,">0"))/100 -> 9.446161533 | L199: =100-(J199+K199+M199) -> 13.46733059 | M199: =IF((I201+M201)>100,M201*100/(I201+M201),M201) -> 14.32414938 | N199: =IF((N201+R201)>100,N201*100/(N201+R201),N201) -> 80.60586344 | O199: =N199*AVERAGEIF(O205:O216,">0")/100 -> 68.04673912 | P199: =N199*(100-AVERAGEIF(O205:O216,">0"))/100 -> 12.55912432 | Q199: =100-(O199+P199+R199) -> 14.39984001 | R199: =IF((N201+R201)>100,R201*100/(N201+R201),R201) -> 4.994296548 | S199: =IF((S201+W201)>100,S201*100/(S201+W201),S201) -> 83.7797514 | T199: =S199*AVERAGEIF(T205:T216,">0")/100 -> 68.62006211 | U199: =S199*(100-AVERAGEIF(T205:T216,">0"))/100 -> 15.15968929 | V199: =100-(T199+U199+W199) -> 11.56659495 | W199: =IF((S201+W201)>100,W201*100/(S201+W201),W201) -> 4.653653653 | X199: =IF((X201+AB201)>100,X201*100/(X201+AB201),X201) -> 84.16261322 | Y199: =X199*AVERAGEIF(Y205:Y216,">0")/100 -> 73.08617764 | Z199: =X199*(100-AVERAGEIF(Y205:Y216,">0"))/100 -> 11.07643558 | AA199: =100-(Y199+Z199+AB199) -> 10.96292409 | AB199: =IF((X201+AB201)>100,AB201*100/(X201+AB201),AB201) -> 4.874462691
C200: 2020 | D200: =IF((D202+H202)>100,D202*100/(D202+H202),D202) -> 80.47567618 | E200: =D200*AVERAGEIF(E205:E216,">0")/100 -> 71.69904602 | F200: =D200*(100-AVERAGEIF(E205:E216,">0"))/100 -> 8.776630158 | G200: =100-(E200+F200+H200) -> 12.62946887 | H200: =IF((D202+H202)>100,H202*100/(D202+H202),H202) -> 6.894854956 | I200: =IF((I202+M202)>100,I202*100/(I202+M202),I202) -> 87.40850966 | J200: =I200*AVERAGEIF(J205:J216,">0")/100 -> 75.97391855 | K200: =I200*(100-AVERAGEIF(J205:J216,">0"))/100 -> 11.43459112 | L200: =100-(J200+K200+M200) -> 11.38426419 | M200: =IF((I202+M202)>100,M202*100/(I202+M202),M202) -> 1.207226148 | N200: =IF((N202+R202)>100,N202*100/(N202+R202),N202) -> 92.50748374 | O200: =N200*AVERAGEIF(O205:O216,">0")/100 -> 78.09397908 | P200: =N200*(100-AVERAGEIF(O205:O216,">0"))/100 -> 14.41350467 | Q200: =100-(O200+P200+R200) -> 6.578698031 | R200: =IF((N202+R202)>100,R202*100/(N202+R202),R202) -> 0.9138182243 | S200: =IF((S202+W202)>100,S202*100/(S202+W202),S202) -> 97.58755103 | T200: =S200*AVERAGEIF(T205:T216,">0")/100 -> 79.92938271 | U200: =S200*(100-AVERAGEIF(T205:T216,">0"))/100 -> 17.65816832 | V200: =100-(T200+U200+W200) -> 2.412448972 | W200: =IF((S202+W202)>100,W202*100/(S202+W202),W202) -> 0 | X200: =IF((X202+AB202)>100,X202*100/(X202+AB202),X202) -> 100 | Y200: =X200*AVERAGEIF(Y205:Y216,">0")/100 -> 86.8392447 | Z200: =X200*(100-AVERAGEIF(Y205:Y216,">0"))/100 -> 13.1607553 | AA200: =100-(Y200+Z200+AB200) -> 0 | AB200: =IF((X202+AB202)>100,AB202*100/(X202+AB202),AB202) -> 0
A201: Regression period: | C201: =MinRegYear(C199,C205:C216) -> 2000 | D201: =IF(MAX(C205:C216)-MIN(C205:C216)<5,AVERAGEIF(C205:C216,">0",D205:D216), IF(FORECAST($C201,D$205:D$216,$C$205:$C$216)<0,0, IF(FORECAST($C201,D$205:D$216,$C$205:$C$216)>100,100, FORECAST($C201,D$205:D$216,$C$205:$C$216)))) -> 50.61031886 | H201: =IF(MAX(C205:C216)-MIN(C205:C216)<5,AVERAGEIF(C205:C216,">0",H205:H216), IF(FORECAST($C201,H$205:H$216,$C$205:$C$216)<0,0, IF(FORECAST($C201,H$205:H$216,$C$205:$C$216)>100,100, FORECAST($C201,H$205:H$216,$C$205:$C$216)))) -> 27.50046208 | I201: =IF(MAX(C205:C216)-MIN(C205:C216)<5,AVERAGEIF(C205:C216,">0",I205:I216), IF(FORECAST($C201,I$205:I$216,$C$205:$C$216)<0,0, IF(FORECAST($C201,I$205:I$216,$C$205:$C$216)>100,100, FORECAST($C201,I$205:I$216,$C$205:$C$216)))) -> 72.20852003 | M201: =IF(MAX(C205:C216)-MIN(C205:C216)<5,AVERAGEIF(C205:C216,">0",M205:M216), IF(FORECAST($C201,M$205:M$216,$C$205:$C$216)<0,0, IF(FORECAST($C201,M$205:M$216,$C$205:$C$216)>100,100, FORECAST($C201,M$205:M$216,$C$205:$C$216)))) -> 14.32414938 | N201: =IF(MAX(C205:C216)-MIN(C205:C216)<5,AVERAGEIF(C205:C216,">0",N205:N216), IF(FORECAST($C201,N$205:N$216,$C$205:$C$216)<0,0, IF(FORECAST($C201,N$205:N$216,$C$205:$C$216)>100,100, FORECAST($C201,N$205:N$216,$C$205:$C$216)))) -> 80.60586344 | R201: =IF(MAX(C205:C216)-MIN(C205:C216)<5,AVERAGEIF(C205:C216,">0",R205:R216), IF(FORECAST($C201,R$205:R$216,$C$205:$C$216)<0,0, IF(FORECAST($C201,R$205:R$216,$C$205:$C$216)>100,100, FORECAST($C201,R$205:R$216,$C$205:$C$216)))) -> 4.994296548 | S201: =IF(MAX(C205:C216)-MIN(C205:C216)<5,AVERAGEIF(C205:C216,">0",S205:S216), IF(FORECAST($C201,S$205:S$216,$C$205:$C$216)<0,0, IF(FORECAST($C201,S$205:S$216,$C$205:$C$216)>100,100, FORECAST($C201,S$205:S$216,$C$205:$C$216)))) -> 83.7797514 | W201: =IF(MAX(C205:C216)-MIN(C205:C216)<5,AVERAGEIF(C205:C216,">0",W205:W216), IF(FORECAST($C201,W$205:W$216,$C$205:$C$216)<0,0, IF(FORECAST($C201,W$205:W$216,$C$205:$C$216)>100,100, FORECAST($C201,W$205:W$216,$C$205:$C$216)))) -> 4.653653653 | X201: =IF(MAX(C205:C216)-MIN(C205:C216)<5,AVERAGEIF(C205:C216,">0",X205:X216), IF(FORECAST($C201,X$205:X$216,$C$205:$C$216)<0,0, IF(FORECAST($C201,X$205:X$216,$C$205:$C$216)>100,100, FORECAST($C201,X$205:X$216,$C$205:$C$216)))) -> 84.16261322 | AB201: =IF(MAX(C205:C216)-MIN(C205:C216)<5,AVERAGEIF(C205:C216,">0",AB205:AB216), IF(FORECAST($C201,AB$205:AB$216,$C$205:$C$216)<0,0, IF(FORECAST($C201,AB$205:AB$216,$C$205:$C$216)>100,100, FORECAST($C201,AB$205:AB$216,$C$205:$C$216)))) -> 4.874462691
C202: =MaxRegYear(C200,C205:C216) -> 2020 | D202: =IF(MAX(C205:C216)-MIN(C205:C216)<5,AVERAGEIF(C205:C216,">0",D205:D216), IF(FORECAST($C202,D$205:D$216,$C$205:$C$216)<0,0, IF(FORECAST($C202,D$205:D$216,$C$205:$C$216)>100,100, FORECAST($C202,D$205:D$216,$C$205:$C$216)))) -> 80.47567618 | H202: =IF(MAX(C205:C216)-MIN(C205:C216)<5,AVERAGEIF(C205:C216,">0",H205:H216), IF(FORECAST($C202,H$205:H$216,$C$205:$C$216)<0,0, IF(FORECAST($C202,H$205:H$216,$C$205:$C$216)>100,100, FORECAST($C202,H$205:H$216,$C$205:$C$216)))) -> 6.894854956 | I202: =IF(MAX(C205:C216)-MIN(C205:C216)<5,AVERAGEIF(C205:C216,">0",I205:I216), IF(FORECAST($C202,I$205:I$216,$C$205:$C$216)<0,0, IF(FORECAST($C202,I$205:I$216,$C$205:$C$216)>100,100, FORECAST($C202,I$205:I$216,$C$205:$C$216)))) -> 87.40850966 | M202: =IF(MAX(C205:C216)-MIN(C205:C216)<5,AVERAGEIF(C205:C216,">0",M205:M216), IF(FORECAST($C202,M$205:M$216,$C$205:$C$216)<0,0, IF(FORECAST($C202,M$205:M$216,$C$205:$C$216)>100,100, FORECAST($C202,M$205:M$216,$C$205:$C$216)))) -> 1.207226148 | N202: =IF(MAX(C205:C216)-MIN(C205:C216)<5,AVERAGEIF(C205:C216,">0",N205:N216), IF(FORECAST($C202,N$205:N$216,$C$205:$C$216)<0,0, IF(FORECAST($C202,N$205:N$216,$C$205:$C$216)>100,100, FORECAST($C202,N$205:N$216,$C$205:$C$216)))) -> 92.50748374 | R202: =IF(MAX(C205:C216)-MIN(C205:C216)<5,AVERAGEIF(C205:C216,">0",R205:R216), IF(FORECAST($C202,R$205:R$216,$C$205:$C$216)<0,0, IF(FORECAST($C202,R$205:R$216,$C$205:$C$216)>100,100, FORECAST($C202,R$205:R$216,$C$205:$C$216)))) -> 0.9138182243 | S202: =IF(MAX(C205:C216)-MIN(C205:C216)<5,AVERAGEIF(C205:C216,">0",S205:S216), IF(FORECAST($C202,S$205:S$216,$C$205:$C$216)<0,0, IF(FORECAST($C202,S$205:S$216,$C$205:$C$216)>100,100, FORECAST($C202,S$205:S$216,$C$205:$C$216)))) -> 97.58755103 | W202: =IF(MAX(C205:C216)-MIN(C205:C216)<5,AVERAGEIF(C205:C216,">0",W205:W216), IF(FORECAST($C202,W$205:W$216,$C$205:$C$216)<0,0, IF(FORECAST($C202,W$205:W$216,$C$205:$C$216)>100,100, FORECAST($C202,W$205:W$216,$C$205:$C$216)))) -> 0 | X202: =IF(MAX(C205:C216)-MIN(C205:C216)<5,AVERAGEIF(C205:C216,">0",X205:X216), IF(FORECAST($C202,X$205:X$216,$C$205:$C$216)<0,0, IF(FORECAST($C202,X$205:X$216,$C$205:$C$216)>100,100, FORECAST($C202,X$205:X$216,$C$205:$C$216)))) -> 100 | AB202: =IF(MAX(C205:C216)-MIN(C205:C216)<5,AVERAGEIF(C205:C216,">0",AB205:AB216), IF(FORECAST($C202,AB$205:AB$216,$C$205:$C$216)<0,0, IF(FORECAST($C202,AB$205:AB$216,$C$205:$C$216)>100,100, FORECAST($C202,AB$205:AB$216,$C$205:$C$216)))) -> 0
B204: Survey | C204: Year | D204: Improved | E204: % Improved < = 30min | H204: Surface water | I204: Improved | J204: % Improved < = 30min | M204: Surface water | N204: Improved | O204: % Improved < = 30min | R204: Surface water | S204: Improved | T204: % Improved < = 30min | W204: Surface water | X204: Improved | Y204: % Improved < = 30min | AB204: Surface water
B205: MICS00 | C205: 2000 | D205: =IF(ISERROR(INDIRECT(CONCATENATE($B205,"!H16"))),"",INDIRECT(CONCATENATE($B205,"!H16"))) -> 60.17240642 | E205: =IF(ISERROR(INDIRECT(CONCATENATE($B205,"!H23"))),"",INDIRECT(CONCATENATE($B205,"!H23"))) -> 80.90935283 | H205: =IF(ISERROR(INDIRECT(CONCATENATE($B205,"!H21"))),"",INDIRECT(CONCATENATE($B205,"!H21"))) -> 18.66509824 | I205: =IF(ISERROR(INDIRECT(CONCATENATE($B205,"!I16"))),"",INDIRECT(CONCATENATE($B205,"!I16"))) -> 76.91013299 | J205: =IF(ISERROR(INDIRECT(CONCATENATE($B205,"!I23"))),"",INDIRECT(CONCATENATE($B205,"!I23"))) -> 79.01869082 | M205: =IF(ISERROR(INDIRECT(CONCATENATE($B205,"!I21"))),"",INDIRECT(CONCATENATE($B205,"!I21"))) -> 12.68727468 | N205: =IF(ISERROR(INDIRECT(CONCATENATE($B205,"!J16"))),"",INDIRECT(CONCATENATE($B205,"!J16"))) -> 80.03828312 | O205: =IF(ISERROR(INDIRECT(CONCATENATE($B205,"!J23"))),"",INDIRECT(CONCATENATE($B205,"!J23"))) -> 83.49387689 | R205: =IF(ISERROR(INDIRECT(CONCATENATE($B205,"!J21"))),"",INDIRECT(CONCATENATE($B205,"!J21"))) -> 5.750078727 | S205: =IF(ISERROR(INDIRECT(CONCATENATE($B205,"!K16"))),"",INDIRECT(CONCATENATE($B205,"!K16"))) -> 81.5877347 | T205: =IF(ISERROR(INDIRECT(CONCATENATE($B205,"!K23"))),"",INDIRECT(CONCATENATE($B205,"!K23"))) -> 87.48199533 | W205: =IF(ISERROR(INDIRECT(CONCATENATE($B205,"!K21"))),"",INDIRECT(CONCATENATE($B205,"!K21"))) -> 5.695461371 | X205: =IF(ISERROR(INDIRECT(CONCATENATE($B205,"!L16"))),"",INDIRECT(CONCATENATE($B205,"!L16"))) -> 79.21294214 | Y205: =IF(ISERROR(INDIRECT(CONCATENATE($B205,"!L23"))),"",INDIRECT(CONCATENATE($B205,"!L23"))) -> 92.72367275 | AB205: =IF(ISERROR(INDIRECT(CONCATENATE($B205,"!L221"))),"",INDIRECT(CONCATENATE($B205,"!L21"))) -> 6.209106217
B206: MICS06 | D206: 16.87539408 | E206: 98.83973679 | H206: 64.78814867 | I206: 26.79347918 | J206: 98.48047958 | M206: 56.83823622 | N206: 31.30814433 | O206: 95.42098611 | R206: 52.51022375 | S206: 32.88564702 | T206: 93.59762082 | W206: 47.4375908 | X206: 51.90367578 | Y206: 98.02818628 | AB206: 31.81681691
B207: DHS08 | C207: 2008 | D207: 62.16091196 | E207: 86.5 | H207: 10.87210255 | I207: 74.66456924 | J207: 78.1 | M207: 7.796447101 | N207: 84.10757311 | O207: 76.5 | R207: 2.279170117 | S207: 92.29453596 | T207: 69.3 | W207: 0.8029344682 | X207: 96.57126725 | Y207: 76.4 | AB207: 0.6208027174
B208: MICS10 | C208: 2010 | D208: 39.76927819 | E208: 96.1 | H208: 52.37482254 | I208: 73.01432015 | J208: 93 | M208: 14.5254824 | N208: 86.24096405 | O208: 84.2 | R208: 3.161088057 | S208: 89.76312909 | T208: 75.9 | W208: 2.70731241 | X208: 94.33511959 | Y208: 83 | AB208: 1.733561421
B209: DHS13 | C209: 2013 | D209: 73.71921023 | E209: 83.2 | H209: 8.844884797 | I209: 83.03112832 | J209: 83.1 | M209: 3.283306121 | N209: 94.18753869 | O209: 79.9 | R209: 1.703347129 | S209: 95.27579127 | T209: 76.2 | W209: 1.363667913 | X209: 98.1385301 | Y209: 84.2 | AB209: 0.5555670563
B210: MIS16 | C210: 2016 | D210: 85.8330145 | E210: 94.06819432 | H210: 4.51225181 | I210: 88.13986237 | J210: 90.42911416 | M210: 4.455703858 | N210: 89.85296115 | O210: 85.74431981 | R210: 1.312582931 | S210: 96.60331563 | T210: 88.72115 | W210: 1.100585955 | X210: 96.8026504 | Y210: 90.40302689 | AB210: 0.8663442225
B211: MICS17 | C211: 2017 | D211: 75.22845961 | E211: 87.03862353 | H211: 7.289440914 | I211: 82.48389973 | J211: 87.10556738 | M211: 1.958019734 | N211: 87.33353981 | O211: 88.17735053 | R211: 1.91237627 | S211: 93.7998362 | T211: 88.52022509 | W211: 0.4196861722 | X211: 94.69462668 | Y211: 90.1149192 | AB211: 0.4349734849
B212: DHS19 | C212: 2019 | D212: 81.33018394 | E212: 86.09656062 | H212: 4.431364134 | I212: 90.29568438 | J212: 86.11188811 | M212: 1.127580355 | N212: 91.87190842 | O212: 81.91621362 | R212: 1.907447561 | S212: 94.4362854 | T212: 75.52146018 | W212: 1.099364826 | X212: 97.36547057 | Y212: 79.84415249 | AB212: 0
B218: =CONCATENATE("Urban use of drinking water sources, ",C199,"–",C200) -> Urban use of drinking water sources, 2000–2020 | S218: Data points used for regression
E253: =IF(ISERROR(INDIRECT(CONCATENATE($B253,"!M18"))),"",INDIRECT(CONCATENATE($B253,"!M18"))) ->  | F253: =IF(ISERROR(INDIRECT(CONCATENATE($B253,"!M19"))),"",INDIRECT(CONCATENATE($B253,"!M19"))) ->  | G253: =IF(ISERROR(INDIRECT(CONCATENATE($B253,"!M20"))),"",INDIRECT(CONCATENATE($B253,"!M20"))) ->  | H253: =IF(ISERROR(INDIRECT(CONCATENATE($B253,"!M21"))),"",INDIRECT(CONCATENATE($B253,"!M21"))) ->  | J253: =IF(ISERROR(INDIRECT(CONCATENATE($B253,"!N18"))),"",INDIRECT(CONCATENATE($B253,"!N18"))) ->  | K253: =IF(ISERROR(INDIRECT(CONCATENATE($B253,"!N19"))),"",INDIRECT(CONCATENATE($B253,"!N19"))) ->  | L253: =IF(ISERROR(INDIRECT(CONCATENATE($B253,"!N20"))),"",INDIRECT(CONCATENATE($B253,"!N20"))) ->  | M253: =IF(ISERROR(INDIRECT(CONCATENATE($B253,"!N21"))),"",INDIRECT(CONCATENATE($B253,"!N21"))) ->  | O253: =IF(ISERROR(INDIRECT(CONCATENATE($B253,"!O18"))),"",INDIRECT(CONCATENATE($B253,"!O18"))) ->  | P253: =IF(ISERROR(INDIRECT(CONCATENATE($B253,"!O19"))),"",INDIRECT(CONCATENATE($B253,"!O19"))) ->  | Q253: =IF(ISERROR(INDIRECT(CONCATENATE($B253,"!O20"))),"",INDIRECT(CONCATENATE($B253,"!O20"))) ->  | R253: =IF(ISERROR(INDIRECT(CONCATENATE($B253,"!O21"))),"",INDIRECT(CONCATENATE($B253,"!O21"))) ->  | T253: =IF(ISERROR(INDIRECT(CONCATENATE($B253,"!P18"))),"",INDIRECT(CONCATENATE($B253,"!P18"))) ->  | U253: =IF(ISERROR(INDIRECT(CONCATENATE($B253,"!P19"))),"",INDIRECT(CONCATENATE($B253,"!P19"))) ->  | V253: =IF(ISERROR(INDIRECT(CONCATENATE($B253,"!P20"))),"",INDIRECT(CONCATENATE($B253,"!P20"))) ->  | W253: =IF(ISERROR(INDIRECT(CONCATENATE($B253,"!P21"))),"",INDIRECT(CONCATENATE($B253,"!P21"))) ->  | Y253: =IF(ISERROR(INDIRECT(CONCATENATE($B253,"!Q18"))),"",INDIRECT(CONCATENATE($B253,"!Q18"))) ->  | Z253: =IF(ISERROR(INDIRECT(CONCATENATE($B253,"!Q19"))),"",INDIRECT(CONCATENATE($B253,"!Q19"))) ->  | AA253: =IF(ISERROR(INDIRECT(CONCATENATE($B253,"!Q20"))),"",INDIRECT(CONCATENATE($B253,"!Q20"))) ->  | AB253: =IF(ISERROR(INDIRECT(CONCATENATE($B253,"!Q21"))),"",INDIRECT(CONCATENATE($B253,"!Q1"))) -> 
E254: =IF(ISERROR(INDIRECT(CONCATENATE($B254,"!M18"))),"",INDIRECT(CONCATENATE($B254,"!M18"))) ->  | F254: =IF(ISERROR(INDIRECT(CONCATENATE($B254,"!M19"))),"",INDIRECT(CONCATENATE($B254,"!M19"))) ->  | G254: =IF(ISERROR(INDIRECT(CONCATENATE($B254,"!M20"))),"",INDIRECT(CONCATENATE($B254,"!M20"))) ->  | H254: =IF(ISERROR(INDIRECT(CONCATENATE($B254,"!M21"))),"",INDIRECT(CONCATENATE($B254,"!M21"))) ->  | J254: =IF(ISERROR(INDIRECT(CONCATENATE($B254,"!N18"))),"",INDIRECT(CONCATENATE($B254,"!N18"))) ->  | K254: =IF(ISERROR(INDIRECT(CONCATENATE($B254,"!N19"))),"",INDIRECT(CONCATENATE($B254,"!N19"))) ->  | L254: =IF(ISERROR(INDIRECT(CONCATENATE($B254,"!N20"))),"",INDIRECT(CONCATENATE($B254,"!N20"))) ->  | M254: =IF(ISERROR(INDIRECT(CONCATENATE($B254,"!N21"))),"",INDIRECT(CONCATENATE($B254,"!N21"))) ->  | O254: =IF(ISERROR(INDIRECT(CONCATENATE($B254,"!O18"))),"",INDIRECT(CONCATENATE($B254,"!O18"))) ->  | P254: =IF(ISERROR(INDIRECT(CONCATENATE($B254,"!O19"))),"",INDIRECT(CONCATENATE($B254,"!O19"))) ->  | Q254: =IF(ISERROR(INDIRECT(CONCATENATE($B254,"!O20"))),"",INDIRECT(CONCATENATE($B254,"!O20"))) ->  | R254: =IF(ISERROR(INDIRECT(CONCATENATE($B254,"!O21"))),"",INDIRECT(CONCATENATE($B254,"!O21"))) ->  | T254: =IF(ISERROR(INDIRECT(CONCATENATE($B254,"!P18"))),"",INDIRECT(CONCATENATE($B254,"!P18"))) ->  | U254: =IF(ISERROR(INDIRECT(CONCATENATE($B254,"!P19"))),"",INDIRECT(CONCATENATE($B254,"!P19"))) ->  | V254: =IF(ISERROR(INDIRECT(CONCATENATE($B254,"!P20"))),"",INDIRECT(CONCATENATE($B254,"!P20"))) ->  | W254: =IF(ISERROR(INDIRECT(CONCATENATE($B254,"!P21"))),"",INDIRECT(CONCATENATE($B254,"!P21"))) ->  | Y254: =IF(ISERROR(INDIRECT(CONCATENATE($B254,"!Q18"))),"",INDIRECT(CONCATENATE($B254,"!Q18"))) ->  | Z254: =IF(ISERROR(INDIRECT(CONCATENATE($B254,"!Q19"))),"",INDIRECT(CONCATENATE($B254,"!Q19"))) ->  | AA254: =IF(ISERROR(INDIRECT(CONCATENATE($B254,"!Q20"))),"",INDIRECT(CONCATENATE($B254,"!Q20"))) ->  | AB254: =IF(ISERROR(INDIRECT(CONCATENATE($B254,"!Q21"))),"",INDIRECT(CONCATENATE($B254,"!Q1"))) -> 
E255: =IF(ISERROR(INDIRECT(CONCATENATE($B255,"!M18"))),"",INDIRECT(CONCATENATE($B255,"!M18"))) ->  | F255: =IF(ISERROR(INDIRECT(CONCATENATE($B255,"!M19"))),"",INDIRECT(CONCATENATE($B255,"!M19"))) ->  | G255: =IF(ISERROR(INDIRECT(CONCATENATE($B255,"!M20"))),"",INDIRECT(CONCATENATE($B255,"!M20"))) ->  | H255: =IF(ISERROR(INDIRECT(CONCATENATE($B255,"!M21"))),"",INDIRECT(CONCATENATE($B255,"!M21"))) ->  | J255: =IF(ISERROR(INDIRECT(CONCATENATE($B255,"!N18"))),"",INDIRECT(CONCATENATE($B255,"!N18"))) ->  | K255: =IF(ISERROR(INDIRECT(CONCATENATE($B255,"!N19"))),"",INDIRECT(CONCATENATE($B255,"!N19"))) ->  | L255: =IF(ISERROR(INDIRECT(CONCATENATE($B255,"!N20"))),"",INDIRECT(CONCATENATE($B255,"!N20"))) ->  | M255: =IF(ISERROR(INDIRECT(CONCATENATE($B255,"!N21"))),"",INDIRECT(CONCATENATE($B255,"!N21"))) ->  | O255: =IF(ISERROR(INDIRECT(CONCATENATE($B255,"!O18"))),"",INDIRECT(CONCATENATE($B255,"!O18"))) ->  | P255: =IF(ISERROR(INDIRECT(CONCATENATE($B255,"!O19"))),"",INDIRECT(CONCATENATE($B255,"!O19"))) ->  | Q255: =IF(ISERROR(INDIRECT(CONCATENATE($B255,"!O20"))),"",INDIRECT(CONCATENATE($B255,"!O20"))) ->  | R255: =IF(ISERROR(INDIRECT(CONCATENATE($B255,"!O21"))),"",INDIRECT(CONCATENATE($B255,"!O21"))) ->  | T255: =IF(ISERROR(INDIRECT(CONCATENATE($B255,"!P18"))),"",INDIRECT(CONCATENATE($B255,"!P18"))) ->  | U255: =IF(ISERROR(INDIRECT(CONCATENATE($B255,"!P19"))),"",INDIRECT(CONCATENATE($B255,"!P19"))) ->  | V255: =IF(ISERROR(INDIRECT(CONCATENATE($B255,"!P20"))),"",INDIRECT(CONCATENATE($B255,"!P20"))) ->  | W255: =IF(ISERROR(INDIRECT(CONCATENATE($B255,"!P21"))),"",INDIRECT(CONCATENATE($B255,"!P21"))) ->  | Y255: =IF(ISERROR(INDIRECT(CONCATENATE($B255,"!Q18"))),"",INDIRECT(CONCATENATE($B255,"!Q18"))) ->  | Z255: =IF(ISERROR(INDIRECT(CONCATENATE($B255,"!Q19"))),"",INDIRECT(CONCATENATE($B255,"!Q19"))) ->  | AA255: =IF(ISERROR(INDIRECT(CONCATENATE($B255,"!Q20"))),"",INDIRECT(CONCATENATE($B255,"!Q20"))) ->  | AB255: =IF(ISERROR(INDIRECT(CONCATENATE($B255,"!Q21"))),"",INDIRECT(CONCATENATE($B255,"!Q1"))) -> 
E256: =IF(ISERROR(INDIRECT(CONCATENATE($B256,"!M18"))),"",INDIRECT(CONCATENATE($B256,"!M18"))) ->  | F256: =IF(ISERROR(INDIRECT(CONCATENATE($B256,"!M19"))),"",INDIRECT(CONCATENATE($B256,"!M19"))) ->  | G256: =IF(ISERROR(INDIRECT(CONCATENATE($B256,"!M20"))),"",INDIRECT(CONCATENATE($B256,"!M20"))) ->  | H256: =IF(ISERROR(INDIRECT(CONCATENATE($B256,"!M21"))),"",INDIRECT(CONCATENATE($B256,"!M21"))) ->  | J256: =IF(ISERROR(INDIRECT(CONCATENATE($B256,"!N18"))),"",INDIRECT(CONCATENATE($B256,"!N18"))) ->  | K256: =IF(ISERROR(INDIRECT(CONCATENATE($B256,"!N19"))),"",INDIRECT(CONCATENATE($B256,"!N19"))) ->  | L256: =IF(ISERROR(INDIRECT(CONCATENATE($B256,"!N20"))),"",INDIRECT(CONCATENATE($B256,"!N20"))) ->  | M256: =IF(ISERROR(INDIRECT(CONCATENATE($B256,"!N21"))),"",INDIRECT(CONCATENATE($B256,"!N21"))) ->  | O256: =IF(ISERROR(INDIRECT(CONCATENATE($B256,"!O18"))),"",INDIRECT(CONCATENATE($B256,"!O18"))) ->  | P256: =IF(ISERROR(INDIRECT(CONCATENATE($B256,"!O19"))),"",INDIRECT(CONCATENATE($B256,"!O19"))) ->  | Q256: =IF(ISERROR(INDIRECT(CONCATENATE($B256,"!O20"))),"",INDIRECT(CONCATENATE($B256,"!O20"))) ->  | R256: =IF(ISERROR(INDIRECT(CONCATENATE($B256,"!O21"))),"",INDIRECT(CONCATENATE($B256,"!O21"))) ->  | T256: =IF(ISERROR(INDIRECT(CONCATENATE($B256,"!P18"))),"",INDIRECT(CONCATENATE($B256,"!P18"))) ->  | U256: =IF(ISERROR(INDIRECT(CONCATENATE($B256,"!P19"))),"",INDIRECT(CONCATENATE($B256,"!P19"))) ->  | V256: =IF(ISERROR(INDIRECT(CONCATENATE($B256,"!P20"))),"",INDIRECT(CONCATENATE($B256,"!P20"))) ->  | W256: =IF(ISERROR(INDIRECT(CONCATENATE($B256,"!P21"))),"",INDIRECT(CONCATENATE($B256,"!P21"))) ->  | Y256: =IF(ISERROR(INDIRECT(CONCATENATE($B256,"!Q18"))),"",INDIRECT(CONCATENATE($B256,"!Q18"))) ->  | Z256: =IF(ISERROR(INDIRECT(CONCATENATE($B256,"!Q19"))),"",INDIRECT(CONCATENATE($B256,"!Q19"))) ->  | AA256: =IF(ISERROR(INDIRECT(CONCATENATE($B256,"!Q20"))),"",INDIRECT(CONCATENATE($B256,"!Q20"))) ->  | AB256: =IF(ISERROR(INDIRECT(CONCATENATE($B256,"!Q21"))),"",INDIRECT(CONCATENATE($B256,"!Q1"))) -> 
E257: =IF(ISERROR(INDIRECT(CONCATENATE($B257,"!M18"))),"",INDIRECT(CONCATENATE($B257,"!M18"))) ->  | F257: =IF(ISERROR(INDIRECT(CONCATENATE($B257,"!M19"))),"",INDIRECT(CONCATENATE($B257,"!M19"))) ->  | G257: =IF(ISERROR(INDIRECT(CONCATENATE($B257,"!M20"))),"",INDIRECT(CONCATENATE($B257,"!M20"))) ->  | H257: =IF(ISERROR(INDIRECT(CONCATENATE($B257,"!M21"))),"",INDIRECT(CONCATENATE($B257,"!M21"))) ->  | J257: =IF(ISERROR(INDIRECT(CONCATENATE($B257,"!N18"))),"",INDIRECT(CONCATENATE($B257,"!N18"))) ->  | K257: =IF(ISERROR(INDIRECT(CONCATENATE($B257,"!N19"))),"",INDIRECT(CONCATENATE($B257,"!N19"))) ->  | L257: =IF(ISERROR(INDIRECT(CONCATENATE($B257,"!N20"))),"",INDIRECT(CONCATENATE($B257,"!N20"))) ->  | M257: =IF(ISERROR(INDIRECT(CONCATENATE($B257,"!N21"))),"",INDIRECT(CONCATENATE($B257,"!N21"))) ->  | O257: =IF(ISERROR(INDIRECT(CONCATENATE($B257,"!O18"))),"",INDIRECT(CONCATENATE($B257,"!O18"))) ->  | P257: =IF(ISERROR(INDIRECT(CONCATENATE($B257,"!O19"))),"",INDIRECT(CONCATENATE($B257,"!O19"))) ->  | Q257: =IF(ISERROR(INDIRECT(CONCATENATE($B257,"!O20"))),"",INDIRECT(CONCATENATE($B257,"!O20"))) ->  | R257: =IF(ISERROR(INDIRECT(CONCATENATE($B257,"!O21"))),"",INDIRECT(CONCATENATE($B257,"!O21"))) ->  | T257: =IF(ISERROR(INDIRECT(CONCATENATE($B257,"!P18"))),"",INDIRECT(CONCATENATE($B257,"!P18"))) ->  | U257: =IF(ISERROR(INDIRECT(CONCATENATE($B257,"!P19"))),"",INDIRECT(CONCATENATE($B257,"!P19"))) ->  | V257: =IF(ISERROR(INDIRECT(CONCATENATE($B257,"!P20"))),"",INDIRECT(CONCATENATE($B257,"!P20"))) ->  | W257: =IF(ISERROR(INDIRECT(CONCATENATE($B257,"!P21"))),"",INDIRECT(CONCATENATE($B257,"!P21"))) ->  | Y257: =IF(ISERROR(INDIRECT(CONCATENATE($B257,"!Q18"))),"",INDIRECT(CONCATENATE($B257,"!Q18"))) ->  | Z257: =IF(ISERROR(INDIRECT(CONCATENATE($B257,"!Q19"))),"",INDIRECT(CONCATENATE($B257,"!Q19"))) ->  | AA257: =IF(ISERROR(INDIRECT(CONCATENATE($B257,"!Q20"))),"",INDIRECT(CONCATENATE($B257,"!Q20"))) ->  | AB257: =IF(ISERROR(INDIRECT(CONCATENATE($B257,"!Q21"))),"",INDIRECT(CONCATENATE($B257,"!Q1"))) -> 
A297: RURAL | D297: Poorest | I297: Poor | N297: Middle | S297: Rich | X297: Richest
D298: Improved | E298: Basic | F298: Limited | G298: Unimproved | H298: Surface water | I298: Improved | J298: Basic | K298: Limited | L298: Unimproved | M298: Surface water | N298: Improved | O298: Basic | P298: Limited | Q298: Unimproved | R298: Surface water | S298: Improved | T298: Basic | U298: Limited | V298: Unimproved | W298: Surface water | X298: Improved | Y298: Basic | Z298: Limited | AA298: Unimproved | AB298: Surface water
A299: Forecast period: | C299: 2000 | D299: =IF((D301+H301)>100,D301*100/(D301+H301),D301) -> 29.88433699 | E299: =D299*AVERAGEIF(E305:E316,">0")/100 -> 27.99152715 | F299: =D299*(100-AVERAGEIF(E305:E316,">0"))/100 -> 1.892809842 | G299: =100-(E299+F299+H299) -> 20.66784618 | H299: =IF((D301+H301)>100,H301*100/(D301+H301),H301) -> 49.44781683 | I299: =IF((I301+M301)>100,I301*100/(I301+M301),I301) -> 30.8573483 | J299: =I299*AVERAGEIF(J305:J316,">0")/100 -> 28.72047129 | K299: =I299*(100-AVERAGEIF(J305:J316,">0"))/100 -> 2.136877009 | L299: =100-(J299+K299+M299) -> 21.7427697 | M299: =IF((I301+M301)>100,M301*100/(I301+M301),M301) -> 47.399882 | N299: =IF((N301+R301)>100,N301*100/(N301+R301),N301) -> 40.75961229 | O299: =N299*AVERAGEIF(O305:O316,">0")/100 -> 37.56468083 | P299: =N299*(100-AVERAGEIF(O305:O316,">0"))/100 -> 3.19493146 | Q299: =100-(O299+P299+R299) -> 20.19688547 | R299: =IF((N301+R301)>100,R301*100/(N301+R301),R301) -> 39.04350224 | S299: =IF((S301+W301)>100,S301*100/(S301+W301),S301) -> 47.72956483 | T299: =S299*AVERAGEIF(T305:T316,">0")/100 -> 43.29811751 | U299: =S299*(100-AVERAGEIF(T305:T316,">0"))/100 -> 4.431447326 | V299: =100-(T299+U299+W299) -> 19.07149124 | W299: =IF((S301+W301)>100,W301*100/(S301+W301),W301) -> 33.19894392 | X299: =IF((X301+AB301)>100,X301*100/(X301+AB301),X301) -> 58.42113327 | Y299: =X299*AVERAGEIF(Y305:Y316,">0")/100 -> 52.67879643 | Z299: =X299*(100-AVERAGEIF(Y305:Y316,">0"))/100 -> 5.742336833 | AA299: =100-(Y299+Z299+AB299) -> 19.04853712 | AB299: =IF((X301+AB301)>100,AB301*100/(X301+AB301),AB301) -> 22.53032961
C300: 2020 | D300: =IF((D302+H302)>100,D302*100/(D302+H302),D302) -> 37.6240411 | E300: =D300*AVERAGEIF(E305:E316,">0")/100 -> 35.24101499 | F300: =D300*(100-AVERAGEIF(E305:E316,">0"))/100 -> 2.383026109 | G300: =100-(E300+F300+H300) -> 24.87946822 | H300: =IF((D302+H302)>100,H302*100/(D302+H302),H302) -> 37.49649068 | I300: =IF((I302+M302)>100,I302*100/(I302+M302),I302) -> 46.04782348 | J300: =I300*AVERAGEIF(J305:J316,">0")/100 -> 42.85900329 | K300: =I300*(100-AVERAGEIF(J305:J316,">0"))/100 -> 3.188820192 | L300: =100-(J300+K300+M300) -> 26.80425084 | M300: =IF((I302+M302)>100,M302*100/(I302+M302),M302) -> 27.14792568 | N300: =IF((N302+R302)>100,N302*100/(N302+R302),N302) -> 47.6638868 | O300: =N300*AVERAGEIF(O305:O316,">0")/100 -> 43.92776561 | P300: =N300*(100-AVERAGEIF(O305:O316,">0"))/100 -> 3.736121197 | Q300: =100-(O300+P300+R300) -> 25.92786977 | R300: =IF((N302+R302)>100,R302*100/(N302+R302),R302) -> 26.40824343 | S300: =IF((S302+W302)>100,S302*100/(S302+W302),S302) -> 56.9727076 | T300: =S300*AVERAGEIF(T305:T316,">0")/100 -> 51.68308148 | U300: =S300*(100-AVERAGEIF(T305:T316,">0"))/100 -> 5.289626118 | V300: =100-(T300+U300+W300) -> 21.87455953 | W300: =IF((S302+W302)>100,W302*100/(S302+W302),W302) -> 21.15273288 | X300: =IF((X302+AB302)>100,X302*100/(X302+AB302),X302) -> 69.76423322 | Y300: =X300*AVERAGEIF(Y305:Y316,">0")/100 -> 62.90695909 | Z300: =X300*(100-AVERAGEIF(Y305:Y316,">0"))/100 -> 6.857274135 | AA300: =100-(Y300+Z300+AB300) -> 16.45196456 | AB300: =IF((X302+AB302)>100,AB302*100/(X302+AB302),AB302) -> 13.78380222
A301: Regression period: | C301: =MinRegYear(C299,C305:C316) -> 2000 | D301: =IF(MAX(C305:C316)-MIN(C305:C316)<5,AVERAGEIF(C305:C316,">0",D305:D316), IF(FORECAST($C301,D$305:D$316,$C$305:$C$316)<0,0, IF(FORECAST($C301,D$305:D$316,$C$305:$C$316)>100,100, FORECAST($C301,D$305:D$316,$C$305:$C$316)))) -> 29.88433699 | H301: =IF(MAX(C305:C316)-MIN(C305:C316)<5,AVERAGEIF(C305:C316,">0",H305:H316), IF(FORECAST($C301,H$305:H$316,$C$305:$C$316)<0,0, IF(FORECAST($C301,H$305:H$316,$C$305:$C$316)>100,100, FORECAST($C301,H$305:H$316,$C$305:$C$316)))) -> 49.44781683 | I301: =IF(MAX(C305:C316)-MIN(C305:C316)<5,AVERAGEIF(C305:C316,">0",I305:I316), IF(FORECAST($C301,I$305:I$316,$C$305:$C$316)<0,0, IF(FORECAST($C301,I$305:I$316,$C$305:$C$316)>100,100, FORECAST($C301,I$305:I$316,$C$305:$C$316)))) -> 30.8573483 | M301: =IF(MAX(C305:C316)-MIN(C305:C316)<5,AVERAGEIF(C305:C316,">0",M305:M316), IF(FORECAST($C301,M$305:M$316,$C$305:$C$316)<0,0, IF(FORECAST($C301,M$305:M$316,$C$305:$C$316)>100,100, FORECAST($C301,M$305:M$316,$C$305:$C$316)))) -> 47.399882 | N301: =IF(MAX(C305:C316)-MIN(C305:C316)<5,AVERAGEIF(C305:C316,">0",N305:N316), IF(FORECAST($C301,N$305:N$316,$C$305:$C$316)<0,0, IF(FORECAST($C301,N$305:N$316,$C$305:$C$316)>100,100, FORECAST($C301,N$305:N$316,$C$305:$C$316)))) -> 40.75961229 | R301: =IF(MAX(C305:C316)-MIN(C305:C316)<5,AVERAGEIF(C305:C316,">0",R305:R316), IF(FORECAST($C301,R$305:R$316,$C$305:$C$316)<0,0, IF(FORECAST($C301,R$305:R$316,$C$305:$C$316)>100,100, FORECAST($C301,R$305:R$316,$C$305:$C$316)))) -> 39.04350224 | S301: =IF(MAX(C305:C316)-MIN(C305:C316)<5,AVERAGEIF(C305:C316,">0",S305:S316), IF(FORECAST($C301,S$305:S$316,$C$305:$C$316)<0,0, IF(FORECAST($C301,S$305:S$316,$C$305:$C$316)>100,100, FORECAST($C301,S$305:S$316,$C$305:$C$316)))) -> 47.72956483 | W301: =IF(MAX(C305:C316)-MIN(C305:C316)<5,AVERAGEIF(C305:C316,">0",W305:W316), IF(FORECAST($C301,W$305:W$316,$C$305:$C$316)<0,0, IF(FORECAST($C301,W$305:W$316,$C$305:$C$316)>100,100, FORECAST($C301,W$305:W$316,$C$305:$C$316)))) -> 33.19894392 | X301: =IF(MAX(C305:C316)-MIN(C305:C316)<5,AVERAGEIF(C305:C316,">0",X305:X316), IF(FORECAST($C301,X$305:X$316,$C$305:$C$316)<0,0, IF(FORECAST($C301,X$305:X$316,$C$305:$C$316)>100,100, FORECAST($C301,X$305:X$316,$C$305:$C$316)))) -> 58.42113327 | AB301: =IF(MAX(C305:C316)-MIN(C305:C316)<5,AVERAGEIF(C305:C316,">0",AB305:AB316), IF(FORECAST($C301,AB$305:AB$316,$C$305:$C$316)<0,0, IF(FORECAST($C301,AB$305:AB$316,$C$305:$C$316)>100,100, FORECAST($C301,AB$305:AB$316,$C$305:$C$316)))) -> 22.53032961
C302: =MaxRegYear(C300,C305:C316) -> 2020 | D302: =IF(MAX(C305:C316)-MIN(C305:C316)<5,AVERAGEIF(C305:C316,">0",D305:D316), IF(FORECAST($C302,D$305:D$316,$C$305:$C$316)<0,0, IF(FORECAST($C302,D$305:D$316,$C$305:$C$316)>100,100, FORECAST($C302,D$305:D$316,$C$305:$C$316)))) -> 37.6240411 | H302: =IF(MAX(C305:C316)-MIN(C305:C316)<5,AVERAGEIF(C305:C316,">0",H305:H316), IF(FORECAST($C302,H$305:H$316,$C$305:$C$316)<0,0, IF(FORECAST($C302,H$305:H$316,$C$305:$C$316)>100,100, FORECAST($C302,H$305:H$316,$C$305:$C$316)))) -> 37.49649068 | I302: =IF(MAX(C305:C316)-MIN(C305:C316)<5,AVERAGEIF(C305:C316,">0",I305:I316), IF(FORECAST($C302,I$305:I$316,$C$305:$C$316)<0,0, IF(FORECAST($C302,I$305:I$316,$C$305:$C$316)>100,100, FORECAST($C302,I$305:I$316,$C$305:$C$316)))) -> 46.04782348 | M302: =IF(MAX(C305:C316)-MIN(C305:C316)<5,AVERAGEIF(C305:C316,">0",M305:M316), IF(FORECAST($C302,M$305:M$316,$C$305:$C$316)<0,0, IF(FORECAST($C302,M$305:M$316,$C$305:$C$316)>100,100, FORECAST($C302,M$305:M$316,$C$305:$C$316)))) -> 27.14792568 | N302: =IF(MAX(C305:C316)-MIN(C305:C316)<5,AVERAGEIF(C305:C316,">0",N305:N316), IF(FORECAST($C302,N$305:N$316,$C$305:$C$316)<0,0, IF(FORECAST($C302,N$305:N$316,$C$305:$C$316)>100,100, FORECAST($C302,N$305:N$316,$C$305:$C$316)))) -> 47.6638868 | R302: =IF(MAX(C305:C316)-MIN(C305:C316)<5,AVERAGEIF(C305:C316,">0",R305:R316), IF(FORECAST($C302,R$305:R$316,$C$305:$C$316)<0,0, IF(FORECAST($C302,R$305:R$316,$C$305:$C$316)>100,100, FORECAST($C302,R$305:R$316,$C$305:$C$316)))) -> 26.40824343 | S302: =IF(MAX(C305:C316)-MIN(C305:C316)<5,AVERAGEIF(C305:C316,">0",S305:S316), IF(FORECAST($C302,S$305:S$316,$C$305:$C$316)<0,0, IF(FORECAST($C302,S$305:S$316,$C$305:$C$316)>100,100, FORECAST($C302,S$305:S$316,$C$305:$C$316)))) -> 56.9727076 | W302: =IF(MAX(C305:C316)-MIN(C305:C316)<5,AVERAGEIF(C305:C316,">0",W305:W316), IF(FORECAST($C302,W$305:W$316,$C$305:$C$316)<0,0, IF(FORECAST($C302,W$305:W$316,$C$305:$C$316)>100,100, FORECAST($C302,W$305:W$316,$C$305:$C$316)))) -> 21.15273288 | X302: =IF(MAX(C305:C316)-MIN(C305:C316)<5,AVERAGEIF(C305:C316,">0",X305:X316), IF(FORECAST($C302,X$305:X$316,$C$305:$C$316)<0,0, IF(FORECAST($C302,X$305:X$316,$C$305:$C$316)>100,100, FORECAST($C302,X$305:X$316,$C$305:$C$316)))) -> 69.76423322 | AB302: =IF(MAX(C305:C316)-MIN(C305:C316)<5,AVERAGEIF(C305:C316,">0",AB305:AB316), IF(FORECAST($C302,AB$305:AB$316,$C$305:$C$316)<0,0, IF(FORECAST($C302,AB$305:AB$316,$C$305:$C$316)>100,100, FORECAST($C302,AB$305:AB$316,$C$305:$C$316)))) -> 13.78380222
B304: Survey | C304: Year | D304: Improved | E304: % Improved < = 30min | H304: Surface water | I304: Improved | J304: % Improved < = 30min | M304: Surface water | N304: Improved | O304: % Improved < = 30min | R304: Surface water | S304: Improved | T304: % Improved < = 30min | W304: Surface water | X304: Improved | Y304: % Improved < = 30min | AB304: Surface water
B305: MICS00 | C305: 2000 | D305: =IF(ISERROR(INDIRECT(CONCATENATE($B305,"!M16"))),"",INDIRECT(CONCATENATE($B305,"!M16"))) -> 36.19615079 | E305: =IF(ISERROR(INDIRECT(CONCATENATE($B305,"!M23"))),"",INDIRECT(CONCATENATE($B305,"!M23"))) -> 92.43984025 | H305: =IF(ISERROR(INDIRECT(CONCATENATE($B305,"!M21"))),"",INDIRECT(CONCATENATE($B305,"!M21"))) -> 43.23023519 | I305: =IF(ISERROR(INDIRECT(CONCATENATE($B305,"!N16"))),"",INDIRECT(CONCATENATE($B305,"!N16"))) -> 33.65272381 | J305: =IF(ISERROR(INDIRECT(CONCATENATE($B305,"!N23"))),"",INDIRECT(CONCATENATE($B305,"!N23"))) -> 86.45427501 | M305: =IF(ISERROR(INDIRECT(CONCATENATE($B305,"!N21"))),"",INDIRECT(CONCATENATE($B305,"!N21"))) -> 44.89108833 | N305: =IF(ISERROR(INDIRECT(CONCATENATE($B305,"!O16"))),"",INDIRECT(CONCATENATE($B305,"!O16"))) -> 45.68783609 | O305: =IF(ISERROR(INDIRECT(CONCATENATE($B305,"!O23"))),"",INDIRECT(CONCATENATE($B305,"!O23"))) -> 82.8035543 | R305: =IF(ISERROR(INDIRECT(CONCATENATE($B305,"!O21"))),"",INDIRECT(CONCATENATE($B305,"!O21"))) -> 35.36438041 | S305: =IF(ISERROR(INDIRECT(CONCATENATE($B305,"!P16"))),"",INDIRECT(CONCATENATE($B305,"!P16"))) -> 52.13193162 | T305: =IF(ISERROR(INDIRECT(CONCATENATE($B305,"!P23"))),"",INDIRECT(CONCATENATE($B305,"!P23"))) -> 84.92437609 | W305: =IF(ISERROR(INDIRECT(CONCATENATE($B305,"!P21"))),"",INDIRECT(CONCATENATE($B305,"!P21"))) -> 29.81338878 | X305: =IF(ISERROR(INDIRECT(CONCATENATE($B305,"!Q16"))),"",INDIRECT(CONCATENATE($B305,"!Q16"))) -> 61.11933834 | Y305: =IF(ISERROR(INDIRECT(CONCATENATE($B305,"!Q23"))),"",INDIRECT(CONCATENATE($B305,"!Q23"))) -> 80.96615679 | AB305: =IF(ISERROR(INDIRECT(CONCATENATE($B305,"!Q221"))),"",INDIRECT(CONCATENATE($B305,"!Q21"))) -> 16.65601403
B306: MICS06 | D306: 73.65466513 | E306: 94.55561544 | H306: 12.8133324 | I306: 79.39806538 | J306: 91.06451048 | M306: 9.66386669 | N306: 86.73104254 | O306: 94.29308527 | R306: 4.036111568 | S306: 89.38701658 | T306: 91.04238578 | W306: 3.23895525 | X306: 90.93221954 | Y306: 92.83574082 | AB306: 2.801102763
B307: DHS08 | C307: 2008 | D307: 21.75622115 | E307: 95.2 | H307: 53.79688898 | I307: 29.97588801 | J307: 96.9 | M307: 44.06317102 | N307: 33.28316303 | O307: 93.8 | R307: 39.33485256 | S307: 41.92304319 | T307: 89.7 | W307: 34.60992435 | X307: 51.00281813 | Y307: 85.6 | AB307: 34.90407216
B308: MICS10 | C308: 2010 | D308: 31.99452608 | E308: 94.9 | H308: 53.62989451 | I308: 39.9075248 | J308: 95.8 | M308: 41.10694476 | N308: 44.00204667 | O308: 97 | R308: 37.51034128 | S308: 53.69540197 | T308: 95.7 | W308: 29.61225277 | X308: 71.90109232 | Y308: 97.3 | AB308: 12.76519924
B309: DHS13 | C309: 2013 | D309: 35.7158572 | E309: 93.9 | H309: 32.61361921 | I309: 40.43295921 | J309: 93.5 | M309: 29.06510625 | N309: 42.7099368 | O309: 92.2 | R309: 29.06910524 | S309: 50.87760413 | T309: 89.9 | W309: 23.83606514 | X309: 63.56527573 | Y309: 89.7 | AB309: 17.36440666
B310: MIS16 | C310: 2016 | D310: 39.20864282 | E310: 95.46567377 | H310: 37.91252832 | I310: 46.37799776 | J310: 95.3345373 | M310: 30.00146261 | N310: 55.82943139 | O310: 94.88240715 | R310: 25.4834789 | S310: 61.60209531 | T310: 95.36862989 | W310: 20.65985864 | X310: 74.2715603 | Y310: 94.15624728 | AB310: 10.59962934
B311: MICS17 | C311: 2017 | D311: 39.05037242 | E311: 89.42028839 | H311: 32.5924157 | I311: 44.7752267 | J311: 91.63201417 | M311: 27.87647531 | N311: 50.35641993 | O311: 92.40448995 | R311: 22.78724632 | S311: 58.84832503 | T311: 90.56126976 | W311: 18.84821653 | X311: 69.57022922 | Y311: 90.01414154 | AB311: 13.70949304
B312: DHS19 | C312: 2019 | D312: 37.38836051 | E312: 93.44829709 | H312: 42.76113237 | I312: 43.91958981 | J312: 93.91451682 | M312: 30.74930698 | N312: 42.10119136 | O312: 89.90867431 | R312: 31.31878692 | S312: 53.38759506 | T312: 88.52740755 | W312: 25.0211254 | X312: 64.59148364 | Y312: 90.79402041 | AB312: 15.41540411
B318: =CONCATENATE("Rural use of drinking water sources, ",C299,"–",C300) -> Rural use of drinking water sources, 2000–2020 | S318: Data points used for regression

Sheet Sanitation
B4: Summary of trends in use of sanitation facilities by wealth quintile (%)
B5: =IF(ISERROR(INDIRECT(CONCATENATE($B105,"!A2"))),"",INDIRECT(CONCATENATE($B105,"!A2"))) -> Sierra Leone
B7: =B118 -> National use of sanitation facilities, 2000–2020 | J7: =B218 -> Urban use of sanitation facilities, 2000–2020 | R7: =B318 -> Rural use of sanitation facilities, 2000–2020
B31: =IF(ISERROR(INDIRECT(CONCATENATE($B105,"!A2"))),"",INDIRECT(CONCATENATE($B105,"!A2"))) -> Sierra Leone | F31: Poorest | J31: Poor | N31: Middle | R31: Rich | V31: Richest
F32: Basic | G32: Limited | H32: Unimproved | I32: Open defecation | J32: Basic | K32: Limited | L32: Unimproved | M32: Open defecation | N32: Basic | O32: Limited | P32: Unimproved | Q32: Open defecation | R32: Basic | S32: Limited | T32: Unimproved | U32: Open defecation | V32: Basic | W32: Limited | X32: Unimproved | Y32: Open defecation
B33: NATIONAL | D33: Estimate | E33: =C99 -> 2000 | F33: =E99 -> 1.785159798 | G33: =F99 -> 9.120981392 | H33: 49.97011723 | I33: 39.12374158 | J33: =J99 -> 2.840162455 | K33: =K99 -> 13.4039479 | L33: 54.67713288 | M33: 29.07875676 | N33: =O99 -> 5.347139978 | O33: =P99 -> 16.93767893 | P33: 58.06220098 | Q33: 19.6529801 | R33: =T99 -> 11.02840428 | S33: =U99 -> 27.77984004 | T33: 49.09991277 | U33: 12.09184291 | V33: =Y99 -> 28.79939904 | W33: =Z99 -> 40.19344933 | X33: 28.43652452 | Y33: 2.570627115
E34: =C100 -> 2020 | F34: =E100 -> 3.797975863 | G34: 19.40513517 | H34: 36.33653342 | I34: 40.46035555 | J34: =J100 -> 5.78916408 | K34: 27.32155465 | L34: 37.88403857 | M34: 29.0052427 | N34: =O100 -> 12.01231659 | O34: 38.05039003 | P34: 30.15943777 | Q34: 19.7778556 | R34: =T100 -> 21.11014763 | S34: 53.17510216 | T34: 18.26507947 | U34: 7.449670739 | V34: =Y100 -> 38.80479173 | W34: 54.15732558 | X34: 5.675561507 | Y34: 1.362321184
B36: URBAN | D36: Estimate | E36: =C199 -> 2000 | F36: =E199 -> 1.987956702 | G36: =F199 -> 8.551351377 | H36: 69.00801967 | I36: 20.45267225 | J36: =J199 -> 8.429259191 | K36: =K199 -> 24.72653453 | L36: 60.64286019 | M36: 6.201346083 | N36: =O199 -> 10.84525714 | O36: =P199 -> 29.64831814 | P36: 56.47383347 | Q36: 3.032591249 | R36: =T199 -> 16.24447856 | S36: =U199 -> 39.20995515 | T36: 43.12145641 | U36: 1.424109875 | V36: =Y199 -> 39.26931769 | W36: =Z199 -> 32.03099787 | X36: 27.58120909 | Y36: 1.118475353
E37: =C200 -> 2020 | F37: =E200 -> 12.02391692 | G37: 51.72181991 | H37: 18.38396887 | I37: 17.8702943 | J37: =J200 -> 20.47182039 | K37: 60.05239158 | L37: 11.19282252 | M37: 8.282965517 | N37: =O200 -> 25.04338995 | O37: 68.46258997 | P37: 3.783211126 | Q37: 2.710808953 | R37: =T200 -> 27.80630675 | S37: 67.11720765 | T37: 3.114494518 | U37: 1.96199108 | V37: =Y200 -> 54.8230283 | W37: 44.71776964 | X37: 0 | Y37: 0.4592020591
B39: RURAL | D39: Estimate | E39: =C299 -> 2000 | F39: =E299 -> 4.172931207 | G39: =F299 -> 18.73341451 | H39: 36.0796225 | I39: 41.01403179 | J39: =J299 -> 4.593770095 | K39: =K299 -> 23.03746867 | L39: 39.83138089 | M39: 32.53738034 | N39: =O299 -> 6.702723539 | O39: =P299 -> 29.4768886 | P39: 39.95300774 | Q39: 23.86738013 | R39: =T299 -> 9.685199194 | S39: =U299 -> 28.31211763 | T39: 42.9733696 | U39: 19.02931357 | V39: =Y299 -> 18.10989444 | W39: =Z299 -> 31.26955953 | X39: 39.48652087 | Y39: 11.13402517
E40: =C300 -> 2020 | F40: =E300 -> 3.015047521 | G40: 13.53536212 | H40: 40.0394333 | I40: 43.41015707 | J40: =J300 -> 3.504462512 | K40: 17.57465952 | L40: 43.31960353 | M40: 35.60127444 | N40: =O300 -> 4.835915016 | O40: 21.26713527 | P40: 44.19082778 | Q40: 29.70612193 | R40: =T300 -> 9.327567657 | S40: 27.26667645 | T40: 40.48501036 | U40: 22.92074553 | V40: =Y300 -> 20.1110045 | W40: 34.7247884 | X40: 30.83011718 | Y40: 14.33408992
A97: NATIONAL | D97: Poorest | I97: Poor | N97: Middle | S97: Rich | X97: Richest
D98: Improved | E98: Basic | F98: Limited | G98: Unimproved | H98: Open defecation | I98: Improved | J98: Basic | K98: Limited | L98: Unimproved | M98: Open defecation | N98: Improved | O98: Basic | P98: Limited | Q98: Unimproved | R98: Open defecation | S98: Improved | T98: Basic | U98: Limited | V98: Unimproved | W98: Open defecation | X98: Improved | Y98: Basic | Z98: Limited | AA98: Unimproved | AB98: Open defecation
A99: Forecast period: | C99: =MinBase(C105:C116) -> 2000 | D99: =IF((D101+H101)>100,D101*100/(D101+H101),D101) -> 10.90614119 | E99: =D99*AVERAGEIF(E105:E116,">0")/100 -> 1.785159798 | F99: =D99*(100-AVERAGEIF(E105:E116,">0"))/100 -> 9.120981392 | G99: =100-(E99+F99+H99) -> 49.97011723 | H99: =IF((D101+H101)>100,H101*100/(D101+H101),H101) -> 39.12374158 | I99: =IF((I101+M101)>100,I101*100/(I101+M101),I101) -> 16.24411036 | J99: =I99*AVERAGEIF(J105:J116,">0")/100 -> 2.840162455 | K99: =I99*(100-AVERAGEIF(J105:J116,">0"))/100 -> 13.4039479 | L99: =100-(J99+K99+M99) -> 54.67713288 | M99: =IF((I101+M101)>100,M101*100/(I101+M101),M101) -> 29.07875676 | N99: =IF((N101+R101)>100,N101*100/(N101+R101),N101) -> 22.28481891 | O99: =N99*AVERAGEIF(O105:O116,">0")/100 -> 5.347139978 | P99: =N99*(100-AVERAGEIF(O105:O116,">0"))/100 -> 16.93767893 | Q99: =100-(O99+P99+R99) -> 58.06220098 | R99: =IF((N101+R101)>100,R101*100/(N101+R101),R101) -> 19.6529801 | S99: =IF((S101+W101)>100,S101*100/(S101+W101),S101) -> 38.80824432 | T99: =S99*AVERAGEIF(T105:T116,">0")/100 -> 11.02840428 | U99: =S99*(100-AVERAGEIF(T105:T116,">0"))/100 -> 27.77984004 | V99: =100-(T99+U99+W99) -> 49.09991277 | W99: =IF((S101+W101)>100,W101*100/(S101+W101),W101) -> 12.09184291 | X99: =IF((X101+AB101)>100,X101*100/(X101+AB101),X101) -> 68.99284837 | Y99: =X99*AVERAGEIF(Y105:Y116,">0")/100 -> 28.79939904 | Z99: =X99*(100-AVERAGEIF(Y105:Y116,">0"))/100 -> 40.19344933 | AA99: =100-(Y99+Z99+AB99) -> 28.43652452 | AB99: =IF((X101+AB101)>100,AB101*100/(X101+AB101),AB101) -> 2.570627115
C100: =MaxTarget(C105:C116) -> 2020 | D100: =IF((D102+H102)>100,D102*100/(D102+H102),D102) -> 23.20311103 | E100: =D100*AVERAGEIF(E105:E116,">0")/100 -> 3.797975863 | F100: =D100*(100-AVERAGEIF(E105:E116,">0"))/100 -> 19.40513517 | G100: =100-(E100+F100+H100) -> 36.33653342 | H100: =IF((D102+H102)>100,H102*100/(D102+H102),H102) -> 40.46035555 | I100: =IF((I102+M102)>100,I102*100/(I102+M102),I102) -> 33.11071873 | J100: =I100*AVERAGEIF(J105:J116,">0")/100 -> 5.78916408 | K100: =I100*(100-AVERAGEIF(J105:J116,">0"))/100 -> 27.32155465 | L100: =100-(J100+K100+M100) -> 37.88403857 | M100: =IF((I102+M102)>100,M102*100/(I102+M102),M102) -> 29.0052427 | N100: =IF((N102+R102)>100,N102*100/(N102+R102),N102) -> 50.06270662 | O100: =N100*AVERAGEIF(O105:O116,">0")/100 -> 12.01231659 | P100: =N100*(100-AVERAGEIF(O105:O116,">0"))/100 -> 38.05039003 | Q100: =100-(O100+P100+R100) -> 30.15943777 | R100: =IF((N102+R102)>100,R102*100/(N102+R102),R102) -> 19.7778556 | S100: =IF((S102+W102)>100,S102*100/(S102+W102),S102) -> 74.28524979 | T100: =S100*AVERAGEIF(T105:T116,">0")/100 -> 21.11014763 | U100: =S100*(100-AVERAGEIF(T105:T116,">0"))/100 -> 53.17510216 | V100: =100-(T100+U100+W100) -> 18.26507947 | W100: =IF((S102+W102)>100,W102*100/(S102+W102),W102) -> 7.449670739 | X100: =IF((X102+AB102)>100,X102*100/(X102+AB102),X102) -> 92.96211731 | Y100: =X100*AVERAGEIF(Y105:Y116,">0")/100 -> 38.80479173 | Z100: =X100*(100-AVERAGEIF(Y105:Y116,">0"))/100 -> 54.15732558 | AA100: =100-(Y100+Z100+AB100) -> 5.675561507 | AB100: =IF((X102+AB102)>100,AB102*100/(X102+AB102),AB102) -> 1.362321184
A101: Regression period: | C101: =MinRegYear(C99,C105:C116) -> 2000 | D101: =IF(MAX(C105:C116)-MIN(C105:C116)<5,AVERAGEIF(C105:C116,">0",D105:D116), IF(FORECAST($C101,D$105:D$116,$C$105:$C$116)<0,0, IF(FORECAST($C101,D$105:D$116,$C$105:$C$116)>100,100, FORECAST($C101,D$105:D$116,$C$105:$C$116)))) -> 10.90614119 | H101: =IF(MAX(C105:C116)-MIN(C105:C116)<5,AVERAGEIF(C105:C116,">0",H105:H116), IF(FORECAST($C101,H$105:H$116,$C$105:$C$116)<0,0, IF(FORECAST($C101,H$105:H$116,$C$105:$C$116)>100,100, FORECAST($C101,H$105:H$116,$C$105:$C$116)))) -> 39.12374158 | I101: =IF(MAX(C105:C116)-MIN(C105:C116)<5,AVERAGEIF(C105:C116,">0",I105:I116), IF(FORECAST($C101,I$105:I$116,$C$105:$C$116)<0,0, IF(FORECAST($C101,I$105:I$116,$C$105:$C$116)>100,100, FORECAST($C101,I$105:I$116,$C$105:$C$116)))) -> 16.24411036 | M101: =IF(MAX(C105:C116)-MIN(C105:C116)<5,AVERAGEIF(C105:C116,">0",M105:M116), IF(FORECAST($C101,M$105:M$116,$C$105:$C$116)<0,0, IF(FORECAST($C101,M$105:M$116,$C$105:$C$116)>100,100, FORECAST($C101,M$105:M$116,$C$105:$C$116)))) -> 29.07875676 | N101: =IF(MAX(C105:C116)-MIN(C105:C116)<5,AVERAGEIF(C105:C116,">0",N105:N116), IF(FORECAST($C101,N$105:N$116,$C$105:$C$116)<0,0, IF(FORECAST($C101,N$105:N$116,$C$105:$C$116)>100,100, FORECAST($C101,N$105:N$116,$C$105:$C$116)))) -> 22.28481891 | R101: =IF(MAX(C105:C116)-MIN(C105:C116)<5,AVERAGEIF(C105:C116,">0",R105:R116), IF(FORECAST($C101,R$105:R$116,$C$105:$C$116)<0,0, IF(FORECAST($C101,R$105:R$116,$C$105:$C$116)>100,100, FORECAST($C101,R$105:R$116,$C$105:$C$116)))) -> 19.6529801 | S101: =IF(MAX(C105:C116)-MIN(C105:C116)<5,AVERAGEIF(C105:C116,">0",S105:S116), IF(FORECAST($C101,S$105:S$116,$C$105:$C$116)<0,0, IF(FORECAST($C101,S$105:S$116,$C$105:$C$116)>100,100, FORECAST($C101,S$105:S$116,$C$105:$C$116)))) -> 38.80824432 | W101: =IF(MAX(C105:C116)-MIN(C105:C116)<5,AVERAGEIF(C105:C116,">0",W105:W116), IF(FORECAST($C101,W$105:W$116,$C$105:$C$116)<0,0, IF(FORECAST($C101,W$105:W$116,$C$105:$C$116)>100,100, FORECAST($C101,W$105:W$116,$C$105:$C$116)))) -> 12.09184291 | X101: =IF(MAX(C105:C116)-MIN(C105:C116)<5,AVERAGEIF(C105:C116,">0",X105:X116), IF(FORECAST($C101,X$105:X$116,$C$105:$C$116)<0,0, IF(FORECAST($C101,X$105:X$116,$C$105:$C$116)>100,100, FORECAST($C101,X$105:X$116,$C$105:$C$116)))) -> 68.99284837 | AB101: =IF(MAX(C105:C116)-MIN(C105:C116)<5,AVERAGEIF(C105:C116,">0",AB105:AB116), IF(FORECAST($C101,AB$105:AB$116,$C$105:$C$116)<0,0, IF(FORECAST($C101,AB$105:AB$116,$C$105:$C$116)>100,100, FORECAST($C101,AB$105:AB$116,$C$105:$C$116)))) -> 2.570627115
C102: =MaxRegYear(C100,C105:C116) -> 2020 | D102: =IF(MAX(C105:C116)-MIN(C105:C116)<5,AVERAGEIF(C105:C116,">0",D105:D116), IF(FORECAST($C102,D$105:D$116,$C$105:$C$116)<0,0, IF(FORECAST($C102,D$105:D$116,$C$105:$C$116)>100,100, FORECAST($C102,D$105:D$116,$C$105:$C$116)))) -> 23.20311103 | H102: =IF(MAX(C105:C116)-MIN(C105:C116)<5,AVERAGEIF(C105:C116,">0",H105:H116), IF(FORECAST($C102,H$105:H$116,$C$105:$C$116)<0,0, IF(FORECAST($C102,H$105:H$116,$C$105:$C$116)>100,100, FORECAST($C102,H$105:H$116,$C$105:$C$116)))) -> 40.46035555 | I102: =IF(MAX(C105:C116)-MIN(C105:C116)<5,AVERAGEIF(C105:C116,">0",I105:I116), IF(FORECAST($C102,I$105:I$116,$C$105:$C$116)<0,0, IF(FORECAST($C102,I$105:I$116,$C$105:$C$116)>100,100, FORECAST($C102,I$105:I$116,$C$105:$C$116)))) -> 33.11071873 | M102: =IF(MAX(C105:C116)-MIN(C105:C116)<5,AVERAGEIF(C105:C116,">0",M105:M116), IF(FORECAST($C102,M$105:M$116,$C$105:$C$116)<0,0, IF(FORECAST($C102,M$105:M$116,$C$105:$C$116)>100,100, FORECAST($C102,M$105:M$116,$C$105:$C$116)))) -> 29.0052427 | N102: =IF(MAX(C105:C116)-MIN(C105:C116)<5,AVERAGEIF(C105:C116,">0",N105:N116), IF(FORECAST($C102,N$105:N$116,$C$105:$C$116)<0,0, IF(FORECAST($C102,N$105:N$116,$C$105:$C$116)>100,100, FORECAST($C102,N$105:N$116,$C$105:$C$116)))) -> 50.06270662 | R102: =IF(MAX(C105:C116)-MIN(C105:C116)<5,AVERAGEIF(C105:C116,">0",R105:R116), IF(FORECAST($C102,R$105:R$116,$C$105:$C$116)<0,0, IF(FORECAST($C102,R$105:R$116,$C$105:$C$116)>100,100, FORECAST($C102,R$105:R$116,$C$105:$C$116)))) -> 19.7778556 | S102: =IF(MAX(C105:C116)-MIN(C105:C116)<5,AVERAGEIF(C105:C116,">0",S105:S116), IF(FORECAST($C102,S$105:S$116,$C$105:$C$116)<0,0, IF(FORECAST($C102,S$105:S$116,$C$105:$C$116)>100,100, FORECAST($C102,S$105:S$116,$C$105:$C$116)))) -> 74.28524979 | W102: =IF(MAX(C105:C116)-MIN(C105:C116)<5,AVERAGEIF(C105:C116,">0",W105:W116), IF(FORECAST($C102,W$105:W$116,$C$105:$C$116)<0,0, IF(FORECAST($C102,W$105:W$116,$C$105:$C$116)>100,100, FORECAST($C102,W$105:W$116,$C$105:$C$116)))) -> 7.449670739 | X102: =IF(MAX(C105:C116)-MIN(C105:C116)<5,AVERAGEIF(C105:C116,">0",X105:X116), IF(FORECAST($C102,X$105:X$116,$C$105:$C$116)<0,0, IF(FORECAST($C102,X$105:X$116,$C$105:$C$116)>100,100, FORECAST($C102,X$105:X$116,$C$105:$C$116)))) -> 92.96211731 | AB102: =IF(MAX(C105:C116)-MIN(C105:C116)<5,AVERAGEIF(C105:C116,">0",AB105:AB116), IF(FORECAST($C102,AB$105:AB$116,$C$105:$C$116)<0,0, IF(FORECAST($C102,AB$105:AB$116,$C$105:$C$116)>100,100, FORECAST($C102,AB$105:AB$116,$C$105:$C$116)))) -> 1.362321184
B104: Survey | C104: Year | D104: Improved | E104: Not shared | H104: Open defecation | I104: Improved | J104: Not shared | M104: Open defecation | N104: Improved | O104: Not shared | R104: Open defecation | S104: Improved | T104: Not shared | W104: Open defecation | X104: Improved | Y104: Not shared | AB104: Open defecation
B105: MICS00 | C105: 2000 | D105: =IF(ISERROR(INDIRECT(CONCATENATE($B105,"!C122"))),"",INDIRECT(CONCATENATE($B105,"!C122"))) -> 7.336177546 | E105: =IF(ISERROR(INDIRECT(CONCATENATE($B105,"!C129"))),"",INDIRECT(CONCATENATE($B105,"!C129"))) -> N/A | H105: =IF(ISERROR(INDIRECT(CONCATENATE($B105,"!C127"))),"",INDIRECT(CONCATENATE($B105,"!C127"))) -> 30.86497293 | I105: =IF(ISERROR(INDIRECT(CONCATENATE($B105,"!D122"))),"",INDIRECT(CONCATENATE($B105,"!D122"))) -> 13.11777232 | J105: =IF(ISERROR(INDIRECT(CONCATENATE($B105,"!D129"))),"",INDIRECT(CONCATENATE($B105,"!D129"))) -> N/A | M105: =IF(ISERROR(INDIRECT(CONCATENATE($B105,"!D127"))),"",INDIRECT(CONCATENATE($B105,"!D127"))) -> 23.35376913 | N105: =IF(ISERROR(INDIRECT(CONCATENATE($B105,"!E122"))),"",INDIRECT(CONCATENATE($B105,"!E122"))) -> 22.27029758 | O105: =IF(ISERROR(INDIRECT(CONCATENATE($B105,"!E129"))),"",INDIRECT(CONCATENATE($B105,"!E129"))) -> N/A | R105: =IF(ISERROR(INDIRECT(CONCATENATE($B105,"!E127"))),"",INDIRECT(CONCATENATE($B105,"!E127"))) -> 13.9229272 | S105: =IF(ISERROR(INDIRECT(CONCATENATE($B105,"!F122"))),"",INDIRECT(CONCATENATE($B105,"!F122"))) -> 41.49722237 | T105: =IF(ISERROR(INDIRECT(CONCATENATE($B105,"!F129"))),"",INDIRECT(CONCATENATE($B105,"!F129"))) -> N/A | W105: =IF(ISERROR(INDIRECT(CONCATENATE($B105,"!F127"))),"",INDIRECT(CONCATENATE($B105,"!F127"))) -> 8.299538703 | X105: =IF(ISERROR(INDIRECT(CONCATENATE($B105,"!G122"))),"",INDIRECT(CONCATENATE($B105,"!G122"))) -> 67.41962487 | Y105: =IF(ISERROR(INDIRECT(CONCATENATE($B105,"!G129"))),"",INDIRECT(CONCATENATE($B105,"!G129"))) -> N/A | AB105: =IF(ISERROR(INDIRECT(CONCATENATE($B105,"!G2127"))),"",INDIRECT(CONCATENATE($B105,"!G127"))) -> 2.507328345
B106: MICS06 | D106: 6.610543284 | E106: 14.78937972 | H106: 53.29508904 | I106: 11.34972371 | J106: 17.24687672 | M106: 47.12931529 | N106: 21.53295218 | O106: 21.78943372 | R106: 35.24750055 | S106: 40.07076628 | T106: 25.39863921 | W106: 21.36541351 | X106: 72.87149135 | Y106: 34.7868435 | AB106: 2.630724974
B107: DHS08 | C107: 2008 | D107: 18.99488563 | E107: 13.84708499 | H107: 45.19003499 | I107: 25.52336088 | J107: 20.16300374 | M107: 29.32872728 | N107: 36.70508132 | O107: 25.85823937 | R107: 21.82796415 | S107: 54.71397562 | T107: 25.36933317 | W107: 11.12945185 | X107: 84.19848645 | Y107: 41.1596497 | AB107: 1.897866109
B108: MICS10 | C108: 2010 | D108: 16.26118384 | E108: 16.34905828 | H108: 55.77694006 | I108: 23.33614639 | J108: 18.43592037 | M108: 42.72396996 | N108: 33.09278732 | O108: 20.4633222 | R108: 28.65486782 | S108: 51.84696509 | T108: 33.6460913 | W108: 15.02795202 | X108: 77.61203778 | Y108: 42.03432715 | AB108: 2.308947909
B109: DHS13 | C109: 2013 | D109: 27.38718135 | E109: 11.70142654 | H109: 35.87946464 | I109: 36.06629292 | J109: 9.282432949 | M109: 27.68864235 | N109: 39.66868372 | O109: 16.03057 | R109: 22.86492357 | S109: 57.34814608 | T109: 17.85980733 | W109: 12.53671949 | X109: 85.0305446 | Y109: 35.56792277 | AB109: 2.166307505
B110: MIS16 | C110: 2016 | D110: 19.20913235 | E110: 15.03566842 | H110: 34.52761479 | I110: 29.9774031 | J110: 17.7764261 | M110: 27.40705663 | N110: 45.17613927 | O110: 27.56540305 | R110: 17.6895104 | S110: 67.62503785 | T110: 34.88144834 | W110: 8.625489715 | X110: 88.52023443 | Y110: 44.83578008 | AB110: 1.27739622
B111: MICS17 | C111: 2017 | D111: 18.2467974 | E111: 21.01147951 | H111: 37.19944593 | I111: 25.45063563 | J111: 20.31971602 | M111: 26.74454166 | N111: 42.71004669 | O111: 31.75037634 | R111: 15.98214785 | S111: 68.04298782 | T111: 29.60447177 | W111: 4.837937914 | X111: 86.65726452 | Y111: 45.38288804 | AB111: 0.9923274387
B112: DHS19 | C112: 2019 | D112: 19.94005505 | E112: 21.84463728 | H112: 39.9746657 | I112: 30.233586 | J112: 19.16544262 | M112: 25.99950698 | N112: 51.64893048 | O112: 24.5044413 | R112: 17.14675306 | S112: 77.81294811 | T112: 32.16399769 | W112: 4.920796166 | X112: 92.98421203 | Y112: 48.43069048 | AB112: 1.829746663
B118: =CONCATENATE("National use of sanitation facilities, ",C99,"–",C100) -> National use of sanitation facilities, 2000–2020 | S118: Data points used for regression
A197: URBAN | D197: Poorest | I197: Poor | N197: Middle | S197: Rich | X197: Richest
D198: Improved | E198: Basic | F198: Limited | G198: Unimproved | H198: Open defecation | I198: Improved | J198: Basic | K198: Limited | L198: Unimproved | M198: Open defecation | N198: Improved | O198: Basic | P198: Limited | Q198: Unimproved | R198: Open defecation | S198: Improved | T198: Basic | U198: Limited | V198: Unimproved | W198: Open defecation | X198: Improved | Y198: Basic | Z198: Limited | AA198: Unimproved | AB198: Open defecation
A199: Forecast period: | C199: =MinBase(C205:C216) -> 2000 | D199: =IF((D201+H201)>100,D201*100/(D201+H201),D201) -> 10.53930808 | E199: =D199*AVERAGEIF(E205:E216,">0")/100 -> 1.987956702 | F199: =D199*(100-AVERAGEIF(E205:E216,">0"))/100 -> 8.551351377 | G199: =100-(E199+F199+H199) -> 69.00801967 | H199: =IF((D201+H201)>100,H201*100/(D201+H201),H201) -> 20.45267225 | I199: =IF((I201+M201)>100,I201*100/(I201+M201),I201) -> 33.15579372 | J199: =I199*AVERAGEIF(J205:J216,">0")/100 -> 8.429259191 | K199: =I199*(100-AVERAGEIF(J205:J216,">0"))/100 -> 24.72653453 | L199: =100-(J199+K199+M199) -> 60.64286019 | M199: =IF((I201+M201)>100,M201*100/(I201+M201),M201) -> 6.201346083 | N199: =IF((N201+R201)>100,N201*100/(N201+R201),N201) -> 40.49357528 | O199: =N199*AVERAGEIF(O205:O216,">0")/100 -> 10.84525714 | P199: =N199*(100-AVERAGEIF(O205:O216,">0"))/100 -> 29.64831814 | Q199: =100-(O199+P199+R199) -> 56.47383347 | R199: =IF((N201+R201)>100,R201*100/(N201+R201),R201) -> 3.032591249 | S199: =IF((S201+W201)>100,S201*100/(S201+W201),S201) -> 55.45443371 | T199: =S199*AVERAGEIF(T205:T216,">0")/100 -> 16.24447856 | U199: =S199*(100-AVERAGEIF(T205:T216,">0"))/100 -> 39.20995515 | V199: =100-(T199+U199+W199) -> 43.12145641 | W199: =IF((S201+W201)>100,W201*100/(S201+W201),W201) -> 1.424109875 | X199: =IF((X201+AB201)>100,X201*100/(X201+AB201),X201) -> 71.30031556 | Y199: =X199*AVERAGEIF(Y205:Y216,">0")/100 -> 39.26931769 | Z199: =X199*(100-AVERAGEIF(Y205:Y216,">0"))/100 -> 32.03099787 | AA199: =100-(Y199+Z199+AB199) -> 27.58120909 | AB199: =IF((X201+AB201)>100,AB201*100/(X201+AB201),AB201) -> 1.118475353
C200: =MaxTarget(C205:C216) -> 2020 | D200: =IF((D202+H202)>100,D202*100/(D202+H202),D202) -> 63.74573683 | E200: =D200*AVERAGEIF(E205:E216,">0")/100 -> 12.02391692 | F200: =D200*(100-AVERAGEIF(E205:E216,">0"))/100 -> 51.72181991 | G200: =100-(E200+F200+H200) -> 18.38396887 | H200: =IF((D202+H202)>100,H202*100/(D202+H202),H202) -> 17.8702943 | I200: =IF((I202+M202)>100,I202*100/(I202+M202),I202) -> 80.52421197 | J200: =I200*AVERAGEIF(J205:J216,">0")/100 -> 20.47182039 | K200: =I200*(100-AVERAGEIF(J205:J216,">0"))/100 -> 60.05239158 | L200: =100-(J200+K200+M200) -> 11.19282252 | M200: =IF((I202+M202)>100,M202*100/(I202+M202),M202) -> 8.282965517 | N200: =IF((N202+R202)>100,N202*100/(N202+R202),N202) -> 93.50597992 | O200: =N200*AVERAGEIF(O205:O216,">0")/100 -> 25.04338995 | P200: =N200*(100-AVERAGEIF(O205:O216,">0"))/100 -> 68.46258997 | Q200: =100-(O200+P200+R200) -> 3.783211126 | R200: =IF((N202+R202)>100,R202*100/(N202+R202),R202) -> 2.710808953 | S200: =IF((S202+W202)>100,S202*100/(S202+W202),S202) -> 94.9235144 | T200: =S200*AVERAGEIF(T205:T216,">0")/100 -> 27.80630675 | U200: =S200*(100-AVERAGEIF(T205:T216,">0"))/100 -> 67.11720765 | V200: =100-(T200+U200+W200) -> 3.114494518 | W200: =IF((S202+W202)>100,W202*100/(S202+W202),W202) -> 1.96199108 | X200: =IF((X202+AB202)>100,X202*100/(X202+AB202),X202) -> 99.54079794 | Y200: =X200*AVERAGEIF(Y205:Y216,">0")/100 -> 54.8230283 | Z200: =X200*(100-AVERAGEIF(Y205:Y216,">0"))/100 -> 44.71776964 | AA200: =100-(Y200+Z200+AB200) -> 0 | AB200: =IF((X202+AB202)>100,AB202*100/(X202+AB202),AB202) -> 0.4592020591
A201: Regression period: | C201: =MinRegYear(C199,C205:C216) -> 2000 | D201: =IF(MAX(C205:C216)-MIN(C205:C216)<5,AVERAGEIF(C205:C216,">0",D205:D216), IF(FORECAST($C201,D$205:D$216,$C$205:$C$216)<0,0, IF(FORECAST($C201,D$205:D$216,$C$205:$C$216)>100,100, FORECAST($C201,D$205:D$216,$C$205:$C$216)))) -> 10.53930808 | H201: =IF(MAX(C205:C216)-MIN(C205:C216)<5,AVERAGEIF(C205:C216,">0",H205:H216), IF(FORECAST($C201,H$205:H$216,$C$205:$C$216)<0,0, IF(FORECAST($C201,H$205:H$216,$C$205:$C$216)>100,100, FORECAST($C201,H$205:H$216,$C$205:$C$216)))) -> 20.45267225 | I201: =IF(MAX(C205:C216)-MIN(C205:C216)<5,AVERAGEIF(C205:C216,">0",I205:I216), IF(FORECAST($C201,I$205:I$216,$C$205:$C$216)<0,0, IF(FORECAST($C201,I$205:I$216,$C$205:$C$216)>100,100, FORECAST($C201,I$205:I$216,$C$205:$C$216)))) -> 33.15579372 | M201: =IF(MAX(C205:C216)-MIN(C205:C216)<5,AVERAGEIF(C205:C216,">0",M205:M216), IF(FORECAST($C201,M$205:M$216,$C$205:$C$216)<0,0, IF(FORECAST($C201,M$205:M$216,$C$205:$C$216)>100,100, FORECAST($C201,M$205:M$216,$C$205:$C$216)))) -> 6.201346083 | N201: =IF(MAX(C205:C216)-MIN(C205:C216)<5,AVERAGEIF(C205:C216,">0",N205:N216), IF(FORECAST($C201,N$205:N$216,$C$205:$C$216)<0,0, IF(FORECAST($C201,N$205:N$216,$C$205:$C$216)>100,100, FORECAST($C201,N$205:N$216,$C$205:$C$216)))) -> 40.49357528 | R201: =IF(MAX(C205:C216)-MIN(C205:C216)<5,AVERAGEIF(C205:C216,">0",R205:R216), IF(FORECAST($C201,R$205:R$216,$C$205:$C$216)<0,0, IF(FORECAST($C201,R$205:R$216,$C$205:$C$216)>100,100, FORECAST($C201,R$205:R$216,$C$205:$C$216)))) -> 3.032591249 | S201: =IF(MAX(C205:C216)-MIN(C205:C216)<5,AVERAGEIF(C205:C216,">0",S205:S216), IF(FORECAST($C201,S$205:S$216,$C$205:$C$216)<0,0, IF(FORECAST($C201,S$205:S$216,$C$205:$C$216)>100,100, FORECAST($C201,S$205:S$216,$C$205:$C$216)))) -> 55.45443371 | W201: =IF(MAX(C205:C216)-MIN(C205:C216)<5,AVERAGEIF(C205:C216,">0",W205:W216), IF(FORECAST($C201,W$205:W$216,$C$205:$C$216)<0,0, IF(FORECAST($C201,W$205:W$216,$C$205:$C$216)>100,100, FORECAST($C201,W$205:W$216,$C$205:$C$216)))) -> 1.424109875 | X201: =IF(MAX(C205:C216)-MIN(C205:C216)<5,AVERAGEIF(C205:C216,">0",X205:X216), IF(FORECAST($C201,X$205:X$216,$C$205:$C$216)<0,0, IF(FORECAST($C201,X$205:X$216,$C$205:$C$216)>100,100, FORECAST($C201,X$205:X$216,$C$205:$C$216)))) -> 71.30031556 | AB201: =IF(MAX(C205:C216)-MIN(C205:C216)<5,AVERAGEIF(C205:C216,">0",AB205:AB216), IF(FORECAST($C201,AB$205:AB$216,$C$205:$C$216)<0,0, IF(FORECAST($C201,AB$205:AB$216,$C$205:$C$216)>100,100, FORECAST($C201,AB$205:AB$216,$C$205:$C$216)))) -> 1.118475353
C202: =MaxRegYear(C200,C205:C216) -> 2020 | D202: =IF(MAX(C205:C216)-MIN(C205:C216)<5,AVERAGEIF(C205:C216,">0",D205:D216), IF(FORECAST($C202,D$205:D$216,$C$205:$C$216)<0,0, IF(FORECAST($C202,D$205:D$216,$C$205:$C$216)>100,100, FORECAST($C202,D$205:D$216,$C$205:$C$216)))) -> 63.74573683 | H202: =IF(MAX(C205:C216)-MIN(C205:C216)<5,AVERAGEIF(C205:C216,">0",H205:H216), IF(FORECAST($C202,H$205:H$216,$C$205:$C$216)<0,0, IF(FORECAST($C202,H$205:H$216,$C$205:$C$216)>100,100, FORECAST($C202,H$205:H$216,$C$205:$C$216)))) -> 17.8702943 | I202: =IF(MAX(C205:C216)-MIN(C205:C216)<5,AVERAGEIF(C205:C216,">0",I205:I216), IF(FORECAST($C202,I$205:I$216,$C$205:$C$216)<0,0, IF(FORECAST($C202,I$205:I$216,$C$205:$C$216)>100,100, FORECAST($C202,I$205:I$216,$C$205:$C$216)))) -> 80.52421197 | M202: =IF(MAX(C205:C216)-MIN(C205:C216)<5,AVERAGEIF(C205:C216,">0",M205:M216), IF(FORECAST($C202,M$205:M$216,$C$205:$C$216)<0,0, IF(FORECAST($C202,M$205:M$216,$C$205:$C$216)>100,100, FORECAST($C202,M$205:M$216,$C$205:$C$216)))) -> 8.282965517 | N202: =IF(MAX(C205:C216)-MIN(C205:C216)<5,AVERAGEIF(C205:C216,">0",N205:N216), IF(FORECAST($C202,N$205:N$216,$C$205:$C$216)<0,0, IF(FORECAST($C202,N$205:N$216,$C$205:$C$216)>100,100, FORECAST($C202,N$205:N$216,$C$205:$C$216)))) -> 93.50597992 | R202: =IF(MAX(C205:C216)-MIN(C205:C216)<5,AVERAGEIF(C205:C216,">0",R205:R216), IF(FORECAST($C202,R$205:R$216,$C$205:$C$216)<0,0, IF(FORECAST($C202,R$205:R$216,$C$205:$C$216)>100,100, FORECAST($C202,R$205:R$216,$C$205:$C$216)))) -> 2.710808953 | S202: =IF(MAX(C205:C216)-MIN(C205:C216)<5,AVERAGEIF(C205:C216,">0",S205:S216), IF(FORECAST($C202,S$205:S$216,$C$205:$C$216)<0,0, IF(FORECAST($C202,S$205:S$216,$C$205:$C$216)>100,100, FORECAST($C202,S$205:S$216,$C$205:$C$216)))) -> 94.9235144 | W202: =IF(MAX(C205:C216)-MIN(C205:C216)<5,AVERAGEIF(C205:C216,">0",W205:W216), IF(FORECAST($C202,W$205:W$216,$C$205:$C$216)<0,0, IF(FORECAST($C202,W$205:W$216,$C$205:$C$216)>100,100, FORECAST($C202,W$205:W$216,$C$205:$C$216)))) -> 1.96199108 | X202: =IF(MAX(C205:C216)-MIN(C205:C216)<5,AVERAGEIF(C205:C216,">0",X205:X216), IF(FORECAST($C202,X$205:X$216,$C$205:$C$216)<0,0, IF(FORECAST($C202,X$205:X$216,$C$205:$C$216)>100,100, FORECAST($C202,X$205:X$216,$C$205:$C$216)))) -> 100 | AB202: =IF(MAX(C205:C216)-MIN(C205:C216)<5,AVERAGEIF(C205:C216,">0",AB205:AB216), IF(FORECAST($C202,AB$205:AB$216,$C$205:$C$216)<0,0, IF(FORECAST($C202,AB$205:AB$216,$C$205:$C$216)>100,100, FORECAST($C202,AB$205:AB$216,$C$205:$C$216)))) -> 0.4613204521
B204: Survey | C204: Year | D204: Improved | E204: Not shared | H204: Open defecation | I204: Improved | J204: Not shared | M204: Open defecation | N204: Improved | O204: Not shared | R204: Open defecation | S204: Improved | T204: Not shared | W204: Open defecation | X204: Improved | Y204: Not shared | AB204: Open defecation
B205: MICS00 | C205: 2000 | D205: =IF(ISERROR(INDIRECT(CONCATENATE($B205,"!H122"))),"",INDIRECT(CONCATENATE($B205,"!H122"))) -> 10.0640244 | E205: =IF(ISERROR(INDIRECT(CONCATENATE($B205,"!H129"))),"",INDIRECT(CONCATENATE($B205,"!H129"))) -> N/A | H205: =IF(ISERROR(INDIRECT(CONCATENATE($B205,"!H127"))),"",INDIRECT(CONCATENATE($B205,"!H127"))) -> 9.860576144 | I205: =IF(ISERROR(INDIRECT(CONCATENATE($B205,"!I122"))),"",INDIRECT(CONCATENATE($B205,"!I122"))) -> 27.11825113 | J205: =IF(ISERROR(INDIRECT(CONCATENATE($B205,"!I129"))),"",INDIRECT(CONCATENATE($B205,"!I129"))) -> N/A | M205: =IF(ISERROR(INDIRECT(CONCATENATE($B205,"!I127"))),"",INDIRECT(CONCATENATE($B205,"!I127"))) -> 0.9190039474 | N205: =IF(ISERROR(INDIRECT(CONCATENATE($B205,"!J122"))),"",INDIRECT(CONCATENATE($B205,"!J122"))) -> 31.39964649 | O205: =IF(ISERROR(INDIRECT(CONCATENATE($B205,"!J129"))),"",INDIRECT(CONCATENATE($B205,"!J129"))) -> N/A | R205: =IF(ISERROR(INDIRECT(CONCATENATE($B205,"!J127"))),"",INDIRECT(CONCATENATE($B205,"!J127"))) -> 3.692153469 | S205: =IF(ISERROR(INDIRECT(CONCATENATE($B205,"!K122"))),"",INDIRECT(CONCATENATE($B205,"!K122"))) -> 47.19538901 | T205: =IF(ISERROR(INDIRECT(CONCATENATE($B205,"!K129"))),"",INDIRECT(CONCATENATE($B205,"!K129"))) -> N/A | W205: =IF(ISERROR(INDIRECT(CONCATENATE($B205,"!K127"))),"",INDIRECT(CONCATENATE($B205,"!K127"))) -> 0.9873293494 | X205: =IF(ISERROR(INDIRECT(CONCATENATE($B205,"!L122"))),"",INDIRECT(CONCATENATE($B205,"!L122"))) -> 62.84252234 | Y205: =IF(ISERROR(INDIRECT(CONCATENATE($B205,"!L129"))),"",INDIRECT(CONCATENATE($B205,"!L129"))) -> N/A | AB205: =IF(ISERROR(INDIRECT(CONCATENATE($B205,"!L2127"))),"",INDIRECT(CONCATENATE($B205,"!L127"))) -> 1.155356416
B206: MICS06 | D206: 4.706562952 | E206: 5.183574751 | H206: 56.34522949 | I206: 9.358725924 | J206: 19.78970105 | M206: 50.18539196 | N206: 14.74790653 | O206: 23.0968062 | R206: 40.25152539 | S206: 21.19096242 | T206: 16.67550548 | W206: 37.03356463 | X206: 35.57956206 | Y206: 32.31245039 | AB206: 27.12078312
B207: DHS08 | C207: 2008 | D207: 49.35529655 | E207: 21.59921288 | H207: 15.48001241 | I207: 71.80271226 | J207: 26.8544694 | M207: 4.142540436 | N207: 76.69367639 | O207: 29.34825936 | R207: 0.9672571115 | S207: 84.51592673 | T207: 32.26657731 | W207: 1.665738174 | X207: 93.15909503 | Y207: 56.37227439 | AB207: 0.7738467787
B208: MICS10 | C208: 2010 | D208: 13.56981099 | E208: 17.65722664 | H208: 46.6404429 | I208: 42.49182735 | J208: 24.30405265 | M208: 22.83027371 | N208: 66.46026092 | O208: 26.41298367 | R208: 2.490122488 | S208: 74.83234977 | T208: 29.97335098 | W208: 3.137447449 | X208: 90.58047192 | Y208: 57.04493284 | AB208: 1.392756079
B209: DHS13 | C209: 2013 | D209: 50.12284643 | E209: 13.36253765 | H209: 21.34593107 | I209: 74.24486514 | J209: 16.81533485 | M209: 5.498497996 | N209: 79.12995458 | O209: 17.28172058 | R209: 4.018241214 | S209: 85.15992977 | T209: 28.97296152 | W209: 1.255058544 | X209: 94.71302321 | Y209: 56.20167445 | AB209: 0.2497247567
B210: MIS16 | C210: 2016 | D210: 54.37843622 | E210: 21.20145596 | H210: 17.17112327 | I210: 64.18148272 | J210: 27.83250191 | M210: 11.37346641 | N210: 84.99540058 | O210: 34.02186506 | R210: 4.61299013 | S210: 87.60250875 | T210: 35.69003855 | W210: 1.455152918 | X210: 92.6444383 | Y210: 54.75329904 | AB210: 0
B211: MICS17 | C211: 2017 | D211: 53.014319 | E211: 29.73279833 | H211: 11.0036998 | I211: 66.39963152 | J211: 28.46963159 | M211: 4.816901073 | N211: 76.22820062 | O211: 27.68681983 | R211: 2.52058873 | S211: 83.05165566 | T211: 28.42624696 | W211: 1.540235749 | X211: 91.18814458 | Y211: 60.94978483 | AB211: 0.1603050444
B212: DHS19 | C212: 2019 | D212: 64.07710226 | E212: 23.29934653 | H212: 10.95005166 | I212: 82.43072166 | J212: 33.8966123 | M212: 2.467459658 | N212: 88.54936662 | O212: 29.63017479 | R212: 1.591389074 | S212: 89.61996116 | T212: 33.04898635 | W212: 2.160013943 | X212: 96.15497844 | Y212: 67.89715104 | AB212: 1.370145556
B218: =CONCATENATE("Urban use of sanitation facilities, ",C199,"–",C200) -> Urban use of sanitation facilities, 2000–2020 | S218: Data points used for regression
A297: RURAL | D297: Poorest | I297: Poor | N297: Middle | S297: Rich | X297: Richest
D298: Improved | E298: Basic | F298: Limited | G298: Unimproved | H298: Open defecation | I298: Improved | J298: Basic | K298: Limited | L298: Unimproved | M298: Open defecation | N298: Improved | O298: Basic | P298: Limited | Q298: Unimproved | R298: Open defecation | S298: Improved | T298: Basic | U298: Limited | V298: Unimproved | W298: Open defecation | X298: Improved | Y298: Basic | Z298: Limited | AA298: Unimproved | AB298: Open defecation
A299: Forecast period: | C299: 2000 | D299: =IF((D301+H301)>100,D301*100/(D301+H301),D301) -> 22.90634572 | E299: =D299*AVERAGEIF(E305:E316,">0")/100 -> 4.172931207 | F299: =D299*(100-AVERAGEIF(E305:E316,">0"))/100 -> 18.73341451 | G299: =100-(E299+F299+H299) -> 36.0796225 | H299: =IF((D301+H301)>100,H301*100/(D301+H301),H301) -> 41.01403179 | I299: =IF((I301+M301)>100,I301*100/(I301+M301),I301) -> 27.63123876 | J299: =I299*AVERAGEIF(J305:J316,">0")/100 -> 4.593770095 | K299: =I299*(100-AVERAGEIF(J305:J316,">0"))/100 -> 23.03746867 | L299: =100-(J299+K299+M299) -> 39.83138089 | M299: =IF((I301+M301)>100,M301*100/(I301+M301),M301) -> 32.53738034 | N299: =IF((N301+R301)>100,N301*100/(N301+R301),N301) -> 36.17961213 | O299: =N299*AVERAGEIF(O305:O316,">0")/100 -> 6.702723539 | P299: =N299*(100-AVERAGEIF(O305:O316,">0"))/100 -> 29.4768886 | Q299: =100-(O299+P299+R299) -> 39.95300774 | R299: =IF((N301+R301)>100,R301*100/(N301+R301),R301) -> 23.86738013 | S299: =IF((S301+W301)>100,S301*100/(S301+W301),S301) -> 37.99731683 | T299: =S299*AVERAGEIF(T305:T316,">0")/100 -> 9.685199194 | U299: =S299*(100-AVERAGEIF(T305:T316,">0"))/100 -> 28.31211763 | V299: =100-(T299+U299+W299) -> 42.9733696 | W299: =IF((S301+W301)>100,W301*100/(S301+W301),W301) -> 19.02931357 | X299: =IF((X301+AB301)>100,X301*100/(X301+AB301),X301) -> 49.37945397 | Y299: =X299*AVERAGEIF(Y305:Y316,">0")/100 -> 18.10989444 | Z299: =X299*(100-AVERAGEIF(Y305:Y316,">0"))/100 -> 31.26955953 | AA299: =100-(Y299+Z299+AB299) -> 39.48652087 | AB299: =IF((X301+AB301)>100,AB301*100/(X301+AB301),AB301) -> 11.13402517
C300: 2020 | D300: =IF((D302+H302)>100,D302*100/(D302+H302),D302) -> 16.55040964 | E300: =D300*AVERAGEIF(E305:E316,">0")/100 -> 3.015047521 | F300: =D300*(100-AVERAGEIF(E305:E316,">0"))/100 -> 13.53536212 | G300: =100-(E300+F300+H300) -> 40.0394333 | H300: =IF((D302+H302)>100,H302*100/(D302+H302),H302) -> 43.41015707 | I300: =IF((I302+M302)>100,I302*100/(I302+M302),I302) -> 21.07912203 | J300: =I300*AVERAGEIF(J305:J316,">0")/100 -> 3.504462512 | K300: =I300*(100-AVERAGEIF(J305:J316,">0"))/100 -> 17.57465952 | L300: =100-(J300+K300+M300) -> 43.31960353 | M300: =IF((I302+M302)>100,M302*100/(I302+M302),M302) -> 35.60127444 | N300: =IF((N302+R302)>100,N302*100/(N302+R302),N302) -> 26.10305029 | O300: =N300*AVERAGEIF(O305:O316,">0")/100 -> 4.835915016 | P300: =N300*(100-AVERAGEIF(O305:O316,">0"))/100 -> 21.26713527 | Q300: =100-(O300+P300+R300) -> 44.19082778 | R300: =IF((N302+R302)>100,R302*100/(N302+R302),R302) -> 29.70612193 | S300: =IF((S302+W302)>100,S302*100/(S302+W302),S302) -> 36.5942441 | T300: =S300*AVERAGEIF(T305:T316,">0")/100 -> 9.327567657 | U300: =S300*(100-AVERAGEIF(T305:T316,">0"))/100 -> 27.26667645 | V300: =100-(T300+U300+W300) -> 40.48501036 | W300: =IF((S302+W302)>100,W302*100/(S302+W302),W302) -> 22.92074553 | X300: =IF((X302+AB302)>100,X302*100/(X302+AB302),X302) -> 54.83579289 | Y300: =X300*AVERAGEIF(Y305:Y316,">0")/100 -> 20.1110045 | Z300: =X300*(100-AVERAGEIF(Y305:Y316,">0"))/100 -> 34.7247884 | AA300: =100-(Y300+Z300+AB300) -> 30.83011718 | AB300: =IF((X302+AB302)>100,AB302*100/(X302+AB302),AB302) -> 14.33408992
A301: Regression period: | C301: =MinRegYear(C299,C305:C316) -> 2000 | D301: =IF(MAX(C305:C316)-MIN(C305:C316)<5,AVERAGEIF(C305:C316,">0",D305:D316), IF(FORECAST($C301,D$305:D$316,$C$305:$C$316)<0,0, IF(FORECAST($C301,D$305:D$316,$C$305:$C$316)>100,100, FORECAST($C301,D$305:D$316,$C$305:$C$316)))) -> 22.90634572 | H301: =IF(MAX(C305:C316)-MIN(C305:C316)<5,AVERAGEIF(C305:C316,">0",H305:H316), IF(FORECAST($C301,H$305:H$316,$C$305:$C$316)<0,0, IF(FORECAST($C301,H$305:H$316,$C$305:$C$316)>100,100, FORECAST($C301,H$305:H$316,$C$305:$C$316)))) -> 41.01403179 | I301: =IF(MAX(C305:C316)-MIN(C305:C316)<5,AVERAGEIF(C305:C316,">0",I305:I316), IF(FORECAST($C301,I$305:I$316,$C$305:$C$316)<0,0, IF(FORECAST($C301,I$305:I$316,$C$305:$C$316)>100,100, FORECAST($C301,I$305:I$316,$C$305:$C$316)))) -> 27.63123876 | M301: =IF(MAX(C305:C316)-MIN(C305:C316)<5,AVERAGEIF(C305:C316,">0",M305:M316), IF(FORECAST($C301,M$305:M$316,$C$305:$C$316)<0,0, IF(FORECAST($C301,M$305:M$316,$C$305:$C$316)>100,100, FORECAST($C301,M$305:M$316,$C$305:$C$316)))) -> 32.53738034 | N301: =IF(MAX(C305:C316)-MIN(C305:C316)<5,AVERAGEIF(C305:C316,">0",N305:N316), IF(FORECAST($C301,N$305:N$316,$C$305:$C$316)<0,0, IF(FORECAST($C301,N$305:N$316,$C$305:$C$316)>100,100, FORECAST($C301,N$305:N$316,$C$305:$C$316)))) -> 36.17961213 | R301: =IF(MAX(C305:C316)-MIN(C305:C316)<5,AVERAGEIF(C305:C316,">0",R305:R316), IF(FORECAST($C301,R$305:R$316,$C$305:$C$316)<0,0, IF(FORECAST($C301,R$305:R$316,$C$305:$C$316)>100,100, FORECAST($C301,R$305:R$316,$C$305:$C$316)))) -> 23.86738013 | S301: =IF(MAX(C305:C316)-MIN(C305:C316)<5,AVERAGEIF(C305:C316,">0",S305:S316), IF(FORECAST($C301,S$305:S$316,$C$305:$C$316)<0,0, IF(FORECAST($C301,S$305:S$316,$C$305:$C$316)>100,100, FORECAST($C301,S$305:S$316,$C$305:$C$316)))) -> 37.99731683 | W301: =IF(MAX(C305:C316)-MIN(C305:C316)<5,AVERAGEIF(C305:C316,">0",W305:W316), IF(FORECAST($C301,W$305:W$316,$C$305:$C$316)<0,0, IF(FORECAST($C301,W$305:W$316,$C$305:$C$316)>100,100, FORECAST($C301,W$305:W$316,$C$305:$C$316)))) -> 19.02931357 | X301: =IF(MAX(C305:C316)-MIN(C305:C316)<5,AVERAGEIF(C305:C316,">0",X305:X316), IF(FORECAST($C301,X$305:X$316,$C$305:$C$316)<0,0, IF(FORECAST($C301,X$305:X$316,$C$305:$C$316)>100,100, FORECAST($C301,X$305:X$316,$C$305:$C$316)))) -> 49.37945397 | AB301: =IF(MAX(C305:C316)-MIN(C305:C316)<5,AVERAGEIF(C305:C316,">0",AB305:AB316), IF(FORECAST($C301,AB$305:AB$316,$C$305:$C$316)<0,0, IF(FORECAST($C301,AB$305:AB$316,$C$305:$C$316)>100,100, FORECAST($C301,AB$305:AB$316,$C$305:$C$316)))) -> 11.13402517
C302: =MaxRegYear(C300,C305:C316) -> 2020 | D302: =IF(MAX(C305:C316)-MIN(C305:C316)<5,AVERAGEIF(C305:C316,">0",D305:D316), IF(FORECAST($C302,D$305:D$316,$C$305:$C$316)<0,0, IF(FORECAST($C302,D$305:D$316,$C$305:$C$316)>100,100, FORECAST($C302,D$305:D$316,$C$305:$C$316)))) -> 16.55040964 | H302: =IF(MAX(C305:C316)-MIN(C305:C316)<5,AVERAGEIF(C305:C316,">0",H305:H316), IF(FORECAST($C302,H$305:H$316,$C$305:$C$316)<0,0, IF(FORECAST($C302,H$305:H$316,$C$305:$C$316)>100,100, FORECAST($C302,H$305:H$316,$C$305:$C$316)))) -> 43.41015707 | I302: =IF(MAX(C305:C316)-MIN(C305:C316)<5,AVERAGEIF(C305:C316,">0",I305:I316), IF(FORECAST($C302,I$305:I$316,$C$305:$C$316)<0,0, IF(FORECAST($C302,I$305:I$316,$C$305:$C$316)>100,100, FORECAST($C302,I$305:I$316,$C$305:$C$316)))) -> 21.07912203 | M302: =IF(MAX(C305:C316)-MIN(C305:C316)<5,AVERAGEIF(C305:C316,">0",M305:M316), IF(FORECAST($C302,M$305:M$316,$C$305:$C$316)<0,0, IF(FORECAST($C302,M$305:M$316,$C$305:$C$316)>100,100, FORECAST($C302,M$305:M$316,$C$305:$C$316)))) -> 35.60127444 | N302: =IF(MAX(C305:C316)-MIN(C305:C316)<5,AVERAGEIF(C305:C316,">0",N305:N316), IF(FORECAST($C302,N$305:N$316,$C$305:$C$316)<0,0, IF(FORECAST($C302,N$305:N$316,$C$305:$C$316)>100,100, FORECAST($C302,N$305:N$316,$C$305:$C$316)))) -> 26.10305029 | R302: =IF(MAX(C305:C316)-MIN(C305:C316)<5,AVERAGEIF(C305:C316,">0",R305:R316), IF(FORECAST($C302,R$305:R$316,$C$305:$C$316)<0,0, IF(FORECAST($C302,R$305:R$316,$C$305:$C$316)>100,100, FORECAST($C302,R$305:R$316,$C$305:$C$316)))) -> 29.70612193 | S302: =IF(MAX(C305:C316)-MIN(C305:C316)<5,AVERAGEIF(C305:C316,">0",S305:S316), IF(FORECAST($C302,S$305:S$316,$C$305:$C$316)<0,0, IF(FORECAST($C302,S$305:S$316,$C$305:$C$316)>100,100, FORECAST($C302,S$305:S$316,$C$305:$C$316)))) -> 36.5942441 | W302: =IF(MAX(C305:C316)-MIN(C305:C316)<5,AVERAGEIF(C305:C316,">0",W305:W316), IF(FORECAST($C302,W$305:W$316,$C$305:$C$316)<0,0, IF(FORECAST($C302,W$305:W$316,$C$305:$C$316)>100,100, FORECAST($C302,W$305:W$316,$C$305:$C$316)))) -> 22.92074553 | X302: =IF(MAX(C305:C316)-MIN(C305:C316)<5,AVERAGEIF(C305:C316,">0",X305:X316), IF(FORECAST($C302,X$305:X$316,$C$305:$C$316)<0,0, IF(FORECAST($C302,X$305:X$316,$C$305:$C$316)>100,100, FORECAST($C302,X$305:X$316,$C$305:$C$316)))) -> 54.83579289 | AB302: =IF(MAX(C305:C316)-MIN(C305:C316)<5,AVERAGEIF(C305:C316,">0",AB305:AB316), IF(FORECAST($C302,AB$305:AB$316,$C$305:$C$316)<0,0, IF(FORECAST($C302,AB$305:AB$316,$C$305:$C$316)>100,100, FORECAST($C302,AB$305:AB$316,$C$305:$C$316)))) -> 14.33408992
B304: Survey | C304: Year | D304: Improved | E304: Not shared | H304: Open defecation | I304: Improved | J304: Not shared | M304: Open defecation | N304: Improved | O304: Not shared | R304: Open defecation | S304: Improved | T304: Not shared | W304: Open defecation | X304: Improved | Y304: Not shared | AB304: Open defecation
B305: MICS00 | C305: 2000 | D305: =IF(ISERROR(INDIRECT(CONCATENATE($B305,"!M122"))),"",INDIRECT(CONCATENATE($B305,"!M122"))) -> 24.06159236 | E305: =IF(ISERROR(INDIRECT(CONCATENATE($B305,"!M129"))),"",INDIRECT(CONCATENATE($B305,"!M129"))) -> N/A | H305: =IF(ISERROR(INDIRECT(CONCATENATE($B305,"!M127"))),"",INDIRECT(CONCATENATE($B305,"!M127"))) -> 33.33502525 | I305: =IF(ISERROR(INDIRECT(CONCATENATE($B305,"!N122"))),"",INDIRECT(CONCATENATE($B305,"!N122"))) -> 29.54544698 | J305: =IF(ISERROR(INDIRECT(CONCATENATE($B305,"!N129"))),"",INDIRECT(CONCATENATE($B305,"!N129"))) -> N/A | M305: =IF(ISERROR(INDIRECT(CONCATENATE($B305,"!N127"))),"",INDIRECT(CONCATENATE($B305,"!N127"))) -> 26.21843097 | N305: =IF(ISERROR(INDIRECT(CONCATENATE($B305,"!O122"))),"",INDIRECT(CONCATENATE($B305,"!O122"))) -> 37.66570308 | O305: =IF(ISERROR(INDIRECT(CONCATENATE($B305,"!O129"))),"",INDIRECT(CONCATENATE($B305,"!O129"))) -> N/A | R305: =IF(ISERROR(INDIRECT(CONCATENATE($B305,"!O127"))),"",INDIRECT(CONCATENATE($B305,"!O127"))) -> 20.39363124 | S305: =IF(ISERROR(INDIRECT(CONCATENATE($B305,"!P122"))),"",INDIRECT(CONCATENATE($B305,"!P122"))) -> 39.77934305 | T305: =IF(ISERROR(INDIRECT(CONCATENATE($B305,"!P129"))),"",INDIRECT(CONCATENATE($B305,"!P129"))) -> N/A | W305: =IF(ISERROR(INDIRECT(CONCATENATE($B305,"!P127"))),"",INDIRECT(CONCATENATE($B305,"!P127"))) -> 15.47510312 | X305: =IF(ISERROR(INDIRECT(CONCATENATE($B305,"!Q122"))),"",INDIRECT(CONCATENATE($B305,"!Q122"))) -> 52.2586768 | Y305: =IF(ISERROR(INDIRECT(CONCATENATE($B305,"!Q129"))),"",INDIRECT(CONCATENATE($B305,"!Q129"))) -> N/A | AB305: =IF(ISERROR(INDIRECT(CONCATENATE($B305,"!Q2127"))),"",INDIRECT(CONCATENATE($B305,"!Q127"))) -> 9.185709494
B306: MICS06 | D306: 38.63300617 | E306: 28.06521365 | H306: 20.39118596 | I306: 58.22976855 | J306: 20.76424998 | M306: 5.14803756 | N306: 66.80739082 | O306: 22.15895207 | R306: 2.546290906 | S306: 72.5639711 | T306: 30.79188183 | W306: 1.60181388 | X306: 85.42450529 | Y306: 47.26117011 | AB306: 0.2059634384
B307: DHS08 | C307: 2008 | D307: 17.69824579 | E307: 14.00888149 | H307: 47.17813928 | I307: 19.26645239 | J307: 16.95254761 | M307: 37.64657953 | N307: 28.41335135 | O307: 15.78065536 | R307: 26.88548831 | S307: 33.76166631 | T307: 28.83316107 | W307: 22.86476635 | X307: 44.86744168 | Y307: 29.62373196 | AB307: 17.06552423
B308: MICS10 | C308: 2010 | D308: 17.43858869 | E308: 15.58866294 | H308: 57.86703863 | I308: 21.22853542 | J308: 18.13076221 | M308: 46.21644799 | N308: 28.98849563 | O308: 16.72657984 | R308: 34.6781562 | S308: 37.9324412 | T308: 28.0278014 | W308: 26.70289473 | X308: 56.75554317 | Y308: 40.3811129 | AB308: 10.57600822
B309: DHS13 | C309: 2013 | D309: 24.27119429 | E309: 11.22556485 | H309: 39.04468762 | I309: 34.60278589 | J309: 8.352405965 | M309: 29.37854652 | N309: 35.9206702 | O309: 12.65557852 | R309: 26.89042043 | S309: 39.10175481 | T309: 16.25424975 | W309: 20.8634294 | X309: 49.13416515 | Y309: 22.28644155 | AB309: 16.10538153
B310: MIS16 | C310: 2016 | D310: 17.24840035 | E310: 17.68462699 | H310: 34.56856287 | I310: 19.91050791 | J310: 14.18510602 | M310: 34.6722625 | N310: 28.40872746 | O310: 21.37465402 | R310: 27.00593035 | S310: 38.15315403 | T310: 27.61749969 | W310: 20.20381888 | X310: 57.47418167 | Y310: 41.16214397 | AB310: 9.870220105
B311: MICS17 | C311: 2017 | D311: 15.86567132 | E311: 17.31902294 | H311: 40.04696642 | I311: 19.56581933 | J311: 20.09331416 | M311: 35.07508273 | N311: 24.42241192 | O311: 21.69659197 | R311: 27.18032923 | S311: 29.25305163 | T311: 25.04553514 | W311: 22.78670192 | X311: 48.35034201 | Y311: 41.71943055 | AB311: 13.55304117
B312: DHS19 | C312: 2019 | D312: 17.38359249 | E312: 23.62953936 | H312: 45.00172235 | I312: 22.10783898 | J312: 17.8985559 | M312: 31.26947265 | N312: 27.62019364 | O312: 19.29070233 | R312: 28.26848361 | S312: 42.17705496 | T312: 21.85403369 | W312: 20.45792323 | X312: 59.45963383 | Y312: 34.29068111 | AB312: 14.86256016
B318: =CONCATENATE("Rural use of sanitation facilities, ",C299,"–",C300) -> Rural use of sanitation facilities, 2000–2020 | S318: Data points used for regression

Sheet Hygiene
B4: Access to hygiene facilities by wealth quintile (%)
B5: =IF(ISERROR(INDIRECT(CONCATENATE($E$32,"!A2"))),"",INDIRECT(CONCATENATE($E$32,"!A2"))) -> Sierra Leone
B7: =CONCATENATE("National ",IF(ISERROR(INDIRECT(CONCATENATE($E$32,"!A2"))),"",INDIRECT(CONCATENATE($E$32,"!A210")))) -> National Access to hygiene facilities | K7: =CONCATENATE("Urban ",IF(ISERROR(INDIRECT(CONCATENATE($E$32,"!A2"))),"",INDIRECT(CONCATENATE($E$32,"!A210")))) -> Urban Access to hygiene facilities | S7: =CONCATENATE("Rural ",IF(ISERROR(INDIRECT(CONCATENATE($E$32,"!A2"))),"",INDIRECT(CONCATENATE($E$32,"!A210")))) -> Rural Access to hygiene facilities
E32: =INDEX(B88:B100,A88) -> DHS19 | G32: =IF(ISERROR(INDIRECT(CONCATENATE($E$32,"!A2"))),"",INDIRECT(CONCATENATE($E$32,"!A2"))) -> Sierra Leone | K32: Poorest | N32: Poor | Q32: Middle | T32: Rich | W32: Richest
K33: Basic | L33: Limited | M33: No facility | N33: Basic | O33: Limited | P33: No facility | Q33: Basic | R33: Limited | S33: No facility | T33: Basic | U33: Limited | V33: No facility | W33: Basic | X33: Limited | Y33: No facility
B34: >>> Select Survey : | G34: NATIONAL | J34: =IF(ISERROR(INDIRECT(CONCATENATE(#REF!,"!A2"))),"",INDIRECT(CONCATENATE(#REF!,"!A210"))) ->  | K34: =IF(ISERROR(INDIRECT(CONCATENATE($E$32,"!C222"))),"",INDIRECT(CONCATENATE($E$32,"!C222"))) -> 13.98887097 | L34: =IF(ISERROR(INDIRECT(CONCATENATE($E$32,"!C223"))),"",INDIRECT(CONCATENATE($E$32,"!C223"))) -> 22.86629747 | M34: =IF(ISERROR(INDIRECT(CONCATENATE($E$32,"!C224"))),"",INDIRECT(CONCATENATE($E$32,"!C224"))) -> 63.14483156 | N34: =IF(ISERROR(INDIRECT(CONCATENATE($E$32,"!D222"))),"",INDIRECT(CONCATENATE($E$32,"!D222"))) -> 22.33226461 | O34: =IF(ISERROR(INDIRECT(CONCATENATE($E$32,"!D223"))),"",INDIRECT(CONCATENATE($E$32,"!D223"))) -> 24.21453152 | P34: =IF(ISERROR(INDIRECT(CONCATENATE($E$32,"!D224"))),"",INDIRECT(CONCATENATE($E$32,"!D224"))) -> 53.45320388 | Q34: =IF(ISERROR(INDIRECT(CONCATENATE($E$32,"!E222"))),"",INDIRECT(CONCATENATE($E$32,"!E222"))) -> 20.81590132 | R34: =IF(ISERROR(INDIRECT(CONCATENATE($E$32,"!E223"))),"",INDIRECT(CONCATENATE($E$32,"!E223"))) -> 23.14967393 | S34: =IF(ISERROR(INDIRECT(CONCATENATE($E$32,"!E224"))),"",INDIRECT(CONCATENATE($E$32,"!E224"))) -> 56.03442474 | T34: =IF(ISERROR(INDIRECT(CONCATENATE($E$32,"!F222"))),"",INDIRECT(CONCATENATE($E$32,"!F222"))) -> 19.79127272 | U34: =IF(ISERROR(INDIRECT(CONCATENATE($E$32,"!F223"))),"",INDIRECT(CONCATENATE($E$32,"!F223"))) -> 21.03700638 | V34: =IF(ISERROR(INDIRECT(CONCATENATE($E$32,"!F224"))),"",INDIRECT(CONCATENATE($E$32,"!F224"))) -> 59.1717209 | W34: =IF(ISERROR(INDIRECT(CONCATENATE($E$32,"!G222"))),"",INDIRECT(CONCATENATE($E$32,"!G222"))) -> 27.30864234 | X34: =IF(ISERROR(INDIRECT(CONCATENATE($E$32,"!G223"))),"",INDIRECT(CONCATENATE($E$32,"!G223"))) -> 23.73052262 | Y34: =IF(ISERROR(INDIRECT(CONCATENATE($E$32,"!G224"))),"",INDIRECT(CONCATENATE($E$32,"!G224"))) -> 48.96083504
G37: URBAN | J37: =IF(ISERROR(INDIRECT(CONCATENATE(#REF!,"!A2"))),"",INDIRECT(CONCATENATE(#REF!,"!A210"))) ->  | K37: =IF(ISERROR(INDIRECT(CONCATENATE($E$32,"!H222"))),"",INDIRECT(CONCATENATE($E$32,"!H222"))) -> 13.50769824 | L37: =IF(ISERROR(INDIRECT(CONCATENATE($E$32,"!H223"))),"",INDIRECT(CONCATENATE($E$32,"!H223"))) -> 21.87652093 | M37: =IF(ISERROR(INDIRECT(CONCATENATE($E$32,"!H224"))),"",INDIRECT(CONCATENATE($E$32,"!H224"))) -> 64.61578084 | N37: =IF(ISERROR(INDIRECT(CONCATENATE($E$32,"!I222"))),"",INDIRECT(CONCATENATE($E$32,"!I222"))) -> 16.82006872 | O37: =IF(ISERROR(INDIRECT(CONCATENATE($E$32,"!I223"))),"",INDIRECT(CONCATENATE($E$32,"!I223"))) -> 20.89858798 | P37: =IF(ISERROR(INDIRECT(CONCATENATE($E$32,"!I224"))),"",INDIRECT(CONCATENATE($E$32,"!I224"))) -> 62.2813433 | Q37: =IF(ISERROR(INDIRECT(CONCATENATE($E$32,"!J222"))),"",INDIRECT(CONCATENATE($E$32,"!J222"))) -> 18.28228759 | R37: =IF(ISERROR(INDIRECT(CONCATENATE($E$32,"!J223"))),"",INDIRECT(CONCATENATE($E$32,"!J223"))) -> 22.05249692 | S37: =IF(ISERROR(INDIRECT(CONCATENATE($E$32,"!J224"))),"",INDIRECT(CONCATENATE($E$32,"!J224"))) -> 59.6652155 | T37: =IF(ISERROR(INDIRECT(CONCATENATE($E$32,"!K222"))),"",INDIRECT(CONCATENATE($E$32,"!K222"))) -> 20.16536077 | U37: =IF(ISERROR(INDIRECT(CONCATENATE($E$32,"!K223"))),"",INDIRECT(CONCATENATE($E$32,"!K223"))) -> 27.58609957 | V37: =IF(ISERROR(INDIRECT(CONCATENATE($E$32,"!K224"))),"",INDIRECT(CONCATENATE($E$32,"!K224"))) -> 52.24853966 | W37: =IF(ISERROR(INDIRECT(CONCATENATE($E$32,"!L222"))),"",INDIRECT(CONCATENATE($E$32,"!L222"))) -> 35.34663242 | X37: =IF(ISERROR(INDIRECT(CONCATENATE($E$32,"!L223"))),"",INDIRECT(CONCATENATE($E$32,"!L223"))) -> 20.64256948 | Y37: =IF(ISERROR(INDIRECT(CONCATENATE($E$32,"!L224"))),"",INDIRECT(CONCATENATE($E$32,"!L224"))) -> 44.01079811
G40: RURAL | J40: =IF(ISERROR(INDIRECT(CONCATENATE(#REF!,"!A2"))),"",INDIRECT(CONCATENATE(#REF!,"!A210"))) ->  | K40: =IF(ISERROR(INDIRECT(CONCATENATE($E$32,"!M222"))),"",INDIRECT(CONCATENATE($E$32,"!M222"))) -> 15.41756705 | L40: =IF(ISERROR(INDIRECT(CONCATENATE($E$32,"!M223"))),"",INDIRECT(CONCATENATE($E$32,"!M223"))) -> 21.27092872 | M40: =IF(ISERROR(INDIRECT(CONCATENATE($E$32,"!M224"))),"",INDIRECT(CONCATENATE($E$32,"!M224"))) -> 63.31150423 | N40: =IF(ISERROR(INDIRECT(CONCATENATE($E$32,"!N222"))),"",INDIRECT(CONCATENATE($E$32,"!N222"))) -> 17.31490228 | O40: =IF(ISERROR(INDIRECT(CONCATENATE($E$32,"!N223"))),"",INDIRECT(CONCATENATE($E$32,"!N223"))) -> 24.55968298 | P40: =IF(ISERROR(INDIRECT(CONCATENATE($E$32,"!N224"))),"",INDIRECT(CONCATENATE($E$32,"!N224"))) -> 58.12541474 | Q40: =IF(ISERROR(INDIRECT(CONCATENATE($E$32,"!O222"))),"",INDIRECT(CONCATENATE($E$32,"!O222"))) -> 22.52172606 | R40: =IF(ISERROR(INDIRECT(CONCATENATE($E$32,"!O223"))),"",INDIRECT(CONCATENATE($E$32,"!O223"))) -> 24.51468113 | S40: =IF(ISERROR(INDIRECT(CONCATENATE($E$32,"!O224"))),"",INDIRECT(CONCATENATE($E$32,"!O224"))) -> 52.96359281 | T40: =IF(ISERROR(INDIRECT(CONCATENATE($E$32,"!P222"))),"",INDIRECT(CONCATENATE($E$32,"!P222"))) -> 20.98320189 | U40: =IF(ISERROR(INDIRECT(CONCATENATE($E$32,"!P223"))),"",INDIRECT(CONCATENATE($E$32,"!P223"))) -> 23.6354423 | V40: =IF(ISERROR(INDIRECT(CONCATENATE($E$32,"!P224"))),"",INDIRECT(CONCATENATE($E$32,"!P224"))) -> 55.38135581 | W40: =IF(ISERROR(INDIRECT(CONCATENATE($E$32,"!Q222"))),"",INDIRECT(CONCATENATE($E$32,"!Q222"))) -> 28.18514535 | X40: =IF(ISERROR(INDIRECT(CONCATENATE($E$32,"!Q223"))),"",INDIRECT(CONCATENATE($E$32,"!Q223"))) -> 22.36530495 | Y40: =IF(ISERROR(INDIRECT(CONCATENATE($E$32,"!Q224"))),"",INDIRECT(CONCATENATE($E$32,"!Q224"))) -> 49.4495497
A88: 8 | B88: MICS00
B89: MICS06
B90: DHS08
B91: MICS10
B92: DHS13
B93: MIS16
B94: MICS17
B95: DHS19
B96: Input
B97: Template

Sheet MICS00
A2: =A1026 -> Sierra Leone
A3: =A1034 -> 2000
A4: Use of drinking water sources
A5: by wealth quintile and sub-national region
A6: Notes:
A7: WHO/UNICEF JMP customised wealth index excludes water,
A8: sanitation and hygiene assets.
A9: Survey used for analysis: | B9: =A1025 -> MICS00
A10: =B1028 -> 
A11: =B1027 -> 
A14: Use of drinking water sources | C14: NATIONAL wealth index quintile | H14: URBAN wealth index quintile | M14: RURAL wealth index quintile | R14: SUB-REGIONS: | BA14: Raw numbers of respondents: | BB14: Use of drinking water sources | BC14: NATIONAL wealth index quintile | BH14: URBAN wealth index quintile | BM14: RURAL wealth index quintile | BR14: SUB-REGIONS:
A15: Weighted percentage (used in graphs) | C15: Poorest | D15: Poor | E15: Middle | F15: Rich | G15: Richest | H15: Poorest | I15: Poor | J15: Middle | K15: Rich | L15: Richest | M15: Poorest | N15: Poor | O15: Middle | P15: Rich | Q15: Richest | R15: East | S15: North | T15: South | U15: West | BA15: Water data, raw numbers (weighted) | BC15: Poorest | BD15: Poor | BE15: Middle | BF15: Rich | BG15: Richest | BH15: Poorest | BI15: Poor | BJ15: Middle | BK15: Rich | BL15: Richest | BM15: Poorest | BN15: Poor | BO15: Middle | BP15: Rich | BQ15: Richest | BR15: East | BS15: North | BT15: South | BU15: West
A16: Water | B16: Improved | C16: 36.3972517 | D16: 41.19052324 | E16: 52.77466816 | F16: 64.77087896 | G16: 77.00958085 | H16: 60.17240642 | I16: 76.91013299 | J16: 80.03828312 | K16: 81.5877347 | L16: 79.21294214 | M16: 36.19615079 | N16: 33.65272381 | O16: 45.68783609 | P16: 52.13193162 | Q16: 61.11933834 | R16: 58.61929857 | S16: 29.82525943 | T16: 61.84533032 | U16: 91.56508391 | BA16: Water | BB16: Improved | BC16: N/A | BD16: N/A | BE16: N/A | BF16: N/A | BG16: N/A | BH16: N/A | BI16: N/A | BJ16: N/A | BK16: N/A | BL16: N/A | BM16: N/A | BN16: N/A | BO16: N/A | BP16: N/A | BQ16: N/A | BR16: N/A | BS16: N/A | BT16: N/A | BU16: N/A
B17: Not Improved | C17: 63.6027483 | D17: 58.80947676 | E17: 47.22533184 | F17: 35.22912104 | G17: 22.99041915 | H17: 39.82759358 | I17: 23.08986701 | J17: 19.96171688 | K17: 18.4122653 | L17: 20.78705786 | M17: 63.80384921 | N17: 66.34727619 | O17: 54.31216391 | P17: 47.86806838 | Q17: 38.88066166 | R17: 41.38070143 | S17: 70.17474057 | T17: 38.15466968 | U17: 8.434916091 | BB17: Not Improved | BC17: N/A | BD17: N/A | BE17: N/A | BF17: N/A | BG17: N/A | BH17: N/A | BI17: N/A | BJ17: N/A | BK17: N/A | BL17: N/A | BM17: N/A | BN17: N/A | BO17: N/A | BP17: N/A | BQ17: N/A | BR17: N/A | BS17: N/A | BT17: N/A | BU17: N/A
A18: Water ladder | B18: Basic | C18: 32.90613441 | D18: 35.1878474 | E18: 43.51221797 | F18: 52.39767752 | G18: 66.81624054 | H18: 48.68510462 | I18: 60.7733802 | J18: 66.82706558 | K18: 71.37457826 | L18: 73.44914925 | M18: 33.32621811 | N18: 29.09421839 | O18: 37.78233654 | P18: 44.21872138 | Q18: 49.44361267 | R18: 49.30399949 | S18: 25.72360994 | T18: 53.61472507 | U18: 76.38423336 | BA18: Water ladder | BB18: Basic | BC18: N/A | BD18: N/A | BE18: N/A | BF18: N/A | BG18: N/A | BH18: N/A | BI18: N/A | BJ18: N/A | BK18: N/A | BL18: N/A | BM18: N/A | BN18: N/A | BO18: N/A | BP18: N/A | BQ18: N/A | BR18: N/A | BS18: N/A | BT18: N/A | BU18: N/A
B19: Limited | C19: 3.390395104 | D19: 6.002675847 | E19: 9.180653586 | F19: 12.37320143 | G19: 10.17153145 | H19: 11.48730181 | I19: 16.13675279 | J19: 13.21121754 | K19: 10.21315644 | L19: 5.763792897 | M19: 2.725573 | N19: 4.558505419 | O19: 7.84654601 | P19: 7.849628623 | Q19: 11.62339931 | R19: 9.250124264 | S19: 4.044984787 | T19: 8.194876093 | U19: 15.18085055 | BB19: Limited | BC19: N/A | BD19: N/A | BE19: N/A | BF19: N/A | BG19: N/A | BH19: N/A | BI19: N/A | BJ19: N/A | BK19: N/A | BL19: N/A | BM19: N/A | BN19: N/A | BO19: N/A | BP19: N/A | BQ19: N/A | BR19: N/A | BS19: N/A | BT19: N/A | BU19: N/A
B20: Unimproved | C20: 20.63433481 | D20: 20.25380794 | E20: 17.61032643 | F20: 18.41210092 | G20: 16.3694984 | H20: 21.16249534 | I20: 10.40259233 | J20: 14.21163815 | K20: 12.71680392 | L20: 14.57795164 | M20: 20.7179737 | N20: 21.45618787 | O20: 19.00673704 | P20: 18.11826121 | Q20: 22.27697398 | R20: 32.76163955 | S20: 19.52537374 | T20: 11.73352902 | U20: 5.687619681 | BB20: Unimproved | BC20: N/A | BD20: N/A | BE20: N/A | BF20: N/A | BG20: N/A | BH20: N/A | BI20: N/A | BJ20: N/A | BK20: N/A | BL20: N/A | BM20: N/A | BN20: N/A | BO20: N/A | BP20: N/A | BQ20: N/A | BR20: N/A | BS20: N/A | BT20: N/A | BU20: N/A
B21: Surface water | C21: 43.06913568 | D21: 38.55566882 | E21: 29.69680201 | F21: 16.81702013 | G21: 6.642729616 | H21: 18.66509824 | I21: 12.68727468 | J21: 5.750078727 | K21: 5.695461371 | L21: 6.209106217 | M21: 43.23023519 | N21: 44.89108833 | O21: 35.36438041 | P21: 29.81338878 | Q21: 16.65601403 | R21: 8.684236703 | S21: 50.70603153 | T21: 26.45686982 | U21: 2.747296411 | BB21: Surface water | BC21: N/A | BD21: N/A | BE21: N/A | BF21: N/A | BG21: N/A | BH21: N/A | BI21: N/A | BJ21: N/A | BK21: N/A | BL21: N/A | BM21: N/A | BN21: N/A | BO21: N/A | BP21: N/A | BQ21: N/A | BR21: N/A | BS21: N/A | BT21: N/A | BU21: N/A
A22: Improved water point at more than 30 minutes | B22: Yes | C22: 9.340824453 | D22: 14.57295362 | E22: 17.42295175 | F22: 19.10303153 | G22: 13.21187922 | H22: 19.09064717 | I22: 20.98130918 | J22: 16.50612311 | K22: 12.51800467 | L22: 7.276327253 | M22: 7.560159749 | N22: 13.54572499 | O22: 17.1964457 | P22: 15.07562391 | Q22: 19.03384321 | R22: 15.79756245 | S22: 13.58809451 | T22: 13.25825752 | U22: 16.57930065 | BA22: Improved water point at more than 30 minutes | BB22: Yes | BC22: N/A | BD22: N/A | BE22: N/A | BF22: N/A | BG22: N/A | BH22: N/A | BI22: N/A | BJ22: N/A | BK22: N/A | BL22: N/A | BM22: N/A | BN22: N/A | BO22: N/A | BP22: N/A | BQ22: N/A | BR22: N/A | BS22: N/A | BT22: N/A | BU22: N/A
B23: No | C23: 90.65917555 | D23: 85.42704638 | E23: 82.57704825 | F23: 80.89696847 | G23: 86.78812078 | H23: 80.90935283 | I23: 79.01869082 | J23: 83.49387689 | K23: 87.48199533 | L23: 92.72367275 | M23: 92.43984025 | N23: 86.45427501 | O23: 82.8035543 | P23: 84.92437609 | Q23: 80.96615679 | R23: 84.20243755 | S23: 86.41190549 | T23: 86.74174248 | U23: 83.42069935 | BB23: No | BC23: N/A | BD23: N/A | BE23: N/A | BF23: N/A | BG23: N/A | BH23: N/A | BI23: N/A | BJ23: N/A | BK23: N/A | BL23: N/A | BM23: N/A | BN23: N/A | BO23: N/A | BP23: N/A | BQ23: N/A | BR23: N/A | BS23: N/A | BT23: N/A | BU23: N/A
A24: Manually calculated ratios | B24: Improved wells
B25: Improved springs
B26: Other
C27: NATIONAL wealth index quintile | H27: URBAN wealth index quintile | M27: RURAL wealth index quintile | R27: SUB-REGIONS: | BA27: Raw numbers of respondents: | BB27: Use of drinking water sources | BC27: NATIONAL wealth index quintile | BH27: URBAN wealth index quintile | BM27: RURAL wealth index quintile | BR27: SUB-REGIONS:
A28: Percentage based on weighted population | C28: Poorest | D28: Poor | E28: Middle | F28: Rich | G28: Richest | H28: Poorest | I28: Poor | J28: Middle | K28: Rich | L28: Richest | M28: Poorest | N28: Poor | O28: Middle | P28: Rich | Q28: Richest | R28: East | S28: North | T28: South | U28: West | BA28: Water data, raw numbers (weighted) | BC28: Poorest | BD28: Poor | BE28: Middle | BF28: Rich | BG28: Richest | BH28: Poorest | BI28: Poor | BJ28: Middle | BK28: Rich | BL28: Richest | BM28: Poorest | BN28: Poor | BO28: Middle | BP28: Rich | BQ28: Richest | BR28: East | BS28: North | BT28: South | BU28: West
A29: Piped water | B29: Yes | C29: 6.756173141 | D29: 10.45376331 | E29: 18.2655868 | F29: 29.41318178 | G29: 57.9289196 | H29: 31.80493841 | I29: 58.34266936 | J29: 60.38511052 | K29: 67.81338355 | L29: 71.16380724 | M29: 6.045246351 | N29: 8.069771832 | O29: 9.393912017 | P29: 13.5673924 | Q29: 17.54375711 | R29: 19.78397024 | S29: 3.752147223 | T29: 11.68649235 | U29: 81.65839834 | BA29: Piped water | BB29: Yes | BC29: N/A | BD29: N/A | BE29: N/A | BF29: N/A | BG29: N/A | BH29: N/A | BI29: N/A | BJ29: N/A | BK29: N/A | BL29: N/A | BM29: N/A | BN29: N/A | BO29: N/A | BP29: N/A | BQ29: N/A | BR29: N/A | BS29: N/A | BT29: N/A | BU29: N/A
B30: No | C30: 93.24382686 | D30: 89.54623669 | E30: 81.7344132 | F30: 70.58681822 | G30: 42.0710804 | H30: 68.19506159 | I30: 41.65733064 | J30: 39.61488948 | K30: 32.18661645 | L30: 28.83619276 | M30: 93.95475365 | N30: 91.93022817 | O30: 90.60608798 | P30: 86.4326076 | Q30: 82.45624289 | R30: 80.21602976 | S30: 96.24785278 | T30: 88.31350765 | U30: 18.34160166 | BB30: No | BC30: N/A | BD30: N/A | BE30: N/A | BF30: N/A | BG30: N/A | BH30: N/A | BI30: N/A | BJ30: N/A | BK30: N/A | BL30: N/A | BM30: N/A | BN30: N/A | BO30: N/A | BP30: N/A | BQ30: N/A | BR30: N/A | BS30: N/A | BT30: N/A | BU30: N/A
A31: Piped water on premises | B31: Yes | C31: 0.3655084709 | D31: 1.613345564 | E31: 3.06571106 | F31: 10.06895771 | G31: 32.28554061 | H31: 10.38444804 | I31: 24.51597208 | J31: 28.2134559 | K31: 37.44502485 | L31: 48.42965935 | M31: 0.2257446859 | N31: 0.4768517253 | O31: 0.588193993 | P31: 1.300624683 | Q31: 3.368513091 | R31: 4.156736213 | S31: 0.7784080506 | T31: 0.3040548394 | U31: 40.46977972 | BA31: Piped water on premises | BB31: Yes | BC31: N/A | BD31: N/A | BE31: N/A | BF31: N/A | BG31: N/A | BH31: N/A | BI31: N/A | BJ31: N/A | BK31: N/A | BL31: N/A | BM31: N/A | BN31: N/A | BO31: N/A | BP31: N/A | BQ31: N/A | BR31: N/A | BS31: N/A | BT31: N/A | BU31: N/A
B32: No | C32: 99.63449153 | D32: 98.38665444 | E32: 96.93428894 | F32: 89.93104229 | G32: 67.71445939 | H32: 89.61555196 | I32: 75.48402792 | J32: 71.7865441 | K32: 62.55497515 | L32: 51.57034065 | M32: 99.77425531 | N32: 99.52314827 | O32: 99.41180601 | P32: 98.69937532 | Q32: 96.63148691 | R32: 95.84326379 | S32: 99.22159195 | T32: 99.69594516 | U32: 59.53022028 | BB32: No | BC32: N/A | BD32: N/A | BE32: N/A | BF32: N/A | BG32: N/A | BH32: N/A | BI32: N/A | BJ32: N/A | BK32: N/A | BL32: N/A | BM32: N/A | BN32: N/A | BO32: N/A | BP32: N/A | BQ32: N/A | BR32: N/A | BS32: N/A | BT32: N/A | BU32: N/A
A33: Piped water into dwelling | B33: Yes | C33: N/A | D33: N/A | E33: N/A | F33: N/A | G33: N/A | H33: N/A | I33: N/A | J33: N/A | K33: N/A | L33: N/A | M33: N/A | N33: N/A | O33: N/A | P33: N/A | Q33: N/A | R33: N/A | S33: N/A | T33: N/A | U33: N/A | BA33: Piped water into dwelling | BB33: Yes | BC33: N/A | BD33: N/A | BE33: N/A | BF33: N/A | BG33: N/A | BH33: N/A | BI33: N/A | BJ33: N/A | BK33: N/A | BL33: N/A | BM33: N/A | BN33: N/A | BO33: N/A | BP33: N/A | BQ33: N/A | BR33: N/A | BS33: N/A | BT33: N/A | BU33: N/A
B34: No | C34: N/A | D34: N/A | E34: N/A | F34: N/A | G34: N/A | H34: N/A | I34: N/A | J34: N/A | K34: N/A | L34: N/A | M34: N/A | N34: N/A | O34: N/A | P34: N/A | Q34: N/A | R34: N/A | S34: N/A | T34: N/A | U34: N/A | BB34: No | BC34: N/A | BD34: N/A | BE34: N/A | BF34: N/A | BG34: N/A | BH34: N/A | BI34: N/A | BJ34: N/A | BK34: N/A | BL34: N/A | BM34: N/A | BN34: N/A | BO34: N/A | BP34: N/A | BQ34: N/A | BR34: N/A | BS34: N/A | BT34: N/A | BU34: N/A
A35: Water source on premises | B35: Yes | C35: 2.63513513 | D35: 5.595685668 | E35: 6.72483188 | F35: 16.07043815 | G35: 38.05770486 | H35: 15.01079814 | I35: 30.70392975 | J35: 34.91181195 | K35: 42.25097685 | L35: 54.12729555 | M35: 2.985596836 | N35: 2.989453463 | O35: 3.23598112 | P35: 6.408373512 | Q35: 9.398948044 | R35: 13.47816385 | S35: 4.503240229 | T35: 2.438969877 | U35: 41.80703159 | BA35: Water source on premises | BB35: Yes | BC35: N/A | BD35: N/A | BE35: N/A | BF35: N/A | BG35: N/A | BH35: N/A | BI35: N/A | BJ35: N/A | BK35: N/A | BL35: N/A | BM35: N/A | BN35: N/A | BO35: N/A | BP35: N/A | BQ35: N/A | BR35: N/A | BS35: N/A | BT35: N/A | BU35: N/A
B36: No | C36: 97.36486487 | D36: 94.40431433 | E36: 93.27516812 | F36: 83.92956185 | G36: 61.94229514 | H36: 84.98920186 | I36: 69.29607025 | J36: 65.08818805 | K36: 57.74902315 | L36: 45.87270445 | M36: 97.01440316 | N36: 97.01054654 | O36: 96.76401888 | P36: 93.59162649 | Q36: 90.60105196 | R36: 86.52183615 | S36: 95.49675977 | T36: 97.56103012 | U36: 58.19296841 | BB36: No | BC36: N/A | BD36: N/A | BE36: N/A | BF36: N/A | BG36: N/A | BH36: N/A | BI36: N/A | BJ36: N/A | BK36: N/A | BL36: N/A | BM36: N/A | BN36: N/A | BO36: N/A | BP36: N/A | BQ36: N/A | BR36: N/A | BS36: N/A | BT36: N/A | BU36: N/A
A37: Improved Water source on premises | B37: Yes | C37: 5.052351434 | D37: 11.17230499 | E37: 10.49766705 | F37: 20.74920796 | G37: 46.09367851 | H37: 24.52502797 | I37: 38.10499196 | J37: 40.10399421 | K37: 49.21262203 | L37: 63.71707651 | M37: 5.107691863 | N37: 5.713533049 | O37: 6.130976313 | P37: 7.909542134 | Q37: 11.47065994 | R37: 17.32760124 | S37: 9.140984931 | T37: 2.760733686 | U37: 45.59727026 | BA37: Improved water source on premises | BB37: Yes | BC37: N/A | BD37: N/A | BE37: N/A | BF37: N/A | BG37: N/A | BH37: N/A | BI37: N/A | BJ37: N/A | BK37: N/A | BL37: N/A | BM37: N/A | BN37: N/A | BO37: N/A | BP37: N/A | BQ37: N/A | BR37: N/A | BS37: N/A | BT37: N/A | BU37: N/A
B38: No | C38: 94.94764857 | D38: 88.82769501 | E38: 89.50233295 | F38: 79.25079204 | G38: 53.90632149 | H38: 75.47497203 | I38: 61.89500804 | J38: 59.89600579 | K38: 50.78737797 | L38: 36.28292349 | M38: 94.89230814 | N38: 94.28646695 | O38: 93.86902369 | P38: 92.09045787 | Q38: 88.52934006 | R38: 82.67239876 | S38: 90.85901507 | T38: 97.23926631 | U38: 54.40272974 | BB38: No | BC38: N/A | BD38: N/A | BE38: N/A | BF38: N/A | BG38: N/A | BH38: N/A | BI38: N/A | BJ38: N/A | BK38: N/A | BL38: N/A | BM38: N/A | BN38: N/A | BO38: N/A | BP38: N/A | BQ38: N/A | BR38: N/A | BS38: N/A | BT38: N/A | BU38: N/A
A39: Piped water on premises available when needed | B39: Yes | C39: N/A | D39: N/A | E39: N/A | F39: N/A | G39: N/A | H39: N/A | I39: N/A | J39: N/A | K39: N/A | L39: N/A | M39: N/A | N39: N/A | O39: N/A | P39: N/A | Q39: N/A | R39: N/A | S39: N/A | T39: N/A | U39: N/A | BA39: Piped water on premises available when needed | BB39: Yes | BC39: N/A | BD39: N/A | BE39: N/A | BF39: N/A | BG39: N/A | BH39: N/A | BI39: N/A | BJ39: N/A | BK39: N/A | BL39: N/A | BM39: N/A | BN39: N/A | BO39: N/A | BP39: N/A | BQ39: N/A | BR39: N/A | BS39: N/A | BT39: N/A | BU39: N/A
B40: No | C40: N/A | D40: N/A | E40: N/A | F40: N/A | G40: N/A | H40: N/A | I40: N/A | J40: N/A | K40: N/A | L40: N/A | M40: N/A | N40: N/A | O40: N/A | P40: N/A | Q40: N/A | R40: N/A | S40: N/A | T40: N/A | U40: N/A | BB40: No | BC40: N/A | BD40: N/A | BE40: N/A | BF40: N/A | BG40: N/A | BH40: N/A | BI40: N/A | BJ40: N/A | BK40: N/A | BL40: N/A | BM40: N/A | BN40: N/A | BO40: N/A | BP40: N/A | BQ40: N/A | BR40: N/A | BS40: N/A | BT40: N/A | BU40: N/A
A41: Water point at more than 30 minutes | B41: Yes | C41: 19.05038205 | D41: 23.88159884 | E41: 23.23035851 | F41: 20.44066062 | G41: 16.46890592 | H41: 27.20460584 | I41: 23.53662193 | J41: 18.5481441 | K41: 15.86250902 | L41: 9.286256263 | M41: 18.63911383 | N41: 25.14934707 | O41: 22.3780698 | P41: 19.53112841 | Q41: 20.79395163 | R41: 14.00220661 | S41: 26.94338316 | T41: 18.58660059 | U41: 17.68152052 | BA41: Water point at more than 30 minutes | BB41: Yes | BC41: N/A | BD41: N/A | BE41: N/A | BF41: N/A | BG41: N/A | BH41: N/A | BI41: N/A | BJ41: N/A | BK41: N/A | BL41: N/A | BM41: N/A | BN41: N/A | BO41: N/A | BP41: N/A | BQ41: N/A | BR41: N/A | BS41: N/A | BT41: N/A | BU41: N/A
B42: No | C42: 80.94961795 | D42: 76.11840116 | E42: 76.76964149 | F42: 79.55933938 | G42: 83.53109408 | H42: 72.79539416 | I42: 76.46337807 | J42: 81.4518559 | K42: 84.13749098 | L42: 90.71374374 | M42: 81.36088617 | N42: 74.85065293 | O42: 77.6219302 | P42: 80.46887159 | Q42: 79.20604837 | R42: 85.99779339 | S42: 73.05661684 | T42: 81.41339941 | U42: 82.31847948 | BB42: No | BC42: N/A | BD42: N/A | BE42: N/A | BF42: N/A | BG42: N/A | BH42: N/A | BI42: N/A | BJ42: N/A | BK42: N/A | BL42: N/A | BM42: N/A | BN42: N/A | BO42: N/A | BP42: N/A | BQ42: N/A | BR42: N/A | BS42: N/A | BT42: N/A | BU42: N/A
A43: Water source available when needed | B43: Yes | C43: N/A | D43: N/A | E43: N/A | F43: N/A | G43: N/A | H43: N/A | I43: N/A | J43: N/A | K43: N/A | L43: N/A | M43: N/A | N43: N/A | O43: N/A | P43: N/A | Q43: N/A | R43: N/A | S43: N/A | T43: N/A | U43: N/A | BA43: Water source available when needed | BB43: Yes | BC43: N/A | BD43: N/A | BE43: N/A | BF43: N/A | BG43: N/A | BH43: N/A | BI43: N/A | BJ43: N/A | BK43: N/A | BL43: N/A | BM43: N/A | BN43: N/A | BO43: N/A | BP43: N/A | BQ43: N/A | BR43: N/A | BS43: N/A | BT43: N/A | BU43: N/A
B44: No | C44: N/A | D44: N/A | E44: N/A | F44: N/A | G44: N/A | H44: N/A | I44: N/A | J44: N/A | K44: N/A | L44: N/A | M44: N/A | N44: N/A | O44: N/A | P44: N/A | Q44: N/A | R44: N/A | S44: N/A | T44: N/A | U44: N/A | BB44: No | BC44: N/A | BD44: N/A | BE44: N/A | BF44: N/A | BG44: N/A | BH44: N/A | BI44: N/A | BJ44: N/A | BK44: N/A | BL44: N/A | BM44: N/A | BN44: N/A | BO44: N/A | BP44: N/A | BQ44: N/A | BR44: N/A | BS44: N/A | BT44: N/A | BU44: N/A
A45: Improved water source available when needed | B45: Yes | C45: N/A | D45: N/A | E45: N/A | F45: N/A | G45: N/A | H45: N/A | I45: N/A | J45: N/A | K45: N/A | L45: N/A | M45: N/A | N45: N/A | O45: N/A | P45: N/A | Q45: N/A | R45: N/A | S45: N/A | T45: N/A | U45: N/A | BA45: Improved water source available when needed | BB45: Yes | BC45: N/A | BD45: N/A | BE45: N/A | BF45: N/A | BG45: N/A | BH45: N/A | BI45: N/A | BJ45: N/A | BK45: N/A | BL45: N/A | BM45: N/A | BN45: N/A | BO45: N/A | BP45: N/A | BQ45: N/A | BR45: N/A | BS45: N/A | BT45: N/A | BU45: N/A
B46: No | C46: N/A | D46: N/A | E46: N/A | F46: N/A | G46: N/A | H46: N/A | I46: N/A | J46: N/A | K46: N/A | L46: N/A | M46: N/A | N46: N/A | O46: N/A | P46: N/A | Q46: N/A | R46: N/A | S46: N/A | T46: N/A | U46: N/A | BB46: No | BC46: N/A | BD46: N/A | BE46: N/A | BF46: N/A | BG46: N/A | BH46: N/A | BI46: N/A | BJ46: N/A | BK46: N/A | BL46: N/A | BM46: N/A | BN46: N/A | BO46: N/A | BP46: N/A | BQ46: N/A | BR46: N/A | BS46: N/A | BT46: N/A | BU46: N/A
A47: Microbiological quality at point of collection | B47: Not contaminated (No E. coli in 100 mL) | C47: N/A | D47: N/A | E47: N/A | F47: N/A | G47: N/A | H47: N/A | I47: N/A | J47: N/A | K47: N/A | L47: N/A | M47: N/A | N47: N/A | O47: N/A | P47: N/A | Q47: N/A | R47: N/A | S47: N/A | T47: N/A | U47: N/A | BA47: Microbiological quality at point of collection | BB47: Not contaminated (No E. coli in 100 mL) | BC47: N/A | BD47: N/A | BE47: N/A | BF47: N/A | BG47: N/A | BH47: N/A | BI47: N/A | BJ47: N/A | BK47: N/A | BL47: N/A | BM47: N/A | BN47: N/A | BO47: N/A | BP47: N/A | BQ47: N/A | BR47: N/A | BS47: N/A | BT47: N/A | BU47: N/A
B48: Contaminated (E. coli detected in 100 mL) | C48: N/A | D48: N/A | E48: N/A | F48: N/A | G48: N/A | H48: N/A | I48: N/A | J48: N/A | K48: N/A | L48: N/A | M48: N/A | N48: N/A | O48: N/A | P48: N/A | Q48: N/A | R48: N/A | S48: N/A | T48: N/A | U48: N/A | BB48: Contaminated (E. coli detected in 100 mL) | BC48: N/A | BD48: N/A | BE48: N/A | BF48: N/A | BG48: N/A | BH48: N/A | BI48: N/A | BJ48: N/A | BK48: N/A | BL48: N/A | BM48: N/A | BN48: N/A | BO48: N/A | BP48: N/A | BQ48: N/A | BR48: N/A | BS48: N/A | BT48: N/A | BU48: N/A
B49: Highly contaminated (>100 CFU/100 mL) | C49: N/A | D49: N/A | E49: N/A | F49: N/A | G49: N/A | H49: N/A | I49: N/A | J49: N/A | K49: N/A | L49: N/A | M49: N/A | N49: N/A | O49: N/A | P49: N/A | Q49: N/A | R49: N/A | S49: N/A | T49: N/A | U49: N/A | BB49: Highly contaminated (>100 CFU/100 mL) | BC49: N/A | BD49: N/A | BE49: N/A | BF49: N/A | BG49: N/A | BH49: N/A | BI49: N/A | BJ49: N/A | BK49: N/A | BL49: N/A | BM49: N/A | BN49: N/A | BO49: N/A | BP49: N/A | BQ49: N/A | BR49: N/A | BS49: N/A | BT49: N/A | BU49: N/A
A50: Microbiological quality of improved water sources at point of collection | B50: Not contaminated (No E. coli in 100 mL) | C50: N/A | D50: N/A | E50: N/A | F50: N/A | G50: N/A | H50: N/A | I50: N/A | J50: N/A | K50: N/A | L50: N/A | M50: N/A | N50: N/A | O50: N/A | P50: N/A | Q50: N/A | R50: N/A | S50: N/A | T50: N/A | U50: N/A | BA50: Microbiological quality of improved water sources at point of collection | BB50: Not contaminated (No E. coli in 100 mL) | BC50: N/A | BD50: N/A | BE50: N/A | BF50: N/A | BG50: N/A | BH50: N/A | BI50: N/A | BJ50: N/A | BK50: N/A | BL50: N/A | BM50: N/A | BN50: N/A | BO50: N/A | BP50: N/A | BQ50: N/A | BR50: N/A | BS50: N/A | BT50: N/A | BU50: N/A
B51: Contaminated (E. coli detected in 100 mL) | C51: N/A | D51: N/A | E51: N/A | F51: N/A | G51: N/A | H51: N/A | I51: N/A | J51: N/A | K51: N/A | L51: N/A | M51: N/A | N51: N/A | O51: N/A | P51: N/A | Q51: N/A | R51: N/A | S51: N/A | T51: N/A | U51: N/A | BB51: Contaminated (E. coli detected in 100 mL) | BC51: N/A | BD51: N/A | BE51: N/A | BF51: N/A | BG51: N/A | BH51: N/A | BI51: N/A | BJ51: N/A | BK51: N/A | BL51: N/A | BM51: N/A | BN51: N/A | BO51: N/A | BP51: N/A | BQ51: N/A | BR51: N/A | BS51: N/A | BT51: N/A | BU51: N/A
B52: Highly contaminated (>100 CFU/100 mL) | C52: N/A | D52: N/A | E52: N/A | F52: N/A | G52: N/A | H52: N/A | I52: N/A | J52: N/A | K52: N/A | L52: N/A | M52: N/A | N52: N/A | O52: N/A | P52: N/A | Q52: N/A | R52: N/A | S52: N/A | T52: N/A | U52: N/A | BB52: Highly contaminated (>100 CFU/100 mL) | BC52: N/A | BD52: N/A | BE52: N/A | BF52: N/A | BG52: N/A | BH52: N/A | BI52: N/A | BJ52: N/A | BK52: N/A | BL52: N/A | BM52: N/A | BN52: N/A | BO52: N/A | BP52: N/A | BQ52: N/A | BR52: N/A | BS52: N/A | BT52: N/A | BU52: N/A
A53: Microbiological quality of piped on premises at point of collection | B53: Not contaminated (No E. coli in 100 mL) | C53: N/A | D53: N/A | E53: N/A | F53: N/A | G53: N/A | H53: N/A | I53: N/A | J53: N/A | K53: N/A | L53: N/A | M53: N/A | N53: N/A | O53: N/A | P53: N/A | Q53: N/A | R53: N/A | S53: N/A | T53: N/A | U53: N/A | BA53: Microbiological quality of piped on premises at point of collection | BB53: Not contaminated (No E. coli in 100 mL) | BC53: N/A | BD53: N/A | BE53: N/A | BF53: N/A | BG53: N/A | BH53: N/A | BI53: N/A | BJ53: N/A | BK53: N/A | BL53: N/A | BM53: N/A | BN53: N/A | BO53: N/A | BP53: N/A | BQ53: N/A | BR53: N/A | BS53: N/A | BT53: N/A | BU53: N/A
B54: Contaminated (E. coli detected in 100 mL) | C54: N/A | D54: N/A | E54: N/A | F54: N/A | G54: N/A | H54: N/A | I54: N/A | J54: N/A | K54: N/A | L54: N/A | M54: N/A | N54: N/A | O54: N/A | P54: N/A | Q54: N/A | R54: N/A | S54: N/A | T54: N/A | U54: N/A | BB54: Contaminated (E. coli detected in 100 mL) | BC54: N/A | BD54: N/A | BE54: N/A | BF54: N/A | BG54: N/A | BH54: N/A | BI54: N/A | BJ54: N/A | BK54: N/A | BL54: N/A | BM54: N/A | BN54: N/A | BO54: N/A | BP54: N/A | BQ54: N/A | BR54: N/A | BS54: N/A | BT54: N/A | BU54: N/A
B55: Highly contaminated (>100 CFU/100 mL) | C55: N/A | D55: N/A | E55: N/A | F55: N/A | G55: N/A | H55: N/A | I55: N/A | J55: N/A | K55: N/A | L55: N/A | M55: N/A | N55: N/A | O55: N/A | P55: N/A | Q55: N/A | R55: N/A | S55: N/A | T55: N/A | U55: N/A | BB55: Highly contaminated (>100 CFU/100 mL) | BC55: N/A | BD55: N/A | BE55: N/A | BF55: N/A | BG55: N/A | BH55: N/A | BI55: N/A | BJ55: N/A | BK55: N/A | BL55: N/A | BM55: N/A | BN55: N/A | BO55: N/A | BP55: N/A | BQ55: N/A | BR55: N/A | BS55: N/A | BT55: N/A | BU55: N/A
C56: NATIONAL wealth index quintile | H56: URBAN wealth index quintile | M56: RURAL wealth index quintile | R56: SUB-REGIONS: | BA56: Raw numbers of respondents: | BB56: Use of drinking water sources | BC56: NATIONAL wealth index quintile | BH56: URBAN wealth index quintile | BM56: RURAL wealth index quintile | BR56: SUB-REGIONS:
A57: Percentage based on weighted population | C57: Poorest | D57: Poor | E57: Middle | F57: Rich | G57: Richest | H57: Poorest | I57: Poor | J57: Middle | K57: Rich | L57: Richest | M57: Poorest | N57: Poor | O57: Middle | P57: Rich | Q57: Richest | R57: East | S57: North | T57: South | U57: West | BA57: Water data, raw numbers (weighted) | BC57: Poorest | BD57: Poor | BE57: Middle | BF57: Rich | BG57: Richest | BH57: Poorest | BI57: Poor | BJ57: Middle | BK57: Rich | BL57: Richest | BM57: Poorest | BN57: Poor | BO57: Middle | BP57: Rich | BQ57: Richest | BR57: East | BS57: North | BT57: South | BU57: West
A58: Main source of water | B58: Piped into dwelling | C58: 0.3655084709 | D58: 0.5873133439 | E58: 0.7343737516 | F58: 1.231410476 | G58: 7.848226146 | H58: 3.354590353 | I58: 5.015854077 | J58: 4.218323711 | K58: 7.385022921 | L58: 15.61018719 | M58: 0.2257446859 | N58: 0.3988221902 | O58: 0 | P58: 0 | Q58: 0.02636822383 | R58: 1.1082885 | S58: 0.3404154592 | T58: 0.0935553352 | U58: 8.657116395
B59: Piped into yard or plot | C59: 0 | D59: 1.02603222 | E59: 2.331337308 | F59: 8.837547238 | G59: 24.43731447 | H59: 7.029857687 | I59: 19.500118 | J59: 23.99513219 | K59: 30.06000193 | L59: 32.81947216 | M59: 0 | N59: 0.07802953515 | O59: 0.588193993 | P59: 1.300624683 | Q59: 3.342144867 | R59: 3.048447713 | S59: 0.4379925913 | T59: 0.2104995042 | U59: 31.81266333
B60: Public tap | C60: 6.39066467 | D60: 8.840417751 | E60: 15.19987574 | F60: 19.34422407 | G60: 25.64337898 | H60: 21.42049037 | I60: 33.82669728 | J60: 32.17165462 | K60: 30.3683587 | L60: 22.73414789 | M60: 5.819501665 | N60: 7.592920106 | O60: 8.805718024 | P60: 12.26676772 | Q60: 14.17524402 | R60: 15.62723403 | S60: 2.973739173 | T60: 11.38243751 | U60: 41.18861862
B61: Tubewell/borehole with pump | C61: 18.79936827 | D61: 14.96209351 | E61: 13.11386227 | F61: 12.79194053 | G61: 5.140681875 | H61: 4.933291546 | I61: 2.742307254 | J61: 2.183680417 | K61: 0.9901604825 | L61: 2.290075913 | M61: 20.03272342 | N61: 12.88645309 | O61: 18.66662506 | P61: 16.17029873 | Q61: 18.30780811 | R61: 13.18304887 | S61: 16.10506977 | T61: 20.11875118 | U61: 0.7048125517
B62: Protected dug well | C62: 8.616711996 | D62: 12.52945412 | E62: 17.50231549 | F62: 18.54639925 | G62: 12.82427593 | H62: 18.93763509 | I62: 10.85378841 | J62: 14.81251514 | K62: 12.290526 | L62: 5.759058993 | M62: 8.428959183 | N62: 9.701213422 | O62: 13.43596054 | P62: 19.36894551 | Q62: 21.95576804 | R62: 22.48558037 | S62: 8.884587077 | T62: 22.22782446 | U62: 7.080165116
B63: Protected spring | C63: 2.073186903 | D63: 2.775626842 | E63: 3.519994171 | F63: 3.037775679 | G63: 0.5958626391 | H63: 3.728558857 | I63: 2.137661952 | J63: 0.9223771459 | K63: 0.4936646747 | L63: 0 | M63: 1.472471474 | N63: 2.995285468 | O63: 3.544384314 | P63: 2.80281526 | Q63: 3.086589457 | R63: 2.685100193 | S63: 0.9220896659 | T63: 7.438040983 | U63: 0.8370931605
B64: Rainwater collection | C64: 0.09524844366 | D64: 0 | E64: 0.07728722702 | F64: 0 | G64: 0.277219086 | H64: 0 | I64: 0 | J64: 0.9250220308 | K64: 0 | L64: 0 | M64: 0.1359920001 | N64: 0 | O64: 0.1084280422 | P64: 0 | Q64: 0 | R64: 0.2299943564 | S64: 0 | T64: 0.2104995042 | U64: 0
B65: Bottled water | C65: 0.05656294891 | D65: 0.2459969362 | E65: 0.2956221981 | F65: 0 | G65: 0 | H65: 0 | I65: 0 | J65: 0 | K65: 0 | L65: 0 | M65: 0.08075836476 | N65: 0 | O65: 0.5385261092 | P65: 0.2224797193 | Q65: 0 | R65: 0.2516045339 | S65: 0.08068284577 | T65: 0.1637218366 | U65: 0
B66: Unprotected dug well | C66: 13.4520951 | D66: 13.7843375 | E66: 11.65244513 | F66: 12.84134526 | G66: 11.83666862 | H66: 14.76904078 | I66: 4.038324155 | J66: 7.584614647 | K66: 7.626727113 | L66: 12.28907769 | M66: 13.37310944 | N66: 13.63917971 | O66: 12.39797839 | P66: 13.82989153 | Q66: 17.41124163 | R66: 24.36143585 | S66: 14.41767947 | T66: 5.777433783 | U66: 1.038671129
B67: Unprotected spring | C67: 5.060747018 | D67: 4.605951979 | E67: 3.691759747 | F67: 3.270008574 | G67: 1.743762435 | H67: 3.909365154 | I67: 2.874879006 | J67: 0.7473026505 | K67: 2.556976511 | L67: 0.8806158414 | M67: 5.124948534 | N67: 5.516879336 | O67: 4.468363264 | P67: 2.670037931 | Q67: 3.663997902 | R67: 5.080507971 | S67: 4.118693902 | T67: 3.204270231 | U67: 1.504111252
B68: Pond, river or stream | C68: 43.00103865 | D68: 38.55566882 | E68: 29.64545462 | F68: 16.81702013 | G68: 6.636434249 | H68: 18.66509824 | I68: 12.68727468 | J68: 5.750078727 | K68: 5.695461371 | L68: 6.209106217 | M68: 43.13264524 | N68: 44.89108833 | O68: 35.3260355 | P68: 29.77384115 | Q68: 16.63362817 | R68: 8.670580494 | S68: 50.66512046 | T68: 26.43211801 | U68: 2.747296411
B69: Tanker truck vendor | C69: 0 | D69: 0.223588515 | E69: 0 | F69: 0.9815817179 | G69: 0.2426217215 | H69: 0.7679825291 | I69: 2.833706019 | J69: 0.8095778713 | K69: 0 | L69: 0 | M69: 0 | N69: 0 | O69: 0 | P69: 0 | Q69: 0.2254156312 | R69: 0 | S69: 0.08068284577 | T69: 0 | U69: 1.284614741
B70: Other | C70: 0.6577463417 | D70: 0.05676852375 | E70: 0.715284963 | F70: 1.021114753 | G70: 1.932604672 | H70: 1.396114152 | I70: 1.69685544 | J70: 3.955259862 | K70: 1.999816027 | L70: 1.408258107 | M70: 0.2930375666 | N70: 0.7159017222 | O70: 0 | P70: 0.5571324427 | Q70: 0.2976321458 | R70: 2.076978848 | S70: 0 | T70: 0.3084089473 | U70: 1.619312193
B71: Missing | C71: 0.8672532598 | D71: 1.208329054 | E71: 1.249882079 | F71: 0.5909191977 | G71: 0.29679198 | H71: 1.08797525 | I71: 1.534924094 | J71: 0.9903326791 | K71: 0 | L71: 0 | M71: 1.075039863 | N71: 0.7457136344 | O71: 1.740288613 | P71: 0.3667270472 | Q71: 0.5210980075 | R71: 1.03394544 | S71: 0.6620414802 | T71: 0.7718315154 | U71: 1.022849773
B72: Don't know | C72: 0.5638679368 | D72: 0.5984208833 | E72: 0.2705052946 | F72: 0.6887131273 | G72: 0.5441571868 | H72: 0 | I72: 0.2576096381 | J72: 0.9341283131 | K72: 0.5332842739 | L72: 0 | M72: 0.8050685722 | N72: 0.8385134591 | O72: 0.3794981477 | P72: 0.6704382816 | Q72: 0.3530638089 | R72: 0.1572528337 | S72: 0.3112052623 | T72: 1.6606072 | U72: 0.5026753336
A108: =A1026 -> Sierra Leone
A109: =A1034 -> 2000
A110: Use of sanitation facilities
A111: by wealth quintile and sub-national region
A112: Notes:
A113: WHO/UNICEF JMP customised wealth index excludes water,
A114: sanitation and hygiene assets.
A115: Survey used for analysis: | B115: =A1025 -> MICS00
A116: =B1030 -> Ratio of Improved latrines based on: | B116: MICS06
A117: =B1029 -> Ratio of Shared improved based on: | B117: MICS06
A120: Use of sanitation facilities | C120: NATIONAL wealth index quintile | H120: URBAN wealth index quintile | M120: RURAL wealth index quintile | R120: SUB-REGIONS: | BA120: Raw numbers of respondents: | BB120: Use of sanitation facilities | BC120: NATIONAL wealth index quintile | BH120: URBAN wealth index quintile | BM120: RURAL wealth index quintile | BR120: SUB-REGIONS:
A121: Weighted percentage (used in graphs) | C121: Poorest | D121: Poor | E121: Middle | F121: Rich | G121: Richest | H121: Poorest | I121: Poor | J121: Middle | K121: Rich | L121: Richest | M121: Poorest | N121: Poor | O121: Middle | P121: Rich | Q121: Richest | R121: East | S121: North | T121: South | U121: West | BA121: Sanitation data, raw numbers (weighted) | BC121: Poorest | BD121: Poor | BE121: Middle | BF121: Rich | BG121: Richest | BH121: Poorest | BI121: Poor | BJ121: Middle | BK121: Rich | BL121: Richest | BM121: Poorest | BN121: Poor | BO121: Middle | BP121: Rich | BQ121: Richest | BR121: East | BS121: North | BT121: South | BU121: West
A122: Sanitation | B122: Improved | C122: =C153+C154+(C155+C156)*MICS06!C130/100 -> 7.336177546 | D122: =D153+D154+(D155+D156)*MICS06!D130/100 -> 13.11777232 | E122: =E153+E154+(E155+E156)*MICS06!E130/100 -> 22.27029758 | F122: =F153+F154+(F155+F156)*MICS06!F130/100 -> 41.49722237 | G122: =G153+G154+(G155+G156)*MICS06!G130/100 -> 67.41962487 | H122: =H153+H154+(H155+H156)*MICS06!H130/100 -> 10.0640244 | I122: =I153+I154+(I155+I156)*MICS06!I130/100 -> 27.11825113 | J122: =J153+J154+(J155+J156)*MICS06!J130/100 -> 31.39964649 | K122: =K153+K154+(K155+K156)*MICS06!K130/100 -> 47.19538901 | L122: =L153+L154+(L155+L156)*MICS06!L130/100 -> 62.84252234 | M122: =M153+M154+(M155+M156)*MICS06!M130/100 -> 24.06159236 | N122: =N153+N154+(N155+N156)*MICS06!N130/100 -> 29.54544698 | O122: =O153+O154+(O155+O156)*MICS06!O130/100 -> 37.66570308 | P122: =P153+P154+(P155+P156)*MICS06!P130/100 -> 39.77934305 | Q122: =Q153+Q154+(Q155+Q156)*MICS06!Q130/100 -> 52.2586768 | R122: =R153+R154+(R155+R156)*MICS06!R130/100 -> 22.50763597 | S122: =S153+S154+(S155+S156)*MICS06!S130/100 -> 17.70544597 | T122: =T153+T154+(T155+T156)*MICS06!T130/100 -> 36.72361102 | U122: =U153+U154+(U155+U156)*MICS06!U130/100 -> 71.4869988 | BA122: Sanitation | BB122: Improved | BC122: N/A | BD122: N/A | BE122: N/A | BF122: N/A | BG122: N/A | BH122: N/A | BI122: N/A | BJ122: N/A | BK122: N/A | BL122: N/A | BM122: N/A | BN122: N/A | BO122: N/A | BP122: N/A | BQ122: N/A | BR122: N/A | BS122: N/A | BT122: N/A | BU122: N/A
B123: Not Improved | C123: =100-C122 -> 92.66382245 | D123: =100-D122 -> 86.88222768 | E123: 77.72970242 | F123: 58.50277763 | G123: 32.58037513 | H123: 89.9359756 | I123: 72.88174887 | J123: 68.60035351 | K123: 52.80461099 | L123: 37.15747766 | M123: 75.93840764 | N123: 70.45455302 | O123: 62.33429692 | P123: 60.22065695 | Q123: 47.7413232 | R123: 77.49236403 | S123: 82.29455403 | T123: 63.27638898 | U123: 28.5130012 | BB123: Not Improved | BC123: N/A | BD123: N/A | BE123: N/A | BF123: N/A | BG123: N/A | BH123: N/A | BI123: N/A | BJ123: N/A | BK123: N/A | BL123: N/A | BM123: N/A | BN123: N/A | BO123: N/A | BP123: N/A | BQ123: N/A | BR123: N/A | BS123: N/A | BT123: N/A | BU123: N/A
A124: Sanitation ladder | B124: Basic | C124: =C122*MICS06!C129/100 -> 1.084975154 | D124: =D122*MICS06!D129/100 -> 2.26240602 | E124: =E122*MICS06!E129/100 -> 4.852571731 | F124: =F122*MICS06!F129/100 -> 10.53972979 | G124: =G122*MICS06!G129/100 -> 23.4531594 | H124: =H122*MICS06!H129/100 -> 0.5216762276 | I124: =I122*MICS06!I129/100 -> 5.366620828 | J124: =J122*MICS06!J129/100 -> 7.252315497 | K124: =K122*MICS06!K129/100 -> 7.870069682 | L124: =L122*MICS06!L129/100 -> 20.30595885 | M124: =M122*MICS06!M129/100 -> 6.752937303 | N124: =N122*MICS06!N129/100 -> 6.134890467 | O124: =O122*MICS06!O129/100 -> 8.346325095 | P124: =P122*MICS06!P129/100 -> 12.2488083 | Q124: =Q122*MICS06!Q129/100 -> 24.69806214 | R124: =R122*MICS06!R129/100 -> 4.740765376 | S124: =S122*MICS06!S129/100 -> 6.419820837 | T124: =T122*MICS06!T129/100 -> 7.558896727 | U124: =U122*MICS06!U129/100 -> 21.49517494 | BA124: Sanitation ladder | BB124: Basic | BC124: N/A | BD124: N/A | BE124: N/A | BF124: N/A | BG124: N/A | BH124: N/A | BI124: N/A | BJ124: N/A | BK124: N/A | BL124: N/A | BM124: N/A | BN124: N/A | BO124: N/A | BP124: N/A | BQ124: N/A | BR124: N/A | BS124: N/A | BT124: N/A | BU124: N/A
B125: Limited | C125: =C122*MICS06!C128/100 -> 6.251202391 | D125: =D122*MICS06!D128/100 -> 10.8553663 | E125: =E122*MICS06!E128/100 -> 17.41772585 | F125: =F122*MICS06!F128/100 -> 30.95749258 | G125: =G122*MICS06!G128/100 -> 43.96646548 | H125: =H122*MICS06!H128/100 -> 9.542348171 | I125: =I122*MICS06!I128/100 -> 21.7516303 | J125: =J122*MICS06!J128/100 -> 24.14733099 | K125: =K122*MICS06!K128/100 -> 39.32531933 | L125: =L122*MICS06!L128/100 -> 42.53656348 | M125: =M122*MICS06!M128/100 -> 17.30865505 | N125: =N122*MICS06!N128/100 -> 23.41055651 | O125: =O122*MICS06!O128/100 -> 29.31937799 | P125: =P122*MICS06!P128/100 -> 27.53053474 | Q125: =Q122*MICS06!Q128/100 -> 27.56061466 | R125: =R122*MICS06!R128/100 -> 17.76687059 | S125: =S122*MICS06!S128/100 -> 11.28562513 | T125: =T122*MICS06!T128/100 -> 29.1647143 | U125: =U122*MICS06!U128/100 -> 49.99182386 | BB125: Limited | BC125: N/A | BD125: N/A | BE125: N/A | BF125: N/A | BG125: N/A | BH125: N/A | BI125: N/A | BJ125: N/A | BK125: N/A | BL125: N/A | BM125: N/A | BN125: N/A | BO125: N/A | BP125: N/A | BQ125: N/A | BR125: N/A | BS125: N/A | BT125: N/A | BU125: N/A
B126: Unimproved | C126: =100-(C124+C125+C127) -> 61.79884953 | D126: =100-(D124+D125+D127) -> 63.52845855 | E126: 63.80677522 | F126: 50.20323892 | G126: 30.07304678 | H126: 80.07539946 | I126: 71.96274493 | J126: 64.90820004 | K126: 51.81728164 | L126: 36.00212125 | M126: 42.6033824 | N126: 44.23612205 | O126: 41.94066568 | P126: 44.74555383 | Q126: 38.55561371 | R126: 67.14548767 | S126: 61.4975633 | T126: 32.11224478 | U126: 28.4573581 | BB126: Unimproved | BC126: N/A | BD126: N/A | BE126: N/A | BF126: N/A | BG126: N/A | BH126: N/A | BI126: N/A | BJ126: N/A | BK126: N/A | BL126: N/A | BM126: N/A | BN126: N/A | BO126: N/A | BP126: N/A | BQ126: N/A | BR126: N/A | BS126: N/A | BT126: N/A | BU126: N/A
B127: Open defecation | C127: =C160 -> 30.86497293 | D127: =D160 -> 23.35376913 | E127: 13.9229272 | F127: 8.299538703 | G127: 2.507328345 | H127: 9.860576144 | I127: 0.9190039474 | J127: 3.692153469 | K127: 0.9873293494 | L127: 1.155356416 | M127: 33.33502525 | N127: 26.21843097 | O127: 20.39363124 | P127: 15.47510312 | Q127: 9.185709494 | R127: 10.34687636 | S127: 20.79699073 | T127: 31.16414419 | U127: 0.05564309618 | BB127: Open defecation | BC127: N/A | BD127: N/A | BE127: N/A | BF127: N/A | BG127: N/A | BH127: N/A | BI127: N/A | BJ127: N/A | BK127: N/A | BL127: N/A | BM127: N/A | BN127: N/A | BO127: N/A | BP127: N/A | BQ127: N/A | BR127: N/A | BS127: N/A | BT127: N/A | BU127: N/A
A128: Shared among Improved Sanitation | B128: Yes | C128: N/A | D128: N/A | E128: N/A | F128: N/A | G128: N/A | H128: N/A | I128: N/A | J128: N/A | K128: N/A | L128: N/A | M128: N/A | N128: N/A | O128: N/A | P128: N/A | Q128: N/A | R128: N/A | S128: N/A | T128: N/A | U128: N/A | BA128: Shared among improved sanitation facilities | BB128: Yes | BC128: N/A | BD128: N/A | BE128: N/A | BF128: N/A | BG128: N/A | BH128: N/A | BI128: N/A | BJ128: N/A | BK128: N/A | BL128: N/A | BM128: N/A | BN128: N/A | BO128: N/A | BP128: N/A | BQ128: N/A | BR128: N/A | BS128: N/A | BT128: N/A | BU128: N/A
B129: No | C129: N/A | D129: N/A | E129: N/A | F129: N/A | G129: N/A | H129: N/A | I129: N/A | J129: N/A | K129: N/A | L129: N/A | M129: N/A | N129: N/A | O129: N/A | P129: N/A | Q129: N/A | R129: N/A | S129: N/A | T129: N/A | U129: N/A | BB129: No | BC129: N/A | BD129: N/A | BE129: N/A | BF129: N/A | BG129: N/A | BH129: N/A | BI129: N/A | BJ129: N/A | BK129: N/A | BL129: N/A | BM129: N/A | BN129: N/A | BO129: N/A | BP129: N/A | BQ129: N/A | BR129: N/A | BS129: N/A | BT129: N/A | BU129: N/A
A130: Manually calculated ratios | B130: Improved latrines
B131: Other
B132: Other
C133: NATIONAL wealth index quintile | H133: URBAN wealth index quintile | M133: RURAL wealth index quintile | R133: SUB-REGIONS: | BA133: Raw numbers of respondents: | BB133: Use of sanitation facilities | BC133: NATIONAL wealth index quintile | BH133: URBAN wealth index quintile | BM133: RURAL wealth index quintile | BR133: SUB-REGIONS:
A134: Percentage based on weighted population | C134: Poorest | D134: Poor | E134: Middle | F134: Rich | G134: Richest | H134: Poorest | I134: Poor | J134: Middle | K134: Rich | L134: Richest | M134: Poorest | N134: Poor | O134: Middle | P134: Rich | Q134: Richest | R134: East | S134: North | T134: South | U134: West | BA134: Sanitation data, raw numbers (weighted) | BC134: Poorest | BD134: Poor | BE134: Middle | BF134: Rich | BG134: Richest | BH134: Poorest | BI134: Poor | BJ134: Middle | BK134: Rich | BL134: Richest | BM134: Poorest | BN134: Poor | BO134: Middle | BP134: Rich | BQ134: Richest | BR134: East | BS134: North | BT134: South | BU134: West
A135: Sanitation type | B135: Sewer connection | C135: N/A | D135: N/A | E135: N/A | F135: N/A | G135: N/A | H135: N/A | I135: N/A | J135: N/A | K135: N/A | L135: N/A | M135: N/A | N135: N/A | O135: N/A | P135: N/A | Q135: N/A | R135: N/A | S135: N/A | T135: N/A | U135: N/A | BA135: Sanitation type | BB135: Sewer connection | BC135: N/A | BD135: N/A | BE135: N/A | BF135: N/A | BG135: N/A | BH135: N/A | BI135: N/A | BJ135: N/A | BK135: N/A | BL135: N/A | BM135: N/A | BN135: N/A | BO135: N/A | BP135: N/A | BQ135: N/A | BR135: N/A | BS135: N/A | BT135: N/A | BU135: N/A
B136: Septic tank connection | C136: N/A | D136: N/A | E136: N/A | F136: N/A | G136: N/A | H136: N/A | I136: N/A | J136: N/A | K136: N/A | L136: N/A | M136: N/A | N136: N/A | O136: N/A | P136: N/A | Q136: N/A | R136: N/A | S136: N/A | T136: N/A | U136: N/A | BB136: Septic tank connection | BC136: N/A | BD136: N/A | BE136: N/A | BF136: N/A | BG136: N/A | BH136: N/A | BI136: N/A | BJ136: N/A | BK136: N/A | BL136: N/A | BM136: N/A | BN136: N/A | BO136: N/A | BP136: N/A | BQ136: N/A | BR136: N/A | BS136: N/A | BT136: N/A | BU136: N/A
B137: Improved latrines | C137: N/A | D137: N/A | E137: N/A | F137: N/A | G137: N/A | H137: N/A | I137: N/A | J137: N/A | K137: N/A | L137: N/A | M137: N/A | N137: N/A | O137: N/A | P137: N/A | Q137: N/A | R137: N/A | S137: N/A | T137: N/A | U137: N/A | BB137: Improved latrines | BC137: N/A | BD137: N/A | BE137: N/A | BF137: N/A | BG137: N/A | BH137: N/A | BI137: N/A | BJ137: N/A | BK137: N/A | BL137: N/A | BM137: N/A | BN137: N/A | BO137: N/A | BP137: N/A | BQ137: N/A | BR137: N/A | BS137: N/A | BT137: N/A | BU137: N/A
B138: Unimproved facilities | C138: N/A | D138: N/A | E138: N/A | F138: N/A | G138: N/A | H138: N/A | I138: N/A | J138: N/A | K138: N/A | L138: N/A | M138: N/A | N138: N/A | O138: N/A | P138: N/A | Q138: N/A | R138: N/A | S138: N/A | T138: N/A | U138: N/A | BB138: Unimproved facilities | BC138: N/A | BD138: N/A | BE138: N/A | BF138: N/A | BG138: N/A | BH138: N/A | BI138: N/A | BJ138: N/A | BK138: N/A | BL138: N/A | BM138: N/A | BN138: N/A | BO138: N/A | BP138: N/A | BQ138: N/A | BR138: N/A | BS138: N/A | BT138: N/A | BU138: N/A
B139: Open defecation | C139: =C160 -> 30.86497293 | D139: =D160 -> 23.35376913 | E139: 13.9229272 | F139: 8.299538703 | G139: 2.507328345 | H139: 9.860576144 | I139: 0.9190039474 | J139: 3.692153469 | K139: 0.9873293494 | L139: 1.155356416 | M139: 33.33502525 | N139: 26.21843097 | O139: 20.39363124 | P139: 15.47510312 | Q139: 9.185709494 | R139: 10.34687636 | S139: 20.79699073 | T139: 31.16414419 | U139: 0.05564309618 | BB139: Open defecation | BC139: N/A | BD139: N/A | BE139: N/A | BF139: N/A | BG139: N/A | BH139: N/A | BI139: N/A | BJ139: N/A | BK139: N/A | BL139: N/A | BM139: N/A | BN139: N/A | BO139: N/A | BP139: N/A | BQ139: N/A | BR139: N/A | BS139: N/A | BT139: N/A | BU139: N/A
A140: Septic tank emptying practices | B140: Not emptied/treated and disposed in situ | C140: N/A | D140: N/A | E140: N/A | F140: N/A | G140: N/A | H140: N/A | I140: N/A | J140: N/A | K140: N/A | L140: N/A | M140: N/A | N140: N/A | O140: N/A | P140: N/A | Q140: N/A | R140: N/A | S140: N/A | T140: N/A | U140: N/A | BA140: Septic tank emptying practices | BB140: Not emptied/treated and disposed in situ | BC140: N/A | BD140: N/A | BE140: N/A | BF140: N/A | BG140: N/A | BH140: N/A | BI140: N/A | BJ140: N/A | BK140: N/A | BL140: N/A | BM140: N/A | BN140: N/A | BO140: N/A | BP140: N/A | BQ140: N/A | BR140: N/A | BS140: N/A | BT140: N/A | BU140: N/A
B141: Emptied and buried on site | C141: N/A | D141: N/A | E141: N/A | F141: N/A | G141: N/A | H141: N/A | I141: N/A | J141: N/A | K141: N/A | L141: N/A | M141: N/A | N141: N/A | O141: N/A | P141: N/A | Q141: N/A | R141: N/A | S141: N/A | T141: N/A | U141: N/A | BB141: Emptied and buried on site | BC141: N/A | BD141: N/A | BE141: N/A | BF141: N/A | BG141: N/A | BH141: N/A | BI141: N/A | BJ141: N/A | BK141: N/A | BL141: N/A | BM141: N/A | BN141: N/A | BO141: N/A | BP141: N/A | BQ141: N/A | BR141: N/A | BS141: N/A | BT141: N/A | BU141: N/A
B142: Emptied and discharged locally | C142: N/A | D142: N/A | E142: N/A | F142: N/A | G142: N/A | H142: N/A | I142: N/A | J142: N/A | K142: N/A | L142: N/A | M142: N/A | N142: N/A | O142: N/A | P142: N/A | Q142: N/A | R142: N/A | S142: N/A | T142: N/A | U142: N/A | BB142: Emptied and discharged locally | BC142: N/A | BD142: N/A | BE142: N/A | BF142: N/A | BG142: N/A | BH142: N/A | BI142: N/A | BJ142: N/A | BK142: N/A | BL142: N/A | BM142: N/A | BN142: N/A | BO142: N/A | BP142: N/A | BQ142: N/A | BR142: N/A | BS142: N/A | BT142: N/A | BU142: N/A
B143: Emptied and removed offsite | C143: N/A | D143: N/A | E143: N/A | F143: N/A | G143: N/A | H143: N/A | I143: N/A | J143: N/A | K143: N/A | L143: N/A | M143: N/A | N143: N/A | O143: N/A | P143: N/A | Q143: N/A | R143: N/A | S143: N/A | T143: N/A | U143: N/A | BB143: Emptied and removed offsite | BC143: N/A | BD143: N/A | BE143: N/A | BF143: N/A | BG143: N/A | BH143: N/A | BI143: N/A | BJ143: N/A | BK143: N/A | BL143: N/A | BM143: N/A | BN143: N/A | BO143: N/A | BP143: N/A | BQ143: N/A | BR143: N/A | BS143: N/A | BT143: N/A | BU143: N/A
A144: Latrine emptying practices | B144: Not emptied/treated and disposed in situ | C144: N/A | D144: N/A | E144: N/A | F144: N/A | G144: N/A | H144: N/A | I144: N/A | J144: N/A | K144: N/A | L144: N/A | M144: N/A | N144: N/A | O144: N/A | P144: N/A | Q144: N/A | R144: N/A | S144: N/A | T144: N/A | U144: N/A | BA144: Latrine emptying practices | BB144: Not emptied/treated and disposed in situ | BC144: N/A | BD144: N/A | BE144: N/A | BF144: N/A | BG144: N/A | BH144: N/A | BI144: N/A | BJ144: N/A | BK144: N/A | BL144: N/A | BM144: N/A | BN144: N/A | BO144: N/A | BP144: N/A | BQ144: N/A | BR144: N/A | BS144: N/A | BT144: N/A | BU144: N/A
B145: Emptied and buried on site | C145: N/A | D145: N/A | E145: N/A | F145: N/A | G145: N/A | H145: N/A | I145: N/A | J145: N/A | K145: N/A | L145: N/A | M145: N/A | N145: N/A | O145: N/A | P145: N/A | Q145: N/A | R145: N/A | S145: N/A | T145: N/A | U145: N/A | BB145: Emptied and buried on site | BC145: N/A | BD145: N/A | BE145: N/A | BF145: N/A | BG145: N/A | BH145: N/A | BI145: N/A | BJ145: N/A | BK145: N/A | BL145: N/A | BM145: N/A | BN145: N/A | BO145: N/A | BP145: N/A | BQ145: N/A | BR145: N/A | BS145: N/A | BT145: N/A | BU145: N/A
B146: Emptied and discharged locally | C146: N/A | D146: N/A | E146: N/A | F146: N/A | G146: N/A | H146: N/A | I146: N/A | J146: N/A | K146: N/A | L146: N/A | M146: N/A | N146: N/A | O146: N/A | P146: N/A | Q146: N/A | R146: N/A | S146: N/A | T146: N/A | U146: N/A | BB146: Emptied and discharged locally | BC146: N/A | BD146: N/A | BE146: N/A | BF146: N/A | BG146: N/A | BH146: N/A | BI146: N/A | BJ146: N/A | BK146: N/A | BL146: N/A | BM146: N/A | BN146: N/A | BO146: N/A | BP146: N/A | BQ146: N/A | BR146: N/A | BS146: N/A | BT146: N/A | BU146: N/A
B147: Emptied and removed offsite | C147: N/A | D147: N/A | E147: N/A | F147: N/A | G147: N/A | H147: N/A | I147: N/A | J147: N/A | K147: N/A | L147: N/A | M147: N/A | N147: N/A | O147: N/A | P147: N/A | Q147: N/A | R147: N/A | S147: N/A | T147: N/A | U147: N/A | BB147: Emptied and removed offsite | BC147: N/A | BD147: N/A | BE147: N/A | BF147: N/A | BG147: N/A | BH147: N/A | BI147: N/A | BJ147: N/A | BK147: N/A | BL147: N/A | BM147: N/A | BN147: N/A | BO147: N/A | BP147: N/A | BQ147: N/A | BR147: N/A | BS147: N/A | BT147: N/A | BU147: N/A
A148: Shared among improved sanitation facilities | B148: Yes | C148: N/A | D148: N/A | E148: N/A | F148: N/A | G148: N/A | H148: N/A | I148: N/A | J148: N/A | K148: N/A | L148: N/A | M148: N/A | N148: N/A | O148: N/A | P148: N/A | Q148: N/A | R148: N/A | S148: N/A | T148: N/A | U148: N/A | BA148: Shared among improved sanitation facilities | BB148: Yes | BC148: N/A | BD148: N/A | BE148: N/A | BF148: N/A | BG148: N/A | BH148: N/A | BI148: N/A | BJ148: N/A | BK148: N/A | BL148: N/A | BM148: N/A | BN148: N/A | BO148: N/A | BP148: N/A | BQ148: N/A | BR148: N/A | BS148: N/A | BT148: N/A | BU148: N/A
B149: No | C149: N/A | D149: N/A | E149: N/A | F149: N/A | G149: N/A | H149: N/A | I149: N/A | J149: N/A | K149: N/A | L149: N/A | M149: N/A | N149: N/A | O149: N/A | P149: N/A | Q149: N/A | R149: N/A | S149: N/A | T149: N/A | U149: N/A | BB149: No | BC149: N/A | BD149: N/A | BE149: N/A | BF149: N/A | BG149: N/A | BH149: N/A | BI149: N/A | BJ149: N/A | BK149: N/A | BL149: N/A | BM149: N/A | BN149: N/A | BO149: N/A | BP149: N/A | BQ149: N/A | BR149: N/A | BS149: N/A | BT149: N/A | BU149: N/A
B150: DK/missing | C150: N/A | D150: N/A | E150: N/A | F150: N/A | G150: N/A | H150: N/A | I150: N/A | J150: N/A | K150: N/A | L150: N/A | M150: N/A | N150: N/A | O150: N/A | P150: N/A | Q150: N/A | R150: N/A | S150: N/A | T150: N/A | U150: N/A | BB150: DK/missing | BC150: N/A | BD150: N/A | BE150: N/A | BF150: N/A | BG150: N/A | BH150: N/A | BI150: N/A | BJ150: N/A | BK150: N/A | BL150: N/A | BM150: N/A | BN150: N/A | BO150: N/A | BP150: N/A | BQ150: N/A | BR150: N/A | BS150: N/A | BT150: N/A | BU150: N/A
A151: Shared among all sanitation facilities | B151: Yes | C151: N/A | D151: N/A | E151: N/A | F151: N/A | G151: N/A | H151: N/A | I151: N/A | J151: N/A | K151: N/A | L151: N/A | M151: N/A | N151: N/A | O151: N/A | P151: N/A | Q151: N/A | R151: N/A | S151: N/A | T151: N/A | U151: N/A | BA151: Shared among all sanitation facilities | BB151: Yes | BC151: N/A | BD151: N/A | BE151: N/A | BF151: N/A | BG151: N/A | BH151: N/A | BI151: N/A | BJ151: N/A | BK151: N/A | BL151: N/A | BM151: N/A | BN151: N/A | BO151: N/A | BP151: N/A | BQ151: N/A | BR151: N/A | BS151: N/A | BT151: N/A | BU151: N/A
B152: No | C152: N/A | D152: N/A | E152: N/A | F152: N/A | G152: N/A | H152: N/A | I152: N/A | J152: N/A | K152: N/A | L152: N/A | M152: N/A | N152: N/A | O152: N/A | P152: N/A | Q152: N/A | R152: N/A | S152: N/A | T152: N/A | U152: N/A | BB152: No | BC152: N/A | BD152: N/A | BE152: N/A | BF152: N/A | BG152: N/A | BH152: N/A | BI152: N/A | BJ152: N/A | BK152: N/A | BL152: N/A | BM152: N/A | BN152: N/A | BO152: N/A | BP152: N/A | BQ152: N/A | BR152: N/A | BS152: N/A | BT152: N/A | BU152: N/A
A153: Type of toilet facility | B153: Flush to sewage system/septic tank | C153: 0.1142981324 | D153: 0.6511467191 | E153: 0.4519223087 | F153: 2.562546067 | G153: 15.46069814 | H153: 1.325303184 | I153: 8.887285763 | J153: 6.782535306 | K153: 15.65411546 | L153: 30.81620116 | M153: 0.1631904002 | N153: 0.07802953515 | O153: 0.4821132001 | P153: 0 | Q153: 0.5573166457 | R153: 0.2480735974 | S153: 0.7665663574 | T153: 0.3814781873 | U153: 17.07115533 | BA153: Type of toilet facility | BB153: Flush to sewage system/septic tank | BC153: 5.64692507 | BD153: 32.05355403 | BE153: 22.0128777 | BF153: 125.7499751 | BG153: 759.8158561 | BH153: 18.99375038 | BI153: 126.5705326 | BJ153: 99.89468129 | BK153: 215.3898936 | BL153: 439.9900364 | BM153: 5.64692507 | BN153: 2.741277845 | BO153: 16.73894847 | BP153: 0 | BQ153: 19.31314226 | BR153: 14.69486985 | BS153: 74.21701802 | BT153: 15.35047848 | BU153: 841.0168216
B154: Pour flush latrine | C154: 0.5351973177 | D154: 0.8144831108 | E154: 0.9225173746 | F154: 1.520898886 | G154: 2.641408113 | H154: 1.148142463 | I154: 1.283025613 | J154: 3.452191619 | K154: 4.199613657 | L154: 3.63835897 | M154: 0.4141808703 | N154: 0.6125897358 | O154: 0.9647656328 | P154: 1.218785675 | Q154: 0.2444287908 | R154: 0.9517880862 | S154: 0.9909308186 | T154: 0.806105619 | U154: 2.662317508 | BB154: Pour flush latrine | BC154: 26.44154447 | BD154: 40.09400283 | BE154: 44.93529475 | BF154: 74.63397418 | BG154: 129.8119755 | BH154: 16.45474908 | BI154: 18.27253444 | BJ154: 50.8446423 | BK154: 57.78380397 | BL154: 51.94805444 | BM154: 14.3320216 | BN154: 21.52106465 | BO154: 33.49661907 | BP154: 42.79291453 | BQ154: 8.470387605 | BR154: 56.3800509 | BS154: 95.9394183 | BT154: 32.4372595 | BU154: 131.160063
B155: Improved pit latrine | C155: 5.46583566 | D155: 4.831013255 | E155: 4.658992598 | F155: 5.467412501 | G155: 2.537207317 | H155: 4.799890807 | I155: 1.644944877 | J155: 4.701779176 | K155: 1.788724335 | L155: 2.055539447 | M155: 4.221131815 | N155: 4.912076553 | O155: 6.418682157 | P155: 4.575960454 | Q155: 6.065647251 | R155: 2.783375156 | S155: 2.417327932 | T155: 10.83265847 | U155: 5.946658307 | BB155: Improved pit latrine | BC155: 270.0408464 | BD155: 237.8129841 | BE155: 226.9368701 | BF155: 268.2983907 | BG155: 124.6910284 | BH155: 68.79024282 | BI155: 23.42689936 | BJ155: 69.24884444 | BK155: 24.61162021 | BL155: 29.34874651 | BM155: 146.0650568 | BN155: 172.5675618 | BO155: 222.8563537 | BP155: 160.6670382 | BQ155: 210.1977559 | BR155: 164.8758114 | BS155: 234.0395831 | BT155: 435.9003904 | BU155: 292.9643349
B156: Traditional pit latrine | C156: 37.82070699 | D156: 46.68963646 | E156: 52.8905796 | F156: 63.6659228 | G156: 66.08152912 | H156: 67.33209839 | I156: 81.16848276 | J156: 76.29371715 | K156: 71.38204294 | L156: 53.00065997 | M156: 38.28407055 | N156: 41.16006255 | O156: 46.41698905 | P156: 48.74543766 | Q156: 58.79812347 | R156: 57.59300072 | S156: 48.82425721 | T156: 39.04333643 | U156: 69.12113043 | BB156: Traditional pit latrine | BC156: 1868.540579 | BD156: 2298.358789 | BE156: 2576.269943 | BF156: 3124.231915 | BG156: 3247.576091 | BH156: 964.978493 | BI156: 1155.981519 | BJ156: 1123.670754 | BK156: 982.1679595 | BL156: 756.7370874 | BM156: 1324.754872 | BN156: 1446.005892 | BO156: 1611.595757 | BP156: 1711.506289 | BQ156: 2037.578694 | BR156: 3411.574865 | BS156: 4727.04123 | BT156: 1571.083002 | BU156: 3405.278219
B157: Open pit | C157: 13.2841582 | D157: 12.60875993 | E157: 16.92374469 | F157: 10.80085403 | G157: 7.862887225 | H157: 3.356551994 | I157: 2.736018906 | J157: 2.207734914 | K157: 4.968987323 | L157: 6.038508627 | M157: 14.3471447 | N157: 12.25817151 | O157: 16.19335065 | P157: 19.19510568 | Q157: 16.74588175 | R157: 4.178609787 | S157: 24.78850327 | T157: 6.179731916 | U157: 2.468801305 | BB157: Open pit | BC157: 656.3068388 | BD157: 620.6827981 | BE157: 824.3459439 | BF157: 530.0225205 | BG157: 386.4215145 | BH157: 48.10484988 | BI157: 38.96570666 | BJ157: 32.51600849 | BK157: 68.369858 | BL157: 86.21710433 | BM157: 496.4584376 | BN157: 430.6453182 | BO157: 562.2324011 | BP157: 673.9614141 | BQ157: 580.3085176 | BR157: 247.52383 | BS157: 2399.960259 | BT157: 248.6691112 | BU157: 121.6264152
B158: Bucket | C158: 0.1355237071 | D158: 0.04533875346 | E158: 0.4729714557 | F158: 0.1308360406 | G158: 0.05598962803 | H158: 0 | I158: 0.4508168667 | J158: 0 | K158: 0.1999816027 | L158: 0 | M158: 0.1934954451 | N158: 0.06352912482 | O158: 0.3421338179 | P158: 0.3178281705 | Q158: 0 | R158: 0 | S158: 0.2074701748 | T158: 0 | U158: 0.4272961329 | BB158: Bucket | BC158: 6.695579387 | BD158: 2.231859796 | BE158: 23.03816964 | BF158: 6.420422663 | BG158: 2.751609713 | BH158: 0 | BI158: 6.420422663 | BJ158: 0 | BK158: 2.751609713 | BL158: 0 | BM158: 6.695579387 | BN158: 2.231859796 | BO158: 11.87887066 | BP158: 11.15929898 | BQ158: 0 | BR158: 0 | BS158: 20.08673816 | BT158: 0 | BU158: 21.05090304
B159: Other | C159: 11.77930707 | D159: 11.00585265 | E159: 9.756344776 | F159: 7.551990965 | G159: 2.85295212 | H159: 12.17743702 | I159: 2.910421264 | J159: 2.869888366 | K159: 0.8192053428 | L159: 3.295375411 | M159: 9.041760976 | N159: 14.69711001 | O159: 8.788334249 | P159: 10.47177924 | Q159: 8.402892603 | R159: 23.89827629 | S159: 1.207953499 | T159: 11.59254518 | U159: 2.246997889 | BB159: Other | BC159: 581.9593287 | BD159: 541.777578 | BE159: 475.2259852 | BF159: 370.5934062 | BG159: 140.2083036 | BH159: 174.5224805 | BI159: 41.44950205 | BJ159: 42.2683511 | BK159: 11.27170373 | BL159: 47.0509762 | BM159: 312.8746953 | BN159: 516.3283619 | BO159: 305.130567 | BP159: 367.6757638 | BQ159: 291.1922001 | BR159: 1415.636583 | BS159: 116.9510059 | BT159: 466.4778257 | BU159: 110.6991874
B160: No facilities/bush/field | C160: 30.86497293 | D160: 23.35376913 | E160: 13.9229272 | F160: 8.299538703 | G160: 2.507328345 | H160: 9.860576144 | I160: 0.9190039474 | J160: 3.692153469 | K160: 0.9873293494 | L160: 1.155356416 | M160: 33.33502525 | N160: 26.21843097 | O160: 20.39363124 | P160: 15.47510312 | Q160: 9.185709494 | R160: 10.34687636 | S160: 20.79699073 | T160: 31.16414419 | U160: 0.05564309618 | BB160: No facilities/bush/field | BC160: 1524.890965 | BD160: 1149.620014 | BE160: 678.1778368 | BF160: 407.2772773 | BG160: 123.2226266 | BH160: 141.3180955 | BI160: 13.08822763 | BJ160: 54.37885354 | BK160: 13.58497477 | BL160: 16.4960408 | BM160: 1153.501613 | BN160: 921.0871732 | BO160: 708.0659529 | BP160: 543.3480053 | BQ160: 318.3197838 | BR160: 612.9068271 | BS160: 2013.5121 | BT160: 1254.028515 | BU160: 2.741277845
BB161: Total | BC161: 4940.522607 | BD161: 4922.63158 | BE161: 4870.942921 | BF161: 4907.227881 | BG161: 4914.499005 | BH161: 1433.162661 | BI161: 1424.175344 | BJ161: 1472.822135 | BK161: 1375.931424 | BL161: 1427.788046 | BM161: 3460.3292 | BN161: 3513.128509 | BO161: 3471.99547 | BP161: 3511.110724 | BQ161: 3465.380481 | BR161: 5923.592837 | BS161: 9681.747353 | BT161: 4023.946582 | BU161: 4926.537222
A208: =A1026 -> Sierra Leone
A209: =A1034 -> 2000
A210: Access to hygiene facilities
A211: by wealth quintile and sub-national region
A212: Notes:
A213: WHO/UNICEF JMP customised wealth index excludes water,
A214: sanitation and hygiene assets.
A215: Survey used for analysis: | B215: =A1025 -> MICS00
A220: Access to handwashing | C220: NATIONAL wealth index quintile | H220: URBAN wealth index quintile | M220: RURAL wealth index quintile | R220: SUB-REGIONS: | BA220: Raw numbers of respondents: | BB220: Access to handwashing | BC220: NATIONAL wealth index quintile | BH220: URBAN wealth index quintile | BM220: RURAL wealth index quintile | BR220: SUB-REGIONS:
A221: Weighted percentage (used in graphs) | C221: Poorest | D221: Poor | E221: Middle | F221: Rich | G221: Richest | H221: Poorest | I221: Poor | J221: Middle | K221: Rich | L221: Richest | M221: Poorest | N221: Poor | O221: Middle | P221: Rich | Q221: Richest | R221: East | S221: North | T221: South | U221: West | BA221: Hygiene data, raw numbers (weighted) | BC221: Poorest | BD221: Poor | BE221: Middle | BF221: Rich | BG221: Richest | BH221: Poorest | BI221: Poor | BJ221: Middle | BK221: Rich | BL221: Richest | BM221: Poorest | BN221: Poor | BO221: Middle | BP221: Rich | BQ221: Richest | BR221: East | BS221: North | BT221: South | BU221: West
A222: Hygiene ladder | B222: Basic | C222: N/A | D222: N/A | E222: N/A | F222: N/A | G222: N/A | H222: N/A | I222: N/A | J222: N/A | K222: N/A | L222: N/A | M222: N/A | N222: N/A | O222: N/A | P222: N/A | Q222: N/A | R222: N/A | S222: N/A | T222: N/A | U222: N/A | BA222: Hygiene ladder | BB222: Basic | BC222: N/A | BD222: N/A | BE222: N/A | BF222: N/A | BG222: N/A | BH222: N/A | BI222: N/A | BJ222: N/A | BK222: N/A | BL222: N/A | BM222: N/A | BN222: N/A | BO222: N/A | BP222: N/A | BQ222: N/A | BR222: N/A | BS222: N/A | BT222: N/A | BU222: N/A
B223: Limited | C223: N/A | D223: N/A | E223: N/A | F223: N/A | G223: N/A | H223: N/A | I223: N/A | J223: N/A | K223: N/A | L223: N/A | M223: N/A | N223: N/A | O223: N/A | P223: N/A | Q223: N/A | R223: N/A | S223: N/A | T223: N/A | U223: N/A | BB223: Limited | BC223: N/A | BD223: N/A | BE223: N/A | BF223: N/A | BG223: N/A | BH223: N/A | BI223: N/A | BJ223: N/A | BK223: N/A | BL223: N/A | BM223: N/A | BN223: N/A | BO223: N/A | BP223: N/A | BQ223: N/A | BR223: N/A | BS223: N/A | BT223: N/A | BU223: N/A
B224: No facility | C224: N/A | D224: N/A | E224: N/A | F224: N/A | G224: N/A | H224: N/A | I224: N/A | J224: N/A | K224: N/A | L224: N/A | M224: N/A | N224: N/A | O224: N/A | P224: N/A | Q224: N/A | R224: N/A | S224: N/A | T224: N/A | U224: N/A | BB224: No facility | BC224: N/A | BD224: N/A | BE224: N/A | BF224: N/A | BG224: N/A | BH224: N/A | BI224: N/A | BJ224: N/A | BK224: N/A | BL224: N/A | BM224: N/A | BN224: N/A | BO224: N/A | BP224: N/A | BQ224: N/A | BR224: N/A | BS224: N/A | BT224: N/A | BU224: N/A
BA225: Observed handwashing place | BB225: Fixed | BC225: N/A | BD225: N/A | BE225: N/A | BF225: N/A | BG225: N/A | BH225: N/A | BI225: N/A | BJ225: N/A | BK225: N/A | BL225: N/A | BM225: N/A | BN225: N/A | BO225: N/A | BP225: N/A | BQ225: N/A | BR225: N/A | BS225: N/A | BT225: N/A | BU225: N/A
BB226: Mobile | BC226: N/A | BD226: N/A | BE226: N/A | BF226: N/A | BG226: N/A | BH226: N/A | BI226: N/A | BJ226: N/A | BK226: N/A | BL226: N/A | BM226: N/A | BN226: N/A | BO226: N/A | BP226: N/A | BQ226: N/A | BR226: N/A | BS226: N/A | BT226: N/A | BU226: N/A
BA227: Water / Soap | BB227: Water and soap | BC227: N/A | BD227: N/A | BE227: N/A | BF227: N/A | BG227: N/A | BH227: N/A | BI227: N/A | BJ227: N/A | BK227: N/A | BL227: N/A | BM227: N/A | BN227: N/A | BO227: N/A | BP227: N/A | BQ227: N/A | BR227: N/A | BS227: N/A | BT227: N/A | BU227: N/A
BB228: Water only | BC228: N/A | BD228: N/A | BE228: N/A | BF228: N/A | BG228: N/A | BH228: N/A | BI228: N/A | BJ228: N/A | BK228: N/A | BL228: N/A | BM228: N/A | BN228: N/A | BO228: N/A | BP228: N/A | BQ228: N/A | BR228: N/A | BS228: N/A | BT228: N/A | BU228: N/A
BB229: Soap only | BC229: N/A | BD229: N/A | BE229: N/A | BF229: N/A | BG229: N/A | BH229: N/A | BI229: N/A | BJ229: N/A | BK229: N/A | BL229: N/A | BM229: N/A | BN229: N/A | BO229: N/A | BP229: N/A | BQ229: N/A | BR229: N/A | BS229: N/A | BT229: N/A | BU229: N/A
BB230: Neither | BC230: N/A | BD230: N/A | BE230: N/A | BF230: N/A | BG230: N/A | BH230: N/A | BI230: N/A | BJ230: N/A | BK230: N/A | BL230: N/A | BM230: N/A | BN230: N/A | BO230: N/A | BP230: N/A | BQ230: N/A | BR230: N/A | BS230: N/A | BT230: N/A | BU230: N/A
BA259: Raw numbers of respondents: | BB259: Menstrual health and hygiene | BC259: NATIONAL wealth index quintile | BH259: URBAN wealth index quintile | BM259: RURAL wealth index quintile | BR259: SUB-REGIONS:
BA260: MHH data, raw numbers (weighted) | BC260: Poorest | BD260: Poor | BE260: Middle | BF260: Rich | BG260: Richest | BH260: Poorest | BI260: Poor | BJ260: Middle | BK260: Rich | BL260: Richest | BM260: Poorest | BN260: Poor | BO260: Middle | BP260: Rich | BQ260: Richest | BR260: East | BS260: North | BT260: South | BU260: West
BA261: Private place to wash and change | BB261: Yes | BC261: N/A | BD261: N/A | BE261: N/A | BF261: N/A | BG261: N/A | BH261: N/A | BI261: N/A | BJ261: N/A | BK261: N/A | BL261: N/A | BM261: N/A | BN261: N/A | BO261: N/A | BP261: N/A | BQ261: N/A | BR261: N/A | BS261: N/A | BT261: N/A | BU261: N/A
BB262: No | BC262: N/A | BD262: N/A | BE262: N/A | BF262: N/A | BG262: N/A | BH262: N/A | BI262: N/A | BJ262: N/A | BK262: N/A | BL262: N/A | BM262: N/A | BN262: N/A | BO262: N/A | BP262: N/A | BQ262: N/A | BR262: N/A | BS262: N/A | BT262: N/A | BU262: N/A
BB263: DK/not sure/missing | BC263: N/A | BD263: N/A | BE263: N/A | BF263: N/A | BG263: N/A | BH263: N/A | BI263: N/A | BJ263: N/A | BK263: N/A | BL263: N/A | BM263: N/A | BN263: N/A | BO263: N/A | BP263: N/A | BQ263: N/A | BR263: N/A | BS263: N/A | BT263: N/A | BU263: N/A
BA264: Use of menstrual materials | BB264: Materials reusable | BC264: N/A | BD264: N/A | BE264: N/A | BF264: N/A | BG264: N/A | BH264: N/A | BI264: N/A | BJ264: N/A | BK264: N/A | BL264: N/A | BM264: N/A | BN264: N/A | BO264: N/A | BP264: N/A | BQ264: N/A | BR264: N/A | BS264: N/A | BT264: N/A | BU264: N/A
BB265: Materials not reusable | BC265: N/A | BD265: N/A | BE265: N/A | BF265: N/A | BG265: N/A | BH265: N/A | BI265: N/A | BJ265: N/A | BK265: N/A | BL265: N/A | BM265: N/A | BN265: N/A | BO265: N/A | BP265: N/A | BQ265: N/A | BR265: N/A | BS265: N/A | BT265: N/A | BU265: N/A
BB266: No materials used | BC266: N/A | BD266: N/A | BE266: N/A | BF266: N/A | BG266: N/A | BH266: N/A | BI266: N/A | BJ266: N/A | BK266: N/A | BL266: N/A | BM266: N/A | BN266: N/A | BO266: N/A | BP266: N/A | BQ266: N/A | BR266: N/A | BS266: N/A | BT266: N/A | BU266: N/A
BB267: DK/not sure/missing | BC267: N/A | BD267: N/A | BE267: N/A | BF267: N/A | BG267: N/A | BH267: N/A | BI267: N/A | BJ267: N/A | BK267: N/A | BL267: N/A | BM267: N/A | BN267: N/A | BO267: N/A | BP267: N/A | BQ267: N/A | BR267: N/A | BS267: N/A | BT267: N/A | BU267: N/A
BA268: Use of menstrual materials with private place to wash and change | BB268: Materials reusable | BC268: N/A | BD268: N/A | BE268: N/A | BF268: N/A | BG268: N/A | BH268: N/A | BI268: N/A | BJ268: N/A | BK268: N/A | BL268: N/A | BM268: N/A | BN268: N/A | BO268: N/A | BP268: N/A | BQ268: N/A | BR268: N/A | BS268: N/A | BT268: N/A | BU268: N/A
BB269: Materials not reusable | BC269: N/A | BD269: N/A | BE269: N/A | BF269: N/A | BG269: N/A | BH269: N/A | BI269: N/A | BJ269: N/A | BK269: N/A | BL269: N/A | BM269: N/A | BN269: N/A | BO269: N/A | BP269: N/A | BQ269: N/A | BR269: N/A | BS269: N/A | BT269: N/A | BU269: N/A
BB270: No materials used | BC270: N/A | BD270: N/A | BE270: N/A | BF270: N/A | BG270: N/A | BH270: N/A | BI270: N/A | BJ270: N/A | BK270: N/A | BL270: N/A | BM270: N/A | BN270: N/A | BO270: N/A | BP270: N/A | BQ270: N/A | BR270: N/A | BS270: N/A | BT270: N/A | BU270: N/A
BA271: Awareness of menstruation before menarche | BB271: Yes | BC271: N/A | BD271: N/A | BE271: N/A | BF271: N/A | BG271: N/A | BH271: N/A | BI271: N/A | BJ271: N/A | BK271: N/A | BL271: N/A | BM271: N/A | BN271: N/A | BO271: N/A | BP271: N/A | BQ271: N/A | BR271: N/A | BS271: N/A | BT271: N/A | BU271: N/A
BB272: No | BC272: N/A | BD272: N/A | BE272: N/A | BF272: N/A | BG272: N/A | BH272: N/A | BI272: N/A | BJ272: N/A | BK272: N/A | BL272: N/A | BM272: N/A | BN272: N/A | BO272: N/A | BP272: N/A | BQ272: N/A | BR272: N/A | BS272: N/A | BT272: N/A | BU272: N/A
BB273: DK/not sure/missing | BC273: N/A | BD273: N/A | BE273: N/A | BF273: N/A | BG273: N/A | BH273: N/A | BI273: N/A | BJ273: N/A | BK273: N/A | BL273: N/A | BM273: N/A | BN273: N/A | BO273: N/A | BP273: N/A | BQ273: N/A | BR273: N/A | BS273: N/A | BT273: N/A | BU273: N/A
BA274: Participation in (all) activities during menstruation | BB274: Yes | BC274: N/A | BD274: N/A | BE274: N/A | BF274: N/A | BG274: N/A | BH274: N/A | BI274: N/A | BJ274: N/A | BK274: N/A | BL274: N/A | BM274: N/A | BN274: N/A | BO274: N/A | BP274: N/A | BQ274: N/A | BR274: N/A | BS274: N/A | BT274: N/A | BU274: N/A
BB275: No | BC275: N/A | BD275: N/A | BE275: N/A | BF275: N/A | BG275: N/A | BH275: N/A | BI275: N/A | BJ275: N/A | BK275: N/A | BL275: N/A | BM275: N/A | BN275: N/A | BO275: N/A | BP275: N/A | BQ275: N/A | BR275: N/A | BS275: N/A | BT275: N/A | BU275: N/A
BB276: DK/not sure/missing/no such activity | BC276: N/A | BD276: N/A | BE276: N/A | BF276: N/A | BG276: N/A | BH276: N/A | BI276: N/A | BJ276: N/A | BK276: N/A | BL276: N/A | BM276: N/A | BN276: N/A | BO276: N/A | BP276: N/A | BQ276: N/A | BR276: N/A | BS276: N/A | BT276: N/A | BU276: N/A
BA277: Participation in specific activities during menstruation | BB277: Did not go to school (amongst those usually attending school) | BC277: N/A | BD277: N/A | BE277: N/A | BF277: N/A | BG277: N/A | BH277: N/A | BI277: N/A | BJ277: N/A | BK277: N/A | BL277: N/A | BM277: N/A | BN277: N/A | BO277: N/A | BP277: N/A | BQ277: N/A | BR277: N/A | BS277: N/A | BT277: N/A | BU277: N/A
BB278: Did not go to work (amongst those who usually work) | BC278: N/A | BD278: N/A | BE278: N/A | BF278: N/A | BG278: N/A | BH278: N/A | BI278: N/A | BJ278: N/A | BK278: N/A | BL278: N/A | BM278: N/A | BN278: N/A | BO278: N/A | BP278: N/A | BQ278: N/A | BR278: N/A | BS278: N/A | BT278: N/A | BU278: N/A
BB279: Did not participate in social activities | BC279: N/A | BD279: N/A | BE279: N/A | BF279: N/A | BG279: N/A | BH279: N/A | BI279: N/A | BJ279: N/A | BK279: N/A | BL279: N/A | BM279: N/A | BN279: N/A | BO279: N/A | BP279: N/A | BQ279: N/A | BR279: N/A | BS279: N/A | BT279: N/A | BU279: N/A
BB280: Did not cook food | BC280: N/A | BD280: N/A | BE280: N/A | BF280: N/A | BG280: N/A | BH280: N/A | BI280: N/A | BJ280: N/A | BK280: N/A | BL280: N/A | BM280: N/A | BN280: N/A | BO280: N/A | BP280: N/A | BQ280: N/A | BR280: N/A | BS280: N/A | BT280: N/A | BU280: N/A
BB281: Did not eat with others | BC281: N/A | BD281: N/A | BE281: N/A | BF281: N/A | BG281: N/A | BH281: N/A | BI281: N/A | BJ281: N/A | BK281: N/A | BL281: N/A | BM281: N/A | BN281: N/A | BO281: N/A | BP281: N/A | BQ281: N/A | BR281: N/A | BS281: N/A | BT281: N/A | BU281: N/A
BB282: Did not bathe in regular place | BC282: N/A | BD282: N/A | BE282: N/A | BF282: N/A | BG282: N/A | BH282: N/A | BI282: N/A | BJ282: N/A | BK282: N/A | BL282: N/A | BM282: N/A | BN282: N/A | BO282: N/A | BP282: N/A | BQ282: N/A | BR282: N/A | BS282: N/A | BT282: N/A | BU282: N/A
BB283: Did not participate in other activities | BC283: N/A | BD283: N/A | BE283: N/A | BF283: N/A | BG283: N/A | BH283: N/A | BI283: N/A | BJ283: N/A | BK283: N/A | BL283: N/A | BM283: N/A | BN283: N/A | BO283: N/A | BP283: N/A | BQ283: N/A | BR283: N/A | BS283: N/A | BT283: N/A | BU283: N/A
BB284: DK/not sure/missing/no such activity | BC284: N/A | BD284: N/A | BE284: N/A | BF284: N/A | BG284: N/A | BH284: N/A | BI284: N/A | BJ284: N/A | BK284: N/A | BL284: N/A | BM284: N/A | BN284: N/A | BO284: N/A | BP284: N/A | BQ284: N/A | BR284: N/A | BS284: N/A | BT284: N/A | BU284: N/A
BA339: Raw numbers of respondents: | BB339: Basic water, sanitation and hygiene | BC339: NATIONAL wealth index quintile | BH339: URBAN wealth index quintile | BM339: RURAL wealth index quintile | BR339: SUB-REGIONS:
BA340: WatSan data, raw numbers (weighted) | BC340: Poorest | BD340: Poor | BE340: Middle | BF340: Rich | BG340: Richest | BH340: Poorest | BI340: Poor | BJ340: Middle | BK340: Rich | BL340: Richest | BM340: Poorest | BN340: Poor | BO340: Middle | BP340: Rich | BQ340: Richest | BR340: East | BS340: North | BT340: South | BU340: West
BA341: Use of Basic Water Sanitation and Hygiene | BB341: Yes | BC341: N/A | BD341: N/A | BE341: N/A | BF341: N/A | BG341: N/A | BH341: N/A | BI341: N/A | BJ341: N/A | BK341: N/A | BL341: N/A | BM341: N/A | BN341: N/A | BO341: N/A | BP341: N/A | BQ341: N/A | BR341: N/A | BS341: N/A | BT341: N/A | BU341: N/A
BB342: No | BC342: N/A | BD342: N/A | BE342: N/A | BF342: N/A | BG342: N/A | BH342: N/A | BI342: N/A | BJ342: N/A | BK342: N/A | BL342: N/A | BM342: N/A | BN342: N/A | BO342: N/A | BP342: N/A | BQ342: N/A | BR342: N/A | BS342: N/A | BT342: N/A | BU342: N/A
BA343: Use of Basic Water and Sanitation | BB343: Yes | BC343: N/A | BD343: N/A | BE343: N/A | BF343: N/A | BG343: N/A | BH343: N/A | BI343: N/A | BJ343: N/A | BK343: N/A | BL343: N/A | BM343: N/A | BN343: N/A | BO343: N/A | BP343: N/A | BQ343: N/A | BR343: N/A | BS343: N/A | BT343: N/A | BU343: N/A
BB344: No | BC344: N/A | BD344: N/A | BE344: N/A | BF344: N/A | BG344: N/A | BH344: N/A | BI344: N/A | BJ344: N/A | BK344: N/A | BL344: N/A | BM344: N/A | BN344: N/A | BO344: N/A | BP344: N/A | BQ344: N/A | BR344: N/A | BS344: N/A | BT344: N/A | BU344: N/A
BA345: Use of Basic Water and Hygiene | BB345: Yes | BC345: N/A | BD345: N/A | BE345: N/A | BF345: N/A | BG345: N/A | BH345: N/A | BI345: N/A | BJ345: N/A | BK345: N/A | BL345: N/A | BM345: N/A | BN345: N/A | BO345: N/A | BP345: N/A | BQ345: N/A | BR345: N/A | BS345: N/A | BT345: N/A | BU345: N/A
BB346: No | BC346: N/A | BD346: N/A | BE346: N/A | BF346: N/A | BG346: N/A | BH346: N/A | BI346: N/A | BJ346: N/A | BK346: N/A | BL346: N/A | BM346: N/A | BN346: N/A | BO346: N/A | BP346: N/A | BQ346: N/A | BR346: N/A | BS346: N/A | BT346: N/A | BU346: N/A
BA347: Use of Basic Sanitation and Hygiene | BB347: Yes | BC347: N/A | BD347: N/A | BE347: N/A | BF347: N/A | BG347: N/A | BH347: N/A | BI347: N/A | BJ347: N/A | BK347: N/A | BL347: N/A | BM347: N/A | BN347: N/A | BO347: N/A | BP347: N/A | BQ347: N/A | BR347: N/A | BS347: N/A | BT347: N/A | BU347: N/A
BB348: No | BC348: N/A | BD348: N/A | BE348: N/A | BF348: N/A | BG348: N/A | BH348: N/A | BI348: N/A | BJ348: N/A | BK348: N/A | BL348: N/A | BM348: N/A | BN348: N/A | BO348: N/A | BP348: N/A | BQ348: N/A | BR348: N/A | BS348: N/A | BT348: N/A | BU348: N/A
BA349: Use of Basic Water | BB349: Yes | BC349: N/A | BD349: N/A | BE349: N/A | BF349: N/A | BG349: N/A | BH349: N/A | BI349: N/A | BJ349: N/A | BK349: N/A | BL349: N/A | BM349: N/A | BN349: N/A | BO349: N/A | BP349: N/A | BQ349: N/A | BR349: N/A | BS349: N/A | BT349: N/A | BU349: N/A
BB350: No | BC350: N/A | BD350: N/A | BE350: N/A | BF350: N/A | BG350: N/A | BH350: N/A | BI350: N/A | BJ350: N/A | BK350: N/A | BL350: N/A | BM350: N/A | BN350: N/A | BO350: N/A | BP350: N/A | BQ350: N/A | BR350: N/A | BS350: N/A | BT350: N/A | BU350: N/A
BA351: Use of Basic Sanitation | BB351: Yes | BC351: N/A | BD351: N/A | BE351: N/A | BF351: N/A | BG351: N/A | BH351: N/A | BI351: N/A | BJ351: N/A | BK351: N/A | BL351: N/A | BM351: N/A | BN351: N/A | BO351: N/A | BP351: N/A | BQ351: N/A | BR351: N/A | BS351: N/A | BT351: N/A | BU351: N/A
BB352: No | BC352: N/A | BD352: N/A | BE352: N/A | BF352: N/A | BG352: N/A | BH352: N/A | BI352: N/A | BJ352: N/A | BK352: N/A | BL352: N/A | BM352: N/A | BN352: N/A | BO352: N/A | BP352: N/A | BQ352: N/A | BR352: N/A | BS352: N/A | BT352: N/A | BU352: N/A
BA353: Access to Basic Hygiene | BB353: Yes | BC353: N/A | BD353: N/A | BE353: N/A | BF353: N/A | BG353: N/A | BH353: N/A | BI353: N/A | BJ353: N/A | BK353: N/A | BL353: N/A | BM353: N/A | BN353: N/A | BO353: N/A | BP353: N/A | BQ353: N/A | BR353: N/A | BS353: N/A | BT353: N/A | BU353: N/A
BB354: No | BC354: N/A | BD354: N/A | BE354: N/A | BF354: N/A | BG354: N/A | BH354: N/A | BI354: N/A | BJ354: N/A | BK354: N/A | BL354: N/A | BM354: N/A | BN354: N/A | BO354: N/A | BP354: N/A | BQ354: N/A | BR354: N/A | BS354: N/A | BT354: N/A | BU354: N/A
C399: INITIAL (national) Wealth Index | H399: URBAN Wealth Index | M399: RURAL Wealth Index
C400: Component Matrix | H400: Component Matrix | M400: Component Matrix
E401: Component | J401: Component | O401: Component
B402: Note: The INITIAL (national) Wealth Index is based on the first component of the Principal Component Analysis (PCA) which has been obtained at national level. The final national-level (NATIONAL) Wealth Index is based on the URBAN and RURAL specific wealth indexes. Regression procedures are used to establish the relationships between the two sets of scores (urban and rural) and the initial (national) wealth factors. This allows best use of the available information for each area and a better precision of the FINAL (NATIONAL) Wealth Index. For dependency reasons, all WASH variables (contained in the generic MICS and DHS scripts) have been excluded from the sets of asset variables used in the PCAs. The PCA can extracts as many components as there are asset variables in the input. Only the first of the components is used to represent the Wealth Index. The scores represent the weights of the asset variables on the Wealth Index (correlations between the variables and the component). The communalities are the proportion of each variable's variance that can be explained by the component. Proportion of explained variance is the part of the model's total variance that is explained by the component. For more information on the procedure used: The DHS Wealth Index, DHS Comparative Reports No. 6, Shea Oscar Rutstein, Kiersten Johnson, ORC Macro International Inc., 2004. The DHS Wealth Index: Approaches for Rural and Urban Areas, Shea O. Rutstein, ORC Macro International Inc., 2008. MICS Methodological Paper No. 4, Review of options for reporting water, sanitation and hygiene coverage by wealth quintile, UNICEF, 2016. | E402: 1 | J402: 1 | O402: 1
C403: floor3 | E403: -0.8825118431 | H403: floor2 | J403: 0.8536935244 | M403: floor3 | O403: -0.9222784194
C404: floor2 | E404: 0.8782236099 | H404: floor3 | J404: -0.7865815715 | M404: floor2 | O404: 0.9068699866
C405: Household member owns: asset2a | E405: 0.5043969787 | H405: Household member owns: asset2b | J405: 0.4961776961 | M405: Household member owns: asset2a | O405: 0.4177017202
C406: Household member owns: asset2b | E406: 0.4545350293 | H406: Household member owns: asset2a | J406: 0.4449987245 | M406: Household member owns: asset2e | O406: 0.2736731265
C407: Household member owns: asset2f | E407: -0.4046959673 | H407: Household member owns: asset2c | J407: 0.391595594 | M407: Household member owns: asset2d | O407: 0.227221422
C408: Household member owns: asset2c | E408: 0.3363760817 | H408: floor1 | J408: -0.231912661 | M408: Household member owns: asset2f | O408: -0.2080539562
C409: Household member owns: asset2d | E409: 0.1679371982 | H409: Household member owns: asset2d | J409: 0.1963714471 | M409: Household member owns: asset2c | O409: 0.1965606382
C410: Persons per sleeping rooms | E410: 0.1635086202 | H410: Household member owns: asset2e | J410: 0.1848076639 | M410: Household member owns: asset2b | O410: 0.1590480227
C411: Household member owns: asset2e | E411: 0.1193150039 | H411: Persons per sleeping rooms | J411: -0.1713841023 | M411: floor4 | O411: 0.08316131272
C412: floor1 | E412: 0.04709782941 | H412: floor4 | J412: -0.1614082865 | M412: floor1 | O412: 0.05811559232
C413: floor4 | E413: -0.02107648646 | H413: Household member owns: asset2f | J413: 0.0427466903 | M413: Persons per sleeping rooms | O413: 0.02166877711
C417: Communalities | H417: Communalities | M417: Communalities
E418: Extraction | J418: Extraction | O418: Extraction
C419: Persons per sleeping rooms | E419: 0.02673506889 | H419: Persons per sleeping rooms | J419: 0.02937251053 | M419: Persons per sleeping rooms | O419: 0.0004695359016
... 77 more rows

Sheet MICS06
A2: =A1026 -> Sierra Leone
A3: =A1034 -> 2006
A4: Use of drinking water sources
A5: by wealth quintile and sub-national region
A6: Notes:
A7: WHO/UNICEF JMP customised wealth index excludes water,
A8: sanitation and hygiene assets.
A9: Survey used for analysis: | B9: =A1025 -> MICS06
A10: =B1028 -> 
A11: =B1027 -> 
A14: Use of drinking water sources | C14: NATIONAL wealth index quintile | H14: URBAN wealth index quintile | M14: RURAL wealth index quintile | R14: SUB-REGIONS: | BA14: Raw numbers of respondents: | BB14: Use of drinking water sources | BC14: NATIONAL wealth index quintile | BH14: URBAN wealth index quintile | BM14: RURAL wealth index quintile | BR14: SUB-REGIONS:
A15: Weighted percentage (used in graphs) | C15: Poorest | D15: Poor | E15: Middle | F15: Rich | G15: Richest | H15: Poorest | I15: Poor | J15: Middle | K15: Rich | L15: Richest | M15: Poorest | N15: Poor | O15: Middle | P15: Rich | Q15: Richest | R15: East | S15: North | T15: South | U15: West | BA15: Water data, raw numbers (weighted) | BC15: Poorest | BD15: Poor | BE15: Middle | BF15: Rich | BG15: Richest | BH15: Poorest | BI15: Poor | BJ15: Middle | BK15: Rich | BL15: Richest | BM15: Poorest | BN15: Poor | BO15: Middle | BP15: Rich | BQ15: Richest | BR15: East | BS15: North | BT15: South | BU15: West
A16: Water | B16: Improved | C16: =C58+C59+C60+C61+C62+C64+C66+C67+C68+C70 -> 23.48526755 | D16: 30.61917051 | E16: 33.46078595 | F16: 58.14733574 | G16: 87.75228873 | H16: 16.87539408 | I16: 26.79347918 | J16: 31.30814433 | K16: 32.88564702 | L16: 51.90367578 | M16: 73.65466513 | N16: 79.39806538 | O16: 86.73104254 | P16: 89.38701658 | Q16: 90.93221954 | R16: 52.1377113 | S16: 30.4372402 | T16: 46.10830172 | U16: 86.62081658 | BA16: Water | BB16: Improved | BC16: N/A | BD16: N/A | BE16: N/A | BF16: N/A | BG16: N/A | BH16: N/A | BI16: N/A | BJ16: N/A | BK16: N/A | BL16: N/A | BM16: N/A | BN16: N/A | BO16: N/A | BP16: N/A | BQ16: N/A | BR16: N/A | BS16: N/A | BT16: N/A | BU16: N/A
B17: Not Improved | C17: =100-C16 -> 76.51473245 | D17: =100-D16 -> 69.38082949 | E17: 66.53921405 | F17: 41.85266426 | G17: 12.24771127 | H17: 83.12460592 | I17: 73.20652082 | J17: 68.69185567 | K17: 67.11435298 | L17: 48.09632422 | M17: 26.34533487 | N17: 20.60193462 | O17: 13.26895746 | P17: 10.61298342 | Q17: 9.067780459 | R17: 47.8622887 | S17: 69.5627598 | T17: 53.89169828 | U17: 13.37918342 | BB17: Not Improved | BC17: N/A | BD17: N/A | BE17: N/A | BF17: N/A | BG17: N/A | BH17: N/A | BI17: N/A | BJ17: N/A | BK17: N/A | BL17: N/A | BM17: N/A | BN17: N/A | BO17: N/A | BP17: N/A | BQ17: N/A | BR17: N/A | BS17: N/A | BT17: N/A | BU17: N/A
A18: Water ladder | B18: Basic | C18: 23.27497658 | D18: 29.40630976 | E18: 31.5517914 | F18: 55.48959302 | G18: 81.37847227 | H18: 16.67959509 | I18: 26.38634679 | J18: 29.87454006 | K18: 30.7801832 | L18: 50.88023198 | M18: 69.64462192 | N18: 72.30345957 | O18: 81.78137589 | P18: 81.38007248 | Q18: 84.41759966 | R18: 49.02008533 | S18: 29.47776143 | T18: 44.09633202 | U18: 79.98229046 | BA18: Water ladder | BB18: Basic | BC18: N/A | BD18: N/A | BE18: N/A | BF18: N/A | BG18: N/A | BH18: N/A | BI18: N/A | BJ18: N/A | BK18: N/A | BL18: N/A | BM18: N/A | BN18: N/A | BO18: N/A | BP18: N/A | BQ18: N/A | BR18: N/A | BS18: N/A | BT18: N/A | BU18: N/A
B19: Limited | C19: 0.2102909701 | D19: 1.212860753 | E19: 1.908994545 | F19: 2.657742722 | G19: 6.373816465 | H19: 0.1957989897 | I19: 0.4071323884 | J19: 1.433604277 | K19: 2.105463817 | L19: 1.023443802 | M19: 4.010043216 | N19: 7.094605809 | O19: 4.949666643 | P19: 8.006944106 | Q19: 6.514619882 | R19: 3.117625973 | S19: 0.9594787705 | T19: 2.011969705 | U19: 6.638526124 | BB19: Limited | BC19: N/A | BD19: N/A | BE19: N/A | BF19: N/A | BG19: N/A | BH19: N/A | BI19: N/A | BJ19: N/A | BK19: N/A | BL19: N/A | BM19: N/A | BN19: N/A | BO19: N/A | BP19: N/A | BQ19: N/A | BR19: N/A | BS19: N/A | BT19: N/A | BU19: N/A
B20: Unimproved | C20: 17.32149109 | D20: 16.43230359 | E20: 18.07439762 | F20: 15.72559807 | G20: 8.104127379 | H20: 18.33645725 | I20: 16.36828461 | J20: 16.18163192 | K20: 19.67676218 | L20: 16.2795073 | M20: 13.53200247 | N20: 10.93806793 | O20: 9.232845896 | P20: 7.374028169 | Q20: 6.266677696 | R20: 16.54964803 | S20: 15.49705598 | T20: 17.62933571 | U20: 7.489619217 | BB20: Unimproved | BC20: N/A | BD20: N/A | BE20: N/A | BF20: N/A | BG20: N/A | BH20: N/A | BI20: N/A | BJ20: N/A | BK20: N/A | BL20: N/A | BM20: N/A | BN20: N/A | BO20: N/A | BP20: N/A | BQ20: N/A | BR20: N/A | BS20: N/A | BT20: N/A | BU20: N/A
B21: Surface water | C21: 59.19324136 | D21: 52.9485259 | E21: 48.46481643 | F21: 26.12706619 | G21: 4.143583886 | H21: 64.78814867 | I21: 56.83823622 | J21: 52.51022375 | K21: 47.4375908 | L21: 31.81681691 | M21: 12.8133324 | N21: 9.66386669 | O21: 4.036111568 | P21: 3.23895525 | Q21: 2.801102763 | R21: 31.31264067 | S21: 54.06570382 | T21: 36.26236257 | U21: 5.889564202 | BB21: Surface water | BC21: N/A | BD21: N/A | BE21: N/A | BF21: N/A | BG21: N/A | BH21: N/A | BI21: N/A | BJ21: N/A | BK21: N/A | BL21: N/A | BM21: N/A | BN21: N/A | BO21: N/A | BP21: N/A | BQ21: N/A | BR21: N/A | BS21: N/A | BT21: N/A | BU21: N/A
A22: Improved water point at more than 30 minutes | B22: Yes | C22: 0.8954165398 | D22: 3.961115642 | E22: 5.705169473 | F22: 4.570704208 | G22: 7.263419059 | H22: 1.160263214 | I22: 1.519520424 | J22: 4.579013887 | K22: 6.402379178 | L22: 1.971813724 | M22: 5.44438456 | N22: 8.935489518 | O22: 5.706914731 | P22: 8.957614217 | Q22: 7.164259176 | R22: 5.979598826 | S22: 3.152318555 | T22: 4.363573651 | U22: 7.663892337 | BA22: Improved water point at more than 30 minutes | BB22: Yes | BC22: N/A | BD22: N/A | BE22: N/A | BF22: N/A | BG22: N/A | BH22: N/A | BI22: N/A | BJ22: N/A | BK22: N/A | BL22: N/A | BM22: N/A | BN22: N/A | BO22: N/A | BP22: N/A | BQ22: N/A | BR22: N/A | BS22: N/A | BT22: N/A | BU22: N/A
B23: No | C23: 99.10458346 | D23: 96.03888436 | E23: 94.29483053 | F23: 95.42929579 | G23: 92.73658094 | H23: 98.83973679 | I23: 98.48047958 | J23: 95.42098611 | K23: 93.59762082 | L23: 98.02818628 | M23: 94.55561544 | N23: 91.06451048 | O23: 94.29308527 | P23: 91.04238578 | Q23: 92.83574082 | R23: 94.02040117 | S23: 96.84768145 | T23: 95.63642635 | U23: 92.33610766 | BB23: No | BC23: N/A | BD23: N/A | BE23: N/A | BF23: N/A | BG23: N/A | BH23: N/A | BI23: N/A | BJ23: N/A | BK23: N/A | BL23: N/A | BM23: N/A | BN23: N/A | BO23: N/A | BP23: N/A | BQ23: N/A | BR23: N/A | BS23: N/A | BT23: N/A | BU23: N/A
A24: Manually calculated ratios | B24: Improved wells
B25: Improved springs
B26: Other
C27: NATIONAL wealth index quintile | H27: URBAN wealth index quintile | M27: RURAL wealth index quintile | R27: SUB-REGIONS: | BA27: Raw numbers of respondents: | BB27: Use of drinking water sources | BC27: NATIONAL wealth index quintile | BH27: URBAN wealth index quintile | BM27: RURAL wealth index quintile | BR27: SUB-REGIONS:
A28: Percentage based on weighted population | C28: Poorest | D28: Poor | E28: Middle | F28: Rich | G28: Richest | H28: Poorest | I28: Poor | J28: Middle | K28: Rich | L28: Richest | M28: Poorest | N28: Poor | O28: Middle | P28: Rich | Q28: Richest | R28: East | S28: North | T28: South | U28: West | BA28: Water data, raw numbers (weighted) | BC28: Poorest | BD28: Poor | BE28: Middle | BF28: Rich | BG28: Richest | BH28: Poorest | BI28: Poor | BJ28: Middle | BK28: Rich | BL28: Richest | BM28: Poorest | BN28: Poor | BO28: Middle | BP28: Rich | BQ28: Richest | BR28: East | BS28: North | BT28: South | BU28: West
A29: Piped water | B29: Yes | C29: 5.774582512 | D29: 6.719661123 | E29: 5.151627938 | F29: 22.28457558 | G29: 56.62434654 | H29: 5.247443344 | I29: 3.967173427 | J29: 6.115595575 | K29: 5.002079872 | L29: 18.2763885 | M29: 25.99737747 | N29: 44.44161176 | O29: 44.22121927 | P29: 57.1016741 | Q29: 71.45281308 | R29: 19.11875186 | S29: 5.641313501 | T29: 9.030903292 | U29: 77.27581442 | BA29: Piped water | BB29: Yes | BC29: N/A | BD29: N/A | BE29: N/A | BF29: N/A | BG29: N/A | BH29: N/A | BI29: N/A | BJ29: N/A | BK29: N/A | BL29: N/A | BM29: N/A | BN29: N/A | BO29: N/A | BP29: N/A | BQ29: N/A | BR29: N/A | BS29: N/A | BT29: N/A | BU29: N/A
B30: No | C30: 94.22541749 | D30: 93.28033888 | E30: 94.84837206 | F30: 77.71542442 | G30: 43.37565346 | H30: 94.75255666 | I30: 96.03282657 | J30: 93.88440443 | K30: 94.99792013 | L30: 81.7236115 | M30: 74.00262253 | N30: 55.55838824 | O30: 55.77878073 | P30: 42.8983259 | Q30: 28.54718692 | R30: 80.88124814 | S30: 94.3586865 | T30: 90.96909671 | U30: 22.72418558 | BB30: No | BC30: N/A | BD30: N/A | BE30: N/A | BF30: N/A | BG30: N/A | BH30: N/A | BI30: N/A | BJ30: N/A | BK30: N/A | BL30: N/A | BM30: N/A | BN30: N/A | BO30: N/A | BP30: N/A | BQ30: N/A | BR30: N/A | BS30: N/A | BT30: N/A | BU30: N/A
A31: Piped water on premises | B31: Yes | C31: 0.5715845037 | D31: 0.4546638016 | E31: 0.2685134363 | F31: 4.182613344 | G31: 27.10324271 | H31: 0.3747984646 | I31: 0.1790077545 | J31: 0.4885307769 | K31: 0.292962844 | L31: 3.988661349 | M31: 4.051812219 | N31: 12.83379338 | O31: 17.57022278 | P31: 27.21545418 | Q31: 39.90005791 | R31: 4.265555586 | S31: 0.9417551743 | T31: 0 | U31: 37.68353183 | BA31: Piped water on premises | BB31: Yes | BC31: N/A | BD31: N/A | BE31: N/A | BF31: N/A | BG31: N/A | BH31: N/A | BI31: N/A | BJ31: N/A | BK31: N/A | BL31: N/A | BM31: N/A | BN31: N/A | BO31: N/A | BP31: N/A | BQ31: N/A | BR31: N/A | BS31: N/A | BT31: N/A | BU31: N/A
B32: No | C32: 99.4284155 | D32: 99.5453362 | E32: 99.73148656 | F32: 95.81738666 | G32: 72.89675729 | H32: 99.62520154 | I32: 99.82099225 | J32: 99.51146922 | K32: 99.70703716 | L32: 96.01133865 | M32: 95.94818778 | N32: 87.16620662 | O32: 82.42977722 | P32: 72.78454582 | Q32: 60.09994209 | R32: 95.73444441 | S32: 99.05824483 | T32: 100 | U32: 62.31646817 | BB32: No | BC32: N/A | BD32: N/A | BE32: N/A | BF32: N/A | BG32: N/A | BH32: N/A | BI32: N/A | BJ32: N/A | BK32: N/A | BL32: N/A | BM32: N/A | BN32: N/A | BO32: N/A | BP32: N/A | BQ32: N/A | BR32: N/A | BS32: N/A | BT32: N/A | BU32: N/A
A33: Piped water into dwelling | B33: Yes | C33: N/A | D33: N/A | E33: N/A | F33: N/A | G33: N/A | H33: N/A | I33: N/A | J33: N/A | K33: N/A | L33: N/A | M33: N/A | N33: N/A | O33: N/A | P33: N/A | Q33: N/A | R33: N/A | S33: N/A | T33: N/A | U33: N/A | BA33: Piped water into dwelling | BB33: Yes | BC33: N/A | BD33: N/A | BE33: N/A | BF33: N/A | BG33: N/A | BH33: N/A | BI33: N/A | BJ33: N/A | BK33: N/A | BL33: N/A | BM33: N/A | BN33: N/A | BO33: N/A | BP33: N/A | BQ33: N/A | BR33: N/A | BS33: N/A | BT33: N/A | BU33: N/A
B34: No | C34: N/A | D34: N/A | E34: N/A | F34: N/A | G34: N/A | H34: N/A | I34: N/A | J34: N/A | K34: N/A | L34: N/A | M34: N/A | N34: N/A | O34: N/A | P34: N/A | Q34: N/A | R34: N/A | S34: N/A | T34: N/A | U34: N/A | BB34: No | BC34: N/A | BD34: N/A | BE34: N/A | BF34: N/A | BG34: N/A | BH34: N/A | BI34: N/A | BJ34: N/A | BK34: N/A | BL34: N/A | BM34: N/A | BN34: N/A | BO34: N/A | BP34: N/A | BQ34: N/A | BR34: N/A | BS34: N/A | BT34: N/A | BU34: N/A
A35: Water source on premises | B35: Yes | C35: 1.193803607 | D35: 0.7816553124 | E35: 1.240035928 | F35: 5.808465878 | G35: 31.75252243 | H35: 0.8988333655 | I35: 0.406716467 | J35: 0.7984904851 | K35: 1.990612347 | L35: 5.064199027 | M35: 5.652355998 | N35: 15.20893362 | O35: 22.39962649 | P35: 35.66535099 | Q35: 41.87572743 | R35: 7.950983564 | S35: 2.18535745 | T35: 0.6908783944 | U35: 38.65377796 | BA35: Water source on premises | BB35: Yes | BC35: N/A | BD35: N/A | BE35: N/A | BF35: N/A | BG35: N/A | BH35: N/A | BI35: N/A | BJ35: N/A | BK35: N/A | BL35: N/A | BM35: N/A | BN35: N/A | BO35: N/A | BP35: N/A | BQ35: N/A | BR35: N/A | BS35: N/A | BT35: N/A | BU35: N/A
B36: No | C36: 98.80619639 | D36: 99.21834469 | E36: 98.75996407 | F36: 94.19153412 | G36: 68.24747757 | H36: 99.10116663 | I36: 99.59328353 | J36: 99.20150951 | K36: 98.00938765 | L36: 94.93580097 | M36: 94.347644 | N36: 84.79106638 | O36: 77.60037351 | P36: 64.33464901 | Q36: 58.12427257 | R36: 92.04901644 | S36: 97.81464255 | T36: 99.30912161 | U36: 61.34622204 | BB36: No | BC36: N/A | BD36: N/A | BE36: N/A | BF36: N/A | BG36: N/A | BH36: N/A | BI36: N/A | BJ36: N/A | BK36: N/A | BL36: N/A | BM36: N/A | BN36: N/A | BO36: N/A | BP36: N/A | BQ36: N/A | BR36: N/A | BS36: N/A | BT36: N/A | BU36: N/A
A37: Improved Water source on premises | B37: Yes | C37: 4.63349188 | D37: 2.55282981 | E37: 3.002419321 | F37: 9.255986726 | G37: 36.02497102 | H37: 4.45379695 | I37: 1.517968101 | J37: 2.550424186 | K37: 5.05460818 | L37: 9.34878844 | M37: 6.756161606 | N37: 18.78264887 | O37: 25.25666528 | P37: 39.89992323 | Q37: 46.05158396 | R37: 15.19141081 | S37: 6.254927433 | T37: 1.322229266 | U37: 44.27040284 | BA37: Improved water source on premises | BB37: Yes | BC37: N/A | BD37: N/A | BE37: N/A | BF37: N/A | BG37: N/A | BH37: N/A | BI37: N/A | BJ37: N/A | BK37: N/A | BL37: N/A | BM37: N/A | BN37: N/A | BO37: N/A | BP37: N/A | BQ37: N/A | BR37: N/A | BS37: N/A | BT37: N/A | BU37: N/A
B38: No | C38: 95.36650812 | D38: 97.44717019 | E38: 96.99758068 | F38: 90.74401327 | G38: 63.97502898 | H38: 95.54620305 | I38: 98.4820319 | J38: 97.44957581 | K38: 94.94539182 | L38: 90.65121156 | M38: 93.24383839 | N38: 81.21735113 | O38: 74.74333472 | P38: 60.10007677 | Q38: 53.94841604 | R38: 84.80858919 | S38: 93.74507257 | T38: 98.67777073 | U38: 55.72959716 | BB38: No | BC38: N/A | BD38: N/A | BE38: N/A | BF38: N/A | BG38: N/A | BH38: N/A | BI38: N/A | BJ38: N/A | BK38: N/A | BL38: N/A | BM38: N/A | BN38: N/A | BO38: N/A | BP38: N/A | BQ38: N/A | BR38: N/A | BS38: N/A | BT38: N/A | BU38: N/A
A39: Piped water on premises available when needed | B39: Yes | C39: N/A | D39: N/A | E39: N/A | F39: N/A | G39: N/A | H39: N/A | I39: N/A | J39: N/A | K39: N/A | L39: N/A | M39: N/A | N39: N/A | O39: N/A | P39: N/A | Q39: N/A | R39: N/A | S39: N/A | T39: N/A | U39: N/A | BA39: Piped water on premises available when needed | BB39: Yes | BC39: N/A | BD39: N/A | BE39: N/A | BF39: N/A | BG39: N/A | BH39: N/A | BI39: N/A | BJ39: N/A | BK39: N/A | BL39: N/A | BM39: N/A | BN39: N/A | BO39: N/A | BP39: N/A | BQ39: N/A | BR39: N/A | BS39: N/A | BT39: N/A | BU39: N/A
B40: No | C40: N/A | D40: N/A | E40: N/A | F40: N/A | G40: N/A | H40: N/A | I40: N/A | J40: N/A | K40: N/A | L40: N/A | M40: N/A | N40: N/A | O40: N/A | P40: N/A | Q40: N/A | R40: N/A | S40: N/A | T40: N/A | U40: N/A | BB40: No | BC40: N/A | BD40: N/A | BE40: N/A | BF40: N/A | BG40: N/A | BH40: N/A | BI40: N/A | BJ40: N/A | BK40: N/A | BL40: N/A | BM40: N/A | BN40: N/A | BO40: N/A | BP40: N/A | BQ40: N/A | BR40: N/A | BS40: N/A | BT40: N/A | BU40: N/A
A41: Water point at more than 30 minutes | B41: Yes | C41: 10.70294386 | D41: 9.183793972 | E41: 12.99542458 | F41: 8.884623775 | G41: 8.4984169 | H41: 11.86429592 | I41: 8.691985176 | J41: 11.03561622 | K41: 13.49094964 | L41: 8.7443057 | M41: 6.709736661 | N41: 8.695932773 | O41: 7.359105338 | P41: 10.58835581 | Q41: 7.873327376 | R41: 11.09463132 | S41: 12.78618504 | T41: 4.957285099 | U41: 8.766258856 | BA41: Water point at more than 30 minutes | BB41: Yes | BC41: N/A | BD41: N/A | BE41: N/A | BF41: N/A | BG41: N/A | BH41: N/A | BI41: N/A | BJ41: N/A | BK41: N/A | BL41: N/A | BM41: N/A | BN41: N/A | BO41: N/A | BP41: N/A | BQ41: N/A | BR41: N/A | BS41: N/A | BT41: N/A | BU41: N/A
B42: No | C42: 89.29705614 | D42: 90.81620603 | E42: 87.00457542 | F42: 91.11537622 | G42: 91.5015831 | H42: 88.13570408 | I42: 91.30801482 | J42: 88.96438378 | K42: 86.50905036 | L42: 91.2556943 | M42: 93.29026334 | N42: 91.30406723 | O42: 92.64089466 | P42: 89.41164419 | Q42: 92.12667262 | R42: 88.90536868 | S42: 87.21381496 | T42: 95.0427149 | U42: 91.23374114 | BB42: No | BC42: N/A | BD42: N/A | BE42: N/A | BF42: N/A | BG42: N/A | BH42: N/A | BI42: N/A | BJ42: N/A | BK42: N/A | BL42: N/A | BM42: N/A | BN42: N/A | BO42: N/A | BP42: N/A | BQ42: N/A | BR42: N/A | BS42: N/A | BT42: N/A | BU42: N/A
A43: Water source available when needed | B43: Yes | C43: N/A | D43: N/A | E43: N/A | F43: N/A | G43: N/A | H43: N/A | I43: N/A | J43: N/A | K43: N/A | L43: N/A | M43: N/A | N43: N/A | O43: N/A | P43: N/A | Q43: N/A | R43: N/A | S43: N/A | T43: N/A | U43: N/A | BA43: Water source available when needed | BB43: Yes | BC43: N/A | BD43: N/A | BE43: N/A | BF43: N/A | BG43: N/A | BH43: N/A | BI43: N/A | BJ43: N/A | BK43: N/A | BL43: N/A | BM43: N/A | BN43: N/A | BO43: N/A | BP43: N/A | BQ43: N/A | BR43: N/A | BS43: N/A | BT43: N/A | BU43: N/A
B44: No | C44: N/A | D44: N/A | E44: N/A | F44: N/A | G44: N/A | H44: N/A | I44: N/A | J44: N/A | K44: N/A | L44: N/A | M44: N/A | N44: N/A | O44: N/A | P44: N/A | Q44: N/A | R44: N/A | S44: N/A | T44: N/A | U44: N/A | BB44: No | BC44: N/A | BD44: N/A | BE44: N/A | BF44: N/A | BG44: N/A | BH44: N/A | BI44: N/A | BJ44: N/A | BK44: N/A | BL44: N/A | BM44: N/A | BN44: N/A | BO44: N/A | BP44: N/A | BQ44: N/A | BR44: N/A | BS44: N/A | BT44: N/A | BU44: N/A
A45: Improved water source available when needed | B45: Yes | C45: N/A | D45: N/A | E45: N/A | F45: N/A | G45: N/A | H45: N/A | I45: N/A | J45: N/A | K45: N/A | L45: N/A | M45: N/A | N45: N/A | O45: N/A | P45: N/A | Q45: N/A | R45: N/A | S45: N/A | T45: N/A | U45: N/A | BA45: Improved water source available when needed | BB45: Yes | BC45: N/A | BD45: N/A | BE45: N/A | BF45: N/A | BG45: N/A | BH45: N/A | BI45: N/A | BJ45: N/A | BK45: N/A | BL45: N/A | BM45: N/A | BN45: N/A | BO45: N/A | BP45: N/A | BQ45: N/A | BR45: N/A | BS45: N/A | BT45: N/A | BU45: N/A
B46: No | C46: N/A | D46: N/A | E46: N/A | F46: N/A | G46: N/A | H46: N/A | I46: N/A | J46: N/A | K46: N/A | L46: N/A | M46: N/A | N46: N/A | O46: N/A | P46: N/A | Q46: N/A | R46: N/A | S46: N/A | T46: N/A | U46: N/A | BB46: No | BC46: N/A | BD46: N/A | BE46: N/A | BF46: N/A | BG46: N/A | BH46: N/A | BI46: N/A | BJ46: N/A | BK46: N/A | BL46: N/A | BM46: N/A | BN46: N/A | BO46: N/A | BP46: N/A | BQ46: N/A | BR46: N/A | BS46: N/A | BT46: N/A | BU46: N/A
A47: Microbiological quality at point of collection | B47: Not contaminated (No E. coli in 100 mL) | C47: N/A | D47: N/A | E47: N/A | F47: N/A | G47: N/A | H47: N/A | I47: N/A | J47: N/A | K47: N/A | L47: N/A | M47: N/A | N47: N/A | O47: N/A | P47: N/A | Q47: N/A | R47: N/A | S47: N/A | T47: N/A | U47: N/A | BA47: Microbiological quality at point of collection | BB47: Not contaminated (No E. coli in 100 mL) | BC47: N/A | BD47: N/A | BE47: N/A | BF47: N/A | BG47: N/A | BH47: N/A | BI47: N/A | BJ47: N/A | BK47: N/A | BL47: N/A | BM47: N/A | BN47: N/A | BO47: N/A | BP47: N/A | BQ47: N/A | BR47: N/A | BS47: N/A | BT47: N/A | BU47: N/A
B48: Contaminated (E. coli detected in 100 mL) | C48: N/A | D48: N/A | E48: N/A | F48: N/A | G48: N/A | H48: N/A | I48: N/A | J48: N/A | K48: N/A | L48: N/A | M48: N/A | N48: N/A | O48: N/A | P48: N/A | Q48: N/A | R48: N/A | S48: N/A | T48: N/A | U48: N/A | BB48: Contaminated (E. coli detected in 100 mL) | BC48: N/A | BD48: N/A | BE48: N/A | BF48: N/A | BG48: N/A | BH48: N/A | BI48: N/A | BJ48: N/A | BK48: N/A | BL48: N/A | BM48: N/A | BN48: N/A | BO48: N/A | BP48: N/A | BQ48: N/A | BR48: N/A | BS48: N/A | BT48: N/A | BU48: N/A
B49: Highly contaminated (>100 CFU/100 mL) | C49: N/A | D49: N/A | E49: N/A | F49: N/A | G49: N/A | H49: N/A | I49: N/A | J49: N/A | K49: N/A | L49: N/A | M49: N/A | N49: N/A | O49: N/A | P49: N/A | Q49: N/A | R49: N/A | S49: N/A | T49: N/A | U49: N/A | BB49: Highly contaminated (>100 CFU/100 mL) | BC49: N/A | BD49: N/A | BE49: N/A | BF49: N/A | BG49: N/A | BH49: N/A | BI49: N/A | BJ49: N/A | BK49: N/A | BL49: N/A | BM49: N/A | BN49: N/A | BO49: N/A | BP49: N/A | BQ49: N/A | BR49: N/A | BS49: N/A | BT49: N/A | BU49: N/A
A50: Microbiological quality of improved water sources at point of collection | B50: Not contaminated (No E. coli in 100 mL) | C50: N/A | D50: N/A | E50: N/A | F50: N/A | G50: N/A | H50: N/A | I50: N/A | J50: N/A | K50: N/A | L50: N/A | M50: N/A | N50: N/A | O50: N/A | P50: N/A | Q50: N/A | R50: N/A | S50: N/A | T50: N/A | U50: N/A | BA50: Microbiological quality of improved water sources at point of collection | BB50: Not contaminated (No E. coli in 100 mL) | BC50: N/A | BD50: N/A | BE50: N/A | BF50: N/A | BG50: N/A | BH50: N/A | BI50: N/A | BJ50: N/A | BK50: N/A | BL50: N/A | BM50: N/A | BN50: N/A | BO50: N/A | BP50: N/A | BQ50: N/A | BR50: N/A | BS50: N/A | BT50: N/A | BU50: N/A
B51: Contaminated (E. coli detected in 100 mL) | C51: N/A | D51: N/A | E51: N/A | F51: N/A | G51: N/A | H51: N/A | I51: N/A | J51: N/A | K51: N/A | L51: N/A | M51: N/A | N51: N/A | O51: N/A | P51: N/A | Q51: N/A | R51: N/A | S51: N/A | T51: N/A | U51: N/A | BB51: Contaminated (E. coli detected in 100 mL) | BC51: N/A | BD51: N/A | BE51: N/A | BF51: N/A | BG51: N/A | BH51: N/A | BI51: N/A | BJ51: N/A | BK51: N/A | BL51: N/A | BM51: N/A | BN51: N/A | BO51: N/A | BP51: N/A | BQ51: N/A | BR51: N/A | BS51: N/A | BT51: N/A | BU51: N/A
B52: Highly contaminated (>100 CFU/100 mL) | C52: N/A | D52: N/A | E52: N/A | F52: N/A | G52: N/A | H52: N/A | I52: N/A | J52: N/A | K52: N/A | L52: N/A | M52: N/A | N52: N/A | O52: N/A | P52: N/A | Q52: N/A | R52: N/A | S52: N/A | T52: N/A | U52: N/A | BB52: Highly contaminated (>100 CFU/100 mL) | BC52: N/A | BD52: N/A | BE52: N/A | BF52: N/A | BG52: N/A | BH52: N/A | BI52: N/A | BJ52: N/A | BK52: N/A | BL52: N/A | BM52: N/A | BN52: N/A | BO52: N/A | BP52: N/A | BQ52: N/A | BR52: N/A | BS52: N/A | BT52: N/A | BU52: N/A
A53: Microbiological quality of piped on premises at point of collection | B53: Not contaminated (No E. coli in 100 mL) | C53: N/A | D53: N/A | E53: N/A | F53: N/A | G53: N/A | H53: N/A | I53: N/A | J53: N/A | K53: N/A | L53: N/A | M53: N/A | N53: N/A | O53: N/A | P53: N/A | Q53: N/A | R53: N/A | S53: N/A | T53: N/A | U53: N/A | BA53: Microbiological quality of piped on premises at point of collection | BB53: Not contaminated (No E. coli in 100 mL) | BC53: N/A | BD53: N/A | BE53: N/A | BF53: N/A | BG53: N/A | BH53: N/A | BI53: N/A | BJ53: N/A | BK53: N/A | BL53: N/A | BM53: N/A | BN53: N/A | BO53: N/A | BP53: N/A | BQ53: N/A | BR53: N/A | BS53: N/A | BT53: N/A | BU53: N/A
B54: Contaminated (E. coli detected in 100 mL) | C54: N/A | D54: N/A | E54: N/A | F54: N/A | G54: N/A | H54: N/A | I54: N/A | J54: N/A | K54: N/A | L54: N/A | M54: N/A | N54: N/A | O54: N/A | P54: N/A | Q54: N/A | R54: N/A | S54: N/A | T54: N/A | U54: N/A | BB54: Contaminated (E. coli detected in 100 mL) | BC54: N/A | BD54: N/A | BE54: N/A | BF54: N/A | BG54: N/A | BH54: N/A | BI54: N/A | BJ54: N/A | BK54: N/A | BL54: N/A | BM54: N/A | BN54: N/A | BO54: N/A | BP54: N/A | BQ54: N/A | BR54: N/A | BS54: N/A | BT54: N/A | BU54: N/A
B55: Highly contaminated (>100 CFU/100 mL) | C55: N/A | D55: N/A | E55: N/A | F55: N/A | G55: N/A | H55: N/A | I55: N/A | J55: N/A | K55: N/A | L55: N/A | M55: N/A | N55: N/A | O55: N/A | P55: N/A | Q55: N/A | R55: N/A | S55: N/A | T55: N/A | U55: N/A | BB55: Highly contaminated (>100 CFU/100 mL) | BC55: N/A | BD55: N/A | BE55: N/A | BF55: N/A | BG55: N/A | BH55: N/A | BI55: N/A | BJ55: N/A | BK55: N/A | BL55: N/A | BM55: N/A | BN55: N/A | BO55: N/A | BP55: N/A | BQ55: N/A | BR55: N/A | BS55: N/A | BT55: N/A | BU55: N/A
C56: NATIONAL wealth index quintile | H56: URBAN wealth index quintile | M56: RURAL wealth index quintile | R56: SUB-REGIONS: | BA56: Raw numbers of respondents: | BB56: Use of drinking water sources | BC56: NATIONAL wealth index quintile | BH56: URBAN wealth index quintile | BM56: RURAL wealth index quintile | BR56: SUB-REGIONS:
A57: Percentage based on weighted population | C57: Poorest | D57: Poor | E57: Middle | F57: Rich | G57: Richest | H57: Poorest | I57: Poor | J57: Middle | K57: Rich | L57: Richest | M57: Poorest | N57: Poor | O57: Middle | P57: Rich | Q57: Richest | R57: East | S57: North | T57: South | U57: West | BA57: Water data, raw numbers (weighted) | BC57: Poorest | BD57: Poor | BE57: Middle | BF57: Rich | BG57: Richest | BH57: Poorest | BI57: Poor | BJ57: Middle | BK57: Rich | BL57: Richest | BM57: Poorest | BN57: Poor | BO57: Middle | BP57: Rich | BQ57: Richest | BR57: East | BS57: North | BT57: South | BU57: West
A58: Main source of drinking water | B58: Piped into dwelling | C58: 0.05884604831 | D58: 0 | E58: 0 | F58: 0.3258611231 | G58: 7.459404256 | H58: 0.08203661402 | I58: 0 | J58: 0 | K58: 0 | L58: 0.5701594847 | M58: 0.1655254646 | N58: 1.879567396 | O58: 3.10865326 | P58: 5.47070196 | Q58: 15.43333796 | R58: 0.527512778 | S58: 0.3485185605 | T58: 0 | U58: 9.548666518
B59: Piped into yard or plot | C59: 0.5127384554 | D59: 0.4546638016 | E59: 0.2685134363 | F59: 3.856752221 | G59: 19.64383846 | H59: 0.2927618506 | I59: 0.1790077545 | J59: 0.4885307769 | K59: 0.292962844 | L59: 3.418501864 | M59: 3.886286754 | N59: 10.95422598 | O59: 14.46156952 | P59: 21.74475222 | Q59: 24.46671995 | R59: 3.738042808 | S59: 0.5932366138 | T59: 0 | U59: 28.13486531
B60: Public tap/standpipe | C60: 5.202998008 | D60: 6.264997321 | E60: 4.883114502 | F60: 18.10196224 | G60: 29.52110382 | H60: 4.87264488 | I60: 3.788165673 | J60: 5.627064798 | K60: 4.709117028 | L60: 14.28772716 | M60: 21.94556525 | N60: 31.60781838 | O60: 26.65099649 | P60: 29.88621992 | Q60: 31.55275517 | R60: 14.85319627 | S60: 4.699558327 | T60: 9.030903292 | U60: 39.59228259
B61: Tubewell/borehole | C61: 3.995381669 | D61: 6.94631163 | E61: 8.8884036 | F61: 8.791336734 | G61: 1.867185515 | H61: 3.236098332 | I61: 6.875342489 | J61: 6.445341388 | K61: 10.86321545 | L61: 10.00540381 | M61: 3.759758954 | N61: 3.363332436 | O61: 1.979740587 | P61: 3.121477765 | Q61: 0.7003828167 | R61: 5.36134284 | S61: 2.53732025 | T61: 16.75393085 | U61: 0
B62: Protected well | C62: 13.22322051 | D62: 16.10919451 | E62: 18.5893988 | F62: 25.67371373 | G62: 27.00367802 | H62: 7.787018864 | I62: 15.10210919 | J62: 18.10726245 | K62: 16.09052452 | L62: 22.42669005 | M62: 43.34133724 | N62: 28.76064136 | O62: 38.06147344 | P62: 26.9794345 | Q62: 16.95033408 | R62: 26.82442237 | S62: 20.94107503 | T62: 19.28659394 | U62: 7.864100177
B63: Unprotected well | C63: 7.292471716 | D63: 8.03401202 | E63: 10.88639685 | F63: 10.26300806 | G63: 5.422704462 | H63: 7.006521245 | I63: 7.61979581 | J63: 8.104972188 | K63: 12.03651539 | L63: 9.16624244 | M63: 12.29023581 | N63: 9.300015959 | O63: 7.045024188 | P63: 6.346616385 | Q63: 1.776674738 | R63: 7.777652769 | S63: 10.7207225 | T63: 7.730117215 | U63: 3.557569128
B64: Protected spring | C64: 0.3161637383 | D64: 0.6910606364 | E64: 0.4799374497 | F64: 1.090939668 | G64: 1.798173881 | H64: 0.4407603112 | I64: 0.7676360768 | J64: 0.3444263085 | K64: 0.5217144707 | L64: 0.9983801134 | M64: 0.2567037564 | N64: 2.546642489 | O64: 2.127935969 | P64: 0.9053517712 | Q64: 1.828689555 | R64: 0.4271585755 | S64: 0.9076206263 | T64: 0.9048618211 | U64: 1.480901981
B65: Unprotected spring | C65: 10.02901938 | D65: 8.315937863 | E65: 7.070299356 | F65: 5.392028927 | G65: 1.633029079 | H65: 11.32993601 | I65: 8.633574798 | J65: 8.076659729 | K65: 7.476060913 | L65: 7.014858211 | M65: 1.241766662 | N65: 1.638051975 | O65: 1.652376208 | P65: 0.4931576559 | Q65: 1.853670946 | R65: 8.771995259 | S65: 4.642545443 | T65: 9.899218497 | U65: 2.400082522
B66: Rainwater collection | C66: 0 | D66: 0.152942608 | E66: 0 | F66: 0.1411221703 | G66: 0.06021824631 | H66: 0 | I66: 0 | J66: 0.213430109 | K66: 0 | L66: 0.1968133053 | M66: 0 | N66: 0 | O66: 0 | P66: 0.2124470413 | Q66: 0 | R66: 0 | S66: 0.1751885858 | T66: 0 | U66: 0
B67: Tanker-truck | C67: 0 | D67: 0 | E67: 0 | F67: 0.0116683378 | G67: 0 | H67: 0 | I67: 0 | J67: 0 | K67: 0 | L67: 0 | M67: 0 | N67: 0.04097609187 | O67: 0 | P67: 0 | Q67: 0 | R67: 0 | S67: 0 | T67: 0.01018041946 | U67: 0
B68: Cart with small tank/drum | C68: 0.05822702782 | D68: 0 | E68: 0.140374998 | F68: 0.08425291812 | G68: 0.0963491941 | H68: 0 | I68: 0.08121798792 | J68: 0.08208850348 | K68: 0.1137211231 | L68: 0 | M68: 0.2994877158 | N68: 0 | O68: 0.3406732685 | P68: 0 | Q68: 0 | R68: 0 | S68: 0.1183847939 | T68: 0.1218314026 | U68: 0
B69: Surface water | C69: 59.19324136 | D69: 52.9485259 | E69: 48.46481643 | F69: 26.12706619 | G69: 4.143583886 | H69: 64.78814867 | I69: 56.83823622 | J69: 52.51022375 | K69: 47.4375908 | L69: 31.81681691 | M69: 12.8133324 | N69: 9.66386669 | O69: 4.036111568 | P69: 3.23895525 | Q69: 2.801102763 | R69: 31.31264067 | S69: 54.06570382 | T69: 36.26236257 | U69: 5.889564202
B70: Bottled water | C70: 0.1176920966 | D70: 0 | E70: 0.2110431583 | F70: 0.06972660133 | G70: 0.3023373362 | H70: 0.164073228 | I70: 0 | J70: 0 | K70: 0.2943915797 | L70: 0 | M70: 0 | N70: 0.2448612364 | O70: 0 | P70: 1.066631403 | Q70: 0 | R70: 0.4060356629 | S70: 0.1163374182 | T70: 0 | U70: 0
B71: Other | C71: 0 | D71: 0.08235371203 | E71: 0.1177014127 | F71: 0.07056108515 | G71: 1.048393838 | H71: 0 | I71: 0.1149140004 | J71: 0 | K71: 0.1641858713 | L71: 0.09840665264 | M71: 0 | N71: 0 | O71: 0.5354455004 | P71: 0.5342541272 | Q71: 2.636332012 | R71: 0 | S71: 0.1337880309 | T71: 0 | U71: 1.531967567
A108: =A1026 -> Sierra Leone
A109: =A1034 -> 2006
A110: Use of sanitation facilities
A111: by wealth quintile and sub-national region
A112: Notes:
A113: WHO/UNICEF JMP customised wealth index excludes water,
A114: sanitation and hygiene assets.
A115: Survey used for analysis: | B115: =A1025 -> MICS06
A116: =B1030 -> 
A117: =B1029 -> 
A120: Use of sanitation facilities | C120: NATIONAL wealth index quintile | H120: URBAN wealth index quintile | M120: RURAL wealth index quintile | R120: SUB-REGIONS: | BA120: Raw numbers of respondents: | BB120: Use of sanitation facilities | BC120: NATIONAL wealth index quintile | BH120: URBAN wealth index quintile | BM120: RURAL wealth index quintile | BR120: SUB-REGIONS:
A121: Weighted percentage (used in graphs) | C121: Poorest | D121: Poor | E121: Middle | F121: Rich | G121: Richest | H121: Poorest | I121: Poor | J121: Middle | K121: Rich | L121: Richest | M121: Poorest | N121: Poor | O121: Middle | P121: Rich | Q121: Richest | R121: East | S121: North | T121: South | U121: West | BA121: Sanitation data, raw numbers (weighted) | BC121: Poorest | BD121: Poor | BE121: Middle | BF121: Rich | BG121: Richest | BH121: Poorest | BI121: Poor | BJ121: Middle | BK121: Rich | BL121: Richest | BM121: Poorest | BN121: Poor | BO121: Middle | BP121: Rich | BQ121: Richest | BR121: East | BS121: North | BT121: South | BU121: West
A122: Sanitation | B122: Improved | C122: 6.610543284 | D122: 11.34972371 | E122: 21.53295218 | F122: 40.07076628 | G122: 72.87149135 | H122: 4.706562952 | I122: 9.358725924 | J122: 14.74790653 | K122: 21.19096242 | L122: 35.57956206 | M122: 38.63300617 | N122: 58.22976855 | O122: 66.80739082 | P122: 72.5639711 | Q122: 85.42450529 | R122: 19.52417809 | S122: 22.35667431 | T122: 31.86404123 | U122: 70.58700009 | BA122: Sanitation | BB122: Improved | BC122: 564.654134 | BD122: 969.823735 | BE122: 1839.139021 | BF122: 3425.360658 | BG122: 6225.369415 | BH122: 288.375797 | BI122: 573.105378 | BJ122: 903.047721 | BK122: 1297.500572 | BL122: 2180.821137 | BM122: 929.058582 | BN122: 1417.431828 | BO122: 1614.14301 | BP122: 1757.138232 | BQ122: 2063.724706 | BR122: 1911.916954 | BS122: 3863.762587 | BT122: 3121.92765 | BU122: 4126.739772
B123: Not Improved | C123: 93.38945672 | D123: 88.65027629 | E123: 78.46704782 | F123: 59.92923372 | G123: 27.12850865 | H123: 95.29343705 | I123: 90.64127408 | J123: 85.25209347 | K123: 78.80903758 | L123: 64.42043794 | M123: 61.36699383 | N123: 41.77023145 | O123: 33.19260918 | P123: 27.4360289 | Q123: 14.57549471 | R123: 80.47582191 | S123: 77.64332569 | T123: 68.13595877 | U123: 29.41299991 | BB123: Not Improved | BC123: 7977.066414 | BD123: 7575.086782 | BE123: 6701.905447 | BF123: 5122.917741 | BG123: 2317.572824 | BH123: 5838.723743 | BI123: 5550.648888 | BJ123: 5220.178781 | BK123: 4825.39534 | BL123: 3948.59983 | BM123: 1475.772608 | BN123: 1016.772984 | BO123: 801.97142 | BP123: 664.364072 | BQ123: 352.121542 | BR123: 7880.64356 | BS123: 13418.60479 | BT123: 6675.723652 | BU123: 1719.577208
A124: Sanitation ladder | B124: Basic | C124: 0.977658348 | D124: 1.957472857 | E124: 4.691908343 | F124: 10.17742935 | G124: 25.34969166 | H124: 0.2439682088 | I124: 1.852063882 | J124: 3.406295389 | K124: 3.533700101 | L124: 11.49662834 | M124: 10.84243572 | N124: 12.0909747 | O124: 14.80381771 | P124: 22.34381223 | Q124: 40.37262077 | R124: 4.112362027 | S124: 8.106310557 | T124: 6.558641436 | U124: 21.22455748 | BA124: Sanitation ladder | BB124: Basic | BC124: 83.508844 | BD124: 167.264304 | BE124: 400.737978 | BF124: 869.994995 | BG124: 2165.609516 | BH124: 14.948175 | BI124: 113.415841 | BJ124: 208.575182 | BK124: 216.364779 | BL124: 704.676748 | BM124: 260.742276 | BN124: 294.319088 | BO124: 357.677176 | BP124: 541.055928 | BQ124: 975.340444 | BR124: 402.70554 | BS124: 1400.962371 | BT124: 642.592818 | BU124: 1240.854908
B125: Limited | C125: 5.632884936 | D125: 9.392250854 | E125: 16.84104384 | F125: 29.89333692 | G125: 47.5217997 | H125: 4.462594743 | I125: 7.506662041 | J125: 11.34161114 | K125: 17.65726232 | L125: 24.08293372 | M125: 27.79057045 | N125: 46.13879385 | O125: 52.00357311 | P125: 50.22015887 | Q125: 45.05188453 | R125: 15.41181606 | S125: 14.25036375 | T125: 25.30539979 | U125: 49.36244261 | BB125: Limited | BC125: 481.14529 | BD125: 802.559431 | BE125: 1438.401043 | BF125: 2555.365663 | BG125: 4059.759899 | BH125: 273.427622 | BI125: 459.689537 | BJ125: 694.472539 | BK125: 1081.135793 | BL125: 1476.144389 | BM125: 668.316306 | BN125: 1123.11274 | BO125: 1256.465834 | BP125: 1216.082304 | BQ125: 1088.384262 | BR125: 1509.211414 | BS125: 2462.800216 | BT125: 2479.334832 | BU125: 2885.884864
B126: Unimproved | C126: 40.09436767 | D126: 41.520961 | E126: 43.21954727 | F126: 38.56382021 | G126: 24.49778367 | H126: 38.94820756 | I126: 40.45588212 | J126: 45.00056808 | K126: 41.77547294 | L126: 37.29965482 | M126: 40.97580787 | N126: 36.62219389 | O126: 30.64631827 | P126: 25.83421502 | Q126: 14.36953127 | R126: 39.98161337 | S126: 51.9069274 | T126: 16.49463364 | U126: 26.53630526 | BB126: Unimproved | BC126: 3424.748842 | BD126: 3547.928963 | BE126: 3691.400751 | BF126: 3296.542713 | BG126: 2092.831509 | BH126: 2386.395446 | BI126: 2477.418807 | BJ126: 2755.486711 | BK126: 2557.868725 | BL126: 2286.252863 | BM126: 985.399008 | BN126: 891.459206 | BO126: 740.450118 | BP126: 625.576112 | BQ126: 347.145782 | BR126: 3915.223684 | BS126: 8970.745886 | BT126: 1616.086688 | BU126: 1551.39652
B127: Open defecation | C127: 53.29508904 | D127: 47.12931529 | E127: 35.24750055 | F127: 21.36541351 | G127: 2.630724974 | H127: 56.34522949 | I127: 50.18539196 | J127: 40.25152539 | K127: 37.03356463 | L127: 27.12078312 | M127: 20.39118596 | N127: 5.14803756 | O127: 2.546290906 | P127: 1.60181388 | Q127: 0.2059634384 | R127: 40.49420854 | S127: 25.73639829 | T127: 51.64132513 | U127: 2.876694654 | BB127: Open defecation | BC127: 4552.317572 | BD127: 4027.157819 | BE127: 3010.504696 | BF127: 1826.375028 | BG127: 224.741315 | BH127: 3452.328297 | BI127: 3073.230081 | BJ127: 2464.69207 | BK127: 2267.526615 | BL127: 1662.346967 | BM127: 490.3736 | BN127: 125.313778 | BO127: 61.521302 | BP127: 38.78796 | BQ127: 4.97576 | BR127: 3965.419876 | BS127: 4447.858902 | BT127: 5059.636964 | BU127: 168.180688
A128: Shared among Improved Sanitation | B128: Yes | C128: 85.21062028 | D128: 82.75312328 | E128: 78.21056628 | F128: 74.60136079 | G128: 65.2131565 | H128: 94.81642525 | I128: 80.21029895 | J128: 76.9031938 | K128: 83.32449452 | L128: 67.68754961 | M128: 71.93478635 | N128: 79.23575002 | O128: 77.84104793 | P128: 69.20811817 | Q128: 52.73882989 | R128: 78.93707992 | S128: 63.74098202 | T128: 79.4167934 | U128: 69.93135074 | BA128: Shared among improved sanitation facilities | BB128: Yes | BC128: N/A | BD128: N/A | BE128: N/A | BF128: N/A | BG128: N/A | BH128: N/A | BI128: N/A | BJ128: N/A | BK128: N/A | BL128: N/A | BM128: N/A | BN128: N/A | BO128: N/A | BP128: N/A | BQ128: N/A | BR128: N/A | BS128: N/A | BT128: N/A | BU128: N/A
B129: No | C129: 14.78937972 | D129: 17.24687672 | E129: 21.78943372 | F129: 25.39863921 | G129: 34.7868435 | H129: 5.183574751 | I129: 19.78970105 | J129: 23.0968062 | K129: 16.67550548 | L129: 32.31245039 | M129: 28.06521365 | N129: 20.76424998 | O129: 22.15895207 | P129: 30.79188183 | Q129: 47.26117011 | R129: 21.06292008 | S129: 36.25901798 | T129: 20.5832066 | U129: 30.06864926 | BB129: No | BC129: N/A | BD129: N/A | BE129: N/A | BF129: N/A | BG129: N/A | BH129: N/A | BI129: N/A | BJ129: N/A | BK129: N/A | BL129: N/A | BM129: N/A | BN129: N/A | BO129: N/A | BP129: N/A | BQ129: N/A | BR129: N/A | BS129: N/A | BT129: N/A | BU129: N/A
A130: Manually calculated ratios | B130: Improved latrines | C130: =C158/(C158+C159)*100 -> 15.4474848 | D130: =D158/(D158+D159)*100 -> 22.61645098 | E130: 36.30931926 | F130: 54.11828788 | G130: 71.87179652 | H130: 10.52317957 | I130: 20.46520744 | J130: 26.13098324 | K130: 37.36691704 | L130: 51.56179051 | M130: 55.25022769 | N130: 62.62966789 | O130: 68.54994632 | P130: 72.31722861 | Q130: 79.33077401 | R130: 35.29157552 | S130: 31.12305903 | T130: 71.24875862 | U130: 68.94238772
B131: Other
B132: Other
C133: NATIONAL wealth index quintile | H133: URBAN wealth index quintile | M133: RURAL wealth index quintile | R133: SUB-REGIONS: | BA133: Raw numbers of respondents: | BB133: Use of sanitation facilities | BC133: NATIONAL wealth index quintile | BH133: URBAN wealth index quintile | BM133: RURAL wealth index quintile | BR133: SUB-REGIONS:
A134: Percentage based on weighted population | C134: Poorest | D134: Poor | E134: Middle | F134: Rich | G134: Richest | H134: Poorest | I134: Poor | J134: Middle | K134: Rich | L134: Richest | M134: Poorest | N134: Poor | O134: Middle | P134: Rich | Q134: Richest | R134: East | S134: North | T134: South | U134: West | BA134: Sanitation data, raw numbers (weighted) | BC134: Poorest | BD134: Poor | BE134: Middle | BF134: Rich | BG134: Richest | BH134: Poorest | BI134: Poor | BJ134: Middle | BK134: Rich | BL134: Richest | BM134: Poorest | BN134: Poor | BO134: Middle | BP134: Rich | BQ134: Richest | BR134: East | BS134: North | BT134: South | BU134: West
A135: Sanitation type | B135: Sewer connection | C135: 0.01176920966 | D135: 0.04705926401 | E135: 0 | F135: 0.1046716962 | G135: 2.65009645 | H135: 0.0164073228 | I135: 0 | J135: 0.06567080278 | K135: 0 | L135: 0.406148397 | M135: 0 | N135: 0.1635280639 | O135: 0 | P135: 0.8288941112 | Q135: 7.715598381 | R135: 0 | S135: 0.1415157858 | T135: 0 | U135: 3.693146039 | BA135: Sanitation type | BB135: Sewer connection | BC135: N/A | BD135: N/A | BE135: N/A | BF135: N/A | BG135: N/A | BH135: N/A | BI135: N/A | BJ135: N/A | BK135: N/A | BL135: N/A | BM135: N/A | BN135: N/A | BO135: N/A | BP135: N/A | BQ135: N/A | BR135: N/A | BS135: N/A | BT135: N/A | BU135: N/A
B136: Septic tank connection | C136: 0 | D136: 0.1050564308 | E136: 0 | F136: 0.1397658972 | G136: 9.149856304 | H136: 0 | I136: 0 | J136: 0 | K136: 0 | L136: 0.6824938477 | M136: 0.3732893202 | N136: 0.3264816486 | O136: 1.500920716 | P136: 5.38393095 | Q136: 23.89218231 | R136: 0.8523284781 | S136: 0.1181118105 | T136: 0.7735450636 | U136: 10.65499784 | BB136: Septic tank connection | BC136: N/A | BD136: N/A | BE136: N/A | BF136: N/A | BG136: N/A | BH136: N/A | BI136: N/A | BJ136: N/A | BK136: N/A | BL136: N/A | BM136: N/A | BN136: N/A | BO136: N/A | BP136: N/A | BQ136: N/A | BR136: N/A | BS136: N/A | BT136: N/A | BU136: N/A
B137: Improved latrines | C137: 6.598774074 | D137: 11.19760802 | E137: 21.53295218 | F137: 39.82632868 | G137: 61.0715386 | H137: 4.690155629 | I137: 9.358725924 | J137: 14.68223573 | K137: 21.19096242 | L137: 34.49091982 | M137: 38.25971685 | N137: 57.73975884 | O137: 65.30647011 | P137: 66.35114604 | Q137: 53.8167246 | R137: 18.67184961 | S137: 22.09704671 | T137: 31.09049616 | U137: 56.23885621 | BB137: Improved latrines | BC137: N/A | BD137: N/A | BE137: N/A | BF137: N/A | BG137: N/A | BH137: N/A | BI137: N/A | BJ137: N/A | BK137: N/A | BL137: N/A | BM137: N/A | BN137: N/A | BO137: N/A | BP137: N/A | BQ137: N/A | BR137: N/A | BS137: N/A | BT137: N/A | BU137: N/A
B138: Unimproved facilities | C138: 40.09436767 | D138: 41.520961 | E138: 43.21954727 | F138: 38.56382021 | G138: 24.49778367 | H138: 38.94820756 | I138: 40.45588212 | J138: 45.00056808 | K138: 41.77547294 | L138: 37.29965482 | M138: 40.97580787 | N138: 36.62219389 | O138: 30.64631827 | P138: 25.83421502 | Q138: 14.36953127 | R138: 39.98161337 | S138: 51.9069274 | T138: 16.49463364 | U138: 26.53630526 | BB138: Unimproved facilities | BC138: N/A | BD138: N/A | BE138: N/A | BF138: N/A | BG138: N/A | BH138: N/A | BI138: N/A | BJ138: N/A | BK138: N/A | BL138: N/A | BM138: N/A | BN138: N/A | BO138: N/A | BP138: N/A | BQ138: N/A | BR138: N/A | BS138: N/A | BT138: N/A | BU138: N/A
B139: Open defecation | C139: 53.29508904 | D139: 47.12931529 | E139: 35.24750055 | F139: 21.36541351 | G139: 2.630724974 | H139: 56.34522949 | I139: 50.18539196 | J139: 40.25152539 | K139: 37.03356463 | L139: 27.12078312 | M139: 20.39118596 | N139: 5.14803756 | O139: 2.546290906 | P139: 1.60181388 | Q139: 0.2059634384 | R139: 40.49420854 | S139: 25.73639829 | T139: 51.64132513 | U139: 2.876694654 | BB139: Open defecation | BC139: N/A | BD139: N/A | BE139: N/A | BF139: N/A | BG139: N/A | BH139: N/A | BI139: N/A | BJ139: N/A | BK139: N/A | BL139: N/A | BM139: N/A | BN139: N/A | BO139: N/A | BP139: N/A | BQ139: N/A | BR139: N/A | BS139: N/A | BT139: N/A | BU139: N/A
A140: Septic tank emptying practices | B140: Not emptied/treated and disposed in situ | C140: N/A | D140: N/A | E140: N/A | F140: N/A | G140: N/A | H140: N/A | I140: N/A | J140: N/A | K140: N/A | L140: N/A | M140: N/A | N140: N/A | O140: N/A | P140: N/A | Q140: N/A | R140: N/A | S140: N/A | T140: N/A | U140: N/A | BA140: Septic tank emptying practices | BB140: Not emptied/treated and disposed in situ | BC140: N/A | BD140: N/A | BE140: N/A | BF140: N/A | BG140: N/A | BH140: N/A | BI140: N/A | BJ140: N/A | BK140: N/A | BL140: N/A | BM140: N/A | BN140: N/A | BO140: N/A | BP140: N/A | BQ140: N/A | BR140: N/A | BS140: N/A | BT140: N/A | BU140: N/A
B141: Emptied and buried on site | C141: N/A | D141: N/A | E141: N/A | F141: N/A | G141: N/A | H141: N/A | I141: N/A | J141: N/A | K141: N/A | L141: N/A | M141: N/A | N141: N/A | O141: N/A | P141: N/A | Q141: N/A | R141: N/A | S141: N/A | T141: N/A | U141: N/A | BB141: Emptied and buried on site | BC141: N/A | BD141: N/A | BE141: N/A | BF141: N/A | BG141: N/A | BH141: N/A | BI141: N/A | BJ141: N/A | BK141: N/A | BL141: N/A | BM141: N/A | BN141: N/A | BO141: N/A | BP141: N/A | BQ141: N/A | BR141: N/A | BS141: N/A | BT141: N/A | BU141: N/A
B142: Emptied and discharged locally | C142: N/A | D142: N/A | E142: N/A | F142: N/A | G142: N/A | H142: N/A | I142: N/A | J142: N/A | K142: N/A | L142: N/A | M142: N/A | N142: N/A | O142: N/A | P142: N/A | Q142: N/A | R142: N/A | S142: N/A | T142: N/A | U142: N/A | BB142: Emptied and discharged locally | BC142: N/A | BD142: N/A | BE142: N/A | BF142: N/A | BG142: N/A | BH142: N/A | BI142: N/A | BJ142: N/A | BK142: N/A | BL142: N/A | BM142: N/A | BN142: N/A | BO142: N/A | BP142: N/A | BQ142: N/A | BR142: N/A | BS142: N/A | BT142: N/A | BU142: N/A
B143: Emptied and removed offsite | C143: N/A | D143: N/A | E143: N/A | F143: N/A | G143: N/A | H143: N/A | I143: N/A | J143: N/A | K143: N/A | L143: N/A | M143: N/A | N143: N/A | O143: N/A | P143: N/A | Q143: N/A | R143: N/A | S143: N/A | T143: N/A | U143: N/A | BB143: Emptied and removed offsite | BC143: N/A | BD143: N/A | BE143: N/A | BF143: N/A | BG143: N/A | BH143: N/A | BI143: N/A | BJ143: N/A | BK143: N/A | BL143: N/A | BM143: N/A | BN143: N/A | BO143: N/A | BP143: N/A | BQ143: N/A | BR143: N/A | BS143: N/A | BT143: N/A | BU143: N/A
A144: Latrine emptying practices | B144: Not emptied/treated and disposed in situ | C144: N/A | D144: N/A | E144: N/A | F144: N/A | G144: N/A | H144: N/A | I144: N/A | J144: N/A | K144: N/A | L144: N/A | M144: N/A | N144: N/A | O144: N/A | P144: N/A | Q144: N/A | R144: N/A | S144: N/A | T144: N/A | U144: N/A | BA144: Latrine emptying practices | BB144: Not emptied/treated and disposed in situ | BC144: N/A | BD144: N/A | BE144: N/A | BF144: N/A | BG144: N/A | BH144: N/A | BI144: N/A | BJ144: N/A | BK144: N/A | BL144: N/A | BM144: N/A | BN144: N/A | BO144: N/A | BP144: N/A | BQ144: N/A | BR144: N/A | BS144: N/A | BT144: N/A | BU144: N/A
B145: Emptied and buried on site | C145: N/A | D145: N/A | E145: N/A | F145: N/A | G145: N/A | H145: N/A | I145: N/A | J145: N/A | K145: N/A | L145: N/A | M145: N/A | N145: N/A | O145: N/A | P145: N/A | Q145: N/A | R145: N/A | S145: N/A | T145: N/A | U145: N/A | BB145: Emptied and buried on site | BC145: N/A | BD145: N/A | BE145: N/A | BF145: N/A | BG145: N/A | BH145: N/A | BI145: N/A | BJ145: N/A | BK145: N/A | BL145: N/A | BM145: N/A | BN145: N/A | BO145: N/A | BP145: N/A | BQ145: N/A | BR145: N/A | BS145: N/A | BT145: N/A | BU145: N/A
B146: Emptied and discharged locally | C146: N/A | D146: N/A | E146: N/A | F146: N/A | G146: N/A | H146: N/A | I146: N/A | J146: N/A | K146: N/A | L146: N/A | M146: N/A | N146: N/A | O146: N/A | P146: N/A | Q146: N/A | R146: N/A | S146: N/A | T146: N/A | U146: N/A | BB146: Emptied and discharged locally | BC146: N/A | BD146: N/A | BE146: N/A | BF146: N/A | BG146: N/A | BH146: N/A | BI146: N/A | BJ146: N/A | BK146: N/A | BL146: N/A | BM146: N/A | BN146: N/A | BO146: N/A | BP146: N/A | BQ146: N/A | BR146: N/A | BS146: N/A | BT146: N/A | BU146: N/A
B147: Emptied and removed offsite | C147: N/A | D147: N/A | E147: N/A | F147: N/A | G147: N/A | H147: N/A | I147: N/A | J147: N/A | K147: N/A | L147: N/A | M147: N/A | N147: N/A | O147: N/A | P147: N/A | Q147: N/A | R147: N/A | S147: N/A | T147: N/A | U147: N/A | BB147: Emptied and removed offsite | BC147: N/A | BD147: N/A | BE147: N/A | BF147: N/A | BG147: N/A | BH147: N/A | BI147: N/A | BJ147: N/A | BK147: N/A | BL147: N/A | BM147: N/A | BN147: N/A | BO147: N/A | BP147: N/A | BQ147: N/A | BR147: N/A | BS147: N/A | BT147: N/A | BU147: N/A
A148: Shared among improved sanitation facilities | B148: Yes | C148: 5.632884936 | D148: 9.392250854 | E148: 16.84104384 | F148: 29.89333692 | G148: 47.5217997 | H148: 4.462594743 | I148: 7.506662041 | J148: 11.34161114 | K148: 17.65726232 | L148: 24.08293372 | M148: 27.79057045 | N148: 46.13879385 | O148: 52.00357311 | P148: 50.22015887 | Q148: 45.05188453 | R148: 15.41181606 | S148: 14.25036375 | T148: 25.30539979 | U148: 49.36244261 | BA148: Shared among improved sanitation facilities | BB148: Yes | BC148: N/A | BD148: N/A | BE148: N/A | BF148: N/A | BG148: N/A | BH148: N/A | BI148: N/A | BJ148: N/A | BK148: N/A | BL148: N/A | BM148: N/A | BN148: N/A | BO148: N/A | BP148: N/A | BQ148: N/A | BR148: N/A | BS148: N/A | BT148: N/A | BU148: N/A
B149: No | C149: 0.977658348 | D149: 1.957472857 | E149: 4.691908343 | F149: 10.17742935 | G149: 25.34969166 | H149: 0.2439682088 | I149: 1.852063882 | J149: 3.406295389 | K149: 3.533700101 | L149: 11.49662834 | M149: 10.84243572 | N149: 12.0909747 | O149: 14.80381771 | P149: 22.34381223 | Q149: 40.37262077 | R149: 4.112362027 | S149: 8.106310557 | T149: 6.558641436 | U149: 21.22455748 | BB149: No | BC149: N/A | BD149: N/A | BE149: N/A | BF149: N/A | BG149: N/A | BH149: N/A | BI149: N/A | BJ149: N/A | BK149: N/A | BL149: N/A | BM149: N/A | BN149: N/A | BO149: N/A | BP149: N/A | BQ149: N/A | BR149: N/A | BS149: N/A | BT149: N/A | BU149: N/A
B150: DK/missing | C150: 93.38945672 | D150: 88.65027629 | E150: 78.46704782 | F150: 59.92923372 | G150: 27.12850865 | H150: 95.29343705 | I150: 90.64127408 | J150: 85.25209347 | K150: 78.80903758 | L150: 64.42043794 | M150: 61.36699383 | N150: 41.77023145 | O150: 33.19260918 | P150: 27.4360289 | Q150: 14.57549471 | R150: 80.47582191 | S150: 77.64332569 | T150: 68.13595877 | U150: 29.41299991 | BB150: DK/missing | BC150: N/A | BD150: N/A | BE150: N/A | BF150: N/A | BG150: N/A | BH150: N/A | BI150: N/A | BJ150: N/A | BK150: N/A | BL150: N/A | BM150: N/A | BN150: N/A | BO150: N/A | BP150: N/A | BQ150: N/A | BR150: N/A | BS150: N/A | BT150: N/A | BU150: N/A
A151: Shared among all sanitation facilities | B151: Yes | C151: 77.72398736 | D151: 79.85381158 | E151: 74.55230088 | F151: 73.27039803 | G151: 67.78176464 | H151: 78.93591927 | I151: 75.32794001 | J151: 75.50042998 | K151: 77.87039344 | L151: 68.22877071 | M151: 76.6533116 | N151: 80.37212543 | O151: 78.32416769 | P151: 69.87266788 | Q151: 55.62680562 | R151: 83.07795165 | S151: 65.65944529 | T151: 82.78304387 | U151: 74.04622425 | BA151: Shared among all sanitation facilities | BB151: Yes | BC151: N/A | BD151: N/A | BE151: N/A | BF151: N/A | BG151: N/A | BH151: N/A | BI151: N/A | BJ151: N/A | BK151: N/A | BL151: N/A | BM151: N/A | BN151: N/A | BO151: N/A | BP151: N/A | BQ151: N/A | BR151: N/A | BS151: N/A | BT151: N/A | BU151: N/A
B152: No | C152: 22.27601264 | D152: 20.14618842 | E152: 25.44769912 | F152: 26.72960197 | G152: 32.21823536 | H152: 21.06408073 | I152: 24.67205999 | J152: 24.49957002 | K152: 22.12960656 | L152: 31.77122929 | M152: 23.3466884 | N152: 19.62787457 | O152: 21.67583231 | P152: 30.12733212 | Q152: 44.37319438 | R152: 16.92204835 | S152: 34.34055471 | T152: 17.21695613 | U152: 25.95377575 | BB152: No | BC152: N/A | BD152: N/A | BE152: N/A | BF152: N/A | BG152: N/A | BH152: N/A | BI152: N/A | BJ152: N/A | BK152: N/A | BL152: N/A | BM152: N/A | BN152: N/A | BO152: N/A | BP152: N/A | BQ152: N/A | BR152: N/A | BS152: N/A | BT152: N/A | BU152: N/A
A153: Kind of toilet facility | B153: Flush to piped sewer system | C153: 0.01176920966 | D153: 0.04705926401 | E153: 0 | F153: 0.1046716962 | G153: 2.65009645 | H153: 0.0164073228 | I153: 0 | J153: 0.06567080278 | K153: 0 | L153: 0.406148397 | M153: 0 | N153: 0.1635280639 | O153: 0 | P153: 0.8288941112 | Q153: 7.715598381 | R153: 0 | S153: 0.1415157858 | T153: 0 | U153: 3.693146039 | BA153: Kind of toilet facility | BB153: Flush to piped sewer system | BC153: 1.005293 | BD153: 4.021172 | BE153: 0 | BF153: 8.947628 | BG153: 226.396209 | BH153: 1.005293 | BI153: 0 | BJ153: 4.021172 | BK153: 0 | BL153: 24.894545 | BM153: 0 | BN153: 3.980608 | BO153: 0 | BP153: 20.07169 | BQ153: 186.396994 | BR153: 0 | BS153: 24.457278 | BT153: 0 | BU153: 215.913024
B154: Flush to septic tank | C154: 0 | D154: 0.1050564308 | E154: 0 | F154: 0.1397658972 | G154: 9.149856304 | H154: 0 | I154: 0 | J154: 0 | K154: 0 | L154: 0.6824938477 | M154: 0.3732893202 | N154: 0.3264816486 | O154: 1.500920716 | P154: 5.38393095 | Q154: 23.89218231 | R154: 0.8523284781 | S154: 0.1181118105 | T154: 0.7735450636 | U154: 10.65499784 | BB154: Flush to septic tank | BC154: 0 | BD154: 8.976978 | BE154: 0 | BF154: 11.947578 | BG154: 781.666939 | BH154: 0 | BI154: 0 | BJ154: 0 | BK154: 0 | BL154: 41.832921 | BM154: 8.976978 | BN154: 7.947232 | BO154: 36.263962 | BP154: 130.372012 | BQ154: 577.19839 | BR154: 83.464782 | BS154: 20.412517 | BT154: 75.789248 | BU154: 622.924948
B155: Flush to pit (latrine) | C155: 0 | D155: 0.0697540833 | E155: 0.2332545051 | F155: 0.7798047968 | G155: 2.761411319 | H155: 0 | I155: 0 | J155: 0.1139238439 | K155: 0 | L155: 0.8762198467 | M155: 0.9927515952 | N155: 2.415731811 | O155: 2.73096792 | P155: 2.052886835 | Q155: 2.872432965 | R155: 1.44074019 | S155: 0.2493587717 | T155: 0.2646074983 | U155: 2.024226199 | BB155: Flush to pit (latrine) | BC155: 0 | BD155: 5.960424 | BE155: 19.922371 | BF155: 66.659885 | BG155: 235.905774 | BH155: 0 | BI155: 0 | BJ155: 6.975815 | BK155: 0 | BL155: 53.707203 | BM155: 23.874 | BN155: 58.80386 | BO155: 65.98331 | BP155: 49.710702 | BQ155: 69.393564 | BR155: 141.085355 | BS155: 43.095099 | BT155: 25.92532 | BU155: 118.34268
B156: Flush to somewhere else | C156: 0 | D156: 0 | E156: 0.1642867222 | F156: 0.04648440089 | G156: 0.6754318873 | H156: 0 | I156: 0 | J156: 0.06497999051 | K156: 0.1641858713 | L156: 0.3079357104 | M156: 0 | N156: 0.1226460479 | O156: 0.2059405771 | P156: 0.4524394621 | Q156: 0.9886245046 | R156: 0 | S156: 0.05816870908 | T156: 0.08133214537 | U156: 0.9866999035 | BB156: Flush to somewhere else | BC156: 0 | BD156: 0 | BE156: 14.031802 | BF156: 3.973616 | BG156: 57.701756 | BH156: 0 | BI156: 0 | BJ156: 3.978872 | BK156: 10.05293 | BL156: 18.874676 | BM156: 0 | BN156: 2.985456 | BO156: 4.97576 | BP156: 10.955832 | BQ156: 23.883648 | BR156: 0 | BS156: 10.05293 | BT156: 7.96864 | BU156: 57.685604
B157: Ventilated Improved Pit latrine (VIP) | C157: 0.6180827118 | D157: 0.6675628128 | E157: 0.9866170621 | F157: 1.031671687 | G157: 0.3384093231 | H157: 0.7481691737 | I157: 0.5719796791 | J157: 0.6394268118 | K157: 0.9503546988 | L157: 1.520806509 | M157: 0.6609388661 | N157: 0 | O157: 0.2059405771 | P157: 0.246578828 | Q157: 0.53550494 | R157: 0.8543171511 | S157: 0.9539668289 | T157: 0.3959520583 | U157: 0.4085246845 | BB157: Ventilated Improved Pit latrine (VIP) | BC157: 52.794898 | BD157: 57.042645 | BE157: 84.267402 | BF157: 88.190168 | BG157: 28.910113 | BH157: 45.84107 | BI157: 35.02663 | BJ157: 39.153552 | BK157: 58.189229 | BL157: 93.216633 | BM157: 15.894464 | BN157: 0 | BO157: 4.97576 | BP157: 5.970912 | BQ157: 12.936976 | BR157: 83.659524 | BS157: 164.868052 | BT157: 38.794002 | BU157: 23.883648
B158: Pit latrine with slab | C158: 5.839460846 | D158: 10.24852443 | E158: 20.20714934 | F158: 37.86196985 | G158: 57.97171796 | H158: 3.843542519 | I158: 8.524085672 | J158: 13.79754346 | K158: 20.09284044 | L158: 31.88067905 | M158: 36.60602639 | N158: 55.32402702 | O158: 62.36956161 | P158: 64.05168037 | Q158: 50.40878669 | R158: 16.37679227 | S158: 20.59124383 | T158: 30.42993661 | U158: 53.80610533 | BB158: Pit latrine with slab | BC158: 498.790427 | BD158: 875.727242 | BE158: 1725.901611 | BF158: 3236.54659 | BG158: 4952.49038 | BH158: 235.497676 | BI158: 521.99406 | BJ158: 844.854838 | BK158: 1230.263706 | BL158: 1954.101026 | BM158: 880.31314 | BN158: 1346.700128 | BO158: 1506.919978 | BP158: 1551.012916 | BQ158: 1217.798782 | BR158: 1603.707293 | BS158: 3558.654405 | BT158: 2981.41908 | BU158: 3145.675472
B159: Pit latrine without slab/open pit | C159: 31.96255626 | D159: 35.06594352 | E159: 35.44564106 | F159: 32.09953731 | G159: 22.68818031 | H159: 32.68099356 | I159: 33.12751106 | J159: 39.00392726 | K159: 33.67889679 | L159: 29.94936745 | M159: 29.64895195 | N159: 33.01114845 | O159: 28.61455283 | P159: 24.51874966 | Q159: 13.13375064 | R159: 30.02746152 | S159: 45.56948865 | T159: 12.27949047 | U159: 24.23892199 | BB159: Pit latrine without slab/open pit | BC159: 2730.152236 | BD159: 2996.353496 | BE159: 3027.427965 | BF159: 2743.957814 | BG159: 1938.238139 | BH159: 2002.397006 | BI159: 2028.647372 | BJ159: 2388.298811 | BK159: 2062.123795 | BL159: 1835.722808 | BM159: 713.007244 | BN159: 803.558964 | BO159: 691.36034 | BP159: 593.722088 | BQ159: 317.291222 | BR159: 2940.45734 | BS159: 7875.48644 | BT159: 1203.101658 | BU159: 1417.084212
B160: Composting toilet | C160: 0.1412305159 | D160: 0.2117666881 | E160: 0.1059312714 | F160: 0.1528823512 | G160: 0 | H160: 0.09844393682 | I160: 0.2626605723 | J160: 0.1313416056 | K160: 0.1477672841 | L160: 0.2132144141 | M160: 0 | N160: 0 | O160: 0 | P160: 0 | Q160: 0 | R160: 0 | S160: 0.3024772872 | T160: 0 | U160: 0 | BB160: Composting toilet | BC160: 12.063516 | BD160: 18.095274 | BE160: 9.047637 | BF160: 13.068809 | BG160: 0 | BH160: 6.031758 | BI160: 16.084688 | BJ160: 8.042344 | BK160: 9.047637 | BL160: 13.068809 | BM160: 0 | BN160: 0 | BO160: 0 | BP160: 0 | BQ160: 0 | BR160: 0 | BS160: 52.275236 | BT160: 0 | BU160: 0
B161: Bucket | C161: 0 | D161: 0 | E161: 0 | F161: 0.08232126601 | G161: 0 | H161: 0 | I161: 0 | J161: 0 | K161: 0 | L161: 0.1148077614 | M161: 0 | N161: 0 | O161: 0 | P161: 0 | Q161: 0 | R161: 0 | S161: 0.04071809635 | T161: 0 | U161: 0 | BB161: Bucket | BC161: 0 | BD161: 0 | BE161: 0 | BF161: 7.037051 | BG161: 0 | BH161: 0 | BI161: 0 | BJ161: 0 | BK161: 0 | BL161: 7.037051 | BM161: 0 | BN161: 0 | BO161: 0 | BP161: 0 | BQ161: 0 | BR161: 0 | BS161: 7.037051 | BT161: 0 | BU161: 0
B162: Hanging toilet/hanging latrine | C162: 5.456940161 | D162: 3.457325462 | E162: 4.150870135 | F162: 3.813125425 | G162: 0.4073602399 | H162: 3.435661778 | I162: 4.007887226 | J162: 3.609500595 | K162: 3.926653767 | L162: 4.426217166 | M162: 9.584839092 | N162: 1.347813949 | O162: 1.027894196 | P162: 0 | Q162: 0 | R162: 9.353895671 | S162: 2.623408779 | T162: 0.9139023348 | U162: 0.3063935134 | BB162: Hanging toilet/hanging latrine | BC162: 466.116579 | BD162: 295.425367 | BE162: 354.527664 | BF162: 325.956577 | BG162: 34.80055 | BH162: 210.506417 | BI162: 245.433165 | BJ162: 221.017897 | BK162: 240.424923 | BL162: 271.301483 | BM162: 230.4992 | BN162: 32.808552 | BO162: 24.8351 | BP162: 0 | BQ162: 0 | BR162: 915.985894 | BS162: 453.387143 | BT162: 89.540964 | BU162: 17.912736
B163: No facilities or bush or field | C163: 53.29508904 | D163: 47.12931529 | E163: 35.24750055 | F163: 21.36541351 | G163: 2.630724974 | H163: 56.34522949 | I163: 50.18539196 | J163: 40.25152539 | K163: 37.03356463 | L163: 27.12078312 | M163: 20.39118596 | N163: 5.14803756 | O163: 2.546290906 | P163: 1.60181388 | Q163: 0.2059634384 | R163: 40.49420854 | S163: 25.73639829 | T163: 51.64132513 | U163: 2.876694654 | BB163: No facilities or bush or field | BC163: 4552.317572 | BD163: 4027.157819 | BE163: 3010.504696 | BF163: 1826.375028 | BG163: 224.741315 | BH163: 3452.328297 | BI163: 3073.230081 | BJ163: 2464.69207 | BK163: 2267.526615 | BL163: 1662.346967 | BM163: 490.3736 | BN163: 125.313778 | BO163: 61.521302 | BP163: 38.78796 | BQ163: 4.97576 | BR163: 3965.419876 | BS163: 4447.858902 | BT163: 5059.636964 | BU163: 168.180688
B164: Other | C164: 2.674871248 | D164: 2.997692012 | E164: 3.45874935 | F164: 2.416510183 | G164: 0.7268112351 | H164: 2.831552219 | I164: 3.320483827 | J164: 2.322160236 | K164: 4.00573651 | L164: 2.35371675 | M164: 1.742016827 | N164: 2.140585449 | O164: 0.7979306675 | P164: 0.8630258978 | Q164: 0.2471561261 | R164: 0.6002561834 | S164: 3.562791322 | T164: 3.219908693 | U164: 1.00428985 | BB164: Other | BC164: 228.480027 | BD164: 256.1501 | BE164: 295.41332 | BF164: 206.570018 | BG164: 62.091064 | BH164: 173.492023 | BI164: 203.33827 | BJ164: 142.191131 | BK164: 245.267077 | BL164: 144.269208 | BM164: 41.892564 | BN164: 52.106234 | BO164: 19.278918 | BP164: 20.898192 | BQ164: 5.970912 | BR164: 58.78045 | BS164: 615.734685 | BT164: 315.475426 | BU164: 58.713968
B165: Missing | C165: 0 | D165: 0 | E165: 0 | F165: 0.1058416277 | G165: 0 | H165: 0 | I165: 0 | J165: 0 | K165: 0 | L165: 0.147609979 | M165: 0 | N165: 0 | O165: 0 | P165: 0 | Q165: 0 | R165: 0 | S165: 0.05235183817 | T165: 0 | U165: 0 | BB165: Missing | BC165: 0 | BD165: 0 | BE165: 0 | BF165: 9.047637 | BG165: 0 | BH165: 0 | BI165: 0 | BJ165: 0 | BK165: 0 | BL165: 9.047637 | BM165: 0 | BN165: 0 | BO165: 0 | BP165: 0 | BQ165: 0 | BR165: 0 | BS165: 9.047637 | BT165: 0 | BU165: 0
BB166: Total | BC166: 8541.720548 | BD166: 8544.910517 | BE166: 8541.044468 | BF166: 8548.278399 | BG166: 8542.942239 | BH166: 6127.09954 | BI166: 6123.754266 | BJ166: 6123.226502 | BK166: 6122.895912 | BL166: 6129.420967 | BM166: 2404.83119 | BN166: 2434.204812 | BO166: 2416.11443 | BP166: 2421.502304 | BQ166: 2415.846248 | BR166: 9792.560514 | BS166: 17282.36737 | BT166: 9797.651302 | BU166: 5846.31698
A208: =A1026 -> Sierra Leone
A209: =A1034 -> 2006
A210: Access to hygiene facilities
A211: by wealth quintile and sub-national region
A212: Notes:
A213: WHO/UNICEF JMP customised wealth index excludes water,
A214: sanitation and hygiene assets.
A215: Survey used for analysis: | B215: =A1025 -> MICS06
A220: Access to handwashing | C220: NATIONAL wealth index quintile | H220: URBAN wealth index quintile | M220: RURAL wealth index quintile | R220: SUB-REGIONS: | BA220: Raw numbers of respondents: | BB220: Access to handwashing | BC220: NATIONAL wealth index quintile | BH220: URBAN wealth index quintile | BM220: RURAL wealth index quintile | BR220: SUB-REGIONS:
A221: Weighted percentage (used in graphs) | C221: Poorest | D221: Poor | E221: Middle | F221: Rich | G221: Richest | H221: Poorest | I221: Poor | J221: Middle | K221: Rich | L221: Richest | M221: Poorest | N221: Poor | O221: Middle | P221: Rich | Q221: Richest | R221: East | S221: North | T221: South | U221: West | BA221: Hygiene data, raw numbers (weighted) | BC221: Poorest | BD221: Poor | BE221: Middle | BF221: Rich | BG221: Richest | BH221: Poorest | BI221: Poor | BJ221: Middle | BK221: Rich | BL221: Richest | BM221: Poorest | BN221: Poor | BO221: Middle | BP221: Rich | BQ221: Richest | BR221: East | BS221: North | BT221: South | BU221: West
A222: Hygiene ladder | B222: Basic | C222: N/A | D222: N/A | E222: N/A | F222: N/A | G222: N/A | H222: N/A | I222: N/A | J222: N/A | K222: N/A | L222: N/A | M222: N/A | N222: N/A | O222: N/A | P222: N/A | Q222: N/A | R222: N/A | S222: N/A | T222: N/A | U222: N/A | BA222: Hygiene ladder | BB222: Basic | BC222: N/A | BD222: N/A | BE222: N/A | BF222: N/A | BG222: N/A | BH222: N/A | BI222: N/A | BJ222: N/A | BK222: N/A | BL222: N/A | BM222: N/A | BN222: N/A | BO222: N/A | BP222: N/A | BQ222: N/A | BR222: N/A | BS222: N/A | BT222: N/A | BU222: N/A
B223: Limited | C223: N/A | D223: N/A | E223: N/A | F223: N/A | G223: N/A | H223: N/A | I223: N/A | J223: N/A | K223: N/A | L223: N/A | M223: N/A | N223: N/A | O223: N/A | P223: N/A | Q223: N/A | R223: N/A | S223: N/A | T223: N/A | U223: N/A | BB223: Limited | BC223: N/A | BD223: N/A | BE223: N/A | BF223: N/A | BG223: N/A | BH223: N/A | BI223: N/A | BJ223: N/A | BK223: N/A | BL223: N/A | BM223: N/A | BN223: N/A | BO223: N/A | BP223: N/A | BQ223: N/A | BR223: N/A | BS223: N/A | BT223: N/A | BU223: N/A
B224: No facility | C224: N/A | D224: N/A | E224: N/A | F224: N/A | G224: N/A | H224: N/A | I224: N/A | J224: N/A | K224: N/A | L224: N/A | M224: N/A | N224: N/A | O224: N/A | P224: N/A | Q224: N/A | R224: N/A | S224: N/A | T224: N/A | U224: N/A | BB224: No facility | BC224: N/A | BD224: N/A | BE224: N/A | BF224: N/A | BG224: N/A | BH224: N/A | BI224: N/A | BJ224: N/A | BK224: N/A | BL224: N/A | BM224: N/A | BN224: N/A | BO224: N/A | BP224: N/A | BQ224: N/A | BR224: N/A | BS224: N/A | BT224: N/A | BU224: N/A
BA225: Observed handwashing place | BB225: Fixed | BC225: N/A | BD225: N/A | BE225: N/A | BF225: N/A | BG225: N/A | BH225: N/A | BI225: N/A | BJ225: N/A | BK225: N/A | BL225: N/A | BM225: N/A | BN225: N/A | BO225: N/A | BP225: N/A | BQ225: N/A | BR225: N/A | BS225: N/A | BT225: N/A | BU225: N/A
BB226: Mobile | BC226: N/A | BD226: N/A | BE226: N/A | BF226: N/A | BG226: N/A | BH226: N/A | BI226: N/A | BJ226: N/A | BK226: N/A | BL226: N/A | BM226: N/A | BN226: N/A | BO226: N/A | BP226: N/A | BQ226: N/A | BR226: N/A | BS226: N/A | BT226: N/A | BU226: N/A
BA227: Water / Soap | BB227: Water and soap | BC227: N/A | BD227: N/A | BE227: N/A | BF227: N/A | BG227: N/A | BH227: N/A | BI227: N/A | BJ227: N/A | BK227: N/A | BL227: N/A | BM227: N/A | BN227: N/A | BO227: N/A | BP227: N/A | BQ227: N/A | BR227: N/A | BS227: N/A | BT227: N/A | BU227: N/A
BB228: Water only | BC228: N/A | BD228: N/A | BE228: N/A | BF228: N/A | BG228: N/A | BH228: N/A | BI228: N/A | BJ228: N/A | BK228: N/A | BL228: N/A | BM228: N/A | BN228: N/A | BO228: N/A | BP228: N/A | BQ228: N/A | BR228: N/A | BS228: N/A | BT228: N/A | BU228: N/A
BB229: Soap only | BC229: N/A | BD229: N/A | BE229: N/A | BF229: N/A | BG229: N/A | BH229: N/A | BI229: N/A | BJ229: N/A | BK229: N/A | BL229: N/A | BM229: N/A | BN229: N/A | BO229: N/A | BP229: N/A | BQ229: N/A | BR229: N/A | BS229: N/A | BT229: N/A | BU229: N/A
BB230: Neither | BC230: N/A | BD230: N/A | BE230: N/A | BF230: N/A | BG230: N/A | BH230: N/A | BI230: N/A | BJ230: N/A | BK230: N/A | BL230: N/A | BM230: N/A | BN230: N/A | BO230: N/A | BP230: N/A | BQ230: N/A | BR230: N/A | BS230: N/A | BT230: N/A | BU230: N/A
BA259: Raw numbers of respondents: | BB259: Menstrual health and hygiene | BC259: NATIONAL wealth index quintile | BH259: URBAN wealth index quintile | BM259: RURAL wealth index quintile | BR259: SUB-REGIONS:
BA260: MHH data, raw numbers (weighted) | BC260: Poorest | BD260: Poor | BE260: Middle | BF260: Rich | BG260: Richest | BH260: Poorest | BI260: Poor | BJ260: Middle | BK260: Rich | BL260: Richest | BM260: Poorest | BN260: Poor | BO260: Middle | BP260: Rich | BQ260: Richest | BR260: East | BS260: North | BT260: South | BU260: West
BA261: Private place to wash and change | BB261: Yes | BC261: N/A | BD261: N/A | BE261: N/A | BF261: N/A | BG261: N/A | BH261: N/A | BI261: N/A | BJ261: N/A | BK261: N/A | BL261: N/A | BM261: N/A | BN261: N/A | BO261: N/A | BP261: N/A | BQ261: N/A | BR261: N/A | BS261: N/A | BT261: N/A | BU261: N/A
BB262: No | BC262: N/A | BD262: N/A | BE262: N/A | BF262: N/A | BG262: N/A | BH262: N/A | BI262: N/A | BJ262: N/A | BK262: N/A | BL262: N/A | BM262: N/A | BN262: N/A | BO262: N/A | BP262: N/A | BQ262: N/A | BR262: N/A | BS262: N/A | BT262: N/A | BU262: N/A
BB263: DK/not sure/missing | BC263: N/A | BD263: N/A | BE263: N/A | BF263: N/A | BG263: N/A | BH263: N/A | BI263: N/A | BJ263: N/A | BK263: N/A | BL263: N/A | BM263: N/A | BN263: N/A | BO263: N/A | BP263: N/A | BQ263: N/A | BR263: N/A | BS263: N/A | BT263: N/A | BU263: N/A
BA264: Use of menstrual materials | BB264: Materials reusable | BC264: N/A | BD264: N/A | BE264: N/A | BF264: N/A | BG264: N/A | BH264: N/A | BI264: N/A | BJ264: N/A | BK264: N/A | BL264: N/A | BM264: N/A | BN264: N/A | BO264: N/A | BP264: N/A | BQ264: N/A | BR264: N/A | BS264: N/A | BT264: N/A | BU264: N/A
BB265: Materials not reusable | BC265: N/A | BD265: N/A | BE265: N/A | BF265: N/A | BG265: N/A | BH265: N/A | BI265: N/A | BJ265: N/A | BK265: N/A | BL265: N/A | BM265: N/A | BN265: N/A | BO265: N/A | BP265: N/A | BQ265: N/A | BR265: N/A | BS265: N/A | BT265: N/A | BU265: N/A
BB266: No materials used | BC266: N/A | BD266: N/A | BE266: N/A | BF266: N/A | BG266: N/A | BH266: N/A | BI266: N/A | BJ266: N/A | BK266: N/A | BL266: N/A | BM266: N/A | BN266: N/A | BO266: N/A | BP266: N/A | BQ266: N/A | BR266: N/A | BS266: N/A | BT266: N/A | BU266: N/A
BB267: DK/not sure/missing | BC267: N/A | BD267: N/A | BE267: N/A | BF267: N/A | BG267: N/A | BH267: N/A | BI267: N/A | BJ267: N/A | BK267: N/A | BL267: N/A | BM267: N/A | BN267: N/A | BO267: N/A | BP267: N/A | BQ267: N/A | BR267: N/A | BS267: N/A | BT267: N/A | BU267: N/A
BA268: Use of menstrual materials with private place to wash and change | BB268: Materials reusable | BC268: N/A | BD268: N/A | BE268: N/A | BF268: N/A | BG268: N/A | BH268: N/A | BI268: N/A | BJ268: N/A | BK268: N/A | BL268: N/A | BM268: N/A | BN268: N/A | BO268: N/A | BP268: N/A | BQ268: N/A | BR268: N/A | BS268: N/A | BT268: N/A | BU268: N/A
BB269: Materials not reusable | BC269: N/A | BD269: N/A | BE269: N/A | BF269: N/A | BG269: N/A | BH269: N/A | BI269: N/A | BJ269: N/A | BK269: N/A | BL269: N/A | BM269: N/A | BN269: N/A | BO269: N/A | BP269: N/A | BQ269: N/A | BR269: N/A | BS269: N/A | BT269: N/A | BU269: N/A
BB270: No materials used | BC270: N/A | BD270: N/A | BE270: N/A | BF270: N/A | BG270: N/A | BH270: N/A | BI270: N/A | BJ270: N/A | BK270: N/A | BL270: N/A | BM270: N/A | BN270: N/A | BO270: N/A | BP270: N/A | BQ270: N/A | BR270: N/A | BS270: N/A | BT270: N/A | BU270: N/A
BA271: Awareness of menstruation before menarche | BB271: Yes | BC271: N/A | BD271: N/A | BE271: N/A | BF271: N/A | BG271: N/A | BH271: N/A | BI271: N/A | BJ271: N/A | BK271: N/A | BL271: N/A | BM271: N/A | BN271: N/A | BO271: N/A | BP271: N/A | BQ271: N/A | BR271: N/A | BS271: N/A | BT271: N/A | BU271: N/A
BB272: No | BC272: N/A | BD272: N/A | BE272: N/A | BF272: N/A | BG272: N/A | BH272: N/A | BI272: N/A | BJ272: N/A | BK272: N/A | BL272: N/A | BM272: N/A | BN272: N/A | BO272: N/A | BP272: N/A | BQ272: N/A | BR272: N/A | BS272: N/A | BT272: N/A | BU272: N/A
BB273: DK/not sure/missing | BC273: N/A | BD273: N/A | BE273: N/A | BF273: N/A | BG273: N/A | BH273: N/A | BI273: N/A | BJ273: N/A | BK273: N/A | BL273: N/A | BM273: N/A | BN273: N/A | BO273: N/A | BP273: N/A | BQ273: N/A | BR273: N/A | BS273: N/A | BT273: N/A | BU273: N/A
BA274: Participation in (all) activities during menstruation | BB274: Yes | BC274: N/A | BD274: N/A | BE274: N/A | BF274: N/A | BG274: N/A | BH274: N/A | BI274: N/A | BJ274: N/A | BK274: N/A | BL274: N/A | BM274: N/A | BN274: N/A | BO274: N/A | BP274: N/A | BQ274: N/A | BR274: N/A | BS274: N/A | BT274: N/A | BU274: N/A
BB275: No | BC275: N/A | BD275: N/A | BE275: N/A | BF275: N/A | BG275: N/A | BH275: N/A | BI275: N/A | BJ275: N/A | BK275: N/A | BL275: N/A | BM275: N/A | BN275: N/A | BO275: N/A | BP275: N/A | BQ275: N/A | BR275: N/A | BS275: N/A | BT275: N/A | BU275: N/A
BB276: DK/not sure/missing/no such activity | BC276: N/A | BD276: N/A | BE276: N/A | BF276: N/A | BG276: N/A | BH276: N/A | BI276: N/A | BJ276: N/A | BK276: N/A | BL276: N/A | BM276: N/A | BN276: N/A | BO276: N/A | BP276: N/A | BQ276: N/A | BR276: N/A | BS276: N/A | BT276: N/A | BU276: N/A
BA277: Participation in specific activities during menstruation | BB277: Did not go to school (amongst those usually attending school) | BC277: N/A | BD277: N/A | BE277: N/A | BF277: N/A | BG277: N/A | BH277: N/A | BI277: N/A | BJ277: N/A | BK277: N/A | BL277: N/A | BM277: N/A | BN277: N/A | BO277: N/A | BP277: N/A | BQ277: N/A | BR277: N/A | BS277: N/A | BT277: N/A | BU277: N/A
BB278: Did not go to work (amongst those who usually work) | BC278: N/A | BD278: N/A | BE278: N/A | BF278: N/A | BG278: N/A | BH278: N/A | BI278: N/A | BJ278: N/A | BK278: N/A | BL278: N/A | BM278: N/A | BN278: N/A | BO278: N/A | BP278: N/A | BQ278: N/A | BR278: N/A | BS278: N/A | BT278: N/A | BU278: N/A
BB279: Did not participate in social activities | BC279: N/A | BD279: N/A | BE279: N/A | BF279: N/A | BG279: N/A | BH279: N/A | BI279: N/A | BJ279: N/A | BK279: N/A | BL279: N/A | BM279: N/A | BN279: N/A | BO279: N/A | BP279: N/A | BQ279: N/A | BR279: N/A | BS279: N/A | BT279: N/A | BU279: N/A
BB280: Did not cook food | BC280: N/A | BD280: N/A | BE280: N/A | BF280: N/A | BG280: N/A | BH280: N/A | BI280: N/A | BJ280: N/A | BK280: N/A | BL280: N/A | BM280: N/A | BN280: N/A | BO280: N/A | BP280: N/A | BQ280: N/A | BR280: N/A | BS280: N/A | BT280: N/A | BU280: N/A
BB281: Did not eat with others | BC281: N/A | BD281: N/A | BE281: N/A | BF281: N/A | BG281: N/A | BH281: N/A | BI281: N/A | BJ281: N/A | BK281: N/A | BL281: N/A | BM281: N/A | BN281: N/A | BO281: N/A | BP281: N/A | BQ281: N/A | BR281: N/A | BS281: N/A | BT281: N/A | BU281: N/A
BB282: Did not bathe in regular place | BC282: N/A | BD282: N/A | BE282: N/A | BF282: N/A | BG282: N/A | BH282: N/A | BI282: N/A | BJ282: N/A | BK282: N/A | BL282: N/A | BM282: N/A | BN282: N/A | BO282: N/A | BP282: N/A | BQ282: N/A | BR282: N/A | BS282: N/A | BT282: N/A | BU282: N/A
BB283: Did not participate in other activities | BC283: N/A | BD283: N/A | BE283: N/A | BF283: N/A | BG283: N/A | BH283: N/A | BI283: N/A | BJ283: N/A | BK283: N/A | BL283: N/A | BM283: N/A | BN283: N/A | BO283: N/A | BP283: N/A | BQ283: N/A | BR283: N/A | BS283: N/A | BT283: N/A | BU283: N/A
BB284: DK/not sure/missing/no such activity | BC284: N/A | BD284: N/A | BE284: N/A | BF284: N/A | BG284: N/A | BH284: N/A | BI284: N/A | BJ284: N/A | BK284: N/A | BL284: N/A | BM284: N/A | BN284: N/A | BO284: N/A | BP284: N/A | BQ284: N/A | BR284: N/A | BS284: N/A | BT284: N/A | BU284: N/A
BA339: Raw numbers of respondents: | BB339: Basic water, sanitation and hygiene | BC339: NATIONAL wealth index quintile | BH339: URBAN wealth index quintile | BM339: RURAL wealth index quintile | BR339: SUB-REGIONS:
BA340: WatSan data, raw numbers (weighted) | BC340: Poorest | BD340: Poor | BE340: Middle | BF340: Rich | BG340: Richest | BH340: Poorest | BI340: Poor | BJ340: Middle | BK340: Rich | BL340: Richest | BM340: Poorest | BN340: Poor | BO340: Middle | BP340: Rich | BQ340: Richest | BR340: East | BS340: North | BT340: South | BU340: West
BA341: Use of Basic Water Sanitation and Hygiene | BB341: Yes | BC341: N/A | BD341: N/A | BE341: N/A | BF341: N/A | BG341: N/A | BH341: N/A | BI341: N/A | BJ341: N/A | BK341: N/A | BL341: N/A | BM341: N/A | BN341: N/A | BO341: N/A | BP341: N/A | BQ341: N/A | BR341: N/A | BS341: N/A | BT341: N/A | BU341: N/A
BB342: No | BC342: N/A | BD342: N/A | BE342: N/A | BF342: N/A | BG342: N/A | BH342: N/A | BI342: N/A | BJ342: N/A | BK342: N/A | BL342: N/A | BM342: N/A | BN342: N/A | BO342: N/A | BP342: N/A | BQ342: N/A | BR342: N/A | BS342: N/A | BT342: N/A | BU342: N/A
BA343: Use of Basic Water and Sanitation | BB343: Yes | BC343: N/A | BD343: N/A | BE343: N/A | BF343: N/A | BG343: N/A | BH343: N/A | BI343: N/A | BJ343: N/A | BK343: N/A | BL343: N/A | BM343: N/A | BN343: N/A | BO343: N/A | BP343: N/A | BQ343: N/A | BR343: N/A | BS343: N/A | BT343: N/A | BU343: N/A
BB344: No | BC344: N/A | BD344: N/A | BE344: N/A | BF344: N/A | BG344: N/A | BH344: N/A | BI344: N/A | BJ344: N/A | BK344: N/A | BL344: N/A | BM344: N/A | BN344: N/A | BO344: N/A | BP344: N/A | BQ344: N/A | BR344: N/A | BS344: N/A | BT344: N/A | BU344: N/A
BA345: Use of Basic Water and Hygiene | BB345: Yes | BC345: N/A | BD345: N/A | BE345: N/A | BF345: N/A | BG345: N/A | BH345: N/A | BI345: N/A | BJ345: N/A | BK345: N/A | BL345: N/A | BM345: N/A | BN345: N/A | BO345: N/A | BP345: N/A | BQ345: N/A | BR345: N/A | BS345: N/A | BT345: N/A | BU345: N/A
BB346: No | BC346: N/A | BD346: N/A | BE346: N/A | BF346: N/A | BG346: N/A | BH346: N/A | BI346: N/A | BJ346: N/A | BK346: N/A | BL346: N/A | BM346: N/A | BN346: N/A | BO346: N/A | BP346: N/A | BQ346: N/A | BR346: N/A | BS346: N/A | BT346: N/A | BU346: N/A
BA347: Use of Basic Sanitation and Hygiene | BB347: Yes | BC347: N/A | BD347: N/A | BE347: N/A | BF347: N/A | BG347: N/A | BH347: N/A | BI347: N/A | BJ347: N/A | BK347: N/A | BL347: N/A | BM347: N/A | BN347: N/A | BO347: N/A | BP347: N/A | BQ347: N/A | BR347: N/A | BS347: N/A | BT347: N/A | BU347: N/A
BB348: No | BC348: N/A | BD348: N/A | BE348: N/A | BF348: N/A | BG348: N/A | BH348: N/A | BI348: N/A | BJ348: N/A | BK348: N/A | BL348: N/A | BM348: N/A | BN348: N/A | BO348: N/A | BP348: N/A | BQ348: N/A | BR348: N/A | BS348: N/A | BT348: N/A | BU348: N/A
BA349: Use of Basic Water | BB349: Yes | BC349: N/A | BD349: N/A | BE349: N/A | BF349: N/A | BG349: N/A | BH349: N/A | BI349: N/A | BJ349: N/A | BK349: N/A | BL349: N/A | BM349: N/A | BN349: N/A | BO349: N/A | BP349: N/A | BQ349: N/A | BR349: N/A | BS349: N/A | BT349: N/A | BU349: N/A
BB350: No | BC350: N/A | BD350: N/A | BE350: N/A | BF350: N/A | BG350: N/A | BH350: N/A | BI350: N/A | BJ350: N/A | BK350: N/A | BL350: N/A | BM350: N/A | BN350: N/A | BO350: N/A | BP350: N/A | BQ350: N/A | BR350: N/A | BS350: N/A | BT350: N/A | BU350: N/A
BA351: Use of Basic Sanitation | BB351: Yes | BC351: N/A | BD351: N/A | BE351: N/A | BF351: N/A | BG351: N/A | BH351: N/A | BI351: N/A | BJ351: N/A | BK351: N/A | BL351: N/A | BM351: N/A | BN351: N/A | BO351: N/A | BP351: N/A | BQ351: N/A | BR351: N/A | BS351: N/A | BT351: N/A | BU351: N/A
BB352: No | BC352: N/A | BD352: N/A | BE352: N/A | BF352: N/A | BG352: N/A | BH352: N/A | BI352: N/A | BJ352: N/A | BK352: N/A | BL352: N/A | BM352: N/A | BN352: N/A | BO352: N/A | BP352: N/A | BQ352: N/A | BR352: N/A | BS352: N/A | BT352: N/A | BU352: N/A
BA353: Access to Basic Hygiene | BB353: Yes | BC353: N/A | BD353: N/A | BE353: N/A | BF353: N/A | BG353: N/A | BH353: N/A | BI353: N/A | BJ353: N/A | BK353: N/A | BL353: N/A | BM353: N/A | BN353: N/A | BO353: N/A | BP353: N/A | BQ353: N/A | BR353: N/A | BS353: N/A | BT353: N/A | BU353: N/A
BB354: No | BC354: N/A | BD354: N/A | BE354: N/A | BF354: N/A | BG354: N/A | BH354: N/A | BI354: N/A | BJ354: N/A | BK354: N/A | BL354: N/A | BM354: N/A | BN354: N/A | BO354: N/A | BP354: N/A | BQ354: N/A | BR354: N/A | BS354: N/A | BT354: N/A | BU354: N/A
C399: INITIAL (national) Wealth Index | H399: URBAN Wealth Index | M399: RURAL Wealth Index
C400: Component Matrix | H400: Component Matrix | M400: Component Matrix
E401: Component | J401: Component | O401: Component
B402: Note: The INITIAL (national) Wealth Index is based on the first component of the Principal Component Analysis (PCA) which has been obtained at national level. The final national-level (NATIONAL) Wealth Index is based on the URBAN and RURAL specific wealth indexes. Regression procedures are used to establish the relationships between the two sets of scores (urban and rural) and the initial (national) wealth factors. This allows best use of the available information for each area and a better precision of the FINAL (NATIONAL) Wealth Index. For dependency reasons, all WASH variables (contained in the generic MICS and DHS scripts) have been excluded from the sets of asset variables used in the PCAs. The PCA can extracts as many components as there are asset variables in the input. Only the first of the components is used to represent the Wealth Index. The scores represent the weights of the asset variables on the Wealth Index (correlations between the variables and the component). The communalities are the proportion of each variable's variance that can be explained by the component. Proportion of explained variance is the part of the model's total variance that is explained by the component. For more information on the procedure used: The DHS Wealth Index, DHS Comparative Reports No. 6, Shea Oscar Rutstein, Kiersten Johnson, ORC Macro International Inc., 2004. The DHS Wealth Index: Approaches for Rural and Urban Areas, Shea O. Rutstein, ORC Macro International Inc., 2008. MICS Methodological Paper No. 4, Review of options for reporting water, sanitation and hygiene coverage by wealth quintile, UNICEF, 2016. | E402: 1 | J402: 1 | O402: 1
C403: fuel8 | E403: -0.7682653789 | H403: floor10 | J403: 0.6380779716 | M403: fuel8 | O403: -0.7484515273
C404: fuel7 | E404: 0.7295543764 | H404: floor1 | J404: -0.5787607985 | M404: Household cooks at open sky | O404: -0.7092607195
C405: Household member owns: asset2a | E405: 0.7286752678 | H405: roof7 | J405: 0.5060829608 | M405: fuel7 | O405: 0.6914150951
C406: Household member owns: asset2e | E406: 0.7216766527 | H406: Household member owns: asset2c | J406: 0.4623171662 | M406: Household member owns: asset2a | O406: 0.6644185364
C407: Household cooks at open sky | E407: -0.7188047584 | H407: Household member owns: asset2e | J407: 0.4509067725 | M407: Household member owns: asset2c | O407: 0.6631257029
C408: Household member owns: asset2c | E408: 0.7059110932 | H408: wall11 | J408: 0.4483296675 | M408: Household member owns: asset2e | O408: 0.6384646358
C409: floor1 | E409: -0.67788645 | H409: roof2 | J409: -0.4436428079 | M409: Household cooks on open owen | O409: 0.6038305969
C410: Household cooks on open owen | E410: 0.6343489257 | H410: fuel8 | J410: -0.3912158555 | M410: floor1 | O410: -0.5876708304
C411: floor10 | E411: 0.6098168841 | H411: wall14 | J411: 0.3850074705 | M411: Household member owns: asset2f | O411: 0.5536583981
C412: Household member owns: asset2f | E412: 0.5896263286 | H412: Household member owns: asset2f | J412: 0.3832327052 | M412: Household member owns: asset2b | O412: 0.4639577076
... 250 more rows

Sheet DHS08
A2: =A1026 -> Sierra Leone
A3: =A1034 -> 2008
A4: Use of drinking water sources
A5: by wealth quintile and sub-national region
A6: Notes:
A7: WHO/UNICEF JMP customised wealth index excludes water,
A8: sanitation and hygiene assets.
A9: Survey used for analysis: | B9: =A1025 -> DHS08
A10: =B1028 -> 
A11: =B1027 -> 
A14: Use of drinking water sources | C14: NATIONAL wealth index quintile | H14: URBAN wealth index quintile | M14: RURAL wealth index quintile | R14: SUB-REGIONS: | BA14: Raw numbers of respondents: | BB14: Use of drinking water sources | BC14: NATIONAL wealth index quintile | BH14: URBAN wealth index quintile | BM14: RURAL wealth index quintile | BR14: SUB-REGIONS:
A15: Weighted percentage (used in graphs) | C15: Poorest | D15: Poor | E15: Middle | F15: Rich | G15: Richest | H15: Poorest | I15: Poor | J15: Middle | K15: Rich | L15: Richest | M15: Poorest | N15: Poor | O15: Middle | P15: Rich | Q15: Richest | R15: Eastern | S15: Northern | T15: Southern | U15: Western | BA15: Water data, raw numbers (weighted) | BC15: Poorest | BD15: Poor | BE15: Middle | BF15: Rich | BG15: Richest | BH15: Poorest | BI15: Poor | BJ15: Middle | BK15: Rich | BL15: Richest | BM15: Poorest | BN15: Poor | BO15: Middle | BP15: Rich | BQ15: Richest | BR15: Eastern | BS15: Northern | BT15: Southern | BU15: Western
A16: Water | B16: Improved | C16: 25.31152831 | D16: 33.91945186 | E16: 44.79797943 | F16: 59.73179529 | G16: 90.42846245 | H16: 62.16091196 | I16: 74.66456924 | J16: 84.10757311 | K16: 92.29453596 | L16: 96.57126725 | M16: 21.75622115 | N16: 29.97588801 | O16: 33.28316303 | P16: 41.92304319 | Q16: 51.00281813 | R16: 49.27813488 | S16: 37.07277365 | T16: 45.89906472 | U16: 91.55397557 | BA16: Water | BB16: Improved | BC16: N/A | BD16: N/A | BE16: N/A | BF16: N/A | BG16: N/A | BH16: N/A | BI16: N/A | BJ16: N/A | BK16: N/A | BL16: N/A | BM16: N/A | BN16: N/A | BO16: N/A | BP16: N/A | BQ16: N/A | BR16: N/A | BS16: N/A | BT16: N/A | BU16: N/A
B17: Not Improved | C17: 74.68847169 | D17: 66.08054814 | E17: 55.20202057 | F17: 40.26820471 | G17: 9.571537554 | H17: 37.83908804 | I17: 25.33543076 | J17: 15.89242689 | K17: 7.705464042 | L17: 3.428732752 | M17: 78.24377885 | N17: 70.02411199 | O17: 66.71683697 | P17: 58.07695681 | Q17: 48.99718187 | R17: 50.72186512 | S17: 62.92722635 | T17: 54.10093528 | U17: 8.446024426 | BB17: Not Improved | BC17: N/A | BD17: N/A | BE17: N/A | BF17: N/A | BG17: N/A | BH17: N/A | BI17: N/A | BJ17: N/A | BK17: N/A | BL17: N/A | BM17: N/A | BN17: N/A | BO17: N/A | BP17: N/A | BQ17: N/A | BR17: N/A | BS17: N/A | BT17: N/A | BU17: N/A
A18: Water ladder | B18: Basic | C18: =C16*C23/100 -> 24.02064036 | D18: =D16*D23/100 -> 31.51117078 | E18: =E16*E23/100 -> 40.85575724 | F18: 48.44248598 | G18: 67.45963298 | H18: 53.76918884 | I18: 58.31302858 | J18: 64.34229343 | K18: 63.96011342 | L18: 73.78044818 | M18: 20.71192253 | N18: 29.04663548 | O18: 31.21960692 | P18: 37.60496974 | Q18: 43.65841232 | R18: 47.20845321 | S18: 31.80843979 | T18: 42.73202925 | U18: 63.26379712 | BA18: Water ladder | BB18: Basic | BC18: N/A | BD18: N/A | BE18: N/A | BF18: N/A | BG18: N/A | BH18: N/A | BI18: N/A | BJ18: N/A | BK18: N/A | BL18: N/A | BM18: N/A | BN18: N/A | BO18: N/A | BP18: N/A | BQ18: N/A | BR18: N/A | BS18: N/A | BT18: N/A | BU18: N/A
B19: Limited | C19: =C16*C22/100 -> 1.290887944 | D19: =D16*D22/100 -> 2.408281082 | E19: =E16*E22/100 -> 3.94222219 | F19: 11.28930931 | G19: 22.96882946 | H19: 8.391723114 | I19: 16.35154066 | J19: 19.76527968 | K19: 28.33442254 | L19: 22.79081907 | M19: 1.044298615 | N19: 0.9292525282 | O19: 2.063556108 | P19: 4.318073448 | Q19: 7.344405811 | R19: 2.069681665 | S19: 5.264333859 | T19: 3.167035465 | U19: 28.29017845 | BB19: Limited | BC19: N/A | BD19: N/A | BE19: N/A | BF19: N/A | BG19: N/A | BH19: N/A | BI19: N/A | BJ19: N/A | BK19: N/A | BL19: N/A | BM19: N/A | BN19: N/A | BO19: N/A | BP19: N/A | BQ19: N/A | BR19: N/A | BS19: N/A | BT19: N/A | BU19: N/A
B20: Unimproved | C20: =100-C18-C19-C21 -> 25.22536457 | D20: =100-D18-D19-D21 -> 26.42817987 | E20: =100-E18-E19-E21 -> 24.6948876 | F20: 15.83142854 | G20: 7.727318772 | H20: 26.96698549 | I20: 17.53898365 | J20: 13.61325677 | K20: 6.902529574 | L20: 2.807930035 | M20: 24.44688987 | N20: 25.96094097 | O20: 27.38198441 | P20: 23.46703246 | Q20: 14.09310971 | R20: 24.99044481 | S20: 23.85467082 | T20: 18.45909647 | U20: 6.707711759 | BB20: Unimproved | BC20: N/A | BD20: N/A | BE20: N/A | BF20: N/A | BG20: N/A | BH20: N/A | BI20: N/A | BJ20: N/A | BK20: N/A | BL20: N/A | BM20: N/A | BN20: N/A | BO20: N/A | BP20: N/A | BQ20: N/A | BR20: N/A | BS20: N/A | BT20: N/A | BU20: N/A
B21: Surface water | C21: 49.46310712 | D21: 39.65236826 | E21: 30.50713297 | F21: 24.43677617 | G21: 1.844218782 | H21: 10.87210255 | I21: 7.796447101 | J21: 2.279170117 | K21: 0.8029344682 | L21: 0.6208027174 | M21: 53.79688898 | N21: 44.06317102 | O21: 39.33485256 | P21: 34.60992435 | Q21: 34.90407216 | R21: 25.73142031 | S21: 39.07255553 | T21: 35.64183882 | U21: 1.738312667 | BB21: Surface water | BC21: N/A | BD21: N/A | BE21: N/A | BF21: N/A | BG21: N/A | BH21: N/A | BI21: N/A | BJ21: N/A | BK21: N/A | BL21: N/A | BM21: N/A | BN21: N/A | BO21: N/A | BP21: N/A | BQ21: N/A | BR21: N/A | BS21: N/A | BT21: N/A | BU21: N/A
A22: Improved water point at more than 30 minutes | B22: Yes | C22: 5.1 | D22: 7.1 | E22: 8.8 | F22: 18.9 | G22: 25.4 | H22: 13.5 | I22: 21.9 | J22: 23.5 | K22: 30.7 | L22: 23.6 | M22: 4.8 | N22: 3.1 | O22: 6.2 | P22: 10.3 | Q22: 14.4 | R22: 4.2 | S22: 14.2 | T22: 6.9 | U22: 30.9 | BA22: Improved water point at more than 30 minutes | BB22: Yes | BC22: N/A | BD22: N/A | BE22: N/A | BF22: N/A | BG22: N/A | BH22: N/A | BI22: N/A | BJ22: N/A | BK22: N/A | BL22: N/A | BM22: N/A | BN22: N/A | BO22: N/A | BP22: N/A | BQ22: N/A | BR22: N/A | BS22: N/A | BT22: N/A | BU22: N/A
B23: No | C23: 94.9 | D23: 92.9 | E23: 91.2 | F23: 81.1 | G23: 74.6 | H23: 86.5 | I23: 78.1 | J23: 76.5 | K23: 69.3 | L23: 76.4 | M23: 95.2 | N23: 96.9 | O23: 93.8 | P23: 89.7 | Q23: 85.6 | R23: 95.8 | S23: 85.8 | T23: 93.1 | U23: 69.1 | BB23: No | BC23: N/A | BD23: N/A | BE23: N/A | BF23: N/A | BG23: N/A | BH23: N/A | BI23: N/A | BJ23: N/A | BK23: N/A | BL23: N/A | BM23: N/A | BN23: N/A | BO23: N/A | BP23: N/A | BQ23: N/A | BR23: N/A | BS23: N/A | BT23: N/A | BU23: N/A
A24: Manually calculated ratios | B24: Improved wells
B25: Improved springs
B26: Other
C27: NATIONAL wealth index quintile | H27: URBAN wealth index quintile | M27: RURAL wealth index quintile | R27: SUB-REGIONS: | BA27: Raw numbers of respondents: | BB27: Use of drinking water sources | BC27: NATIONAL wealth index quintile | BH27: URBAN wealth index quintile | BM27: RURAL wealth index quintile | BR27: SUB-REGIONS:
A28: Percentage based on weighted population | C28: Poorest | D28: Poor | E28: Middle | F28: Rich | G28: Richest | H28: Poorest | I28: Poor | J28: Middle | K28: Rich | L28: Richest | M28: Poorest | N28: Poor | O28: Middle | P28: Rich | Q28: Richest | R28: Eastern | S28: Northern | T28: Southern | U28: Western | BA28: Water data, raw numbers (weighted) | BC28: Poorest | BD28: Poor | BE28: Middle | BF28: Rich | BG28: Richest | BH28: Poorest | BI28: Poor | BJ28: Middle | BK28: Rich | BL28: Richest | BM28: Poorest | BN28: Poor | BO28: Middle | BP28: Rich | BQ28: Richest | BR28: Eastern | BS28: Northern | BT28: Southern | BU28: Western
A29: Piped water | B29: Yes | C29: 7.7 | D29: 8.1 | E29: 6.8 | F29: 19.4 | G29: 56.9 | H29: 16.8 | I29: 28.5 | J29: 39 | K29: 60.9 | L29: 74.1 | M29: 6.9 | N29: 7.2 | O29: 7.9 | P29: 5.6 | Q29: 12.2 | R29: 14.8 | S29: 3.9 | T29: 15.3 | U29: 68.7 | BA29: Piped water | BB29: Yes | BC29: N/A | BD29: N/A | BE29: N/A | BF29: N/A | BG29: N/A | BH29: N/A | BI29: N/A | BJ29: N/A | BK29: N/A | BL29: N/A | BM29: N/A | BN29: N/A | BO29: N/A | BP29: N/A | BQ29: N/A | BR29: N/A | BS29: N/A | BT29: N/A | BU29: N/A
B30: No | C30: 92.3 | D30: 91.9 | E30: 93.2 | F30: 80.6 | G30: 43.1 | H30: 83.2 | I30: 71.5 | J30: 61 | K30: 39.1 | L30: 25.9 | M30: 93.1 | N30: 92.8 | O30: 92.1 | P30: 94.4 | Q30: 87.8 | R30: 85.2 | S30: 96.1 | T30: 84.7 | U30: 31.3 | BB30: No | BC30: N/A | BD30: N/A | BE30: N/A | BF30: N/A | BG30: N/A | BH30: N/A | BI30: N/A | BJ30: N/A | BK30: N/A | BL30: N/A | BM30: N/A | BN30: N/A | BO30: N/A | BP30: N/A | BQ30: N/A | BR30: N/A | BS30: N/A | BT30: N/A | BU30: N/A
A31: Piped water on premises | B31: Yes | C31: 0.4 | D31: 0.6 | E31: 0.5 | F31: 6.1 | G31: 27.7 | H31: 4.3 | I31: 8.1 | J31: 16.3 | K31: 26.8 | L31: 41.5 | M31: 0.4 | N31: 0.4 | O31: 0.1 | P31: 0.1 | Q31: 4.2 | R31: 3.9 | S31: 0.7 | T31: 0.8 | U31: 32.9 | BA31: Piped water on premises | BB31: Yes | BC31: N/A | BD31: N/A | BE31: N/A | BF31: N/A | BG31: N/A | BH31: N/A | BI31: N/A | BJ31: N/A | BK31: N/A | BL31: N/A | BM31: N/A | BN31: N/A | BO31: N/A | BP31: N/A | BQ31: N/A | BR31: N/A | BS31: N/A | BT31: N/A | BU31: N/A
B32: No | C32: 99.6 | D32: 99.4 | E32: 99.5 | F32: 93.9 | G32: 72.3 | H32: 95.7 | I32: 91.9 | J32: 83.7 | K32: 73.2 | L32: 58.5 | M32: 99.6 | N32: 99.6 | O32: 99.9 | P32: 99.9 | Q32: 95.8 | R32: 96.1 | S32: 99.3 | T32: 99.2 | U32: 67.1 | BB32: No | BC32: N/A | BD32: N/A | BE32: N/A | BF32: N/A | BG32: N/A | BH32: N/A | BI32: N/A | BJ32: N/A | BK32: N/A | BL32: N/A | BM32: N/A | BN32: N/A | BO32: N/A | BP32: N/A | BQ32: N/A | BR32: N/A | BS32: N/A | BT32: N/A | BU32: N/A
A33: Piped water into dwelling | B33: Yes | C33: N/A | D33: N/A | E33: N/A | F33: N/A | G33: N/A | H33: N/A | I33: N/A | J33: N/A | K33: N/A | L33: N/A | M33: N/A | N33: N/A | O33: N/A | P33: N/A | Q33: N/A | R33: N/A | S33: N/A | T33: N/A | U33: N/A | BA33: Piped water into dwelling | BB33: Yes | BC33: N/A | BD33: N/A | BE33: N/A | BF33: N/A | BG33: N/A | BH33: N/A | BI33: N/A | BJ33: N/A | BK33: N/A | BL33: N/A | BM33: N/A | BN33: N/A | BO33: N/A | BP33: N/A | BQ33: N/A | BR33: N/A | BS33: N/A | BT33: N/A | BU33: N/A
B34: No | C34: N/A | D34: N/A | E34: N/A | F34: N/A | G34: N/A | H34: N/A | I34: N/A | J34: N/A | K34: N/A | L34: N/A | M34: N/A | N34: N/A | O34: N/A | P34: N/A | Q34: N/A | R34: N/A | S34: N/A | T34: N/A | U34: N/A | BB34: No | BC34: N/A | BD34: N/A | BE34: N/A | BF34: N/A | BG34: N/A | BH34: N/A | BI34: N/A | BJ34: N/A | BK34: N/A | BL34: N/A | BM34: N/A | BN34: N/A | BO34: N/A | BP34: N/A | BQ34: N/A | BR34: N/A | BS34: N/A | BT34: N/A | BU34: N/A
A35: Water source on premises | B35: Yes | C35: 3.1 | D35: 3.4 | E35: 5.8 | F35: 15.8 | G35: 37.5 | H35: 14.4 | I35: 24.5 | J35: 29.6 | K35: 35.3 | L35: 50.1 | M35: 2.6 | N35: 3.1 | O35: 2 | P35: 4.8 | Q35: 9.9 | R35: 9.6 | S35: 7.8 | T35: 7.2 | U35: 36.4 | BA35: Water source on premises | BB35: Yes | BC35: N/A | BD35: N/A | BE35: N/A | BF35: N/A | BG35: N/A | BH35: N/A | BI35: N/A | BJ35: N/A | BK35: N/A | BL35: N/A | BM35: N/A | BN35: N/A | BO35: N/A | BP35: N/A | BQ35: N/A | BR35: N/A | BS35: N/A | BT35: N/A | BU35: N/A
B36: No | C36: 96.9 | D36: 96.6 | E36: 94.2 | F36: 84.2 | G36: 62.5 | H36: 85.6 | I36: 75.5 | J36: 70.4 | K36: 64.7 | L36: 49.9 | M36: 97.4 | N36: 96.9 | O36: 98 | P36: 95.2 | Q36: 90.1 | R36: 90.4 | S36: 92.2 | T36: 92.8 | U36: 63.6 | BB36: No | BC36: N/A | BD36: N/A | BE36: N/A | BF36: N/A | BG36: N/A | BH36: N/A | BI36: N/A | BJ36: N/A | BK36: N/A | BL36: N/A | BM36: N/A | BN36: N/A | BO36: N/A | BP36: N/A | BQ36: N/A | BR36: N/A | BS36: N/A | BT36: N/A | BU36: N/A
A37: Improved Water source on premises | B37: Yes | C37: 1.9 | D37: 2.3 | E37: 3.8 | F37: 12.5 | G37: 36 | H37: 10.6 | I37: 19.5 | J37: 26.1 | K37: 34.5 | L37: 49.4 | M37: 1.4 | N37: 2.1 | O37: 1.2 | P37: 3 | Q37: 7.9 | R37: 7.9 | S37: 5.2 | T37: 5.4 | U37: 36.3 | BA37: Improved water source on premises | BB37: Yes | BC37: N/A | BD37: N/A | BE37: N/A | BF37: N/A | BG37: N/A | BH37: N/A | BI37: N/A | BJ37: N/A | BK37: N/A | BL37: N/A | BM37: N/A | BN37: N/A | BO37: N/A | BP37: N/A | BQ37: N/A | BR37: N/A | BS37: N/A | BT37: N/A | BU37: N/A
B38: No | C38: 98.1 | D38: 97.7 | E38: 96.2 | F38: 87.5 | G38: 64 | H38: 89.4 | I38: 80.5 | J38: 73.9 | K38: 65.5 | L38: 50.6 | M38: 98.6 | N38: 97.9 | O38: 98.8 | P38: 97 | Q38: 92.1 | R38: 92.1 | S38: 94.8 | T38: 94.6 | U38: 63.7 | BB38: No | BC38: N/A | BD38: N/A | BE38: N/A | BF38: N/A | BG38: N/A | BH38: N/A | BI38: N/A | BJ38: N/A | BK38: N/A | BL38: N/A | BM38: N/A | BN38: N/A | BO38: N/A | BP38: N/A | BQ38: N/A | BR38: N/A | BS38: N/A | BT38: N/A | BU38: N/A
A39: Piped water on premises available when needed | B39: Yes | C39: N/A | D39: N/A | E39: N/A | F39: N/A | G39: N/A | H39: N/A | I39: N/A | J39: N/A | K39: N/A | L39: N/A | M39: N/A | N39: N/A | O39: N/A | P39: N/A | Q39: N/A | R39: N/A | S39: N/A | T39: N/A | U39: N/A | BA39: Piped water on premises available when needed | BB39: Yes | BC39: N/A | BD39: N/A | BE39: N/A | BF39: N/A | BG39: N/A | BH39: N/A | BI39: N/A | BJ39: N/A | BK39: N/A | BL39: N/A | BM39: N/A | BN39: N/A | BO39: N/A | BP39: N/A | BQ39: N/A | BR39: N/A | BS39: N/A | BT39: N/A | BU39: N/A
B40: No | C40: N/A | D40: N/A | E40: N/A | F40: N/A | G40: N/A | H40: N/A | I40: N/A | J40: N/A | K40: N/A | L40: N/A | M40: N/A | N40: N/A | O40: N/A | P40: N/A | Q40: N/A | R40: N/A | S40: N/A | T40: N/A | U40: N/A | BB40: No | BC40: N/A | BD40: N/A | BE40: N/A | BF40: N/A | BG40: N/A | BH40: N/A | BI40: N/A | BJ40: N/A | BK40: N/A | BL40: N/A | BM40: N/A | BN40: N/A | BO40: N/A | BP40: N/A | BQ40: N/A | BR40: N/A | BS40: N/A | BT40: N/A | BU40: N/A
A41: Water point at more than 30 minutes | B41: Yes | C41: 12 | D41: 15.3 | E41: 14.8 | F41: 20.6 | G41: 24.9 | H41: 15.1 | I41: 20.8 | J41: 23.4 | K41: 30.2 | L41: 24.1 | M41: 11.1 | N41: 13.8 | O41: 15.4 | P41: 15.7 | Q41: 18.8 | R41: 4.9 | S41: 21.7 | T41: 7.2 | U41: 31.7 | BA41: Water point at more than 30 minutes | BB41: Yes | BC41: N/A | BD41: N/A | BE41: N/A | BF41: N/A | BG41: N/A | BH41: N/A | BI41: N/A | BJ41: N/A | BK41: N/A | BL41: N/A | BM41: N/A | BN41: N/A | BO41: N/A | BP41: N/A | BQ41: N/A | BR41: N/A | BS41: N/A | BT41: N/A | BU41: N/A
B42: No | C42: 88 | D42: 84.7 | E42: 85.2 | F42: 79.4 | G42: 75.1 | H42: 84.9 | I42: 79.2 | J42: 76.6 | K42: 69.8 | L42: 75.9 | M42: 88.9 | N42: 86.2 | O42: 84.6 | P42: 84.3 | Q42: 81.2 | R42: 95.1 | S42: 78.3 | T42: 92.8 | U42: 68.3 | BB42: No | BC42: N/A | BD42: N/A | BE42: N/A | BF42: N/A | BG42: N/A | BH42: N/A | BI42: N/A | BJ42: N/A | BK42: N/A | BL42: N/A | BM42: N/A | BN42: N/A | BO42: N/A | BP42: N/A | BQ42: N/A | BR42: N/A | BS42: N/A | BT42: N/A | BU42: N/A
A43: Water source available when needed | B43: Yes | C43: N/A | D43: N/A | E43: N/A | F43: N/A | G43: N/A | H43: N/A | I43: N/A | J43: N/A | K43: N/A | L43: N/A | M43: N/A | N43: N/A | O43: N/A | P43: N/A | Q43: N/A | R43: N/A | S43: N/A | T43: N/A | U43: N/A | BA43: Water source available when needed | BB43: Yes | BC43: N/A | BD43: N/A | BE43: N/A | BF43: N/A | BG43: N/A | BH43: N/A | BI43: N/A | BJ43: N/A | BK43: N/A | BL43: N/A | BM43: N/A | BN43: N/A | BO43: N/A | BP43: N/A | BQ43: N/A | BR43: N/A | BS43: N/A | BT43: N/A | BU43: N/A
B44: No | C44: N/A | D44: N/A | E44: N/A | F44: N/A | G44: N/A | H44: N/A | I44: N/A | J44: N/A | K44: N/A | L44: N/A | M44: N/A | N44: N/A | O44: N/A | P44: N/A | Q44: N/A | R44: N/A | S44: N/A | T44: N/A | U44: N/A | BB44: No | BC44: N/A | BD44: N/A | BE44: N/A | BF44: N/A | BG44: N/A | BH44: N/A | BI44: N/A | BJ44: N/A | BK44: N/A | BL44: N/A | BM44: N/A | BN44: N/A | BO44: N/A | BP44: N/A | BQ44: N/A | BR44: N/A | BS44: N/A | BT44: N/A | BU44: N/A
A45: Improved water source available when needed | B45: Yes | C45: N/A | D45: N/A | E45: N/A | F45: N/A | G45: N/A | H45: N/A | I45: N/A | J45: N/A | K45: N/A | L45: N/A | M45: N/A | N45: N/A | O45: N/A | P45: N/A | Q45: N/A | R45: N/A | S45: N/A | T45: N/A | U45: N/A | BA45: Improved water source available when needed | BB45: Yes | BC45: N/A | BD45: N/A | BE45: N/A | BF45: N/A | BG45: N/A | BH45: N/A | BI45: N/A | BJ45: N/A | BK45: N/A | BL45: N/A | BM45: N/A | BN45: N/A | BO45: N/A | BP45: N/A | BQ45: N/A | BR45: N/A | BS45: N/A | BT45: N/A | BU45: N/A
B46: No | C46: N/A | D46: N/A | E46: N/A | F46: N/A | G46: N/A | H46: N/A | I46: N/A | J46: N/A | K46: N/A | L46: N/A | M46: N/A | N46: N/A | O46: N/A | P46: N/A | Q46: N/A | R46: N/A | S46: N/A | T46: N/A | U46: N/A | BB46: No | BC46: N/A | BD46: N/A | BE46: N/A | BF46: N/A | BG46: N/A | BH46: N/A | BI46: N/A | BJ46: N/A | BK46: N/A | BL46: N/A | BM46: N/A | BN46: N/A | BO46: N/A | BP46: N/A | BQ46: N/A | BR46: N/A | BS46: N/A | BT46: N/A | BU46: N/A
A47: Microbiological quality at point of collection | B47: Not contaminated (No E. coli in 100 mL) | C47: N/A | D47: N/A | E47: N/A | F47: N/A | G47: N/A | H47: N/A | I47: N/A | J47: N/A | K47: N/A | L47: N/A | M47: N/A | N47: N/A | O47: N/A | P47: N/A | Q47: N/A | R47: N/A | S47: N/A | T47: N/A | U47: N/A | BA47: Microbiological quality at point of collection | BB47: Not contaminated (No E. coli in 100 mL) | BC47: N/A | BD47: N/A | BE47: N/A | BF47: N/A | BG47: N/A | BH47: N/A | BI47: N/A | BJ47: N/A | BK47: N/A | BL47: N/A | BM47: N/A | BN47: N/A | BO47: N/A | BP47: N/A | BQ47: N/A | BR47: N/A | BS47: N/A | BT47: N/A | BU47: N/A
B48: Contaminated (E. coli detected in 100 mL) | C48: N/A | D48: N/A | E48: N/A | F48: N/A | G48: N/A | H48: N/A | I48: N/A | J48: N/A | K48: N/A | L48: N/A | M48: N/A | N48: N/A | O48: N/A | P48: N/A | Q48: N/A | R48: N/A | S48: N/A | T48: N/A | U48: N/A | BB48: Contaminated (E. coli detected in 100 mL) | BC48: N/A | BD48: N/A | BE48: N/A | BF48: N/A | BG48: N/A | BH48: N/A | BI48: N/A | BJ48: N/A | BK48: N/A | BL48: N/A | BM48: N/A | BN48: N/A | BO48: N/A | BP48: N/A | BQ48: N/A | BR48: N/A | BS48: N/A | BT48: N/A | BU48: N/A
B49: Highly contaminated (>100 CFU/100 mL) | C49: N/A | D49: N/A | E49: N/A | F49: N/A | G49: N/A | H49: N/A | I49: N/A | J49: N/A | K49: N/A | L49: N/A | M49: N/A | N49: N/A | O49: N/A | P49: N/A | Q49: N/A | R49: N/A | S49: N/A | T49: N/A | U49: N/A | BB49: Highly contaminated (>100 CFU/100 mL) | BC49: N/A | BD49: N/A | BE49: N/A | BF49: N/A | BG49: N/A | BH49: N/A | BI49: N/A | BJ49: N/A | BK49: N/A | BL49: N/A | BM49: N/A | BN49: N/A | BO49: N/A | BP49: N/A | BQ49: N/A | BR49: N/A | BS49: N/A | BT49: N/A | BU49: N/A
A50: Microbiological quality of improved water sources at point of collection | B50: Not contaminated (No E. coli in 100 mL) | C50: N/A | D50: N/A | E50: N/A | F50: N/A | G50: N/A | H50: N/A | I50: N/A | J50: N/A | K50: N/A | L50: N/A | M50: N/A | N50: N/A | O50: N/A | P50: N/A | Q50: N/A | R50: N/A | S50: N/A | T50: N/A | U50: N/A | BA50: Microbiological quality of improved water sources at point of collection | BB50: Not contaminated (No E. coli in 100 mL) | BC50: N/A | BD50: N/A | BE50: N/A | BF50: N/A | BG50: N/A | BH50: N/A | BI50: N/A | BJ50: N/A | BK50: N/A | BL50: N/A | BM50: N/A | BN50: N/A | BO50: N/A | BP50: N/A | BQ50: N/A | BR50: N/A | BS50: N/A | BT50: N/A | BU50: N/A
B51: Contaminated (E. coli detected in 100 mL) | C51: N/A | D51: N/A | E51: N/A | F51: N/A | G51: N/A | H51: N/A | I51: N/A | J51: N/A | K51: N/A | L51: N/A | M51: N/A | N51: N/A | O51: N/A | P51: N/A | Q51: N/A | R51: N/A | S51: N/A | T51: N/A | U51: N/A | BB51: Contaminated (E. coli detected in 100 mL) | BC51: N/A | BD51: N/A | BE51: N/A | BF51: N/A | BG51: N/A | BH51: N/A | BI51: N/A | BJ51: N/A | BK51: N/A | BL51: N/A | BM51: N/A | BN51: N/A | BO51: N/A | BP51: N/A | BQ51: N/A | BR51: N/A | BS51: N/A | BT51: N/A | BU51: N/A
B52: Highly contaminated (>100 CFU/100 mL) | C52: N/A | D52: N/A | E52: N/A | F52: N/A | G52: N/A | H52: N/A | I52: N/A | J52: N/A | K52: N/A | L52: N/A | M52: N/A | N52: N/A | O52: N/A | P52: N/A | Q52: N/A | R52: N/A | S52: N/A | T52: N/A | U52: N/A | BB52: Highly contaminated (>100 CFU/100 mL) | BC52: N/A | BD52: N/A | BE52: N/A | BF52: N/A | BG52: N/A | BH52: N/A | BI52: N/A | BJ52: N/A | BK52: N/A | BL52: N/A | BM52: N/A | BN52: N/A | BO52: N/A | BP52: N/A | BQ52: N/A | BR52: N/A | BS52: N/A | BT52: N/A | BU52: N/A
A53: Microbiological quality of piped on premises at point of collection | B53: Not contaminated (No E. coli in 100 mL) | C53: N/A | D53: N/A | E53: N/A | F53: N/A | G53: N/A | H53: N/A | I53: N/A | J53: N/A | K53: N/A | L53: N/A | M53: N/A | N53: N/A | O53: N/A | P53: N/A | Q53: N/A | R53: N/A | S53: N/A | T53: N/A | U53: N/A | BA53: Microbiological quality of piped on premises at point of collection | BB53: Not contaminated (No E. coli in 100 mL) | BC53: N/A | BD53: N/A | BE53: N/A | BF53: N/A | BG53: N/A | BH53: N/A | BI53: N/A | BJ53: N/A | BK53: N/A | BL53: N/A | BM53: N/A | BN53: N/A | BO53: N/A | BP53: N/A | BQ53: N/A | BR53: N/A | BS53: N/A | BT53: N/A | BU53: N/A
B54: Contaminated (E. coli detected in 100 mL) | C54: N/A | D54: N/A | E54: N/A | F54: N/A | G54: N/A | H54: N/A | I54: N/A | J54: N/A | K54: N/A | L54: N/A | M54: N/A | N54: N/A | O54: N/A | P54: N/A | Q54: N/A | R54: N/A | S54: N/A | T54: N/A | U54: N/A | BB54: Contaminated (E. coli detected in 100 mL) | BC54: N/A | BD54: N/A | BE54: N/A | BF54: N/A | BG54: N/A | BH54: N/A | BI54: N/A | BJ54: N/A | BK54: N/A | BL54: N/A | BM54: N/A | BN54: N/A | BO54: N/A | BP54: N/A | BQ54: N/A | BR54: N/A | BS54: N/A | BT54: N/A | BU54: N/A
B55: Highly contaminated (>100 CFU/100 mL) | C55: N/A | D55: N/A | E55: N/A | F55: N/A | G55: N/A | H55: N/A | I55: N/A | J55: N/A | K55: N/A | L55: N/A | M55: N/A | N55: N/A | O55: N/A | P55: N/A | Q55: N/A | R55: N/A | S55: N/A | T55: N/A | U55: N/A | BB55: Highly contaminated (>100 CFU/100 mL) | BC55: N/A | BD55: N/A | BE55: N/A | BF55: N/A | BG55: N/A | BH55: N/A | BI55: N/A | BJ55: N/A | BK55: N/A | BL55: N/A | BM55: N/A | BN55: N/A | BO55: N/A | BP55: N/A | BQ55: N/A | BR55: N/A | BS55: N/A | BT55: N/A | BU55: N/A
C56: NATIONAL wealth index quintile | H56: URBAN wealth index quintile | M56: RURAL wealth index quintile | R56: SUB-REGIONS: | BA56: Raw numbers of respondents: | BB56: Use of drinking water sources | BC56: NATIONAL wealth index quintile | BH56: URBAN wealth index quintile | BM56: RURAL wealth index quintile | BR56: SUB-REGIONS:
A57: Percentage based on weighted population | C57: Poorest | D57: Poor | E57: Middle | F57: Rich | G57: Richest | H57: Poorest | I57: Poor | J57: Middle | K57: Rich | L57: Richest | M57: Poorest | N57: Poor | O57: Middle | P57: Rich | Q57: Richest | R57: Eastern | S57: Northern | T57: Southern | U57: Western | BA57: Water data, raw numbers (weighted) | BC57: Poorest | BD57: Poor | BE57: Middle | BF57: Rich | BG57: Richest | BH57: Poorest | BI57: Poor | BJ57: Middle | BK57: Rich | BL57: Richest | BM57: Poorest | BN57: Poor | BO57: Middle | BP57: Rich | BQ57: Richest | BR57: Eastern | BS57: Northern | BT57: Southern | BU57: Western
A58: Source of drinking water | B58: Piped into dwelling | C58: 0.08718506466 | D58: 0.1997493409 | E58: 0.09243717906 | F58: 1.513204868 | G58: 5.207864002 | H58: 0.8812750357 | I58: 1.499250791 | J58: 2.173402091 | K58: 3.009455687 | L58: 10.31142861 | M58: 0 | N58: 0.1414184732 | O58: 0 | P58: 0.06871416079 | Q58: 1.603083654 | R58: 0.5972699295 | S58: 0.2374267547 | T58: 0.1649808019 | U58: 6.546403471
B59: Piped to yard/plot | C59: 0.31263732 | D59: 0.4470646611 | E59: 0.4284814541 | F59: 4.642088512 | G59: 22.35994797 | H59: 3.397403591 | I59: 6.595830248 | J59: 14.12820241 | K59: 23.93882856 | L59: 30.77701602 | M59: 0.423927552 | N59: 0.2872252797 | O59: 0.0505107003 | P59: 0.0333699108 | Q59: 2.597789884 | R59: 3.268295021 | S59: 0.5110073552 | T59: 0.6124684414 | U59: 26.17529786
B60: Public tap/standpipe | C60: 7.296359472 | D60: 7.442149966 | E60: 6.307963313 | F60: 13.2189788 | G60: 29.07394717 | H60: 12.59025717 | I60: 20.41135066 | J60: 22.66510487 | K60: 34.22971339 | L60: 32.03024336 | M60: 6.486112166 | N60: 6.831437158 | O60: 7.879512902 | P60: 5.469453146 | Q60: 7.997236451 | R60: 11.00626569 | S60: 3.119584748 | T60: 14.54672895 | U60: 35.5695815
B61: Tube well or borehole | C61: 5.087372749 | D61: 7.192072475 | E61: 7.31284633 | F61: 8.226700998 | G61: 3.197736378 | H61: 13.89633206 | I61: 6.485333285 | J61: 4.219597343 | K61: 2.874572074 | L61: 2.279198346 | M61: 4.865630443 | N61: 5.160196854 | O61: 6.069894197 | P61: 6.667428536 | Q61: 8.853810823 | R61: 13.99962034 | S61: 2.641075685 | T61: 7.419857245 | U61: 5.5204488
B62: Protected well | C62: 11.46841862 | D62: 17.3647208 | E62: 28.83685401 | F62: 31.19482565 | G62: 27.5956195 | H62: 31.1274132 | I62: 38.95221283 | J62: 38.7217245 | K62: 26.29279041 | L62: 16.20480304 | M62: 8.937935928 | N62: 15.84859707 | O62: 18.36992044 | P62: 27.61435426 | Q62: 28.62051852 | R62: 18.85607282 | S62: 29.32908631 | T62: 22.48138689 | U62: 14.07649696
B63: Unprotected well | C63: 13.97501396 | D63: 17.13883825 | E63: 18.08764643 | F63: 13.18417487 | G63: 6.00909795 | H63: 19.56738096 | I63: 15.56492331 | J63: 11.10382438 | K63: 5.813898707 | L63: 1.963809262 | M63: 13.26355591 | N63: 15.11469602 | O63: 19.57244199 | P63: 16.00991423 | Q63: 11.47917459 | R63: 13.31577813 | S63: 18.53164907 | T63: 12.16785701 | U63: 3.900522719
B64: Protected spring | C64: 0.5840235488 | D64: 0.9801350056 | E64: 1.16150033 | F64: 0.9129780492 | G64: 2.143859414 | H64: 0.5738149676 | I64: 0.7205914286 | J64: 2.114208297 | K64: 2.302932373 | L64: 2.225285927 | M64: 0.5954905245 | N64: 1.223293661 | O64: 0.6682048323 | P64: 1.084797726 | Q64: 1.157207965 | R64: 1.216244493 | S64: 0.8243133074 | T64: 0.4771345752 | U64: 2.661800712
B65: Unprotected spring | C65: 11.92998666 | D65: 10.21872787 | E65: 7.713735279 | F65: 3.363460634 | G65: 1.56810334 | H65: 7.584882226 | I65: 2.24295821 | J65: 2.552865021 | K65: 0.7198645099 | L65: 0.6366615527 | M65: 11.88442198 | N65: 11.71150804 | O65: 8.720860399 | P65: 8.525177824 | Q65: 4.264541705 | R65: 12.83134012 | S65: 6.354026589 | T65: 6.679962901 | U65: 2.701622811
B66: River/dam/lake/ponds/stream/canal/irirgation channel | C66: 48.72515214 | D66: 38.62625473 | E66: 29.17226628 | F66: 23.65547169 | G66: 1.80692482 | H66: 10.3812408 | I66: 7.527549234 | J66: 2.235737493 | K66: 0.8010058367 | L66: 0.6134705464 | M66: 53.05341868 | N66: 43.1426849 | O66: 38.32040384 | P66: 33.20440309 | Q66: 33.25346558 | R66: 24.46946408 | S66: 37.87801186 | T66: 35.18638431 | U66: 1.714917663
B67: Rainwater | C67: 0.03585783502 | D67: 0 | E67: 0 | F67: 0 | G67: 0 | H67: 0 | I67: 0 | J67: 0 | K67: 0 | L67: 0 | M67: 0.05343988932 | N67: 0 | O67: 0 | P67: 0 | Q67: 0 | R67: 0.03892301114 | S67: 0 | T67: 0 | U67: 0
B68: Tanker truck | C68: 0.04329572944 | D68: 0 | E68: 0 | F68: 0 | G68: 0.1739822121 | H68: 0 | I68: 0 | J68: 0 | K68: 0 | L68: 0.5278371729 | M68: 0.06452478204 | N68: 0 | O68: 0 | P68: 0 | Q68: 0 | R68: 0 | S68: 0 | T68: 0.04340003804 | U68: 0.1942330613
B69: Cart with small tank | C69: 0.4546969029 | D69: 0.3902868956 | E69: 0.4207256004 | F69: 0.08811592287 | G69: 0.02568713654 | H69: 0 | I69: 0 | J69: 0 | K69: 0 | L69: 0.07793110208 | M69: 0.3715421416 | N69: 0.5389425436 | O69: 0.3482507022 | P69: 0.627757341 | Q69: 0.1310419792 | R69: 0.4007263727 | S69: 0.3547450659 | T69: 0.2100373378 | U69: 0.0286770188
B70: Bottled water | C70: 0 | D70: 0 | E70: 0.2715199142 | F70: 0 | G70: 0.7984950668 | H70: 0 | I70: 0 | J70: 0.08533359177 | K70: 0.01693845643 | L70: 2.234798469 | M70: 0 | N70: 0 | O70: 0 | P70: 0.4051301352 | Q70: 0.04212885646 | R70: 0 | S70: 0.1301328972 | T70: 0.009801497628 | U70: 0.8667537665
B71: Other | C71: 0 | D71: 0 | E71: 0.1940238748 | F71: 0 | G71: 0.0387350455 | H71: 0 | I71: 0 | J71: 0 | K71: 0 | L71: 0.1175165936 | M71: 0 | N71: 0 | O71: 0 | P71: 0.2894996444 | Q71: 0 | R71: 0 | S71: 0.08894035563 | T71: 0 | U71: 0.04324365335
A108: =A1026 -> Sierra Leone
A109: =A1034 -> 2008
A110: Use of sanitation facilities
A111: by wealth quintile and sub-national region
A112: Notes:
A113: WHO/UNICEF JMP customised wealth index excludes water,
A114: sanitation and hygiene assets.
A115: Survey used for analysis: | B115: =A1025 -> DHS08
A116: =B1030 -> 
A117: =B1029 -> 
A120: Use of sanitation facilities | C120: NATIONAL wealth index quintile | H120: URBAN wealth index quintile | M120: RURAL wealth index quintile | R120: SUB-REGIONS: | BA120: Raw numbers of respondents: | BB120: Use of sanitation facilities | BC120: NATIONAL wealth index quintile | BH120: URBAN wealth index quintile | BM120: RURAL wealth index quintile | BR120: SUB-REGIONS:
A121: Weighted percentage (used in graphs) | C121: Poorest | D121: Poor | E121: Middle | F121: Rich | G121: Richest | H121: Poorest | I121: Poor | J121: Middle | K121: Rich | L121: Richest | M121: Poorest | N121: Poor | O121: Middle | P121: Rich | Q121: Richest | R121: Eastern | S121: Northern | T121: Southern | U121: Western | BA121: Sanitation data, raw numbers (weighted) | BC121: Poorest | BD121: Poor | BE121: Middle | BF121: Rich | BG121: Richest | BH121: Poorest | BI121: Poor | BJ121: Middle | BK121: Rich | BL121: Richest | BM121: Poorest | BN121: Poor | BO121: Middle | BP121: Rich | BQ121: Richest | BR121: Eastern | BS121: Northern | BT121: Southern | BU121: Western
A122: Sanitation | B122: Improved | C122: 18.99488563 | D122: 25.52336088 | E122: 36.70508132 | F122: 54.71397562 | G122: 84.19848645 | H122: 49.35529655 | I122: 71.80271226 | J122: 76.69367639 | K122: 84.51592673 | L122: 93.15909503 | M122: 17.69824579 | N122: 19.26645239 | O122: 28.41335135 | P122: 33.76166631 | Q122: 44.86744168 | R122: 45.40341865 | S122: 37.02281232 | T122: 25.59689558 | U122: 80.24057823 | BA122: Sanitation | BB122: Improved | BC122: 1637.641569 | BD122: 2199.788545 | BE122: 3167.43844 | BF122: 4709.363626 | BG122: 7275.551488 | BH122: 1406.875259 | BI122: 2031.316216 | BJ122: 2179.328997 | BK122: 2391.441499 | BL122: 2651.646082 | BM122: 1023.473565 | BN122: 1114.78745 | BO122: 1643.60247 | BP122: 1953.334895 | BQ122: 2593.977235 | BR122: 3605.585151 | BS122: 6978.271467 | BT122: 2199.661643 | BU122: 6206.265407
B123: Not Improved | C123: 81.00511437 | D123: 74.47663912 | E123: 63.29491868 | F123: 45.28602438 | G123: 15.80151355 | H123: 50.64470345 | I123: 28.19728774 | J123: 23.30632361 | K123: 15.48407327 | L123: 6.840904968 | M123: 82.30175421 | N123: 80.73354761 | O123: 71.58664865 | P123: 66.23833369 | Q123: 55.13255832 | R123: 54.59658135 | S123: 62.97718768 | T123: 74.40310442 | U123: 19.75942177 | BB123: Not Improved | BC123: 6983.845295 | BD123: 6418.937473 | BE123: 5461.98922 | BF123: 3897.877162 | BG123: 1365.40133 | BH123: 1443.629869 | BI123: 797.708137 | BJ123: 662.272944 | BK123: 438.13346 | BL123: 194.716993 | BM123: 4759.436093 | BN123: 4671.370934 | BO123: 4141.010721 | BP123: 3832.324133 | BQ123: 3187.447196 | BR123: 4335.634383 | BS123: 11870.30062 | BT123: 6393.80875 | BU123: 1528.306731
A124: Sanitation ladder | B124: Basic | C124: =C122*C129/100 -> 2.630237956 | D124: =D122*D129/100 -> 5.146276209 | E124: =E122*E129/100 -> 9.491287788 | F124: 13.88057076 | G124: 34.65580208 | H124: 10.66035557 | I124: 19.2822374 | J124: 22.50825906 | K124: 27.27039684 | L124: 52.51590067 | M124: 2.479326278 | N124: 3.266154513 | O124: 4.483813053 | P124: 9.734555629 | Q124: 13.29141066 | R124: 7.785192585 | S124: 11.84993087 | T124: 6.26105339 | U124: 29.71954298 | BA124: Sanitation ladder | BB124: Basic | BC124: 225.027779 | BD124: 427.77953 | BE124: 797.906708 | BF124: 1181.176275 | BG124: 2962.156823 | BH124: 296.468195 | BI124: 538.080716 | BJ124: 634.177189 | BK124: 760.062958 | BL124: 1478.659896 | BM124: 142.442485 | BN124: 182.091899 | BO124: 254.832223 | BP124: 548.465421 | BQ124: 758.766133 | BR124: 612.269691 | BS124: 2187.678713 | BT124: 529.734488 | BU124: 2264.364223
B125: Limited | C125: =C122*C128/100 -> 16.36464767 | D125: =D122*D128/100 -> 20.37708467 | E125: =E122*E128/100 -> 27.21379353 | F125: 40.83340485 | G125: 49.54268437 | H125: 38.69494098 | I125: 52.52047487 | J125: 54.18541734 | K125: 57.24552989 | L125: 40.64319436 | M125: 15.21891951 | N125: 16.00029787 | O125: 23.92953829 | P125: 24.02711068 | Q125: 31.57603102 | R125: 37.61822607 | S125: 25.17288145 | T125: 19.33584219 | U125: 50.52103524 | BB125: Limited | BC125: 1400.063561 | BD125: 1693.826633 | BE125: 2287.789486 | BF125: 3474.745373 | BG125: 4234.592528 | BH125: 1076.119763 | BI125: 1465.610766 | BJ125: 1526.690961 | BK125: 1595.510584 | BL125: 1144.366959 | BM125: 874.358786 | BN125: 892.035148 | BO125: 1360.007067 | BP125: 1353.738155 | BQ125: 1802.579392 | BR125: 2958.500949 | BS125: 4647.299425 | BT125: 1635.964721 | BU125: 3849.252486
B126: Unimproved | C126: =100-C124-C125-C127 -> 35.81507938 | D126: =100-D124-D125-D127 -> 45.14791184 | E126: =100-E124-E125-E127 -> 41.46695453 | F126: 34.15657253 | G126: 13.90364744 | H126: 35.16469105 | I126: 24.0547473 | J126: 22.3390665 | K126: 13.8183351 | L126: 6.067058189 | M126: 35.12361493 | N126: 43.08696808 | O126: 44.70116034 | P126: 43.37356734 | Q126: 38.06703408 | R126: 28.54483796 | S126: 52.31829497 | T126: 18.26331649 | U126: 12.99846088 | BB126: Unimproved | BC126: 3093.463817 | BD126: 3914.104722 | BE126: 3596.203512 | BF126: 2945.886242 | BG126: 1202.903174 | BH126: 1007.679 | BI126: 681.659025 | BJ126: 634.965911 | BK126: 391.597616 | BL126: 172.911973 | BM126: 2034.314784 | BN126: 2508.387467 | BO126: 2593.522339 | BP126: 2521.137771 | BQ126: 2206.385581 | BR126: 2275.878035 | BS126: 9876.525022 | BT126: 1588.519134 | BU126: 1011.639276
B127: Open defecation | C127: 45.19003499 | D127: 29.32872728 | E127: 21.82796415 | F127: 11.12945185 | G127: 1.897866109 | H127: 15.48001241 | I127: 4.142540436 | J127: 0.9672571115 | K127: 1.665738174 | L127: 0.7738467787 | M127: 47.17813928 | N127: 37.64657953 | O127: 26.88548831 | P127: 22.86476635 | Q127: 17.06552423 | R127: 26.05174339 | S127: 10.65889271 | T127: 56.13978793 | U127: 6.76096089 | BB127: Open defecation | BC127: 3890.381478 | BD127: 2504.832751 | BE127: 1865.785708 | BF127: 951.99092 | BG127: 162.498156 | BH127: 435.950869 | BI127: 116.049112 | BJ127: 27.307033 | BK127: 46.535844 | BL127: 21.80502 | BM127: 2725.121309 | BN127: 2162.983467 | BO127: 1547.488382 | BP127: 1311.186362 | BQ127: 981.061615 | BR127: 2059.756348 | BS127: 1993.775594 | BT127: 4805.289616 | BU127: 516.667455
A128: Shared among Improved Sanitation | B128: Yes | C128: 86.15291501 | D128: 79.83699626 | E128: 74.14176063 | F128: 74.63066683 | G128: 58.8403503 | H128: 78.40078712 | I128: 73.1455306 | J128: 70.65174064 | K128: 67.73342269 | L128: 43.62772561 | M128: 85.99111851 | N128: 83.04745239 | O128: 84.21934464 | P128: 71.16683893 | Q128: 70.37626804 | R128: 82.85328987 | S128: 67.99289378 | T128: 75.53979399 | U128: 62.96195312 | BA128: Shared among improved sanitation facilities | BB128: Yes | BC128: N/A | BD128: N/A | BE128: N/A | BF128: N/A | BG128: N/A | BH128: N/A | BI128: N/A | BJ128: N/A | BK128: N/A | BL128: N/A | BM128: N/A | BN128: N/A | BO128: N/A | BP128: N/A | BQ128: N/A | BR128: N/A | BS128: N/A | BT128: N/A | BU128: N/A
